Workbook

Sheet Home
B11: Home
B13: Performance Metrics
B15: Raw Data
B17: Administration
F23: March Performance Metrics

Sheet Manager Performance
G3: Start Date: 03/01/2024, End Date: 03/30/2024
H4: Score | I4: # NPS WO's | J4: # Failures | K4: NPS | L4: Total Repeatable WO | M4: Total Repeats | N4: Repeats | O4: Total Repeatable WO | P4: Repeat IN | Q4: IN Repeat % | R4: Total Repeatable WO | S4: Repeat TC | T4: Repeat TC % | U4: Jobs | V4: Pass | W4: SQT Compliance | X4: Test Fail | Y4: SQT Pass | Z4: Ingress Test Run | AA4: Test Passed | AB4: Ingress Test Pass | AC4: FCR WO | AD4: FCR Failures | AE4: FCR | AF4: Jobs | AG4: Jobs Late | AH4: OTA | AI4: Jobs | AJ4: Completed Jobs | AK4: Completion % | AL4: Total QC | AM4: QC Failure | AN4: SMS tNPS
AL5: =AL18 -> 0 | AM5: 0 | AN5: =IFERROR(1-AM5/AL5,"") -> 
G6: Macon | H6: =IF(W6="","",IFERROR(IF(K6>=70%,2.5,0)+IF(N6<=4%,2.5,0)+IF(W6>=90%,2.5,0)+IF(AH6>=96%,2.5,0),"")) -> 7.5 | I6: =I20 -> 69 | J6: 17.9998 | K6: =IFERROR(1-(J6/I6),"") -> 0.7391 | L6: =L20 -> 1014 | M6: 35 | N6: =IFERROR(SUM(M6/L6),"") -> 0.0345 | O6: =Macon!O34 -> 586 | P6: =P20 -> 17 | Q6: =IFERROR(SUM(P6/O6),"") -> 0.029 | R6: =R20 -> 428 | S6: =S20 -> 18 | T6: =IFERROR(SUM(S6/R6),"") -> 0.0421 | U6: =U20 -> 629 | V6: 611 | W6: =IFERROR(SUM(V6/U6),"") -> 0.9714 | X6: =X20 -> 55 | Y6: =IFERROR(SUM(1-X6/V6),"") -> 0.91 | AC6: =AC20 -> 567 | AD6: 15 | AE6: =IFERROR(1-AD6/AC6,"") -> 0.9735 | AF6: =AF20 -> 443 | AG6: 70 | AH6: =IFERROR(1-AG6/AF6,"") -> 0.842 | AI6: =AI20 -> 1175 | AJ6: 1001 | AK6: =IFERROR(AJ6/AI6,"") -> 0.8519 | AL6: 0 | AM6: 0
G7: Gainesville | H7: =IF(W7="","",IFERROR(IF(K7>=70%,2.5,0)+IF(N7<=4%,2.5,0)+IF(W7>=90%,2.5,0)+IF(AH7>=96%,2.5,0),"")) -> 7.5 | I7: 78 | J7: 5.9997 | K7: 0.9231 | L7: 793 | M7: 28 | N7: 0.0353 | O7: =O21 -> 447 | P7: 15 | Q7: 0.0336 | R7: =R21 -> 346 | S7: 13 | T7: 0.0376 | U7: 493 | V7: 480 | W7: =IFERROR(SUM(V7/U7),"") -> 0.9736 | X7: 8 | Y7: =IFERROR(SUM(1-X7/V7),"") -> 0.9833 | AC7: 438 | AD7: 13 | AE7: 0.9703 | AF7: 295 | AG7: 39 | AH7: 0.8678 | AI7: 875 | AJ7: 789 | AK7: 0.9017 | AL7: 0 | AM7: 0
G8: New Orleans | H8: 5 | I8: 26 | J8: 7.9998 | K8: 0.6923 | L8: 578 | M8: 19 | N8: 0.0329 | O8: =O22 -> 300 | P8: 8 | Q8: 0.0267 | R8: =R22 -> 278 | S8: 11 | T8: 0.0396 | U8: 475 | V8: 459 | W8: 0.9663 | X8: 90 | Y8: 0.8039 | AC8: 234 | AD8: 9 | AE8: 0.9615 | AF8: 176 | AG8: 30 | AH8: 0.8295 | AI8: 682 | AJ8: 578 | AK8: 0.8475 | AL8: 0 | AM8: 0 | AN8: =IFERROR(1-AM8/AL8,"") -> 
G9: Baton Rouge | H9: 2.5 | I9: 23 | J9: 8.9997 | K9: 0.6087 | L9: 685 | M9: 24 | N9: =IFERROR(SUM(M9/L9),"") -> 0.035 | O9: =O23 -> 371 | P9: 15 | Q9: 0.0404 | R9: =R23 -> 314 | S9: 9 | T9: 0.0287 | U9: 499 | V9: 436 | W9: 0.8737 | X9: 13 | Y9: 0.9702 | AC9: 299 | AD9: 11 | AE9: =IFERROR(1-AD9/AC9,"") -> 0.9632 | AF9: 210 | AG9: 43 | AH9: =IFERROR(1-AG9/AF9,"") -> 0.7952 | AI9: 841 | AJ9: 681 | AK9: =IFERROR(AJ9/AI9,"") -> 0.8098 | AL9: 0 | AM9: 0 | AN9: =IFERROR(1-AM9/AL9,"") -> 
G10: Hampton Roads | H10: 2.5 | I10: 46 | J10: 22.9999 | K10: =IFERROR(1-(J10/I10),"") -> 0.5 | L10: 1155 | M10: 40 | N10: =IFERROR(SUM(M10/L10),"") -> 0.0346 | O10: =O24 -> 630 | P10: 19 | Q10: 0.0302 | R10: =R24 -> 525 | S10: 21 | T10: 0.04 | U10: 919 | V10: 777 | W10: 0.8455 | X10: 120 | Y10: 0.8456 | AC10: 660 | AD10: 23 | AE10: =IFERROR(1-AD10/AC10,"") -> 0.9652 | AF10: 362 | AG10: 55 | AH10: =IFERROR(1-AG10/AF10,"") -> 0.8481 | AI10: 1052 | AJ10: 990 | AK10: =IFERROR(AJ10/AI10,"") -> 0.9411 | AL10: 0 | AM10: 0 | AN10: =IFERROR(1-AM10/AL10,"") -> 
B11: Home | G11: Roanoke | H11: 2.5 | I11: 19 | J11: 0 | K11: =IFERROR(1-(J11/I11),"") -> 1 | L11: 220 | M11: 11 | N11: =IFERROR(SUM(M11/L11),"") -> 0.05 | O11: =O25 -> 97 | P11: 7 | Q11: 0.0722 | R11: =R25 -> 123 | S11: 4 | T11: 0.0325 | U11: 189 | V11: 155 | W11: 0.8201 | X11: 5 | Y11: 0.9677 | AC11: 122 | AD11: 8 | AE11: =IFERROR(1-AD11/AC11,"") -> 0.9344 | AF11: 92 | AG11: 18 | AH11: =IFERROR(1-AG11/AF11,"") -> 0.8043 | AI11: 235 | AJ11: 219 | AK11: =IFERROR(AJ11/AI11,"") -> 0.9319 | AL11: 0 | AM11: 0 | AN11: =IFERROR(1-AM11/AL11,"") -> 
G12: Gulf Coast | H12: 5 | I12: 120 | J12: 31.0013 | K12: =IFERROR(1-(J12/I12),"") -> 0.7417 | L12: 1292 | M12: 51 | N12: =IFERROR(SUM(M12/L12),"") -> 0.0395 | O12: =O26 -> 694 | P12: 25 | Q12: 0.036 | R12: =R26 -> 598 | S12: 26 | T12: 0.0435 | U12: 911 | V12: 808 | W12: 0.8869 | X12: 71 | Y12: 0.9121 | AC12: 603 | AD12: 22 | AE12: =IFERROR(1-AD12/AC12,"") -> 0.9635 | AF12: 389 | AG12: 61 | AH12: =IFERROR(1-AG12/AF12,"") -> 0.8432 | AI12: 1314 | AJ12: 1149 | AK12: =IFERROR(AJ12/AI12,"") -> 0.8744 | AL12: 0 | AM12: 0 | AN12: =IFERROR(1-AM12/AL12,"") -> 
B13: Performance Metrics | G13: Oklahoma City | H13: 2.5 | I13: 30 | J13: 13.0005 | K13: =IFERROR(1-(J13/I13),"") -> 0.5667 | L13: 626 | M13: 38 | N13: =IFERROR(SUM(M13/L13),"") -> 0.0607 | O13: =O27 -> 317 | P13: 10 | Q13: 0.0315 | R13: =R27 -> 309 | S13: 28 | T13: 0.0906 | U13: 579 | V13: 554 | W13: 0.9568 | X13: 47 | Y13: 0.9152 | AC13: 361 | AD13: 13 | AE13: =IFERROR(1-AD13/AC13,"") -> 0.964 | AF13: 287 | AG13: 87 | AH13: =IFERROR(1-AG13/AF13,"") -> 0.6969 | AI13: 715 | AJ13: 621 | AK13: =IFERROR(AJ13/AI13,"") -> 0.8685
B14: Gainesville | AL14: =SUM(AL5:AL11) -> 0 | AM14: =SUM(AM5:AM11) -> 0 | AN14: =IFERROR(1-AM14/AL14,"") -> 
B15: Macon | G15: COX Total | H15: 7.5 | I15: =SUM(I6:I12) -> 381 | J15: =SUM(J6:J12) -> 95.0002 | K15: =IFERROR(1-(J15/I15),"") -> 0.7507 | L15: =SUM(L6:L12) -> 5737 | M15: =SUM(M6:M12) -> 208 | N15: =IFERROR(SUM(M15/L15),"") -> 0.0363 | O15: =SUM(O6:O13) -> 3442 | P15: =SUM(P6:P13) -> 116 | Q15: 0.0337 | R15: =SUM(R6:R13) -> 2921 | S15: =SUM(S6:S13) -> 130 | T15: 0.0445 | U15: =SUM(U6:U12) -> 4115 | V15: =SUM(V6:V12) -> 3726 | W15: 0.9055 | X15: =SUM(X6:X13) -> 409 | Y15: 0.8902 | AC15: =SUM(AC6:AC12) -> 2923 | AD15: =SUM(AD6:AD12) -> 101 | AE15: =IFERROR(1-AD15/AC15,"") -> 0.9654 | AF15: =SUM(AF6:AF12) -> 1967 | AG15: =SUM(AG6:AG12) -> 316 | AH15: =IFERROR(1-AG15/AF15,"") -> 0.8393 | AI15: =SUM(AI6:AI12) -> 6174 | AJ15: =SUM(AJ6:AJ12) -> 5407 | AK15: =IFERROR(AJ15/AI15,"") -> 0.8758
B16: New Orleans
B17: Hampton Roads | AL17: Total QC | AM17: QC Failure | AN17: SMS tNPS
B18: Baton Rouge | G18: Supervisor | H18: Score | I18: # NPS WO's | J18: # Failures | K18: NPS | L18: Total Repeatable WO | M18: Total Repeats | N18: Repeats | O18: Total Repeatable WO | P18: Repeat IN | Q18: IN Repeat % | R18: Total Repeatable WO | S18: Repeat TC | T18: Repeat TC % | U18: Jobs | V18: Pass | W18: SQT Compliance | X18: Test Fail | Y18: SQT Pass | Z18: Ingress Test Run | AA18: Test Passed | AB18: Ingress Test Pass | AC18: FCR WO | AD18: FCR Failures | AE18: FCR | AF18: Jobs | AG18: Jobs Late | AH18: OTA | AI18: Jobs | AJ18: Completed Jobs | AK18: Completion % | AL18: =Macon!AK34 -> 0 | AM18: =Macon!AL34 -> 0 | AN18: =IFERROR(1-AM18/AL18,"") -> 
B19: Roanoke | AL19: =Gainesville!AK34 -> 0 | AM19: =Gainesville!AL34 -> 0
B20: Gulf Coast | F20: Macon | G20: Deandre McCants | H20: =IF(W20="","",IFERROR(IF(K20>=70%,2.5,0)+IF(N20<=4%,2.5,0)+IF(W20>=90%,2.5,0)+IF(AH20>=96%,2.5,0),"")) -> 7.5 | I20: =Macon!I33 -> 69 | J20: =Macon!J33 -> 17.9998 | K20: =IFERROR(1-(J20/I20),"") -> 0.7391 | L20: =Macon!L34 -> 1014 | M20: =Macon!M34 -> 35 | N20: =IFERROR(SUM(M20/L20),"") -> 0.0345 | O20: =Macon!O34 -> 586 | P20: =Macon!P34 -> 17 | Q20: =IFERROR(SUM(P20/O20),"") -> 0.029 | R20: =Macon!R34 -> 428 | S20: =Macon!S34 -> 18 | T20: =IFERROR(SUM(S20/R20),"") -> 0.0421 | U20: =Macon!U34 -> 629 | V20: =Macon!V34 -> 611 | W20: =IFERROR(SUM(V20/U20),"") -> 0.9714 | X20: =Macon!X34 -> 55 | Y20: =IFERROR(SUM(1-X20/V20),"") -> 0.91 | AC20: =Macon!AB34 -> 567 | AD20: =Macon!AC34 -> 15 | AE20: =IFERROR(1-AD20/AC20,"") -> 0.9735 | AF20: =Macon!AE34 -> 443 | AG20: =Macon!AF34 -> 70 | AH20: =IFERROR(1-AG20/AF20,"") -> 0.842 | AI20: =Macon!AH34 -> 1175 | AJ20: =Macon!AI34 -> 1001 | AK20: =IFERROR(AJ20/AI20,"") -> 0.8519 | AL20: ='New Orleans'!AK34 -> 0 | AM20: ='New Orleans'!AL34 -> 0
B21: Oklahoma City | F21: Gainesville | G21: Scotty Lynch | H21: 7.5 | I21: =Gainesville!I34 -> 78 | J21: =Gainesville!J34 -> 5.9997 | K21: 0.9231 | L21: =Gainesville!L34 -> 793 | M21: =Gainesville!M34 -> 28 | N21: 0.0353 | O21: =Gainesville!O34 -> 447 | P21: =Gainesville!P34 -> 15 | Q21: 0.0336 | R21: =Gainesville!R34 -> 346 | S21: =Gainesville!S34 -> 13 | T21: 0.0376 | U21: =Gainesville!U34 -> 493 | V21: =Gainesville!V34 -> 480 | W21: =IFERROR(SUM(V21/U21),"") -> 0.9736 | X21: =Gainesville!X34 -> 8 | Y21: =IFERROR(SUM(1-X21/V21),"") -> 0.9833 | AC21: =Gainesville!AB34 -> 438 | AD21: =Gainesville!AC34 -> 13 | AE21: 0.9703 | AF21: =Gainesville!AE34 -> 295 | AG21: =Gainesville!AF34 -> 39 | AH21: 0.8678 | AI21: =Gainesville!AH34 -> 875 | AJ21: =Gainesville!AI34 -> 789 | AK21: 0.9017 | AL21: ='Baton Rouge'!AK34 -> 0 | AM21: ='Baton Rouge'!AL34 -> 0
B22: Tech Rankings | F22: New Orleans | G22: Josh Baudin | H22: 5 | I22: ='New Orleans'!I33 -> 26 | J22: ='New Orleans'!J33 -> 7.9998 | K22: 0.6923 | L22: ='New Orleans'!L34 -> 578 | M22: ='New Orleans'!M34 -> 19 | N22: 0.0329 | O22: ='New Orleans'!O34 -> 300 | P22: ='New Orleans'!P34 -> 8 | Q22: 0.0267 | R22: ='New Orleans'!R34 -> 278 | S22: ='New Orleans'!S34 -> 11 | T22: 0.0396 | U22: ='New Orleans'!U34 -> 475 | V22: ='New Orleans'!V34 -> 459 | W22: 0.9663 | X22: ='New Orleans'!X34 -> 90 | Y22: 0.8039 | AC22: ='New Orleans'!AB34 -> 234 | AD22: ='New Orleans'!AC34 -> 9 | AE22: 0.9615 | AF22: ='New Orleans'!AE34 -> 176 | AG22: ='New Orleans'!AF34 -> 30 | AH22: 0.8295 | AI22: ='New Orleans'!AH34 -> 682 | AJ22: ='New Orleans'!AI34 -> 578 | AK22: 0.8475 | AL22: ='Hampton Roads'!AK34 -> 0 | AM22: ='Hampton Roads'!AL34 -> 0 | AN22: =IFERROR(1-AM22/AL22,"") -> 
F23: Baton Rouge | G23: Aisha Alexander | H23: 2.5 | I23: ='Baton Rouge'!I33 -> 23 | J23: ='Baton Rouge'!J33 -> 8.9997 | K23: 0.6087 | L23: ='Baton Rouge'!L34 -> 685 | M23: ='Baton Rouge'!M34 -> 24 | N23: 0.035 | O23: ='Baton Rouge'!O34 -> 371 | P23: ='Baton Rouge'!P34 -> 15 | Q23: 0.0404 | R23: ='Baton Rouge'!R34 -> 314 | S23: ='Baton Rouge'!S34 -> 9 | T23: 0.0287 | U23: ='Baton Rouge'!U34 -> 499 | V23: ='Baton Rouge'!V34 -> 436 | W23: 0.8737 | X23: ='Baton Rouge'!X34 -> 13 | Y23: 0.9702 | AC23: ='Baton Rouge'!AB34 -> 299 | AD23: ='Baton Rouge'!AC34 -> 11 | AE23: 0.9632 | AF23: ='Baton Rouge'!AE34 -> 210 | AG23: ='Baton Rouge'!AF34 -> 43 | AH23: 0.7952 | AI23: ='Baton Rouge'!AH34 -> 841 | AJ23: ='Baton Rouge'!AI34 -> 681 | AK23: 0.8098 | AL23: =Roanoke!AK34 -> 0 | AM23: =Roanoke!AL34 -> 0 | AN23: =IFERROR(1-AM23/AL23,"") -> 
B24: Raw Data | F24: Hampton Roads | G24: Jervar Gayle | H24: 2.5 | I24: ='Hampton Roads'!I33 -> 46 | J24: ='Hampton Roads'!J33 -> 22.9999 | K24: =IFERROR(1-(J24/I24),"") -> 0.5 | L24: ='Hampton Roads'!L34 -> 1155 | M24: ='Hampton Roads'!M34 -> 40 | N24: =IFERROR(SUM(M24/L24),"") -> 0.0346 | O24: ='Hampton Roads'!O34 -> 630 | P24: ='Hampton Roads'!P34 -> 19 | Q24: 0.0302 | R24: ='Hampton Roads'!R34 -> 525 | S24: ='Hampton Roads'!S34 -> 21 | T24: 0.04 | U24: ='Hampton Roads'!U34 -> 919 | V24: ='Hampton Roads'!V34 -> 777 | W24: 0.8455 | X24: ='Hampton Roads'!X34 -> 120 | Y24: 0.8456 | AC24: ='Hampton Roads'!AB34 -> 660 | AD24: ='Hampton Roads'!AC34 -> 23 | AE24: =IFERROR(1-AD24/AC24,"") -> 0.9652 | AF24: ='Hampton Roads'!AE34 -> 362 | AG24: ='Hampton Roads'!AF34 -> 55 | AH24: =IFERROR(1-AG24/AF24,"") -> 0.8481 | AI24: ='Hampton Roads'!AH34 -> 1052 | AJ24: ='Hampton Roads'!AI34 -> 990 | AK24: =IFERROR(AJ24/AI24,"") -> 0.9411 | AL24: ='Gulf Coast'!AK34 -> 0 | AM24: ='Gulf Coast'!AL34 -> 0 | AN24: =IFERROR(1-AM24/AL24,"") -> 
F25: Roanoke | G25: Donnie Evans | H25: 2.5 | I25: =Roanoke!I33 -> 19 | J25: =Roanoke!J33 -> 0 | K25: =IFERROR(1-(J25/I25),"") -> 1 | L25: =Roanoke!L34 -> 220 | M25: =Roanoke!M34 -> 11 | N25: =IFERROR(SUM(M25/L25),"") -> 0.05 | O25: =Roanoke!O34 -> 97 | P25: =Roanoke!P34 -> 7 | Q25: 0.0722 | R25: =Roanoke!R34 -> 123 | S25: =Roanoke!S34 -> 4 | T25: 0.0325 | U25: =Roanoke!U34 -> 189 | V25: =Roanoke!V34 -> 155 | W25: 0.8201 | X25: =Roanoke!X34 -> 5 | Y25: 0.9677 | AC25: =Roanoke!AB34 -> 122 | AD25: =Roanoke!AC34 -> 8 | AE25: =IFERROR(1-AD25/AC25,"") -> 0.9344 | AF25: =Roanoke!AE34 -> 92 | AG25: =Roanoke!AF34 -> 18 | AH25: =IFERROR(1-AG25/AF25,"") -> 0.8043 | AI25: =Roanoke!AH34 -> 235 | AJ25: =Roanoke!AI34 -> 219 | AK25: =IFERROR(AJ25/AI25,"") -> 0.9319 | AL25: ='Oklahoma City'!AK34 -> 0 | AM25: ='Oklahoma City'!AL34 -> 0 | AN25: =IFERROR(1-AM25/AL25,"") -> 
F26: Gulf Coast | G26: Brenton Austin | H26: 5 | I26: ='Gulf Coast'!I33 -> 120 | J26: ='Gulf Coast'!J33 -> 31.0013 | K26: =IFERROR(1-(J26/I26),"") -> 0.7417 | L26: ='Gulf Coast'!L34 -> 1292 | M26: ='Gulf Coast'!M34 -> 51 | N26: =IFERROR(SUM(M26/L26),"") -> 0.0395 | O26: ='Gulf Coast'!O34 -> 694 | P26: ='Gulf Coast'!P34 -> 25 | Q26: 0.036 | R26: ='Gulf Coast'!R34 -> 598 | S26: ='Gulf Coast'!S34 -> 26 | T26: 0.0435 | U26: ='Gulf Coast'!U34 -> 911 | V26: ='Gulf Coast'!V34 -> 808 | W26: 0.8869 | X26: ='Gulf Coast'!X34 -> 71 | Y26: 0.9121 | AC26: ='Gulf Coast'!AB34 -> 603 | AD26: ='Gulf Coast'!AC34 -> 22 | AE26: =IFERROR(1-AD26/AC26,"") -> 0.9635 | AF26: ='Gulf Coast'!AE34 -> 389 | AG26: ='Gulf Coast'!AF34 -> 61 | AH26: =IFERROR(1-AG26/AF26,"") -> 0.8432 | AI26: ='Gulf Coast'!AH34 -> 1314 | AJ26: ='Gulf Coast'!AI34 -> 1149 | AK26: =IFERROR(AJ26/AI26,"") -> 0.8744
F27: Oklahoma City | G27: Saddam Ferzauli | H27: 2.5 | I27: ='Oklahoma City'!I33 -> 30 | J27: ='Oklahoma City'!J33 -> 13.0005 | K27: =IFERROR(1-(J27/I27),"") -> 0.5667 | L27: ='Oklahoma City'!L34 -> 626 | M27: ='Oklahoma City'!M34 -> 38 | N27: =IFERROR(SUM(M27/L27),"") -> 0.0607 | O27: ='Oklahoma City'!O34 -> 317 | P27: ='Oklahoma City'!P34 -> 10 | Q27: 0.0315 | R27: ='Oklahoma City'!R34 -> 309 | S27: ='Oklahoma City'!S34 -> 28 | T27: 0.0906 | U27: ='Oklahoma City'!U34 -> 579 | V27: ='Oklahoma City'!V34 -> 554 | W27: 0.9568 | X27: ='Oklahoma City'!X34 -> 47 | Y27: 0.9152 | AC27: ='Oklahoma City'!AB34 -> 361 | AD27: ='Oklahoma City'!AC34 -> 13 | AE27: =IFERROR(1-AD27/AC27,"") -> 0.964 | AF27: ='Oklahoma City'!AE34 -> 287 | AG27: ='Oklahoma City'!AF34 -> 87 | AH27: =IFERROR(1-AG27/AF27,"") -> 0.6969 | AI27: ='Oklahoma City'!AH34 -> 715 | AJ27: ='Oklahoma City'!AI34 -> 621 | AK27: =IFERROR(AJ27/AI27,"") -> 0.8685

Sheet Gainesville
F3: Scotty Lynch
F5: Tech Name | G5: Tech ID | H5: Score | I5: # NPS WO's | J5: # Failures | K5: NPS | L5: Total Repeatable WO | M5: Total Repeats | N5: Repeats | O5: Total Repeatable WO | P5: Repeat IN | Q5: IN Repeat % | R5: Total Repeatable WO | S5: Repeat TC | T5: Repeat TC % | U5: Jobs | V5: Test Run | W5: SQT Compliance | X5: Test Fail | Y5: SQT Pass | Z5: Test Passed | AA5: Ingress Test Pass | AB5: FCR WO | AC5: FCR Failures | AD5: FCR | AE5: Jobs | AF5: Jobs Late | AG5: OTA | AH5: Jobs | AI5: Completed Jobs | AJ5: Completion % | AK5: Total Jobs | AL5: SMS Failures | AM5: SMS tNPS
F7: Nathan Downs | G7: 17176 | H7: =IF(W7="","",IFERROR(IF(K7>=70%,2.5,0)+IF(N7<=4%,2.5,0)+IF(W7>=90%,2.5,0)+IF(AG7>=96%,2.5,0),"")) -> 7.5 | I7: =IFERROR(VLOOKUP($G7,'Technician Summary'!$G$7:$BB$372,2,FALSE),"") -> 7 | J7: =IFERROR(VLOOKUP($G7,'Technician Summary'!$G$7:$BN$372,60,FALSE),"") -> 0 | K7: =IFERROR(1-(J7/I7),"") -> 1 | L7: =IFERROR(VLOOKUP($G7,'Technician Summary'!$G$7:$BK$372,14,FALSE),"") -> 84 | M7: =IFERROR(VLOOKUP($G7,'Technician Summary'!$G$7:$BK$372,15,FALSE),"") -> 1 | N7: =IFERROR(SUM(M7/L7),"") -> 0.0119 | O7: =IFERROR(VLOOKUP($G7,'Technician Summary'!$G$7:$BK$372,17,FALSE),"") -> 37 | P7: =IFERROR(VLOOKUP($G7,'Technician Summary'!$G$7:$BK$372,18,FALSE),"") -> 0 | Q7: =IFERROR(SUM(P7/O7),"") -> 0 | R7: =IFERROR(VLOOKUP($G7,'Technician Summary'!$G$7:$BK$372,20,FALSE),"") -> 47 | S7: =IFERROR(VLOOKUP($G7,'Technician Summary'!$G$7:$BK$372,21,FALSE),"") -> 1 | T7: =IFERROR(SUM(S7/R7),"") -> 0.0213 | U7: =IF(G7="","",COUNTIFS('StrataSync Data'!$AB:$AB,$G7,'StrataSync Data'!$G:$G,"Closed")) -> 67 | V7: =IF($G7="","",COUNTIFS('StrataSync Data'!$AB:$AB,$G7,'StrataSync Data'!$H:$H,"Yes",'StrataSync Data'!$G:$G,"Closed")) -> 66 | W7: =IFERROR(SUM(V7/U7),"") -> 0.9851 | X7: =IFERROR(IF($G$7="","",COUNTIFS('StrataSync Data'!$AB:$AB,$G7,'StrataSync Data'!$I:$I,"Incomplete",'StrataSync Data'!$H:$H,"Yes",'StrataSync Data'!$G:$G,"Closed"))+IF($G7="","",COUNTIFS('StrataSync Data'!$AB:$AB,$G7,'StrataSync Data'!$I:$I,"Fail",'StrataSync Data'!$H:$H,"Yes",'StrataSync Data'!$G:$G,"Closed")),"") -> 0 | Y7: =IFERROR(SUM(1-X7/V7),"") -> 1 | Z7: =SUMIF('StrataSync Data'!#REF!,G7,'StrataSync Data'!#REF!) ->  | AA7: =IFERROR(SUM(Z7/#REF!),"") ->  | AB7: =IFERROR(VLOOKUP($G7,'Technician Summary'!$G$7:$BK$372,7,FALSE),"") -> 37 | AC7: =IFERROR(VLOOKUP($G7,'Technician Summary'!$G$7:$BK$372,8,FALSE),"") -> 0 | AD7: =IFERROR(1-AC7/AB7,"") -> 1 | AE7: =IFERROR(VLOOKUP($G7,'Technician Summary'!$G$7:$BK$372,34,FALSE),"") -> 22 | AF7: =IFERROR(VLOOKUP($G7,'Technician Summary'!$G$7:$BK$372,35,FALSE),"") -> 3 | AG7: =IFERROR(1-AF7/AE7,"") -> 0.8636 | AH7: =IFERROR(VLOOKUP($G7,'Technician Summary'!$G$7:$BK$372,37,FALSE),"") -> 92 | AI7: =IFERROR(VLOOKUP($G7,'Technician Summary'!$G$7:$BK$372,38,FALSE),"") -> 84 | AJ7: =IFERROR(AI7/AH7,"") -> 0.913 | AK7: =IFERROR(VLOOKUP($G7,'Technician Summary'!$G$7:$BK$372,27,FALSE),"") -> 0 | AL7: =IFERROR(VLOOKUP($G7,'Technician Summary'!$G$7:$BK$372,68,FALSE),"") ->  | AM7: =IFERROR(1-AL7/AK7,"") -> 
F8: Daniel Torres Colon | G8: 21972 | H8: =IF(W8="","",IFERROR(IF(K8>=70%,2.5,0)+IF(N8<=4%,2.5,0)+IF(W8>=90%,2.5,0)+IF(AG8>=96%,2.5,0),"")) ->  | I8: =IFERROR(VLOOKUP($G8,'Technician Summary'!$G$7:$BB$372,2,FALSE),"") -> 0 | J8: =IFERROR(VLOOKUP($G8,'Technician Summary'!$G$7:$BN$372,60,FALSE),"") ->  | K8: =IFERROR(1-(J8/I8),"") ->  | L8: =IFERROR(VLOOKUP($G8,'Technician Summary'!$G$7:$BK$372,14,FALSE),"") -> 0 | M8: =IFERROR(VLOOKUP($G8,'Technician Summary'!$G$7:$BK$372,15,FALSE),"") -> 0 | N8: =IFERROR(SUM(M8/L8),"") ->  | O8: =IFERROR(VLOOKUP($G8,'Technician Summary'!$G$7:$BK$372,17,FALSE),"") -> 0 | P8: =IFERROR(VLOOKUP($G8,'Technician Summary'!$G$7:$BK$372,18,FALSE),"") -> 0 | Q8: =IFERROR(SUM(P8/O8),"") ->  | R8: =IFERROR(VLOOKUP($G8,'Technician Summary'!$G$7:$BK$372,20,FALSE),"") -> 0 | S8: =IFERROR(VLOOKUP($G8,'Technician Summary'!$G$7:$BK$372,21,FALSE),"") -> 0 | T8: =IFERROR(SUM(S8/R8),"") ->  | U8: =IF(G8="","",COUNTIFS('StrataSync Data'!$AB:$AB,$G8,'StrataSync Data'!$G:$G,"Closed")) -> 0 | V8: =IF($G8="","",COUNTIFS('StrataSync Data'!$AB:$AB,$G8,'StrataSync Data'!$H:$H,"Yes",'StrataSync Data'!$G:$G,"Closed")) -> 0 | W8: =IFERROR(SUM(V8/U8),"") ->  | X8: =IFERROR(IF($G$7="","",COUNTIFS('StrataSync Data'!$AB:$AB,$G8,'StrataSync Data'!$I:$I,"Incomplete",'StrataSync Data'!$H:$H,"Yes",'StrataSync Data'!$G:$G,"Closed"))+IF($G8="","",COUNTIFS('StrataSync Data'!$AB:$AB,$G8,'StrataSync Data'!$I:$I,"Fail",'StrataSync Data'!$H:$H,"Yes",'StrataSync Data'!$G:$G,"Closed")),"") -> 0 | Y8: =IFERROR(SUM(1-X8/V8),"") ->  | Z8: =SUMIF('StrataSync Data'!#REF!,G8,'StrataSync Data'!#REF!) ->  | AA8: =IFERROR(SUM(Z8/#REF!),"") ->  | AB8: =IFERROR(VLOOKUP($G8,'Technician Summary'!$G$7:$BK$372,7,FALSE),"") -> 0 | AC8: =IFERROR(VLOOKUP($G8,'Technician Summary'!$G$7:$BK$372,8,FALSE),"") -> 0 | AD8: =IFERROR(1-AC8/AB8,"") ->  | AE8: =IFERROR(VLOOKUP($G8,'Technician Summary'!$G$7:$BK$372,34,FALSE),"") -> 0 | AF8: =IFERROR(VLOOKUP($G8,'Technician Summary'!$G$7:$BK$372,35,FALSE),"") -> 0 | AG8: =IFERROR(1-AF8/AE8,"") ->  | AH8: =IFERROR(VLOOKUP($G8,'Technician Summary'!$G$7:$BK$372,37,FALSE),"") -> 1 | AI8: =IFERROR(VLOOKUP($G8,'Technician Summary'!$G$7:$BK$372,38,FALSE),"") -> 0 | AJ8: =IFERROR(AI8/AH8,"") -> 0 | AK8: =IFERROR(VLOOKUP($G8,'Technician Summary'!$G$7:$BK$372,27,FALSE),"") -> 0 | AL8: =IFERROR(VLOOKUP($G8,'Technician Summary'!$G$7:$BK$372,68,FALSE),"") ->  | AM8: =IFERROR(1-AL8/AK8,"") -> 
F9: Opnodo Evanson | G9: 81924 | H9: 7.5 | I9: =IFERROR(VLOOKUP($G9,'Technician Summary'!$G$7:$BB$372,2,FALSE),"") -> 6 | J9: =IFERROR(VLOOKUP($G9,'Technician Summary'!$G$7:$BN$372,60,FALSE),"") -> 0 | K9: 1 | L9: =IFERROR(VLOOKUP($G9,'Technician Summary'!$G$7:$BK$372,14,FALSE),"") -> 88 | M9: =IFERROR(VLOOKUP($G9,'Technician Summary'!$G$7:$BK$372,15,FALSE),"") -> 3 | N9: 0.0341 | O9: =IFERROR(VLOOKUP($G9,'Technician Summary'!$G$7:$BK$372,17,FALSE),"") -> 45 | P9: =IFERROR(VLOOKUP($G9,'Technician Summary'!$G$7:$BK$372,18,FALSE),"") -> 2 | Q9: 0.0444 | R9: =IFERROR(VLOOKUP($G9,'Technician Summary'!$G$7:$BK$372,20,FALSE),"") -> 43 | S9: =IFERROR(VLOOKUP($G9,'Technician Summary'!$G$7:$BK$372,21,FALSE),"") -> 1 | T9: 0.0233 | U9: =IF(G9="","",COUNTIFS('StrataSync Data'!$AB:$AB,$G9,'StrataSync Data'!$G:$G,"Closed")) -> 53 | V9: =IF($G9="","",COUNTIFS('StrataSync Data'!$AB:$AB,$G9,'StrataSync Data'!$H:$H,"Yes",'StrataSync Data'!$G:$G,"Closed")) -> 52 | W9: 0.9811 | X9: =IFERROR(IF($G$7="","",COUNTIFS('StrataSync Data'!$AB:$AB,$G9,'StrataSync Data'!$I:$I,"Incomplete",'StrataSync Data'!$H:$H,"Yes",'StrataSync Data'!$G:$G,"Closed"))+IF($G9="","",COUNTIFS('StrataSync Data'!$AB:$AB,$G9,'StrataSync Data'!$I:$I,"Fail",'StrataSync Data'!$H:$H,"Yes",'StrataSync Data'!$G:$G,"Closed")),"") -> 0 | Y9: 1 | Z9: =SUMIF('StrataSync Data'!#REF!,G9,'StrataSync Data'!#REF!) ->  | AA9: =IFERROR(SUM(Z9/#REF!),"") ->  | AB9: =IFERROR(VLOOKUP($G9,'Technician Summary'!$G$7:$BK$372,7,FALSE),"") -> 47 | AC9: =IFERROR(VLOOKUP($G9,'Technician Summary'!$G$7:$BK$372,8,FALSE),"") -> 1 | AD9: 0.9787 | AE9: =IFERROR(VLOOKUP($G9,'Technician Summary'!$G$7:$BK$372,34,FALSE),"") -> 32 | AF9: =IFERROR(VLOOKUP($G9,'Technician Summary'!$G$7:$BK$372,35,FALSE),"") -> 5 | AG9: 0.8438 | AH9: =IFERROR(VLOOKUP($G9,'Technician Summary'!$G$7:$BK$372,37,FALSE),"") -> 92 | AI9: =IFERROR(VLOOKUP($G9,'Technician Summary'!$G$7:$BK$372,38,FALSE),"") -> 88 | AJ9: 0.9565 | AK9: =IFERROR(VLOOKUP($G9,'Technician Summary'!$G$7:$BK$372,27,FALSE),"") -> 0 | AL9: =IFERROR(VLOOKUP($G9,'Technician Summary'!$G$7:$BK$372,68,FALSE),"") -> 
F10: Omar Graterol | G10: 24375 | I10: =IFERROR(VLOOKUP($G10,'Technician Summary'!$G$7:$BB$372,2,FALSE),"") ->  | J10: =IFERROR(VLOOKUP($G10,'Technician Summary'!$G$7:$BN$372,60,FALSE),"") ->  | L10: =IFERROR(VLOOKUP($G10,'Technician Summary'!$G$7:$BK$372,14,FALSE),"") ->  | M10: =IFERROR(VLOOKUP($G10,'Technician Summary'!$G$7:$BK$372,15,FALSE),"") ->  | O10: =IFERROR(VLOOKUP($G10,'Technician Summary'!$G$7:$BK$372,17,FALSE),"") ->  | P10: =IFERROR(VLOOKUP($G10,'Technician Summary'!$G$7:$BK$372,18,FALSE),"") ->  | R10: =IFERROR(VLOOKUP($G10,'Technician Summary'!$G$7:$BK$372,20,FALSE),"") ->  | S10: =IFERROR(VLOOKUP($G10,'Technician Summary'!$G$7:$BK$372,21,FALSE),"") ->  | U10: =IF(G10="","",COUNTIFS('StrataSync Data'!$AB:$AB,$G10,'StrataSync Data'!$G:$G,"Closed")) -> 0 | V10: =IF($G10="","",COUNTIFS('StrataSync Data'!$AB:$AB,$G10,'StrataSync Data'!$H:$H,"Yes",'StrataSync Data'!$G:$G,"Closed")) -> 0 | X10: =IFERROR(IF($G$7="","",COUNTIFS('StrataSync Data'!$AB:$AB,$G10,'StrataSync Data'!$I:$I,"Incomplete",'StrataSync Data'!$H:$H,"Yes",'StrataSync Data'!$G:$G,"Closed"))+IF($G10="","",COUNTIFS('StrataSync Data'!$AB:$AB,$G10,'StrataSync Data'!$I:$I,"Fail",'StrataSync Data'!$H:$H,"Yes",'StrataSync Data'!$G:$G,"Closed")),"") -> 0 | Z10: =SUMIF('StrataSync Data'!#REF!,G10,'StrataSync Data'!#REF!) ->  | AA10: =IFERROR(SUM(Z10/#REF!),"") ->  | AB10: =IFERROR(VLOOKUP($G10,'Technician Summary'!$G$7:$BK$372,7,FALSE),"") ->  | AC10: =IFERROR(VLOOKUP($G10,'Technician Summary'!$G$7:$BK$372,8,FALSE),"") ->  | AE10: =IFERROR(VLOOKUP($G10,'Technician Summary'!$G$7:$BK$372,34,FALSE),"") ->  | AF10: =IFERROR(VLOOKUP($G10,'Technician Summary'!$G$7:$BK$372,35,FALSE),"") ->  | AH10: =IFERROR(VLOOKUP($G10,'Technician Summary'!$G$7:$BK$372,37,FALSE),"") ->  | AI10: =IFERROR(VLOOKUP($G10,'Technician Summary'!$G$7:$BK$372,38,FALSE),"") ->  | AK10: =IFERROR(VLOOKUP($G10,'Technician Summary'!$G$7:$BK$372,27,FALSE),"") ->  | AL10: =IFERROR(VLOOKUP($G10,'Technician Summary'!$G$7:$BK$372,68,FALSE),"") -> 
B11: Home | F11: Dhimitri Pina | G11: 29269 | H11: 7.5 | I11: =IFERROR(VLOOKUP($G11,'Technician Summary'!$G$7:$BB$372,2,FALSE),"") -> 6 | J11: =IFERROR(VLOOKUP($G11,'Technician Summary'!$G$7:$BN$372,60,FALSE),"") -> 0 | K11: 1 | L11: =IFERROR(VLOOKUP($G11,'Technician Summary'!$G$7:$BK$372,14,FALSE),"") -> 74 | M11: =IFERROR(VLOOKUP($G11,'Technician Summary'!$G$7:$BK$372,15,FALSE),"") -> 2 | N11: 0.027 | O11: =IFERROR(VLOOKUP($G11,'Technician Summary'!$G$7:$BK$372,17,FALSE),"") -> 45 | P11: =IFERROR(VLOOKUP($G11,'Technician Summary'!$G$7:$BK$372,18,FALSE),"") -> 2 | Q11: 0.0444 | R11: =IFERROR(VLOOKUP($G11,'Technician Summary'!$G$7:$BK$372,20,FALSE),"") -> 29 | S11: =IFERROR(VLOOKUP($G11,'Technician Summary'!$G$7:$BK$372,21,FALSE),"") -> 0 | T11: 0 | U11: =IF(G11="","",COUNTIFS('StrataSync Data'!$AB:$AB,$G11,'StrataSync Data'!$G:$G,"Closed")) -> 42 | V11: =IF($G11="","",COUNTIFS('StrataSync Data'!$AB:$AB,$G11,'StrataSync Data'!$H:$H,"Yes",'StrataSync Data'!$G:$G,"Closed")) -> 40 | W11: 0.9524 | X11: =IFERROR(IF($G$7="","",COUNTIFS('StrataSync Data'!$AB:$AB,$G11,'StrataSync Data'!$I:$I,"Incomplete",'StrataSync Data'!$H:$H,"Yes",'StrataSync Data'!$G:$G,"Closed"))+IF($G11="","",COUNTIFS('StrataSync Data'!$AB:$AB,$G11,'StrataSync Data'!$I:$I,"Fail",'StrataSync Data'!$H:$H,"Yes",'StrataSync Data'!$G:$G,"Closed")),"") -> 7 | Y11: 0.825 | Z11: =SUMIF('StrataSync Data'!#REF!,G11,'StrataSync Data'!#REF!) ->  | AA11: =IFERROR(SUM(Z11/#REF!),"") ->  | AB11: =IFERROR(VLOOKUP($G11,'Technician Summary'!$G$7:$BK$372,7,FALSE),"") -> 49 | AC11: =IFERROR(VLOOKUP($G11,'Technician Summary'!$G$7:$BK$372,8,FALSE),"") -> 1 | AD11: 0.9796 | AE11: =IFERROR(VLOOKUP($G11,'Technician Summary'!$G$7:$BK$372,34,FALSE),"") -> 31 | AF11: =IFERROR(VLOOKUP($G11,'Technician Summary'!$G$7:$BK$372,35,FALSE),"") -> 3 | AG11: 0.9032 | AH11: =IFERROR(VLOOKUP($G11,'Technician Summary'!$G$7:$BK$372,37,FALSE),"") -> 81 | AI11: =IFERROR(VLOOKUP($G11,'Technician Summary'!$G$7:$BK$372,38,FALSE),"") -> 74 | AJ11: 0.9136 | AK11: =IFERROR(VLOOKUP($G11,'Technician Summary'!$G$7:$BK$372,27,FALSE),"") -> 0 | AL11: =IFERROR(VLOOKUP($G11,'Technician Summary'!$G$7:$BK$372,68,FALSE),"") -> 
F12: Lee Segal | G12: 52535 | H12: 10 | I12: =IFERROR(VLOOKUP($G12,'Technician Summary'!$G$7:$BB$372,2,FALSE),"") -> 8 | J12: =IFERROR(VLOOKUP($G12,'Technician Summary'!$G$7:$BN$372,60,FALSE),"") -> 2 | K12: 0.75 | L12: =IFERROR(VLOOKUP($G12,'Technician Summary'!$G$7:$BK$372,14,FALSE),"") -> 46 | M12: =IFERROR(VLOOKUP($G12,'Technician Summary'!$G$7:$BK$372,15,FALSE),"") -> 0 | N12: 0 | O12: =IFERROR(VLOOKUP($G12,'Technician Summary'!$G$7:$BK$372,17,FALSE),"") -> 27 | P12: =IFERROR(VLOOKUP($G12,'Technician Summary'!$G$7:$BK$372,18,FALSE),"") -> 0 | Q12: 0 | R12: =IFERROR(VLOOKUP($G12,'Technician Summary'!$G$7:$BK$372,20,FALSE),"") -> 19 | S12: =IFERROR(VLOOKUP($G12,'Technician Summary'!$G$7:$BK$372,21,FALSE),"") -> 0 | T12: 0 | U12: =IF(G12="","",COUNTIFS('StrataSync Data'!$AB:$AB,$G12,'StrataSync Data'!$G:$G,"Closed")) -> 38 | V12: =IF($G12="","",COUNTIFS('StrataSync Data'!$AB:$AB,$G12,'StrataSync Data'!$H:$H,"Yes",'StrataSync Data'!$G:$G,"Closed")) -> 37 | W12: 0.9737 | X12: =IFERROR(IF($G$7="","",COUNTIFS('StrataSync Data'!$AB:$AB,$G12,'StrataSync Data'!$I:$I,"Incomplete",'StrataSync Data'!$H:$H,"Yes",'StrataSync Data'!$G:$G,"Closed"))+IF($G12="","",COUNTIFS('StrataSync Data'!$AB:$AB,$G12,'StrataSync Data'!$I:$I,"Fail",'StrataSync Data'!$H:$H,"Yes",'StrataSync Data'!$G:$G,"Closed")),"") -> 0 | Y12: 1 | Z12: =SUMIF('StrataSync Data'!#REF!,G12,'StrataSync Data'!#REF!) ->  | AA12: =IFERROR(SUM(Z12/#REF!),"") ->  | AB12: =IFERROR(VLOOKUP($G12,'Technician Summary'!$G$7:$BK$372,7,FALSE),"") -> 28 | AC12: =IFERROR(VLOOKUP($G12,'Technician Summary'!$G$7:$BK$372,8,FALSE),"") -> 0 | AD12: 1 | AE12: =IFERROR(VLOOKUP($G12,'Technician Summary'!$G$7:$BK$372,34,FALSE),"") -> 20 | AF12: =IFERROR(VLOOKUP($G12,'Technician Summary'!$G$7:$BK$372,35,FALSE),"") -> 0 | AG12: 1 | AH12: =IFERROR(VLOOKUP($G12,'Technician Summary'!$G$7:$BK$372,37,FALSE),"") -> 52 | AI12: =IFERROR(VLOOKUP($G12,'Technician Summary'!$G$7:$BK$372,38,FALSE),"") -> 46 | AJ12: 0.8846 | AK12: =IFERROR(VLOOKUP($G12,'Technician Summary'!$G$7:$BK$372,27,FALSE),"") -> 0 | AL12: =IFERROR(VLOOKUP($G12,'Technician Summary'!$G$7:$BK$372,68,FALSE),"") -> 
B13: Performance Metrics | F13: Ryhan Tucker | G13: 31797 | I13: =IFERROR(VLOOKUP($G13,'Technician Summary'!$G$7:$BB$372,2,FALSE),"") ->  | J13: =IFERROR(VLOOKUP($G13,'Technician Summary'!$G$7:$BN$372,60,FALSE),"") ->  | L13: =IFERROR(VLOOKUP($G13,'Technician Summary'!$G$7:$BK$372,14,FALSE),"") ->  | M13: =IFERROR(VLOOKUP($G13,'Technician Summary'!$G$7:$BK$372,15,FALSE),"") ->  | O13: =IFERROR(VLOOKUP($G13,'Technician Summary'!$G$7:$BK$372,17,FALSE),"") ->  | P13: =IFERROR(VLOOKUP($G13,'Technician Summary'!$G$7:$BK$372,18,FALSE),"") ->  | R13: =IFERROR(VLOOKUP($G13,'Technician Summary'!$G$7:$BK$372,20,FALSE),"") ->  | S13: =IFERROR(VLOOKUP($G13,'Technician Summary'!$G$7:$BK$372,21,FALSE),"") ->  | U13: =IF(G13="","",COUNTIFS('StrataSync Data'!$AB:$AB,$G13,'StrataSync Data'!$G:$G,"Closed")) -> 0 | V13: =IF($G13="","",COUNTIFS('StrataSync Data'!$AB:$AB,$G13,'StrataSync Data'!$H:$H,"Yes",'StrataSync Data'!$G:$G,"Closed")) -> 0 | X13: =IFERROR(IF($G$7="","",COUNTIFS('StrataSync Data'!$AB:$AB,$G13,'StrataSync Data'!$I:$I,"Incomplete",'StrataSync Data'!$H:$H,"Yes",'StrataSync Data'!$G:$G,"Closed"))+IF($G13="","",COUNTIFS('StrataSync Data'!$AB:$AB,$G13,'StrataSync Data'!$I:$I,"Fail",'StrataSync Data'!$H:$H,"Yes",'StrataSync Data'!$G:$G,"Closed")),"") -> 0 | Z13: =SUMIF('StrataSync Data'!#REF!,G13,'StrataSync Data'!#REF!) ->  | AA13: =IFERROR(SUM(Z13/#REF!),"") ->  | AB13: =IFERROR(VLOOKUP($G13,'Technician Summary'!$G$7:$BK$372,7,FALSE),"") ->  | AC13: =IFERROR(VLOOKUP($G13,'Technician Summary'!$G$7:$BK$372,8,FALSE),"") ->  | AE13: =IFERROR(VLOOKUP($G13,'Technician Summary'!$G$7:$BK$372,34,FALSE),"") ->  | AF13: =IFERROR(VLOOKUP($G13,'Technician Summary'!$G$7:$BK$372,35,FALSE),"") ->  | AH13: =IFERROR(VLOOKUP($G13,'Technician Summary'!$G$7:$BK$372,37,FALSE),"") ->  | AI13: =IFERROR(VLOOKUP($G13,'Technician Summary'!$G$7:$BK$372,38,FALSE),"") ->  | AK13: =IFERROR(VLOOKUP($G13,'Technician Summary'!$G$7:$BK$372,27,FALSE),"") ->  | AL13: =IFERROR(VLOOKUP($G13,'Technician Summary'!$G$7:$BK$372,68,FALSE),"") -> 
B14: Gainesville | F14: Lawrence Proctor | G14: 33259 | H14: 5 | I14: =IFERROR(VLOOKUP($G14,'Technician Summary'!$G$7:$BB$372,2,FALSE),"") -> 7 | J14: =IFERROR(VLOOKUP($G14,'Technician Summary'!$G$7:$BN$372,60,FALSE),"") -> 1.9999 | K14: 0.7143 | L14: =IFERROR(VLOOKUP($G14,'Technician Summary'!$G$7:$BK$372,14,FALSE),"") -> 89 | M14: =IFERROR(VLOOKUP($G14,'Technician Summary'!$G$7:$BK$372,15,FALSE),"") -> 5 | N14: 0.0562 | O14: =IFERROR(VLOOKUP($G14,'Technician Summary'!$G$7:$BK$372,17,FALSE),"") -> 50 | P14: =IFERROR(VLOOKUP($G14,'Technician Summary'!$G$7:$BK$372,18,FALSE),"") -> 3 | Q14: 0.06 | R14: =IFERROR(VLOOKUP($G14,'Technician Summary'!$G$7:$BK$372,20,FALSE),"") -> 39 | S14: =IFERROR(VLOOKUP($G14,'Technician Summary'!$G$7:$BK$372,21,FALSE),"") -> 2 | T14: 0.0513 | U14: =IF(G14="","",COUNTIFS('StrataSync Data'!$AB:$AB,$G14,'StrataSync Data'!$G:$G,"Closed")) -> 57 | V14: =IF($G14="","",COUNTIFS('StrataSync Data'!$AB:$AB,$G14,'StrataSync Data'!$H:$H,"Yes",'StrataSync Data'!$G:$G,"Closed")) -> 56 | W14: 0.9825 | X14: =IFERROR(IF($G$7="","",COUNTIFS('StrataSync Data'!$AB:$AB,$G14,'StrataSync Data'!$I:$I,"Incomplete",'StrataSync Data'!$H:$H,"Yes",'StrataSync Data'!$G:$G,"Closed"))+IF($G14="","",COUNTIFS('StrataSync Data'!$AB:$AB,$G14,'StrataSync Data'!$I:$I,"Fail",'StrataSync Data'!$H:$H,"Yes",'StrataSync Data'!$G:$G,"Closed")),"") -> 1 | Y14: 0.9821 | Z14: =SUMIF('StrataSync Data'!#REF!,G14,'StrataSync Data'!#REF!) ->  | AA14: =IFERROR(SUM(Z14/#REF!),"") ->  | AB14: =IFERROR(VLOOKUP($G14,'Technician Summary'!$G$7:$BK$372,7,FALSE),"") -> 51 | AC14: =IFERROR(VLOOKUP($G14,'Technician Summary'!$G$7:$BK$372,8,FALSE),"") -> 4 | AD14: 0.9216 | AE14: =IFERROR(VLOOKUP($G14,'Technician Summary'!$G$7:$BK$372,34,FALSE),"") -> 32 | AF14: =IFERROR(VLOOKUP($G14,'Technician Summary'!$G$7:$BK$372,35,FALSE),"") -> 5 | AG14: 0.8438 | AH14: =IFERROR(VLOOKUP($G14,'Technician Summary'!$G$7:$BK$372,37,FALSE),"") -> 102 | AI14: =IFERROR(VLOOKUP($G14,'Technician Summary'!$G$7:$BK$372,38,FALSE),"") -> 89 | AJ14: 0.8725 | AK14: =IFERROR(VLOOKUP($G14,'Technician Summary'!$G$7:$BK$372,27,FALSE),"") -> 0 | AL14: =IFERROR(VLOOKUP($G14,'Technician Summary'!$G$7:$BK$372,68,FALSE),"") -> 
B15: Macon | F15: David Corbitt | G15: 68713 | I15: =IFERROR(VLOOKUP($G15,'Technician Summary'!$G$7:$BB$372,2,FALSE),"") ->  | J15: =IFERROR(VLOOKUP($G15,'Technician Summary'!$G$7:$BN$372,60,FALSE),"") ->  | L15: =IFERROR(VLOOKUP($G15,'Technician Summary'!$G$7:$BK$372,14,FALSE),"") ->  | M15: =IFERROR(VLOOKUP($G15,'Technician Summary'!$G$7:$BK$372,15,FALSE),"") ->  | O15: =IFERROR(VLOOKUP($G15,'Technician Summary'!$G$7:$BK$372,17,FALSE),"") ->  | P15: =IFERROR(VLOOKUP($G15,'Technician Summary'!$G$7:$BK$372,18,FALSE),"") ->  | R15: =IFERROR(VLOOKUP($G15,'Technician Summary'!$G$7:$BK$372,20,FALSE),"") ->  | S15: =IFERROR(VLOOKUP($G15,'Technician Summary'!$G$7:$BK$372,21,FALSE),"") ->  | U15: =IF(G15="","",COUNTIFS('StrataSync Data'!$AB:$AB,$G15,'StrataSync Data'!$G:$G,"Closed")) -> 0 | V15: =IF($G15="","",COUNTIFS('StrataSync Data'!$AB:$AB,$G15,'StrataSync Data'!$H:$H,"Yes",'StrataSync Data'!$G:$G,"Closed")) -> 0 | X15: =IFERROR(IF($G$7="","",COUNTIFS('StrataSync Data'!$AB:$AB,$G15,'StrataSync Data'!$I:$I,"Incomplete",'StrataSync Data'!$H:$H,"Yes",'StrataSync Data'!$G:$G,"Closed"))+IF($G15="","",COUNTIFS('StrataSync Data'!$AB:$AB,$G15,'StrataSync Data'!$I:$I,"Fail",'StrataSync Data'!$H:$H,"Yes",'StrataSync Data'!$G:$G,"Closed")),"") -> 0 | Z15: =SUMIF('StrataSync Data'!#REF!,G15,'StrataSync Data'!#REF!) ->  | AA15: =IFERROR(SUM(Z15/#REF!),"") ->  | AB15: =IFERROR(VLOOKUP($G15,'Technician Summary'!$G$7:$BK$372,7,FALSE),"") ->  | AC15: =IFERROR(VLOOKUP($G15,'Technician Summary'!$G$7:$BK$372,8,FALSE),"") ->  | AE15: =IFERROR(VLOOKUP($G15,'Technician Summary'!$G$7:$BK$372,34,FALSE),"") ->  | AF15: =IFERROR(VLOOKUP($G15,'Technician Summary'!$G$7:$BK$372,35,FALSE),"") ->  | AH15: =IFERROR(VLOOKUP($G15,'Technician Summary'!$G$7:$BK$372,37,FALSE),"") ->  | AI15: =IFERROR(VLOOKUP($G15,'Technician Summary'!$G$7:$BK$372,38,FALSE),"") ->  | AK15: =IFERROR(VLOOKUP($G15,'Technician Summary'!$G$7:$BK$372,27,FALSE),"") ->  | AL15: =IFERROR(VLOOKUP($G15,'Technician Summary'!$G$7:$BK$372,68,FALSE),"") -> 
B16: New Orleans | F16: craig Laraway | G16: 74202 | H16: 5 | I16: =IFERROR(VLOOKUP($G16,'Technician Summary'!$G$7:$BB$372,2,FALSE),"") -> 12 | J16: =IFERROR(VLOOKUP($G16,'Technician Summary'!$G$7:$BN$372,60,FALSE),"") -> 0 | K16: 1 | L16: =IFERROR(VLOOKUP($G16,'Technician Summary'!$G$7:$BK$372,14,FALSE),"") -> 80 | M16: =IFERROR(VLOOKUP($G16,'Technician Summary'!$G$7:$BK$372,15,FALSE),"") -> 5 | N16: 0.0625 | O16: =IFERROR(VLOOKUP($G16,'Technician Summary'!$G$7:$BK$372,17,FALSE),"") -> 56 | P16: =IFERROR(VLOOKUP($G16,'Technician Summary'!$G$7:$BK$372,18,FALSE),"") -> 4 | Q16: 0.0714 | R16: =IFERROR(VLOOKUP($G16,'Technician Summary'!$G$7:$BK$372,20,FALSE),"") -> 24 | S16: =IFERROR(VLOOKUP($G16,'Technician Summary'!$G$7:$BK$372,21,FALSE),"") -> 1 | T16: 0.0417 | U16: =IF(G16="","",COUNTIFS('StrataSync Data'!$AB:$AB,$G16,'StrataSync Data'!$G:$G,"Closed")) -> 45 | V16: =IF($G16="","",COUNTIFS('StrataSync Data'!$AB:$AB,$G16,'StrataSync Data'!$H:$H,"Yes",'StrataSync Data'!$G:$G,"Closed")) -> 42 | W16: 0.9333 | X16: =IFERROR(IF($G$7="","",COUNTIFS('StrataSync Data'!$AB:$AB,$G16,'StrataSync Data'!$I:$I,"Incomplete",'StrataSync Data'!$H:$H,"Yes",'StrataSync Data'!$G:$G,"Closed"))+IF($G16="","",COUNTIFS('StrataSync Data'!$AB:$AB,$G16,'StrataSync Data'!$I:$I,"Fail",'StrataSync Data'!$H:$H,"Yes",'StrataSync Data'!$G:$G,"Closed")),"") -> 0 | Y16: 1 | Z16: =SUMIF('StrataSync Data'!#REF!,G16,'StrataSync Data'!#REF!) ->  | AA16: =IFERROR(SUM(Z16/#REF!),"") ->  | AB16: =IFERROR(VLOOKUP($G16,'Technician Summary'!$G$7:$BK$372,7,FALSE),"") -> 39 | AC16: =IFERROR(VLOOKUP($G16,'Technician Summary'!$G$7:$BK$372,8,FALSE),"") -> 2 | AD16: 0.9487 | AE16: =IFERROR(VLOOKUP($G16,'Technician Summary'!$G$7:$BK$372,34,FALSE),"") -> 35 | AF16: =IFERROR(VLOOKUP($G16,'Technician Summary'!$G$7:$BK$372,35,FALSE),"") -> 4 | AG16: 0.8857 | AH16: =IFERROR(VLOOKUP($G16,'Technician Summary'!$G$7:$BK$372,37,FALSE),"") -> 87 | AI16: =IFERROR(VLOOKUP($G16,'Technician Summary'!$G$7:$BK$372,38,FALSE),"") -> 80 | AJ16: 0.9195 | AK16: =IFERROR(VLOOKUP($G16,'Technician Summary'!$G$7:$BK$372,27,FALSE),"") -> 0 | AL16: =IFERROR(VLOOKUP($G16,'Technician Summary'!$G$7:$BK$372,68,FALSE),"") -> 
B17: Hampton Roads | F17: Rafael Gomez Helmeyer | G17: 75471 | H17: 7.5 | I17: =IFERROR(VLOOKUP($G17,'Technician Summary'!$G$7:$BB$372,2,FALSE),"") -> 2 | J17: =IFERROR(VLOOKUP($G17,'Technician Summary'!$G$7:$BN$372,60,FALSE),"") -> 0 | K17: 1 | L17: =IFERROR(VLOOKUP($G17,'Technician Summary'!$G$7:$BK$372,14,FALSE),"") -> 56 | M17: =IFERROR(VLOOKUP($G17,'Technician Summary'!$G$7:$BK$372,15,FALSE),"") -> 0 | N17: 0 | O17: =IFERROR(VLOOKUP($G17,'Technician Summary'!$G$7:$BK$372,17,FALSE),"") -> 45 | P17: =IFERROR(VLOOKUP($G17,'Technician Summary'!$G$7:$BK$372,18,FALSE),"") -> 0 | Q17: 0 | R17: =IFERROR(VLOOKUP($G17,'Technician Summary'!$G$7:$BK$372,20,FALSE),"") -> 11 | S17: =IFERROR(VLOOKUP($G17,'Technician Summary'!$G$7:$BK$372,21,FALSE),"") -> 0 | T17: 0 | U17: =IF(G17="","",COUNTIFS('StrataSync Data'!$AB:$AB,$G17,'StrataSync Data'!$G:$G,"Closed")) -> 25 | V17: =IF($G17="","",COUNTIFS('StrataSync Data'!$AB:$AB,$G17,'StrataSync Data'!$H:$H,"Yes",'StrataSync Data'!$G:$G,"Closed")) -> 25 | W17: 1 | X17: =IFERROR(IF($G$7="","",COUNTIFS('StrataSync Data'!$AB:$AB,$G17,'StrataSync Data'!$I:$I,"Incomplete",'StrataSync Data'!$H:$H,"Yes",'StrataSync Data'!$G:$G,"Closed"))+IF($G17="","",COUNTIFS('StrataSync Data'!$AB:$AB,$G17,'StrataSync Data'!$I:$I,"Fail",'StrataSync Data'!$H:$H,"Yes",'StrataSync Data'!$G:$G,"Closed")),"") -> 0 | Y17: 1 | Z17: =SUMIF('StrataSync Data'!#REF!,G17,'StrataSync Data'!#REF!) ->  | AA17: =IFERROR(SUM(Z17/#REF!),"") ->  | AB17: =IFERROR(VLOOKUP($G17,'Technician Summary'!$G$7:$BK$372,7,FALSE),"") -> 36 | AC17: =IFERROR(VLOOKUP($G17,'Technician Summary'!$G$7:$BK$372,8,FALSE),"") -> 0 | AD17: 1 | AE17: =IFERROR(VLOOKUP($G17,'Technician Summary'!$G$7:$BK$372,34,FALSE),"") -> 18 | AF17: =IFERROR(VLOOKUP($G17,'Technician Summary'!$G$7:$BK$372,35,FALSE),"") -> 2 | AG17: 0.8889 | AH17: =IFERROR(VLOOKUP($G17,'Technician Summary'!$G$7:$BK$372,37,FALSE),"") -> 62 | AI17: =IFERROR(VLOOKUP($G17,'Technician Summary'!$G$7:$BK$372,38,FALSE),"") -> 56 | AJ17: 0.9032 | AK17: =IFERROR(VLOOKUP($G17,'Technician Summary'!$G$7:$BK$372,27,FALSE),"") -> 0 | AL17: =IFERROR(VLOOKUP($G17,'Technician Summary'!$G$7:$BK$372,68,FALSE),"") -> 
B18: Baton Rouge | F18: Christian Whiting | G18: 84103 | H18: 7.5 | I18: =IFERROR(VLOOKUP($G18,'Technician Summary'!$G$7:$BB$372,2,FALSE),"") -> 11 | J18: =IFERROR(VLOOKUP($G18,'Technician Summary'!$G$7:$BN$372,60,FALSE),"") -> 0 | K18: 1 | L18: =IFERROR(VLOOKUP($G18,'Technician Summary'!$G$7:$BK$372,14,FALSE),"") -> 46 | M18: =IFERROR(VLOOKUP($G18,'Technician Summary'!$G$7:$BK$372,15,FALSE),"") -> 1 | N18: 0.0217 | O18: =IFERROR(VLOOKUP($G18,'Technician Summary'!$G$7:$BK$372,17,FALSE),"") -> 33 | P18: =IFERROR(VLOOKUP($G18,'Technician Summary'!$G$7:$BK$372,18,FALSE),"") -> 1 | Q18: 0.0303 | R18: =IFERROR(VLOOKUP($G18,'Technician Summary'!$G$7:$BK$372,20,FALSE),"") -> 13 | S18: =IFERROR(VLOOKUP($G18,'Technician Summary'!$G$7:$BK$372,21,FALSE),"") -> 0 | T18: 0 | U18: =IF(G18="","",COUNTIFS('StrataSync Data'!$AB:$AB,$G18,'StrataSync Data'!$G:$G,"Closed")) -> 30 | V18: =IF($G18="","",COUNTIFS('StrataSync Data'!$AB:$AB,$G18,'StrataSync Data'!$H:$H,"Yes",'StrataSync Data'!$G:$G,"Closed")) -> 27 | W18: 0.9 | X18: =IFERROR(IF($G$7="","",COUNTIFS('StrataSync Data'!$AB:$AB,$G18,'StrataSync Data'!$I:$I,"Incomplete",'StrataSync Data'!$H:$H,"Yes",'StrataSync Data'!$G:$G,"Closed"))+IF($G18="","",COUNTIFS('StrataSync Data'!$AB:$AB,$G18,'StrataSync Data'!$I:$I,"Fail",'StrataSync Data'!$H:$H,"Yes",'StrataSync Data'!$G:$G,"Closed")),"") -> 0 | Y18: 1 | Z18: =SUMIF('StrataSync Data'!#REF!,G18,'StrataSync Data'!#REF!) ->  | AA18: =IFERROR(SUM(Z18/#REF!),"") ->  | AB18: =IFERROR(VLOOKUP($G18,'Technician Summary'!$G$7:$BK$372,7,FALSE),"") -> 34 | AC18: =IFERROR(VLOOKUP($G18,'Technician Summary'!$G$7:$BK$372,8,FALSE),"") -> 0 | AD18: 1 | AE18: =IFERROR(VLOOKUP($G18,'Technician Summary'!$G$7:$BK$372,34,FALSE),"") -> 26 | AF18: =IFERROR(VLOOKUP($G18,'Technician Summary'!$G$7:$BK$372,35,FALSE),"") -> 4 | AG18: 0.8462 | AH18: =IFERROR(VLOOKUP($G18,'Technician Summary'!$G$7:$BK$372,37,FALSE),"") -> 51 | AI18: =IFERROR(VLOOKUP($G18,'Technician Summary'!$G$7:$BK$372,38,FALSE),"") -> 45 | AJ18: 0.8824 | AK18: =IFERROR(VLOOKUP($G18,'Technician Summary'!$G$7:$BK$372,27,FALSE),"") -> 0 | AL18: =IFERROR(VLOOKUP($G18,'Technician Summary'!$G$7:$BK$372,68,FALSE),"") -> 
B19: Roanoke | F19: Tony Ducksworth | G19: 73789 | H19: 5 | I19: =IFERROR(VLOOKUP($G19,'Technician Summary'!$G$7:$BB$372,2,FALSE),"") -> 9 | J19: =IFERROR(VLOOKUP($G19,'Technician Summary'!$G$7:$BN$372,60,FALSE),"") -> 1.9998 | K19: 0.7778 | L19: =IFERROR(VLOOKUP($G19,'Technician Summary'!$G$7:$BK$372,14,FALSE),"") -> 84 | M19: =IFERROR(VLOOKUP($G19,'Technician Summary'!$G$7:$BK$372,15,FALSE),"") -> 4 | N19: 0.0476 | O19: =IFERROR(VLOOKUP($G19,'Technician Summary'!$G$7:$BK$372,17,FALSE),"") -> 37 | P19: =IFERROR(VLOOKUP($G19,'Technician Summary'!$G$7:$BK$372,18,FALSE),"") -> 0 | Q19: 0 | R19: =IFERROR(VLOOKUP($G19,'Technician Summary'!$G$7:$BK$372,20,FALSE),"") -> 47 | S19: =IFERROR(VLOOKUP($G19,'Technician Summary'!$G$7:$BK$372,21,FALSE),"") -> 4 | T19: 0.0851 | U19: =IF(G19="","",COUNTIFS('StrataSync Data'!$AB:$AB,$G19,'StrataSync Data'!$G:$G,"Closed")) -> 65 | V19: =IF($G19="","",COUNTIFS('StrataSync Data'!$AB:$AB,$G19,'StrataSync Data'!$H:$H,"Yes",'StrataSync Data'!$G:$G,"Closed")) -> 65 | W19: 1 | X19: =IFERROR(IF($G$7="","",COUNTIFS('StrataSync Data'!$AB:$AB,$G19,'StrataSync Data'!$I:$I,"Incomplete",'StrataSync Data'!$H:$H,"Yes",'StrataSync Data'!$G:$G,"Closed"))+IF($G19="","",COUNTIFS('StrataSync Data'!$AB:$AB,$G19,'StrataSync Data'!$I:$I,"Fail",'StrataSync Data'!$H:$H,"Yes",'StrataSync Data'!$G:$G,"Closed")),"") -> 0 | Y19: 1 | Z19: =SUMIF('StrataSync Data'!#REF!,G19,'StrataSync Data'!#REF!) ->  | AA19: =IFERROR(SUM(Z19/#REF!),"") ->  | AB19: =IFERROR(VLOOKUP($G19,'Technician Summary'!$G$7:$BK$372,7,FALSE),"") -> 34 | AC19: =IFERROR(VLOOKUP($G19,'Technician Summary'!$G$7:$BK$372,8,FALSE),"") -> 2 | AD19: 0.9412 | AE19: =IFERROR(VLOOKUP($G19,'Technician Summary'!$G$7:$BK$372,34,FALSE),"") -> 21 | AF19: =IFERROR(VLOOKUP($G19,'Technician Summary'!$G$7:$BK$372,35,FALSE),"") -> 6 | AG19: 0.7143 | AH19: =IFERROR(VLOOKUP($G19,'Technician Summary'!$G$7:$BK$372,37,FALSE),"") -> 90 | AI19: =IFERROR(VLOOKUP($G19,'Technician Summary'!$G$7:$BK$372,38,FALSE),"") -> 83 | AJ19: 0.9222 | AK19: =IFERROR(VLOOKUP($G19,'Technician Summary'!$G$7:$BK$372,27,FALSE),"") -> 0 | AL19: =IFERROR(VLOOKUP($G19,'Technician Summary'!$G$7:$BK$372,68,FALSE),"") -> 
B20: Gulf Coast | F20: Eric Moorehead | G20: 62706 | H20: 7.5 | I20: =IFERROR(VLOOKUP($G20,'Technician Summary'!$G$7:$BB$372,2,FALSE),"") -> 5 | J20: =IFERROR(VLOOKUP($G20,'Technician Summary'!$G$7:$BN$372,60,FALSE),"") -> 0 | K20: 1 | L20: =IFERROR(VLOOKUP($G20,'Technician Summary'!$G$7:$BK$372,14,FALSE),"") -> 78 | M20: =IFERROR(VLOOKUP($G20,'Technician Summary'!$G$7:$BK$372,15,FALSE),"") -> 2 | N20: 0.0256 | O20: =IFERROR(VLOOKUP($G20,'Technician Summary'!$G$7:$BK$372,17,FALSE),"") -> 41 | P20: =IFERROR(VLOOKUP($G20,'Technician Summary'!$G$7:$BK$372,18,FALSE),"") -> 2 | Q20: 0.0488 | R20: =IFERROR(VLOOKUP($G20,'Technician Summary'!$G$7:$BK$372,20,FALSE),"") -> 37 | S20: =IFERROR(VLOOKUP($G20,'Technician Summary'!$G$7:$BK$372,21,FALSE),"") -> 0 | T20: 0 | U20: =IF(G20="","",COUNTIFS('StrataSync Data'!$AB:$AB,$G20,'StrataSync Data'!$G:$G,"Closed")) -> 68 | V20: =IF($G20="","",COUNTIFS('StrataSync Data'!$AB:$AB,$G20,'StrataSync Data'!$H:$H,"Yes",'StrataSync Data'!$G:$G,"Closed")) -> 67 | W20: 0.9853 | X20: =IFERROR(IF($G$7="","",COUNTIFS('StrataSync Data'!$AB:$AB,$G20,'StrataSync Data'!$I:$I,"Incomplete",'StrataSync Data'!$H:$H,"Yes",'StrataSync Data'!$G:$G,"Closed"))+IF($G20="","",COUNTIFS('StrataSync Data'!$AB:$AB,$G20,'StrataSync Data'!$I:$I,"Fail",'StrataSync Data'!$H:$H,"Yes",'StrataSync Data'!$G:$G,"Closed")),"") -> 0 | Y20: 1 | Z20: =SUMIF('StrataSync Data'!#REF!,G20,'StrataSync Data'!#REF!) ->  | AA20: =IFERROR(SUM(Z20/#REF!),"") ->  | AB20: =IFERROR(VLOOKUP($G20,'Technician Summary'!$G$7:$BK$372,7,FALSE),"") -> 47 | AC20: =IFERROR(VLOOKUP($G20,'Technician Summary'!$G$7:$BK$372,8,FALSE),"") -> 0 | AD20: 1 | AE20: =IFERROR(VLOOKUP($G20,'Technician Summary'!$G$7:$BK$372,34,FALSE),"") -> 33 | AF20: =IFERROR(VLOOKUP($G20,'Technician Summary'!$G$7:$BK$372,35,FALSE),"") -> 4 | AG20: 0.8788 | AH20: =IFERROR(VLOOKUP($G20,'Technician Summary'!$G$7:$BK$372,37,FALSE),"") -> 88 | AI20: =IFERROR(VLOOKUP($G20,'Technician Summary'!$G$7:$BK$372,38,FALSE),"") -> 78 | AJ20: 0.8864 | AK20: =IFERROR(VLOOKUP($G20,'Technician Summary'!$G$7:$BK$372,27,FALSE),"") -> 0 | AL20: =IFERROR(VLOOKUP($G20,'Technician Summary'!$G$7:$BK$372,68,FALSE),"") -> 
B21: Oklahoma City | F21: Cole Johnson | G21: 54054 | H21: 5 | I21: =IFERROR(VLOOKUP($G21,'Technician Summary'!$G$7:$BB$372,2,FALSE),"") -> 5 | J21: =IFERROR(VLOOKUP($G21,'Technician Summary'!$G$7:$BN$372,60,FALSE),"") -> 0 | K21: 1 | L21: =IFERROR(VLOOKUP($G21,'Technician Summary'!$G$7:$BK$372,14,FALSE),"") -> 68 | M21: =IFERROR(VLOOKUP($G21,'Technician Summary'!$G$7:$BK$372,15,FALSE),"") -> 5 | N21: 0.0735 | O21: =IFERROR(VLOOKUP($G21,'Technician Summary'!$G$7:$BK$372,17,FALSE),"") -> 31 | P21: =IFERROR(VLOOKUP($G21,'Technician Summary'!$G$7:$BK$372,18,FALSE),"") -> 1 | Q21: 0.0323 | R21: =IFERROR(VLOOKUP($G21,'Technician Summary'!$G$7:$BK$372,20,FALSE),"") -> 37 | S21: =IFERROR(VLOOKUP($G21,'Technician Summary'!$G$7:$BK$372,21,FALSE),"") -> 4 | T21: 0.1081 | U21: =IF(G21="","",COUNTIFS('StrataSync Data'!$AB:$AB,$G21,'StrataSync Data'!$G:$G,"Closed")) -> 3 | V21: =IF($G21="","",COUNTIFS('StrataSync Data'!$AB:$AB,$G21,'StrataSync Data'!$H:$H,"Yes",'StrataSync Data'!$G:$G,"Closed")) -> 3 | W21: 1 | X21: =IFERROR(IF($G$7="","",COUNTIFS('StrataSync Data'!$AB:$AB,$G21,'StrataSync Data'!$I:$I,"Incomplete",'StrataSync Data'!$H:$H,"Yes",'StrataSync Data'!$G:$G,"Closed"))+IF($G21="","",COUNTIFS('StrataSync Data'!$AB:$AB,$G21,'StrataSync Data'!$I:$I,"Fail",'StrataSync Data'!$H:$H,"Yes",'StrataSync Data'!$G:$G,"Closed")),"") -> 0 | Y21: 1 | Z21: =SUMIF('StrataSync Data'!#REF!,G21,'StrataSync Data'!#REF!) ->  | AA21: =IFERROR(SUM(Z21/#REF!),"") ->  | AB21: =IFERROR(VLOOKUP($G21,'Technician Summary'!$G$7:$BK$372,7,FALSE),"") -> 36 | AC21: =IFERROR(VLOOKUP($G21,'Technician Summary'!$G$7:$BK$372,8,FALSE),"") -> 3 | AD21: 0.9167 | AE21: =IFERROR(VLOOKUP($G21,'Technician Summary'!$G$7:$BK$372,34,FALSE),"") -> 25 | AF21: =IFERROR(VLOOKUP($G21,'Technician Summary'!$G$7:$BK$372,35,FALSE),"") -> 3 | AG21: 0.88 | AH21: =IFERROR(VLOOKUP($G21,'Technician Summary'!$G$7:$BK$372,37,FALSE),"") -> 77 | AI21: =IFERROR(VLOOKUP($G21,'Technician Summary'!$G$7:$BK$372,38,FALSE),"") -> 66 | AJ21: 0.8571 | AK21: =IFERROR(VLOOKUP($G21,'Technician Summary'!$G$7:$BK$372,27,FALSE),"") -> 0 | AL21: =IFERROR(VLOOKUP($G21,'Technician Summary'!$G$7:$BK$372,68,FALSE),"") -> 
B22: Tech Rankings | F22: Alvin Mitchell | G22: 63801 | I22: =IFERROR(VLOOKUP($G22,'Technician Summary'!$G$7:$BB$372,2,FALSE),"") ->  | J22: =IFERROR(VLOOKUP($G22,'Technician Summary'!$G$7:$BN$372,60,FALSE),"") ->  | L22: =IFERROR(VLOOKUP($G22,'Technician Summary'!$G$7:$BK$372,14,FALSE),"") ->  | M22: =IFERROR(VLOOKUP($G22,'Technician Summary'!$G$7:$BK$372,15,FALSE),"") ->  | O22: =IFERROR(VLOOKUP($G22,'Technician Summary'!$G$7:$BK$372,17,FALSE),"") ->  | P22: =IFERROR(VLOOKUP($G22,'Technician Summary'!$G$7:$BK$372,18,FALSE),"") ->  | R22: =IFERROR(VLOOKUP($G22,'Technician Summary'!$G$7:$BK$372,20,FALSE),"") ->  | S22: =IFERROR(VLOOKUP($G22,'Technician Summary'!$G$7:$BK$372,21,FALSE),"") ->  | U22: =IF(G22="","",COUNTIFS('StrataSync Data'!$AB:$AB,$G22,'StrataSync Data'!$G:$G,"Closed")) -> 0 | V22: =IF($G22="","",COUNTIFS('StrataSync Data'!$AB:$AB,$G22,'StrataSync Data'!$H:$H,"Yes",'StrataSync Data'!$G:$G,"Closed")) -> 0 | X22: =IFERROR(IF($G$7="","",COUNTIFS('StrataSync Data'!$AB:$AB,$G22,'StrataSync Data'!$I:$I,"Incomplete",'StrataSync Data'!$H:$H,"Yes",'StrataSync Data'!$G:$G,"Closed"))+IF($G22="","",COUNTIFS('StrataSync Data'!$AB:$AB,$G22,'StrataSync Data'!$I:$I,"Fail",'StrataSync Data'!$H:$H,"Yes",'StrataSync Data'!$G:$G,"Closed")),"") -> 0 | Z22: =SUMIF('StrataSync Data'!#REF!,G22,'StrataSync Data'!#REF!) ->  | AA22: =IFERROR(SUM(Z22/#REF!),"") ->  | AB22: =IFERROR(VLOOKUP($G22,'Technician Summary'!$G$7:$BK$372,7,FALSE),"") ->  | AC22: =IFERROR(VLOOKUP($G22,'Technician Summary'!$G$7:$BK$372,8,FALSE),"") ->  | AE22: =IFERROR(VLOOKUP($G22,'Technician Summary'!$G$7:$BK$372,34,FALSE),"") ->  | AF22: =IFERROR(VLOOKUP($G22,'Technician Summary'!$G$7:$BK$372,35,FALSE),"") ->  | AH22: =IFERROR(VLOOKUP($G22,'Technician Summary'!$G$7:$BK$372,37,FALSE),"") ->  | AI22: =IFERROR(VLOOKUP($G22,'Technician Summary'!$G$7:$BK$372,38,FALSE),"") ->  | AK22: =IFERROR(VLOOKUP($G22,'Technician Summary'!$G$7:$BK$372,27,FALSE),"") ->  | AL22: =IFERROR(VLOOKUP($G22,'Technician Summary'!$G$7:$BK$372,68,FALSE),"") -> 
I23: =IFERROR(VLOOKUP($G23,'Technician Summary'!$G$7:$BB$372,2,FALSE),"") ->  | J23: =IFERROR(VLOOKUP($G23,'Technician Summary'!$G$7:$BN$372,60,FALSE),"") ->  | L23: =IFERROR(VLOOKUP($G23,'Technician Summary'!$G$7:$BK$372,14,FALSE),"") ->  | M23: =IFERROR(VLOOKUP($G23,'Technician Summary'!$G$7:$BK$372,15,FALSE),"") ->  | O23: =IFERROR(VLOOKUP($G23,'Technician Summary'!$G$7:$BK$372,17,FALSE),"") ->  | P23: =IFERROR(VLOOKUP($G23,'Technician Summary'!$G$7:$BK$372,18,FALSE),"") ->  | R23: =IFERROR(VLOOKUP($G23,'Technician Summary'!$G$7:$BK$372,20,FALSE),"") ->  | S23: =IFERROR(VLOOKUP($G23,'Technician Summary'!$G$7:$BK$372,21,FALSE),"") ->  | U23: =IF(G23="","",COUNTIFS('StrataSync Data'!$AB:$AB,$G23,'StrataSync Data'!$G:$G,"Closed")) ->  | V23: =IF($G23="","",COUNTIFS('StrataSync Data'!$AB:$AB,$G23,'StrataSync Data'!$H:$H,"Yes",'StrataSync Data'!$G:$G,"Closed")) ->  | X23: =IFERROR(IF($G$7="","",COUNTIFS('StrataSync Data'!$AB:$AB,$G23,'StrataSync Data'!$I:$I,"Incomplete",'StrataSync Data'!$H:$H,"Yes",'StrataSync Data'!$G:$G,"Closed"))+IF($G23="","",COUNTIFS('StrataSync Data'!$AB:$AB,$G23,'StrataSync Data'!$I:$I,"Fail",'StrataSync Data'!$H:$H,"Yes",'StrataSync Data'!$G:$G,"Closed")),"") ->  | Z23: =SUMIF('StrataSync Data'!#REF!,G23,'StrataSync Data'!#REF!) ->  | AA23: =IFERROR(SUM(Z23/#REF!),"") ->  | AB23: =IFERROR(VLOOKUP($G23,'Technician Summary'!$G$7:$BK$372,7,FALSE),"") ->  | AC23: =IFERROR(VLOOKUP($G23,'Technician Summary'!$G$7:$BK$372,8,FALSE),"") ->  | AE23: =IFERROR(VLOOKUP($G23,'Technician Summary'!$G$7:$BK$372,34,FALSE),"") ->  | AF23: =IFERROR(VLOOKUP($G23,'Technician Summary'!$G$7:$BK$372,35,FALSE),"") ->  | AH23: =IFERROR(VLOOKUP($G23,'Technician Summary'!$G$7:$BK$372,37,FALSE),"") ->  | AI23: =IFERROR(VLOOKUP($G23,'Technician Summary'!$G$7:$BK$372,38,FALSE),"") ->  | AK23: =IFERROR(VLOOKUP($G23,'Technician Summary'!$G$7:$BK$372,27,FALSE),"") ->  | AL23: =IFERROR(VLOOKUP($G23,'Technician Summary'!$G$7:$BK$372,68,FALSE),"") -> 
B24: Raw Data | I24: =IFERROR(VLOOKUP($G24,'Technician Summary'!$G$7:$BB$372,2,FALSE),"") ->  | J24: =IFERROR(VLOOKUP($G24,'Technician Summary'!$G$7:$BN$372,60,FALSE),"") ->  | L24: =IFERROR(VLOOKUP($G24,'Technician Summary'!$G$7:$BK$372,14,FALSE),"") ->  | M24: =IFERROR(VLOOKUP($G24,'Technician Summary'!$G$7:$BK$372,15,FALSE),"") ->  | O24: =IFERROR(VLOOKUP($G24,'Technician Summary'!$G$7:$BK$372,17,FALSE),"") ->  | P24: =IFERROR(VLOOKUP($G24,'Technician Summary'!$G$7:$BK$372,18,FALSE),"") ->  | R24: =IFERROR(VLOOKUP($G24,'Technician Summary'!$G$7:$BK$372,20,FALSE),"") ->  | S24: =IFERROR(VLOOKUP($G24,'Technician Summary'!$G$7:$BK$372,21,FALSE),"") ->  | U24: =IF(G24="","",COUNTIFS('StrataSync Data'!$AB:$AB,$G24,'StrataSync Data'!$G:$G,"Closed")) ->  | V24: =IF($G24="","",COUNTIFS('StrataSync Data'!$AB:$AB,$G24,'StrataSync Data'!$H:$H,"Yes",'StrataSync Data'!$G:$G,"Closed")) ->  | X24: =IFERROR(IF($G$7="","",COUNTIFS('StrataSync Data'!$AB:$AB,$G24,'StrataSync Data'!$I:$I,"Incomplete",'StrataSync Data'!$H:$H,"Yes",'StrataSync Data'!$G:$G,"Closed"))+IF($G24="","",COUNTIFS('StrataSync Data'!$AB:$AB,$G24,'StrataSync Data'!$I:$I,"Fail",'StrataSync Data'!$H:$H,"Yes",'StrataSync Data'!$G:$G,"Closed")),"") ->  | Z24: =SUMIF('StrataSync Data'!#REF!,G24,'StrataSync Data'!#REF!) ->  | AA24: =IFERROR(SUM(Z24/#REF!),"") ->  | AB24: =IFERROR(VLOOKUP($G24,'Technician Summary'!$G$7:$BK$372,7,FALSE),"") ->  | AC24: =IFERROR(VLOOKUP($G24,'Technician Summary'!$G$7:$BK$372,8,FALSE),"") ->  | AE24: =IFERROR(VLOOKUP($G24,'Technician Summary'!$G$7:$BK$372,34,FALSE),"") ->  | AF24: =IFERROR(VLOOKUP($G24,'Technician Summary'!$G$7:$BK$372,35,FALSE),"") ->  | AH24: =IFERROR(VLOOKUP($G24,'Technician Summary'!$G$7:$BK$372,37,FALSE),"") ->  | AI24: =IFERROR(VLOOKUP($G24,'Technician Summary'!$G$7:$BK$372,38,FALSE),"") ->  | AK24: =IFERROR(VLOOKUP($G24,'Technician Summary'!$G$7:$BK$372,27,FALSE),"") ->  | AL24: =IFERROR(VLOOKUP($G24,'Technician Summary'!$G$7:$BK$372,68,FALSE),"") -> 
I25: =IFERROR(VLOOKUP($G25,'Technician Summary'!$G$7:$BB$372,2,FALSE),"") ->  | J25: =IFERROR(VLOOKUP($G25,'Technician Summary'!$G$7:$BN$372,60,FALSE),"") ->  | L25: =IFERROR(VLOOKUP($G25,'Technician Summary'!$G$7:$BK$372,14,FALSE),"") ->  | M25: =IFERROR(VLOOKUP($G25,'Technician Summary'!$G$7:$BK$372,15,FALSE),"") ->  | O25: =IFERROR(VLOOKUP($G25,'Technician Summary'!$G$7:$BK$372,17,FALSE),"") ->  | P25: =IFERROR(VLOOKUP($G25,'Technician Summary'!$G$7:$BK$372,18,FALSE),"") ->  | R25: =IFERROR(VLOOKUP($G25,'Technician Summary'!$G$7:$BK$372,20,FALSE),"") ->  | S25: =IFERROR(VLOOKUP($G25,'Technician Summary'!$G$7:$BK$372,21,FALSE),"") ->  | U25: =IF(G25="","",COUNTIFS('StrataSync Data'!$AB:$AB,$G25,'StrataSync Data'!$G:$G,"Closed")) ->  | V25: =IF($G25="","",COUNTIFS('StrataSync Data'!$AB:$AB,$G25,'StrataSync Data'!$H:$H,"Yes",'StrataSync Data'!$G:$G,"Closed")) ->  | X25: =IFERROR(IF($G$7="","",COUNTIFS('StrataSync Data'!$AB:$AB,$G25,'StrataSync Data'!$I:$I,"Incomplete",'StrataSync Data'!$H:$H,"Yes",'StrataSync Data'!$G:$G,"Closed"))+IF($G25="","",COUNTIFS('StrataSync Data'!$AB:$AB,$G25,'StrataSync Data'!$I:$I,"Fail",'StrataSync Data'!$H:$H,"Yes",'StrataSync Data'!$G:$G,"Closed")),"") ->  | Z25: =SUMIF('StrataSync Data'!#REF!,G25,'StrataSync Data'!#REF!) ->  | AA25: =IFERROR(SUM(Z25/#REF!),"") ->  | AB25: =IFERROR(VLOOKUP($G25,'Technician Summary'!$G$7:$BK$372,7,FALSE),"") ->  | AC25: =IFERROR(VLOOKUP($G25,'Technician Summary'!$G$7:$BK$372,8,FALSE),"") ->  | AE25: =IFERROR(VLOOKUP($G25,'Technician Summary'!$G$7:$BK$372,34,FALSE),"") ->  | AF25: =IFERROR(VLOOKUP($G25,'Technician Summary'!$G$7:$BK$372,35,FALSE),"") ->  | AH25: =IFERROR(VLOOKUP($G25,'Technician Summary'!$G$7:$BK$372,37,FALSE),"") ->  | AI25: =IFERROR(VLOOKUP($G25,'Technician Summary'!$G$7:$BK$372,38,FALSE),"") ->  | AK25: =IFERROR(VLOOKUP($G25,'Technician Summary'!$G$7:$BK$372,27,FALSE),"") ->  | AL25: =IFERROR(VLOOKUP($G25,'Technician Summary'!$G$7:$BK$372,68,FALSE),"") -> 
I26: =IFERROR(VLOOKUP($G26,'Technician Summary'!$G$7:$BB$372,2,FALSE),"") ->  | J26: =IFERROR(VLOOKUP($G26,'Technician Summary'!$G$7:$BN$372,60,FALSE),"") ->  | L26: =IFERROR(VLOOKUP($G26,'Technician Summary'!$G$7:$BK$372,14,FALSE),"") ->  | M26: =IFERROR(VLOOKUP($G26,'Technician Summary'!$G$7:$BK$372,15,FALSE),"") ->  | O26: =IFERROR(VLOOKUP($G26,'Technician Summary'!$G$7:$BK$372,17,FALSE),"") ->  | P26: =IFERROR(VLOOKUP($G26,'Technician Summary'!$G$7:$BK$372,18,FALSE),"") ->  | R26: =IFERROR(VLOOKUP($G26,'Technician Summary'!$G$7:$BK$372,20,FALSE),"") ->  | S26: =IFERROR(VLOOKUP($G26,'Technician Summary'!$G$7:$BK$372,21,FALSE),"") ->  | U26: =IF(G26="","",COUNTIFS('StrataSync Data'!$AB:$AB,$G26,'StrataSync Data'!$G:$G,"Closed")) ->  | V26: =IF($G26="","",COUNTIFS('StrataSync Data'!$AB:$AB,$G26,'StrataSync Data'!$H:$H,"Yes",'StrataSync Data'!$G:$G,"Closed")) ->  | X26: =IFERROR(IF($G$7="","",COUNTIFS('StrataSync Data'!$AB:$AB,$G26,'StrataSync Data'!$I:$I,"Incomplete",'StrataSync Data'!$H:$H,"Yes",'StrataSync Data'!$G:$G,"Closed"))+IF($G26="","",COUNTIFS('StrataSync Data'!$AB:$AB,$G26,'StrataSync Data'!$I:$I,"Fail",'StrataSync Data'!$H:$H,"Yes",'StrataSync Data'!$G:$G,"Closed")),"") ->  | Z26: =SUMIF('StrataSync Data'!#REF!,G26,'StrataSync Data'!#REF!) ->  | AA26: =IFERROR(SUM(Z26/#REF!),"") ->  | AB26: =IFERROR(VLOOKUP($G26,'Technician Summary'!$G$7:$BK$372,7,FALSE),"") ->  | AC26: =IFERROR(VLOOKUP($G26,'Technician Summary'!$G$7:$BK$372,8,FALSE),"") ->  | AE26: =IFERROR(VLOOKUP($G26,'Technician Summary'!$G$7:$BK$372,34,FALSE),"") ->  | AF26: =IFERROR(VLOOKUP($G26,'Technician Summary'!$G$7:$BK$372,35,FALSE),"") ->  | AH26: =IFERROR(VLOOKUP($G26,'Technician Summary'!$G$7:$BK$372,37,FALSE),"") ->  | AI26: =IFERROR(VLOOKUP($G26,'Technician Summary'!$G$7:$BK$372,38,FALSE),"") ->  | AK26: =IFERROR(VLOOKUP($G26,'Technician Summary'!$G$7:$BK$372,27,FALSE),"") ->  | AL26: =IFERROR(VLOOKUP($G26,'Technician Summary'!$G$7:$BK$372,68,FALSE),"") -> 
I27: =IFERROR(VLOOKUP($G27,'Technician Summary'!$G$7:$BB$372,2,FALSE),"") ->  | J27: =IFERROR(VLOOKUP($G27,'Technician Summary'!$G$7:$BN$372,60,FALSE),"") ->  | L27: =IFERROR(VLOOKUP($G27,'Technician Summary'!$G$7:$BK$372,14,FALSE),"") ->  | M27: =IFERROR(VLOOKUP($G27,'Technician Summary'!$G$7:$BK$372,15,FALSE),"") ->  | O27: =IFERROR(VLOOKUP($G27,'Technician Summary'!$G$7:$BK$372,17,FALSE),"") ->  | P27: =IFERROR(VLOOKUP($G27,'Technician Summary'!$G$7:$BK$372,18,FALSE),"") ->  | R27: =IFERROR(VLOOKUP($G27,'Technician Summary'!$G$7:$BK$372,20,FALSE),"") ->  | S27: =IFERROR(VLOOKUP($G27,'Technician Summary'!$G$7:$BK$372,21,FALSE),"") ->  | U27: =IF(G27="","",COUNTIFS('StrataSync Data'!$AB:$AB,$G27,'StrataSync Data'!$G:$G,"Closed")) ->  | V27: =IF($G27="","",COUNTIFS('StrataSync Data'!$AB:$AB,$G27,'StrataSync Data'!$H:$H,"Yes",'StrataSync Data'!$G:$G,"Closed")) ->  | X27: =IFERROR(IF($G$7="","",COUNTIFS('StrataSync Data'!$AB:$AB,$G27,'StrataSync Data'!$I:$I,"Incomplete",'StrataSync Data'!$H:$H,"Yes",'StrataSync Data'!$G:$G,"Closed"))+IF($G27="","",COUNTIFS('StrataSync Data'!$AB:$AB,$G27,'StrataSync Data'!$I:$I,"Fail",'StrataSync Data'!$H:$H,"Yes",'StrataSync Data'!$G:$G,"Closed")),"") ->  | Z27: =SUMIF('StrataSync Data'!#REF!,G27,'StrataSync Data'!#REF!) ->  | AA27: =IFERROR(SUM(Z27/#REF!),"") ->  | AB27: =IFERROR(VLOOKUP($G27,'Technician Summary'!$G$7:$BK$372,7,FALSE),"") ->  | AC27: =IFERROR(VLOOKUP($G27,'Technician Summary'!$G$7:$BK$372,8,FALSE),"") ->  | AE27: =IFERROR(VLOOKUP($G27,'Technician Summary'!$G$7:$BK$372,34,FALSE),"") ->  | AF27: =IFERROR(VLOOKUP($G27,'Technician Summary'!$G$7:$BK$372,35,FALSE),"") ->  | AH27: =IFERROR(VLOOKUP($G27,'Technician Summary'!$G$7:$BK$372,37,FALSE),"") ->  | AI27: =IFERROR(VLOOKUP($G27,'Technician Summary'!$G$7:$BK$372,38,FALSE),"") ->  | AK27: =IFERROR(VLOOKUP($G27,'Technician Summary'!$G$7:$BK$372,27,FALSE),"") ->  | AL27: =IFERROR(VLOOKUP($G27,'Technician Summary'!$G$7:$BK$372,68,FALSE),"") -> 
I28: =IFERROR(VLOOKUP($G28,'Technician Summary'!$G$7:$BB$372,2,FALSE),"") ->  | J28: =IFERROR(VLOOKUP($G28,'Technician Summary'!$G$7:$BN$372,60,FALSE),"") ->  | L28: =IFERROR(VLOOKUP($G28,'Technician Summary'!$G$7:$BK$372,14,FALSE),"") ->  | M28: =IFERROR(VLOOKUP($G28,'Technician Summary'!$G$7:$BK$372,15,FALSE),"") ->  | O28: =IFERROR(VLOOKUP($G28,'Technician Summary'!$G$7:$BK$372,17,FALSE),"") ->  | P28: =IFERROR(VLOOKUP($G28,'Technician Summary'!$G$7:$BK$372,18,FALSE),"") ->  | R28: =IFERROR(VLOOKUP($G28,'Technician Summary'!$G$7:$BK$372,20,FALSE),"") ->  | S28: =IFERROR(VLOOKUP($G28,'Technician Summary'!$G$7:$BK$372,21,FALSE),"") ->  | U28: =IF(G28="","",COUNTIFS('StrataSync Data'!$AB:$AB,$G28,'StrataSync Data'!$G:$G,"Closed")) ->  | V28: =IF($G28="","",COUNTIFS('StrataSync Data'!$AB:$AB,$G28,'StrataSync Data'!$H:$H,"Yes",'StrataSync Data'!$G:$G,"Closed")) ->  | X28: =IFERROR(IF($G$7="","",COUNTIFS('StrataSync Data'!$AB:$AB,$G28,'StrataSync Data'!$I:$I,"Incomplete",'StrataSync Data'!$H:$H,"Yes",'StrataSync Data'!$G:$G,"Closed"))+IF($G28="","",COUNTIFS('StrataSync Data'!$AB:$AB,$G28,'StrataSync Data'!$I:$I,"Fail",'StrataSync Data'!$H:$H,"Yes",'StrataSync Data'!$G:$G,"Closed")),"") ->  | Z28: =SUMIF('StrataSync Data'!#REF!,G28,'StrataSync Data'!#REF!) ->  | AA28: =IFERROR(SUM(Z28/#REF!),"") ->  | AB28: =IFERROR(VLOOKUP($G28,'Technician Summary'!$G$7:$BK$372,7,FALSE),"") ->  | AC28: =IFERROR(VLOOKUP($G28,'Technician Summary'!$G$7:$BK$372,8,FALSE),"") ->  | AE28: =IFERROR(VLOOKUP($G28,'Technician Summary'!$G$7:$BK$372,34,FALSE),"") ->  | AF28: =IFERROR(VLOOKUP($G28,'Technician Summary'!$G$7:$BK$372,35,FALSE),"") ->  | AH28: =IFERROR(VLOOKUP($G28,'Technician Summary'!$G$7:$BK$372,37,FALSE),"") ->  | AI28: =IFERROR(VLOOKUP($G28,'Technician Summary'!$G$7:$BK$372,38,FALSE),"") ->  | AK28: =IFERROR(VLOOKUP($G28,'Technician Summary'!$G$7:$BK$372,27,FALSE),"") ->  | AL28: =IFERROR(VLOOKUP($G28,'Technician Summary'!$G$7:$BK$372,68,FALSE),"") -> 
I29: =IFERROR(VLOOKUP($G29,'Technician Summary'!$G$7:$BB$372,2,FALSE),"") ->  | J29: =IFERROR(VLOOKUP($G29,'Technician Summary'!$G$7:$BN$372,60,FALSE),"") ->  | L29: =IFERROR(VLOOKUP($G29,'Technician Summary'!$G$7:$BK$372,14,FALSE),"") ->  | M29: =IFERROR(VLOOKUP($G29,'Technician Summary'!$G$7:$BK$372,15,FALSE),"") ->  | O29: =IFERROR(VLOOKUP($G29,'Technician Summary'!$G$7:$BK$372,17,FALSE),"") ->  | P29: =IFERROR(VLOOKUP($G29,'Technician Summary'!$G$7:$BK$372,18,FALSE),"") ->  | R29: =IFERROR(VLOOKUP($G29,'Technician Summary'!$G$7:$BK$372,20,FALSE),"") ->  | S29: =IFERROR(VLOOKUP($G29,'Technician Summary'!$G$7:$BK$372,21,FALSE),"") ->  | U29: =IF(G29="","",COUNTIFS('StrataSync Data'!$AB:$AB,$G29,'StrataSync Data'!$G:$G,"Closed")) ->  | V29: =IF($G29="","",COUNTIFS('StrataSync Data'!$AB:$AB,$G29,'StrataSync Data'!$H:$H,"Yes",'StrataSync Data'!$G:$G,"Closed")) ->  | X29: =IFERROR(IF($G$7="","",COUNTIFS('StrataSync Data'!$AB:$AB,$G29,'StrataSync Data'!$I:$I,"Incomplete",'StrataSync Data'!$H:$H,"Yes",'StrataSync Data'!$G:$G,"Closed"))+IF($G29="","",COUNTIFS('StrataSync Data'!$AB:$AB,$G29,'StrataSync Data'!$I:$I,"Fail",'StrataSync Data'!$H:$H,"Yes",'StrataSync Data'!$G:$G,"Closed")),"") ->  | Z29: =SUMIF('StrataSync Data'!#REF!,G29,'StrataSync Data'!#REF!) ->  | AA29: =IFERROR(SUM(Z29/#REF!),"") ->  | AB29: =IFERROR(VLOOKUP($G29,'Technician Summary'!$G$7:$BK$372,7,FALSE),"") ->  | AC29: =IFERROR(VLOOKUP($G29,'Technician Summary'!$G$7:$BK$372,8,FALSE),"") ->  | AE29: =IFERROR(VLOOKUP($G29,'Technician Summary'!$G$7:$BK$372,34,FALSE),"") ->  | AF29: =IFERROR(VLOOKUP($G29,'Technician Summary'!$G$7:$BK$372,35,FALSE),"") ->  | AH29: =IFERROR(VLOOKUP($G29,'Technician Summary'!$G$7:$BK$372,37,FALSE),"") ->  | AI29: =IFERROR(VLOOKUP($G29,'Technician Summary'!$G$7:$BK$372,38,FALSE),"") ->  | AK29: =IFERROR(VLOOKUP($G29,'Technician Summary'!$G$7:$BK$372,27,FALSE),"") ->  | AL29: =IFERROR(VLOOKUP($G29,'Technician Summary'!$G$7:$BK$372,68,FALSE),"") -> 
I30: =IFERROR(VLOOKUP($G30,'Technician Summary'!$G$7:$BB$372,2,FALSE),"") ->  | J30: =IFERROR(VLOOKUP($G30,'Technician Summary'!$G$7:$BN$372,60,FALSE),"") ->  | L30: =IFERROR(VLOOKUP($G30,'Technician Summary'!$G$7:$BK$372,14,FALSE),"") ->  | M30: =IFERROR(VLOOKUP($G30,'Technician Summary'!$G$7:$BK$372,15,FALSE),"") ->  | O30: =IFERROR(VLOOKUP($G30,'Technician Summary'!$G$7:$BK$372,17,FALSE),"") ->  | P30: =IFERROR(VLOOKUP($G30,'Technician Summary'!$G$7:$BK$372,18,FALSE),"") ->  | R30: =IFERROR(VLOOKUP($G30,'Technician Summary'!$G$7:$BK$372,20,FALSE),"") ->  | S30: =IFERROR(VLOOKUP($G30,'Technician Summary'!$G$7:$BK$372,21,FALSE),"") ->  | U30: =IF(G30="","",COUNTIFS('StrataSync Data'!$AB:$AB,$G30,'StrataSync Data'!$G:$G,"Closed")) ->  | V30: =IF($G30="","",COUNTIFS('StrataSync Data'!$AB:$AB,$G30,'StrataSync Data'!$H:$H,"Yes",'StrataSync Data'!$G:$G,"Closed")) ->  | X30: =IFERROR(IF($G$7="","",COUNTIFS('StrataSync Data'!$AB:$AB,$G30,'StrataSync Data'!$I:$I,"Incomplete",'StrataSync Data'!$H:$H,"Yes",'StrataSync Data'!$G:$G,"Closed"))+IF($G30="","",COUNTIFS('StrataSync Data'!$AB:$AB,$G30,'StrataSync Data'!$I:$I,"Fail",'StrataSync Data'!$H:$H,"Yes",'StrataSync Data'!$G:$G,"Closed")),"") ->  | Z30: =SUMIF('StrataSync Data'!#REF!,G30,'StrataSync Data'!#REF!) ->  | AA30: =IFERROR(SUM(Z30/#REF!),"") ->  | AB30: =IFERROR(VLOOKUP($G30,'Technician Summary'!$G$7:$BK$372,7,FALSE),"") ->  | AC30: =IFERROR(VLOOKUP($G30,'Technician Summary'!$G$7:$BK$372,8,FALSE),"") ->  | AE30: =IFERROR(VLOOKUP($G30,'Technician Summary'!$G$7:$BK$372,34,FALSE),"") ->  | AF30: =IFERROR(VLOOKUP($G30,'Technician Summary'!$G$7:$BK$372,35,FALSE),"") ->  | AH30: =IFERROR(VLOOKUP($G30,'Technician Summary'!$G$7:$BK$372,37,FALSE),"") ->  | AI30: =IFERROR(VLOOKUP($G30,'Technician Summary'!$G$7:$BK$372,38,FALSE),"") ->  | AK30: =IFERROR(VLOOKUP($G30,'Technician Summary'!$G$7:$BK$372,27,FALSE),"") ->  | AL30: =IFERROR(VLOOKUP($G30,'Technician Summary'!$G$7:$BK$372,68,FALSE),"") -> 
I31: =IFERROR(VLOOKUP($G31,'Technician Summary'!$G$7:$BB$372,2,FALSE),"") ->  | J31: =IFERROR(VLOOKUP($G31,'Technician Summary'!$G$7:$BN$372,60,FALSE),"") ->  | L31: =IFERROR(VLOOKUP($G31,'Technician Summary'!$G$7:$BK$372,14,FALSE),"") ->  | M31: =IFERROR(VLOOKUP($G31,'Technician Summary'!$G$7:$BK$372,15,FALSE),"") ->  | O31: =IFERROR(VLOOKUP($G31,'Technician Summary'!$G$7:$BK$372,17,FALSE),"") ->  | P31: =IFERROR(VLOOKUP($G31,'Technician Summary'!$G$7:$BK$372,18,FALSE),"") ->  | R31: =IFERROR(VLOOKUP($G31,'Technician Summary'!$G$7:$BK$372,20,FALSE),"") ->  | S31: =IFERROR(VLOOKUP($G31,'Technician Summary'!$G$7:$BK$372,21,FALSE),"") ->  | U31: =IF(G31="","",COUNTIFS('StrataSync Data'!$AB:$AB,$G31,'StrataSync Data'!$G:$G,"Closed")) ->  | V31: =IF($G31="","",COUNTIFS('StrataSync Data'!$AB:$AB,$G31,'StrataSync Data'!$H:$H,"Yes",'StrataSync Data'!$G:$G,"Closed")) ->  | X31: =IFERROR(IF($G$7="","",COUNTIFS('StrataSync Data'!$AB:$AB,$G31,'StrataSync Data'!$I:$I,"Incomplete",'StrataSync Data'!$H:$H,"Yes",'StrataSync Data'!$G:$G,"Closed"))+IF($G31="","",COUNTIFS('StrataSync Data'!$AB:$AB,$G31,'StrataSync Data'!$I:$I,"Fail",'StrataSync Data'!$H:$H,"Yes",'StrataSync Data'!$G:$G,"Closed")),"") ->  | Z31: =SUMIF('StrataSync Data'!#REF!,G31,'StrataSync Data'!#REF!) ->  | AA31: =IFERROR(SUM(Z31/#REF!),"") ->  | AB31: =IFERROR(VLOOKUP($G31,'Technician Summary'!$G$7:$BK$372,7,FALSE),"") ->  | AC31: =IFERROR(VLOOKUP($G31,'Technician Summary'!$G$7:$BK$372,8,FALSE),"") ->  | AE31: =IFERROR(VLOOKUP($G31,'Technician Summary'!$G$7:$BK$372,34,FALSE),"") ->  | AF31: =IFERROR(VLOOKUP($G31,'Technician Summary'!$G$7:$BK$372,35,FALSE),"") ->  | AH31: =IFERROR(VLOOKUP($G31,'Technician Summary'!$G$7:$BK$372,37,FALSE),"") ->  | AI31: =IFERROR(VLOOKUP($G31,'Technician Summary'!$G$7:$BK$372,38,FALSE),"") ->  | AK31: =IFERROR(VLOOKUP($G31,'Technician Summary'!$G$7:$BK$372,27,FALSE),"") ->  | AL31: =IFERROR(VLOOKUP($G31,'Technician Summary'!$G$7:$BK$372,68,FALSE),"") -> 
I32: # NPS WO's | J32: # Failures | K32: NPS | L32: Total Repeatable WO | M32: Total Repeats | N32: Repeats | O32: Total Repeatable WO | P32: Repeat IN | Q32: IN Repeat % | R32: Total Repeatable WO | S32: Repeat TC | T32: Repeat TC % | U32: Jobs | V32: Test Run | W32: SQT Compliance | X32: Test Fail | Y32: SQT Pass | Z32: Test Passed | AA32: Ingress Test Pass | AB32: FCR WO | AC32: FCR Failures | AD32: FCR | AE32: Jobs | AF32: Jobs Late | AG32: OTA | AH32: Jobs | AI32: Completed Jobs | AJ32: Completion % | AK32: Total Jobs | AL32: SMS Failures | AM32: SMS tNPS
I34: =SUMIF(I7:I31,">0") -> 78 | J34: =SUMIF(J7:J31,">0") -> 5.9997 | K34: =IFERROR(1-(J34/I34),"") -> 0.9231 | L34: =SUM(L7:L31) -> 793 | M34: =SUM(M7:M31) -> 28 | N34: =IFERROR(SUM(M34/L34),"") -> 0.0353 | O34: =SUM(O7:O31) -> 447 | P34: =SUM(P7:P31) -> 15 | Q34: =IFERROR(SUM(P34/O34),"") -> 0.0336 | R34: =SUM(R7:R31) -> 346 | S34: =SUM(S7:S31) -> 13 | T34: =IFERROR(SUM(S34/R34),"") -> 0.0376 | U34: =SUMIF(U7:U31,">0") -> 493 | V34: =SUMIF(V7:V31,">0") -> 480 | W34: =IFERROR(SUM(V34/U34),"") -> 0.9736 | X34: =SUM(X7:X31) -> 8 | Y34: =IFERROR(SUM(1-X34/V34),"") -> 0.9833 | Z34: =SUM(Z7:Z31) ->  | AA34: =IFERROR(SUM(Z34/#REF!),"") ->  | AB34: =SUM(AB7:AB31) -> 438 | AC34: =SUM(AC7:AC31) -> 13 | AD34: =IFERROR(1-AC34/AB34,"") -> 0.9703 | AE34: =SUM(AE7:AE31) -> 295 | AF34: =SUM(AF7:AF31) -> 39 | AG34: =IFERROR(1-AF34/AE34,"") -> 0.8678 | AH34: =SUM(AH7:AH31) -> 875 | AI34: =SUM(AI7:AI31) -> 789 | AJ34: =IFERROR(AI34/AH34,"") -> 0.9017 | AK34: =SUM(AK7:AK31) -> 0 | AL34: =SUM(AL7:AL31) -> 0 | AM34: =IFERROR(1-AL34/AK34,"") -> 

Sheet Macon
F3: Deandre McCants
F5: Tech Name | G5: Tech ID | H5: Score | I5: # NPS WO's | J5: # Failures | K5: NPS | L5: Total Repeatable WO | M5: Total Repeats | N5: Repeats | O5: Total Repeatable WO | P5: Repeat IN | Q5: IN Repeat % | R5: Total Repeatable WO | S5: Repeat TC | T5: Repeat TC % | U5: Jobs | V5: Test Run | W5: SQT Compliance | X5: Test Fail | Y5: SQT Pass | Z5: Test Passed | AA5: Ingress Test Pass | AB5: FCR WO | AC5: FCR Failures | AD5: FCR | AE5: Jobs | AF5: Jobs Late | AG5: OTA | AH5: Jobs | AI5: Completed Jobs | AJ5: Completion % | AK5: Total QC | AL5: QC Failure | AM5: SMS tNPS
F7: Deshawn Richburg | G7: 92058 | H7: =IF(W7="","",IFERROR(IF(K7>=70%,2.5,0)+IF(N7<=4%,2.5,0)+IF(W7>=90%,2.5,0)+IF(AG7>=96%,2.5,0),"")) -> 7.5 | I7: =IFERROR(VLOOKUP($G7,'Technician Summary'!$G$3:$BB$372,2,FALSE),"") -> 10 | J7: =IFERROR(VLOOKUP($G7,'Technician Summary'!$G$8:$BN$372,60,FALSE),"") -> 0 | K7: =IFERROR(1-(J7/I7),"") -> 1 | L7: =IFERROR(VLOOKUP($G7,'Technician Summary'!$G$8:$BK$372,14,FALSE),"") -> 75 | M7: =IFERROR(VLOOKUP($G7,'Technician Summary'!$G$8:$BK$372,15,FALSE),"") -> 1 | N7: =IFERROR(SUM(M7/L7),"") -> 0.0133 | O7: =IFERROR(VLOOKUP($G7,'Technician Summary'!$G$7:$BK$372,17,FALSE),"") -> 50 | P7: =IFERROR(VLOOKUP($G7,'Technician Summary'!$G$7:$BK$372,18,FALSE),"") -> 1 | Q7: =IFERROR(SUM(P7/O7),"") -> 0.02 | R7: =IFERROR(VLOOKUP($G7,'Technician Summary'!$G$7:$BK$372,20,FALSE),"") -> 25 | S7: =IFERROR(VLOOKUP($G7,'Technician Summary'!$G$7:$BK$372,21,FALSE),"") -> 0 | T7: =IFERROR(SUM(S7/R7),"") -> 0 | U7: =IF(G7="","",COUNTIFS('StrataSync Data'!$AB:$AB,$G7,'StrataSync Data'!$G:$G,"Closed")) -> 26 | V7: =IF($G7="","",COUNTIFS('StrataSync Data'!$AB:$AB,$G7,'StrataSync Data'!$H:$H,"Yes",'StrataSync Data'!$G:$G,"Closed")) -> 25 | W7: =IFERROR(SUM(V7/U7),"") -> 0.9615 | X7: =IFERROR(IF($G$7="","",COUNTIFS('StrataSync Data'!$AB:$AB,$G7,'StrataSync Data'!$I:$I,"Incomplete",'StrataSync Data'!$H:$H,"Yes",'StrataSync Data'!$G:$G,"Closed"))+IF($G7="","",COUNTIFS('StrataSync Data'!$AB:$AB,$G7,'StrataSync Data'!$I:$I,"Fail",'StrataSync Data'!$H:$H,"Yes",'StrataSync Data'!$G:$G,"Closed")),"") -> 2 | Y7: =IFERROR(SUM(1-X7/V7),"") -> 0.92 | AA7: =IFERROR(SUM(Z7/#REF!),"") ->  | AB7: =IFERROR(VLOOKUP($G7,'Technician Summary'!$G$8:$BK$372,7,FALSE),"") -> 45 | AC7: =IFERROR(VLOOKUP($G7,'Technician Summary'!$G$8:$BK$372,8,FALSE),"") -> 0 | AD7: =IFERROR(1-AC7/AB7,"") -> 1 | AE7: =IFERROR(VLOOKUP($G7,'Technician Summary'!$G$8:$BK$372,34,FALSE),"") -> 38 | AF7: =IFERROR(VLOOKUP($G7,'Technician Summary'!$G$8:$BK$372,35,FALSE),"") -> 6 | AG7: =IFERROR(1-AF7/AE7,"") -> 0.8421 | AH7: =IFERROR(VLOOKUP($G7,'Technician Summary'!$G$8:$BK$372,37,FALSE),"") -> 85 | AI7: =IFERROR(VLOOKUP($G7,'Technician Summary'!$G$8:$BK$372,38,FALSE),"") -> 75 | AJ7: =IFERROR(AI7/AH7,"") -> 0.8824 | AK7: =IFERROR(VLOOKUP($G7,'Technician Summary'!$G$8:$BK$372,27,FALSE),"") -> 0 | AL7: =IFERROR(VLOOKUP($G7,'Technician Summary'!$G$8:$BK$372,68,FALSE),"") ->  | AM7: =IFERROR(1-AL7/AK7,"") -> 
F8: Delvin Montford | G8: 18558 | H8: =IF(W8="","",IFERROR(IF(K8>=70%,2.5,0)+IF(N8<=4%,2.5,0)+IF(W8>=90%,2.5,0)+IF(AG8>=96%,2.5,0),"")) -> 7.5 | I8: =IFERROR(VLOOKUP($G8,'Technician Summary'!$G$3:$BB$372,2,FALSE),"") -> 12 | J8: =IFERROR(VLOOKUP($G8,'Technician Summary'!$G$8:$BN$372,60,FALSE),"") -> 0.9996 | K8: =IFERROR(1-(J8/I8),"") -> 0.9167 | L8: =IFERROR(VLOOKUP($G8,'Technician Summary'!$G$8:$BK$372,14,FALSE),"") -> 70 | M8: =IFERROR(VLOOKUP($G8,'Technician Summary'!$G$8:$BK$372,15,FALSE),"") -> 1 | N8: =IFERROR(SUM(M8/L8),"") -> 0.0143 | O8: =IFERROR(VLOOKUP($G8,'Technician Summary'!$G$7:$BK$372,17,FALSE),"") -> 47 | P8: =IFERROR(VLOOKUP($G8,'Technician Summary'!$G$7:$BK$372,18,FALSE),"") -> 1 | Q8: =IFERROR(SUM(P8/O8),"") -> 0.0213 | R8: =IFERROR(VLOOKUP($G8,'Technician Summary'!$G$7:$BK$372,20,FALSE),"") -> 23 | S8: =IFERROR(VLOOKUP($G8,'Technician Summary'!$G$7:$BK$372,21,FALSE),"") -> 0 | T8: =IFERROR(SUM(S8/R8),"") -> 0 | U8: =IF(G8="","",COUNTIFS('StrataSync Data'!$AB:$AB,$G8,'StrataSync Data'!$G:$G,"Closed")) -> 13 | V8: =IF($G8="","",COUNTIFS('StrataSync Data'!$AB:$AB,$G8,'StrataSync Data'!$H:$H,"Yes",'StrataSync Data'!$G:$G,"Closed")) -> 13 | W8: =IFERROR(SUM(V8/U8),"") -> 1 | X8: =IFERROR(IF($G$7="","",COUNTIFS('StrataSync Data'!$AB:$AB,$G8,'StrataSync Data'!$I:$I,"Incomplete",'StrataSync Data'!$H:$H,"Yes",'StrataSync Data'!$G:$G,"Closed"))+IF($G8="","",COUNTIFS('StrataSync Data'!$AB:$AB,$G8,'StrataSync Data'!$I:$I,"Fail",'StrataSync Data'!$H:$H,"Yes",'StrataSync Data'!$G:$G,"Closed")),"") -> 1 | Y8: =IFERROR(SUM(1-X8/V8),"") -> 0.9231 | AA8: =IFERROR(SUM(Z8/#REF!),"") ->  | AB8: =IFERROR(VLOOKUP($G8,'Technician Summary'!$G$8:$BK$372,7,FALSE),"") -> 48 | AC8: =IFERROR(VLOOKUP($G8,'Technician Summary'!$G$8:$BK$372,8,FALSE),"") -> 1 | AD8: =IFERROR(1-AC8/AB8,"") -> 0.9792 | AE8: =IFERROR(VLOOKUP($G8,'Technician Summary'!$G$8:$BK$372,34,FALSE),"") -> 39 | AF8: =IFERROR(VLOOKUP($G8,'Technician Summary'!$G$8:$BK$372,35,FALSE),"") -> 7 | AG8: =IFERROR(1-AF8/AE8,"") -> 0.8205 | AH8: =IFERROR(VLOOKUP($G8,'Technician Summary'!$G$8:$BK$372,37,FALSE),"") -> 85 | AI8: =IFERROR(VLOOKUP($G8,'Technician Summary'!$G$8:$BK$372,38,FALSE),"") -> 70 | AJ8: =IFERROR(AI8/AH8,"") -> 0.8235 | AK8: =IFERROR(VLOOKUP($G8,'Technician Summary'!$G$8:$BK$372,27,FALSE),"") -> 0 | AL8: =IFERROR(VLOOKUP($G8,'Technician Summary'!$G$8:$BK$372,68,FALSE),"") ->  | AM8: =IFERROR(1-AL8/AK8,"") -> 
F9: Daniel Sanchez | G9: 69594 | H9: 7.5 | I9: =IFERROR(VLOOKUP($G9,'Technician Summary'!$G$3:$BB$372,2,FALSE),"") -> 6 | J9: =IFERROR(VLOOKUP($G9,'Technician Summary'!$G$8:$BN$372,60,FALSE),"") -> 0 | K9: 1 | L9: =IFERROR(VLOOKUP($G9,'Technician Summary'!$G$8:$BK$372,14,FALSE),"") -> 31 | M9: =IFERROR(VLOOKUP($G9,'Technician Summary'!$G$8:$BK$372,15,FALSE),"") -> 1 | N9: 0.0323 | O9: =IFERROR(VLOOKUP($G9,'Technician Summary'!$G$7:$BK$372,17,FALSE),"") -> 23 | P9: =IFERROR(VLOOKUP($G9,'Technician Summary'!$G$7:$BK$372,18,FALSE),"") -> 0 | Q9: 0 | R9: =IFERROR(VLOOKUP($G9,'Technician Summary'!$G$7:$BK$372,20,FALSE),"") -> 8 | S9: =IFERROR(VLOOKUP($G9,'Technician Summary'!$G$7:$BK$372,21,FALSE),"") -> 1 | T9: 0.125 | U9: =IF(G9="","",COUNTIFS('StrataSync Data'!$AB:$AB,$G9,'StrataSync Data'!$G:$G,"Closed")) -> 19 | V9: =IF($G9="","",COUNTIFS('StrataSync Data'!$AB:$AB,$G9,'StrataSync Data'!$H:$H,"Yes",'StrataSync Data'!$G:$G,"Closed")) -> 19 | W9: 1 | X9: =IFERROR(IF($G$7="","",COUNTIFS('StrataSync Data'!$AB:$AB,$G9,'StrataSync Data'!$I:$I,"Incomplete",'StrataSync Data'!$H:$H,"Yes",'StrataSync Data'!$G:$G,"Closed"))+IF($G9="","",COUNTIFS('StrataSync Data'!$AB:$AB,$G9,'StrataSync Data'!$I:$I,"Fail",'StrataSync Data'!$H:$H,"Yes",'StrataSync Data'!$G:$G,"Closed")),"") -> 1 | Y9: 0.9474 | AA9: =IFERROR(SUM(Z9/#REF!),"") ->  | AB9: =IFERROR(VLOOKUP($G9,'Technician Summary'!$G$8:$BK$372,7,FALSE),"") -> 19 | AC9: =IFERROR(VLOOKUP($G9,'Technician Summary'!$G$8:$BK$372,8,FALSE),"") -> 1 | AD9: 0.9474 | AE9: =IFERROR(VLOOKUP($G9,'Technician Summary'!$G$8:$BK$372,34,FALSE),"") -> 17 | AF9: =IFERROR(VLOOKUP($G9,'Technician Summary'!$G$8:$BK$372,35,FALSE),"") -> 3 | AG9: 0.8235 | AH9: =IFERROR(VLOOKUP($G9,'Technician Summary'!$G$8:$BK$372,37,FALSE),"") -> 41 | AI9: =IFERROR(VLOOKUP($G9,'Technician Summary'!$G$8:$BK$372,38,FALSE),"") -> 31 | AJ9: 0.7561 | AK9: =IFERROR(VLOOKUP($G9,'Technician Summary'!$G$8:$BK$372,27,FALSE),"") -> 0 | AL9: =IFERROR(VLOOKUP($G9,'Technician Summary'!$G$8:$BK$372,68,FALSE),"") -> 
F10: Jamir Chambers | G10: 2558 | H10: 2.5 | I10: =IFERROR(VLOOKUP($G10,'Technician Summary'!$G$3:$BB$372,2,FALSE),"") -> 5 | J10: =IFERROR(VLOOKUP($G10,'Technician Summary'!$G$8:$BN$372,60,FALSE),"") -> 1 | K10: 0.8 | L10: =IFERROR(VLOOKUP($G10,'Technician Summary'!$G$8:$BK$372,14,FALSE),"") -> 53 | M10: =IFERROR(VLOOKUP($G10,'Technician Summary'!$G$8:$BK$372,15,FALSE),"") -> 5 | N10: 0.0943 | O10: =IFERROR(VLOOKUP($G10,'Technician Summary'!$G$7:$BK$372,17,FALSE),"") -> 22 | P10: =IFERROR(VLOOKUP($G10,'Technician Summary'!$G$7:$BK$372,18,FALSE),"") -> 0 | Q10: 0 | R10: =IFERROR(VLOOKUP($G10,'Technician Summary'!$G$7:$BK$372,20,FALSE),"") -> 31 | S10: =IFERROR(VLOOKUP($G10,'Technician Summary'!$G$7:$BK$372,21,FALSE),"") -> 5 | T10: 0.1613 | U10: =IF(G10="","",COUNTIFS('StrataSync Data'!$AB:$AB,$G10,'StrataSync Data'!$G:$G,"Closed")) -> 52 | V10: =IF($G10="","",COUNTIFS('StrataSync Data'!$AB:$AB,$G10,'StrataSync Data'!$H:$H,"Yes",'StrataSync Data'!$G:$G,"Closed")) -> 46 | W10: 0.8846 | X10: =IFERROR(IF($G$7="","",COUNTIFS('StrataSync Data'!$AB:$AB,$G10,'StrataSync Data'!$I:$I,"Incomplete",'StrataSync Data'!$H:$H,"Yes",'StrataSync Data'!$G:$G,"Closed"))+IF($G10="","",COUNTIFS('StrataSync Data'!$AB:$AB,$G10,'StrataSync Data'!$I:$I,"Fail",'StrataSync Data'!$H:$H,"Yes",'StrataSync Data'!$G:$G,"Closed")),"") -> 1 | Y10: 0.9783 | AA10: =IFERROR(SUM(Z10/#REF!),"") ->  | AB10: =IFERROR(VLOOKUP($G10,'Technician Summary'!$G$8:$BK$372,7,FALSE),"") -> 23 | AC10: =IFERROR(VLOOKUP($G10,'Technician Summary'!$G$8:$BK$372,8,FALSE),"") -> 0 | AD10: 1 | AE10: =IFERROR(VLOOKUP($G10,'Technician Summary'!$G$8:$BK$372,34,FALSE),"") -> 20 | AF10: =IFERROR(VLOOKUP($G10,'Technician Summary'!$G$8:$BK$372,35,FALSE),"") -> 1 | AG10: 0.95 | AH10: =IFERROR(VLOOKUP($G10,'Technician Summary'!$G$8:$BK$372,37,FALSE),"") -> 58 | AI10: =IFERROR(VLOOKUP($G10,'Technician Summary'!$G$8:$BK$372,38,FALSE),"") -> 53 | AJ10: 0.9138 | AK10: =IFERROR(VLOOKUP($G10,'Technician Summary'!$G$8:$BK$372,27,FALSE),"") -> 0 | AL10: =IFERROR(VLOOKUP($G10,'Technician Summary'!$G$8:$BK$372,68,FALSE),"") -> 
B11: Home | F11: Adam Andrews | G11: 33779 | H11: 10 | I11: =IFERROR(VLOOKUP($G11,'Technician Summary'!$G$3:$BB$372,2,FALSE),"") -> 0 | J11: =IFERROR(VLOOKUP($G11,'Technician Summary'!$G$8:$BN$372,60,FALSE),"") ->  | L11: =IFERROR(VLOOKUP($G11,'Technician Summary'!$G$8:$BK$372,14,FALSE),"") -> 7 | M11: =IFERROR(VLOOKUP($G11,'Technician Summary'!$G$8:$BK$372,15,FALSE),"") -> 0 | N11: 0 | O11: =IFERROR(VLOOKUP($G11,'Technician Summary'!$G$7:$BK$372,17,FALSE),"") -> 4 | P11: =IFERROR(VLOOKUP($G11,'Technician Summary'!$G$7:$BK$372,18,FALSE),"") -> 0 | Q11: 0 | R11: =IFERROR(VLOOKUP($G11,'Technician Summary'!$G$7:$BK$372,20,FALSE),"") -> 3 | S11: =IFERROR(VLOOKUP($G11,'Technician Summary'!$G$7:$BK$372,21,FALSE),"") -> 0 | T11: 0 | U11: =IF(G11="","",COUNTIFS('StrataSync Data'!$AB:$AB,$G11,'StrataSync Data'!$G:$G,"Closed")) -> 5 | V11: =IF($G11="","",COUNTIFS('StrataSync Data'!$AB:$AB,$G11,'StrataSync Data'!$H:$H,"Yes",'StrataSync Data'!$G:$G,"Closed")) -> 5 | W11: 1 | X11: =IFERROR(IF($G$7="","",COUNTIFS('StrataSync Data'!$AB:$AB,$G11,'StrataSync Data'!$I:$I,"Incomplete",'StrataSync Data'!$H:$H,"Yes",'StrataSync Data'!$G:$G,"Closed"))+IF($G11="","",COUNTIFS('StrataSync Data'!$AB:$AB,$G11,'StrataSync Data'!$I:$I,"Fail",'StrataSync Data'!$H:$H,"Yes",'StrataSync Data'!$G:$G,"Closed")),"") -> 0 | Y11: 1 | AA11: =IFERROR(SUM(Z11/#REF!),"") ->  | AB11: =IFERROR(VLOOKUP($G11,'Technician Summary'!$G$8:$BK$372,7,FALSE),"") -> 2 | AC11: =IFERROR(VLOOKUP($G11,'Technician Summary'!$G$8:$BK$372,8,FALSE),"") -> 0 | AD11: 1 | AE11: =IFERROR(VLOOKUP($G11,'Technician Summary'!$G$8:$BK$372,34,FALSE),"") -> 1 | AF11: =IFERROR(VLOOKUP($G11,'Technician Summary'!$G$8:$BK$372,35,FALSE),"") -> 0 | AG11: 1 | AH11: =IFERROR(VLOOKUP($G11,'Technician Summary'!$G$8:$BK$372,37,FALSE),"") -> 7 | AI11: =IFERROR(VLOOKUP($G11,'Technician Summary'!$G$8:$BK$372,38,FALSE),"") -> 6 | AJ11: 0.8571 | AK11: =IFERROR(VLOOKUP($G11,'Technician Summary'!$G$8:$BK$372,27,FALSE),"") -> 0 | AL11: =IFERROR(VLOOKUP($G11,'Technician Summary'!$G$8:$BK$372,68,FALSE),"") -> 
F12: Dalton Bass | G12: 80926 | H12: 5 | I12: =IFERROR(VLOOKUP($G12,'Technician Summary'!$G$3:$BB$372,2,FALSE),"") -> 3 | J12: =IFERROR(VLOOKUP($G12,'Technician Summary'!$G$8:$BN$372,60,FALSE),"") -> 0.9999 | K12: 0.6667 | L12: =IFERROR(VLOOKUP($G12,'Technician Summary'!$G$8:$BK$372,14,FALSE),"") -> 94 | M12: =IFERROR(VLOOKUP($G12,'Technician Summary'!$G$8:$BK$372,15,FALSE),"") -> 2 | N12: 0.0213 | O12: =IFERROR(VLOOKUP($G12,'Technician Summary'!$G$7:$BK$372,17,FALSE),"") -> 52 | P12: =IFERROR(VLOOKUP($G12,'Technician Summary'!$G$7:$BK$372,18,FALSE),"") -> 1 | Q12: 0.0192 | R12: =IFERROR(VLOOKUP($G12,'Technician Summary'!$G$7:$BK$372,20,FALSE),"") -> 42 | S12: =IFERROR(VLOOKUP($G12,'Technician Summary'!$G$7:$BK$372,21,FALSE),"") -> 1 | T12: 0.0238 | U12: =IF(G12="","",COUNTIFS('StrataSync Data'!$AB:$AB,$G12,'StrataSync Data'!$G:$G,"Closed")) -> 80 | V12: =IF($G12="","",COUNTIFS('StrataSync Data'!$AB:$AB,$G12,'StrataSync Data'!$H:$H,"Yes",'StrataSync Data'!$G:$G,"Closed")) -> 80 | W12: 1 | X12: =IFERROR(IF($G$7="","",COUNTIFS('StrataSync Data'!$AB:$AB,$G12,'StrataSync Data'!$I:$I,"Incomplete",'StrataSync Data'!$H:$H,"Yes",'StrataSync Data'!$G:$G,"Closed"))+IF($G12="","",COUNTIFS('StrataSync Data'!$AB:$AB,$G12,'StrataSync Data'!$I:$I,"Fail",'StrataSync Data'!$H:$H,"Yes",'StrataSync Data'!$G:$G,"Closed")),"") -> 0 | Y12: 1 | AA12: =IFERROR(SUM(Z12/#REF!),"") ->  | AB12: =IFERROR(VLOOKUP($G12,'Technician Summary'!$G$8:$BK$372,7,FALSE),"") -> 51 | AC12: =IFERROR(VLOOKUP($G12,'Technician Summary'!$G$8:$BK$372,8,FALSE),"") -> 0 | AD12: 1 | AE12: =IFERROR(VLOOKUP($G12,'Technician Summary'!$G$8:$BK$372,34,FALSE),"") -> 39 | AF12: =IFERROR(VLOOKUP($G12,'Technician Summary'!$G$8:$BK$372,35,FALSE),"") -> 5 | AG12: 0.8718 | AH12: =IFERROR(VLOOKUP($G12,'Technician Summary'!$G$8:$BK$372,37,FALSE),"") -> 110 | AI12: =IFERROR(VLOOKUP($G12,'Technician Summary'!$G$8:$BK$372,38,FALSE),"") -> 93 | AJ12: 0.8455 | AK12: =IFERROR(VLOOKUP($G12,'Technician Summary'!$G$8:$BK$372,27,FALSE),"") -> 0 | AL12: =IFERROR(VLOOKUP($G12,'Technician Summary'!$G$8:$BK$372,68,FALSE),"") -> 
B13: Performance Metrics | F13: Charles Howard | G13: 48783 | H13: 5 | I13: =IFERROR(VLOOKUP($G13,'Technician Summary'!$G$3:$BB$372,2,FALSE),"") -> 1 | J13: =IFERROR(VLOOKUP($G13,'Technician Summary'!$G$8:$BN$372,60,FALSE),"") -> 0 | K13: 1 | L13: =IFERROR(VLOOKUP($G13,'Technician Summary'!$G$8:$BK$372,14,FALSE),"") -> 49 | M13: =IFERROR(VLOOKUP($G13,'Technician Summary'!$G$8:$BK$372,15,FALSE),"") -> 3 | N13: 0.0612 | O13: =IFERROR(VLOOKUP($G13,'Technician Summary'!$G$7:$BK$372,17,FALSE),"") -> 31 | P13: =IFERROR(VLOOKUP($G13,'Technician Summary'!$G$7:$BK$372,18,FALSE),"") -> 3 | Q13: 0.0968 | R13: =IFERROR(VLOOKUP($G13,'Technician Summary'!$G$7:$BK$372,20,FALSE),"") -> 18 | S13: =IFERROR(VLOOKUP($G13,'Technician Summary'!$G$7:$BK$372,21,FALSE),"") -> 0 | T13: 0 | U13: =IF(G13="","",COUNTIFS('StrataSync Data'!$AB:$AB,$G13,'StrataSync Data'!$G:$G,"Closed")) -> 16 | V13: =IF($G13="","",COUNTIFS('StrataSync Data'!$AB:$AB,$G13,'StrataSync Data'!$H:$H,"Yes",'StrataSync Data'!$G:$G,"Closed")) -> 16 | W13: 1 | X13: =IFERROR(IF($G$7="","",COUNTIFS('StrataSync Data'!$AB:$AB,$G13,'StrataSync Data'!$I:$I,"Incomplete",'StrataSync Data'!$H:$H,"Yes",'StrataSync Data'!$G:$G,"Closed"))+IF($G13="","",COUNTIFS('StrataSync Data'!$AB:$AB,$G13,'StrataSync Data'!$I:$I,"Fail",'StrataSync Data'!$H:$H,"Yes",'StrataSync Data'!$G:$G,"Closed")),"") -> 0 | Y13: 1 | AA13: =IFERROR(SUM(Z13/#REF!),"") ->  | AB13: =IFERROR(VLOOKUP($G13,'Technician Summary'!$G$8:$BK$372,7,FALSE),"") -> 32 | AC13: =IFERROR(VLOOKUP($G13,'Technician Summary'!$G$8:$BK$372,8,FALSE),"") -> 3 | AD13: 0.9063 | AE13: =IFERROR(VLOOKUP($G13,'Technician Summary'!$G$8:$BK$372,34,FALSE),"") -> 24 | AF13: =IFERROR(VLOOKUP($G13,'Technician Summary'!$G$8:$BK$372,35,FALSE),"") -> 3 | AG13: 0.875 | AH13: =IFERROR(VLOOKUP($G13,'Technician Summary'!$G$8:$BK$372,37,FALSE),"") -> 61 | AI13: =IFERROR(VLOOKUP($G13,'Technician Summary'!$G$8:$BK$372,38,FALSE),"") -> 49 | AJ13: 0.8033 | AK13: =IFERROR(VLOOKUP($G13,'Technician Summary'!$G$8:$BK$372,27,FALSE),"") -> 0 | AL13: =IFERROR(VLOOKUP($G13,'Technician Summary'!$G$8:$BK$372,68,FALSE),"") -> 
B14: Gainesville | F14: Angela Yerby | G14: 60229 | H14: 7.5 | I14: =IFERROR(VLOOKUP($G14,'Technician Summary'!$G$3:$BB$372,2,FALSE),"") -> 6 | J14: =IFERROR(VLOOKUP($G14,'Technician Summary'!$G$8:$BN$372,60,FALSE),"") -> 1.0002 | K14: 0.8333 | L14: =IFERROR(VLOOKUP($G14,'Technician Summary'!$G$8:$BK$372,14,FALSE),"") -> 76 | M14: =IFERROR(VLOOKUP($G14,'Technician Summary'!$G$8:$BK$372,15,FALSE),"") -> 1 | N14: 0.0132 | O14: =IFERROR(VLOOKUP($G14,'Technician Summary'!$G$7:$BK$372,17,FALSE),"") -> 50 | P14: =IFERROR(VLOOKUP($G14,'Technician Summary'!$G$7:$BK$372,18,FALSE),"") -> 1 | Q14: 0.02 | R14: =IFERROR(VLOOKUP($G14,'Technician Summary'!$G$7:$BK$372,20,FALSE),"") -> 26 | S14: =IFERROR(VLOOKUP($G14,'Technician Summary'!$G$7:$BK$372,21,FALSE),"") -> 0 | T14: 0 | U14: =IF(G14="","",COUNTIFS('StrataSync Data'!$AB:$AB,$G14,'StrataSync Data'!$G:$G,"Closed")) -> 2 | V14: =IF($G14="","",COUNTIFS('StrataSync Data'!$AB:$AB,$G14,'StrataSync Data'!$H:$H,"Yes",'StrataSync Data'!$G:$G,"Closed")) -> 2 | W14: 1 | X14: =IFERROR(IF($G$7="","",COUNTIFS('StrataSync Data'!$AB:$AB,$G14,'StrataSync Data'!$I:$I,"Incomplete",'StrataSync Data'!$H:$H,"Yes",'StrataSync Data'!$G:$G,"Closed"))+IF($G14="","",COUNTIFS('StrataSync Data'!$AB:$AB,$G14,'StrataSync Data'!$I:$I,"Fail",'StrataSync Data'!$H:$H,"Yes",'StrataSync Data'!$G:$G,"Closed")),"") -> 1 | Y14: 0.5 | AA14: =IFERROR(SUM(Z14/#REF!),"") ->  | AB14: =IFERROR(VLOOKUP($G14,'Technician Summary'!$G$8:$BK$372,7,FALSE),"") -> 41 | AC14: =IFERROR(VLOOKUP($G14,'Technician Summary'!$G$8:$BK$372,8,FALSE),"") -> 0 | AD14: 1 | AE14: =IFERROR(VLOOKUP($G14,'Technician Summary'!$G$8:$BK$372,34,FALSE),"") -> 31 | AF14: =IFERROR(VLOOKUP($G14,'Technician Summary'!$G$8:$BK$372,35,FALSE),"") -> 11 | AG14: 0.6452 | AH14: =IFERROR(VLOOKUP($G14,'Technician Summary'!$G$8:$BK$372,37,FALSE),"") -> 81 | AI14: =IFERROR(VLOOKUP($G14,'Technician Summary'!$G$8:$BK$372,38,FALSE),"") -> 75 | AJ14: 0.9259 | AK14: =IFERROR(VLOOKUP($G14,'Technician Summary'!$G$8:$BK$372,27,FALSE),"") -> 0 | AL14: =IFERROR(VLOOKUP($G14,'Technician Summary'!$G$8:$BK$372,68,FALSE),"") -> 
B15: Macon | F15: Dylan DeLorme | G15: 37359 | H15: 7.5 | I15: =IFERROR(VLOOKUP($G15,'Technician Summary'!$G$3:$BB$372,2,FALSE),"") -> 1 | J15: =IFERROR(VLOOKUP($G15,'Technician Summary'!$G$8:$BN$372,60,FALSE),"") -> 0 | K15: 1 | L15: =IFERROR(VLOOKUP($G15,'Technician Summary'!$G$8:$BK$372,14,FALSE),"") -> 81 | M15: =IFERROR(VLOOKUP($G15,'Technician Summary'!$G$8:$BK$372,15,FALSE),"") -> 2 | N15: 0.0247 | O15: =IFERROR(VLOOKUP($G15,'Technician Summary'!$G$7:$BK$372,17,FALSE),"") -> 45 | P15: =IFERROR(VLOOKUP($G15,'Technician Summary'!$G$7:$BK$372,18,FALSE),"") -> 1 | Q15: 0.0222 | R15: =IFERROR(VLOOKUP($G15,'Technician Summary'!$G$7:$BK$372,20,FALSE),"") -> 36 | S15: =IFERROR(VLOOKUP($G15,'Technician Summary'!$G$7:$BK$372,21,FALSE),"") -> 1 | T15: 0.0278 | U15: =IF(G15="","",COUNTIFS('StrataSync Data'!$AB:$AB,$G15,'StrataSync Data'!$G:$G,"Closed")) -> 69 | V15: =IF($G15="","",COUNTIFS('StrataSync Data'!$AB:$AB,$G15,'StrataSync Data'!$H:$H,"Yes",'StrataSync Data'!$G:$G,"Closed")) -> 69 | W15: 1 | X15: =IFERROR(IF($G$7="","",COUNTIFS('StrataSync Data'!$AB:$AB,$G15,'StrataSync Data'!$I:$I,"Incomplete",'StrataSync Data'!$H:$H,"Yes",'StrataSync Data'!$G:$G,"Closed"))+IF($G15="","",COUNTIFS('StrataSync Data'!$AB:$AB,$G15,'StrataSync Data'!$I:$I,"Fail",'StrataSync Data'!$H:$H,"Yes",'StrataSync Data'!$G:$G,"Closed")),"") -> 8 | Y15: 0.8841 | AA15: =IFERROR(SUM(Z15/#REF!),"") ->  | AB15: =IFERROR(VLOOKUP($G15,'Technician Summary'!$G$8:$BK$372,7,FALSE),"") -> 47 | AC15: =IFERROR(VLOOKUP($G15,'Technician Summary'!$G$8:$BK$372,8,FALSE),"") -> 1 | AD15: 0.9787 | AE15: =IFERROR(VLOOKUP($G15,'Technician Summary'!$G$8:$BK$372,34,FALSE),"") -> 40 | AF15: =IFERROR(VLOOKUP($G15,'Technician Summary'!$G$8:$BK$372,35,FALSE),"") -> 8 | AG15: 0.8 | AH15: =IFERROR(VLOOKUP($G15,'Technician Summary'!$G$8:$BK$372,37,FALSE),"") -> 95 | AI15: =IFERROR(VLOOKUP($G15,'Technician Summary'!$G$8:$BK$372,38,FALSE),"") -> 81 | AJ15: 0.8526 | AK15: =IFERROR(VLOOKUP($G15,'Technician Summary'!$G$8:$BK$372,27,FALSE),"") -> 0 | AL15: =IFERROR(VLOOKUP($G15,'Technician Summary'!$G$8:$BK$372,68,FALSE),"") -> 
B16: New Orleans | F16: Braxton Gardner | G16: 88787 | H16: 0 | I16: =IFERROR(VLOOKUP($G16,'Technician Summary'!$G$3:$BB$372,2,FALSE),"") -> 2 | J16: =IFERROR(VLOOKUP($G16,'Technician Summary'!$G$8:$BN$372,60,FALSE),"") -> 3 | K16: -0.5 | L16: =IFERROR(VLOOKUP($G16,'Technician Summary'!$G$8:$BK$372,14,FALSE),"") -> 48 | M16: =IFERROR(VLOOKUP($G16,'Technician Summary'!$G$8:$BK$372,15,FALSE),"") -> 6 | N16: 0.125 | O16: =IFERROR(VLOOKUP($G16,'Technician Summary'!$G$7:$BK$372,17,FALSE),"") -> 27 | P16: =IFERROR(VLOOKUP($G16,'Technician Summary'!$G$7:$BK$372,18,FALSE),"") -> 4 | Q16: 0.1481 | R16: =IFERROR(VLOOKUP($G16,'Technician Summary'!$G$7:$BK$372,20,FALSE),"") -> 21 | S16: =IFERROR(VLOOKUP($G16,'Technician Summary'!$G$7:$BK$372,21,FALSE),"") -> 2 | T16: 0.0952 | U16: =IF(G16="","",COUNTIFS('StrataSync Data'!$AB:$AB,$G16,'StrataSync Data'!$G:$G,"Closed")) -> 36 | V16: =IF($G16="","",COUNTIFS('StrataSync Data'!$AB:$AB,$G16,'StrataSync Data'!$H:$H,"Yes",'StrataSync Data'!$G:$G,"Closed")) -> 31 | W16: 0.8611 | X16: =IFERROR(IF($G$7="","",COUNTIFS('StrataSync Data'!$AB:$AB,$G16,'StrataSync Data'!$I:$I,"Incomplete",'StrataSync Data'!$H:$H,"Yes",'StrataSync Data'!$G:$G,"Closed"))+IF($G16="","",COUNTIFS('StrataSync Data'!$AB:$AB,$G16,'StrataSync Data'!$I:$I,"Fail",'StrataSync Data'!$H:$H,"Yes",'StrataSync Data'!$G:$G,"Closed")),"") -> 10 | Y16: 0.6774 | AA16: =IFERROR(SUM(Z16/#REF!),"") ->  | AB16: =IFERROR(VLOOKUP($G16,'Technician Summary'!$G$8:$BK$372,7,FALSE),"") -> 28 | AC16: =IFERROR(VLOOKUP($G16,'Technician Summary'!$G$8:$BK$372,8,FALSE),"") -> 2 | AD16: 0.9286 | AE16: =IFERROR(VLOOKUP($G16,'Technician Summary'!$G$8:$BK$372,34,FALSE),"") -> 21 | AF16: =IFERROR(VLOOKUP($G16,'Technician Summary'!$G$8:$BK$372,35,FALSE),"") -> 2 | AG16: 0.9048 | AH16: =IFERROR(VLOOKUP($G16,'Technician Summary'!$G$8:$BK$372,37,FALSE),"") -> 53 | AI16: =IFERROR(VLOOKUP($G16,'Technician Summary'!$G$8:$BK$372,38,FALSE),"") -> 48 | AJ16: 0.9057 | AK16: =IFERROR(VLOOKUP($G16,'Technician Summary'!$G$8:$BK$372,27,FALSE),"") -> 0 | AL16: =IFERROR(VLOOKUP($G16,'Technician Summary'!$G$8:$BK$372,68,FALSE),"") -> 
B17: Hampton Roads | F17: Trey Minter | G17: 53981 | H17: 5 | I17: =IFERROR(VLOOKUP($G17,'Technician Summary'!$G$3:$BB$372,2,FALSE),"") -> 7 | J17: =IFERROR(VLOOKUP($G17,'Technician Summary'!$G$8:$BN$372,60,FALSE),"") -> 5.0001 | K17: 0.2857 | L17: =IFERROR(VLOOKUP($G17,'Technician Summary'!$G$8:$BK$372,14,FALSE),"") -> 89 | M17: =IFERROR(VLOOKUP($G17,'Technician Summary'!$G$8:$BK$372,15,FALSE),"") -> 3 | N17: 0.0337 | O17: =IFERROR(VLOOKUP($G17,'Technician Summary'!$G$7:$BK$372,17,FALSE),"") -> 40 | P17: =IFERROR(VLOOKUP($G17,'Technician Summary'!$G$7:$BK$372,18,FALSE),"") -> 2 | Q17: 0.05 | R17: =IFERROR(VLOOKUP($G17,'Technician Summary'!$G$7:$BK$372,20,FALSE),"") -> 49 | S17: =IFERROR(VLOOKUP($G17,'Technician Summary'!$G$7:$BK$372,21,FALSE),"") -> 1 | T17: 0.0204 | U17: =IF(G17="","",COUNTIFS('StrataSync Data'!$AB:$AB,$G17,'StrataSync Data'!$G:$G,"Closed")) -> 81 | V17: =IF($G17="","",COUNTIFS('StrataSync Data'!$AB:$AB,$G17,'StrataSync Data'!$H:$H,"Yes",'StrataSync Data'!$G:$G,"Closed")) -> 78 | W17: 0.963 | X17: =IFERROR(IF($G$7="","",COUNTIFS('StrataSync Data'!$AB:$AB,$G17,'StrataSync Data'!$I:$I,"Incomplete",'StrataSync Data'!$H:$H,"Yes",'StrataSync Data'!$G:$G,"Closed"))+IF($G17="","",COUNTIFS('StrataSync Data'!$AB:$AB,$G17,'StrataSync Data'!$I:$I,"Fail",'StrataSync Data'!$H:$H,"Yes",'StrataSync Data'!$G:$G,"Closed")),"") -> 0 | Y17: 1 | AA17: =IFERROR(SUM(Z17/#REF!),"") ->  | AB17: =IFERROR(VLOOKUP($G17,'Technician Summary'!$G$8:$BK$372,7,FALSE),"") -> 51 | AC17: =IFERROR(VLOOKUP($G17,'Technician Summary'!$G$8:$BK$372,8,FALSE),"") -> 2 | AD17: 0.9608 | AE17: =IFERROR(VLOOKUP($G17,'Technician Summary'!$G$8:$BK$372,34,FALSE),"") -> 33 | AF17: =IFERROR(VLOOKUP($G17,'Technician Summary'!$G$8:$BK$372,35,FALSE),"") -> 3 | AG17: 0.9091 | AH17: =IFERROR(VLOOKUP($G17,'Technician Summary'!$G$8:$BK$372,37,FALSE),"") -> 95 | AI17: =IFERROR(VLOOKUP($G17,'Technician Summary'!$G$8:$BK$372,38,FALSE),"") -> 86 | AJ17: 0.9053 | AK17: =IFERROR(VLOOKUP($G17,'Technician Summary'!$G$8:$BK$372,27,FALSE),"") -> 0 | AL17: =IFERROR(VLOOKUP($G17,'Technician Summary'!$G$8:$BK$372,68,FALSE),"") -> 
B18: Baton Rouge | F18: Courtney Mann | G18: 74521 | H18: 7.5 | I18: =IFERROR(VLOOKUP($G18,'Technician Summary'!$G$3:$BB$372,2,FALSE),"") -> 5 | J18: =IFERROR(VLOOKUP($G18,'Technician Summary'!$G$8:$BN$372,60,FALSE),"") -> 0 | K18: 1 | L18: =IFERROR(VLOOKUP($G18,'Technician Summary'!$G$8:$BK$372,14,FALSE),"") -> 117 | M18: =IFERROR(VLOOKUP($G18,'Technician Summary'!$G$8:$BK$372,15,FALSE),"") -> 5 | N18: 0.0427 | O18: =IFERROR(VLOOKUP($G18,'Technician Summary'!$G$7:$BK$372,17,FALSE),"") -> 67 | P18: =IFERROR(VLOOKUP($G18,'Technician Summary'!$G$7:$BK$372,18,FALSE),"") -> 1 | Q18: 0.0149 | R18: =IFERROR(VLOOKUP($G18,'Technician Summary'!$G$7:$BK$372,20,FALSE),"") -> 50 | S18: =IFERROR(VLOOKUP($G18,'Technician Summary'!$G$7:$BK$372,21,FALSE),"") -> 4 | T18: 0.08 | U18: =IF(G18="","",COUNTIFS('StrataSync Data'!$AB:$AB,$G18,'StrataSync Data'!$G:$G,"Closed")) -> 96 | V18: =IF($G18="","",COUNTIFS('StrataSync Data'!$AB:$AB,$G18,'StrataSync Data'!$H:$H,"Yes",'StrataSync Data'!$G:$G,"Closed")) -> 96 | W18: 1 | X18: =IFERROR(IF($G$7="","",COUNTIFS('StrataSync Data'!$AB:$AB,$G18,'StrataSync Data'!$I:$I,"Incomplete",'StrataSync Data'!$H:$H,"Yes",'StrataSync Data'!$G:$G,"Closed"))+IF($G18="","",COUNTIFS('StrataSync Data'!$AB:$AB,$G18,'StrataSync Data'!$I:$I,"Fail",'StrataSync Data'!$H:$H,"Yes",'StrataSync Data'!$G:$G,"Closed")),"") -> 10 | Y18: 0.8958 | AA18: =IFERROR(SUM(Z18/#REF!),"") ->  | AB18: =IFERROR(VLOOKUP($G18,'Technician Summary'!$G$8:$BK$372,7,FALSE),"") -> 62 | AC18: =IFERROR(VLOOKUP($G18,'Technician Summary'!$G$8:$BK$372,8,FALSE),"") -> 3 | AD18: 0.9516 | AE18: =IFERROR(VLOOKUP($G18,'Technician Summary'!$G$8:$BK$372,34,FALSE),"") -> 46 | AF18: =IFERROR(VLOOKUP($G18,'Technician Summary'!$G$8:$BK$372,35,FALSE),"") -> 1 | AG18: 0.9783 | AH18: =IFERROR(VLOOKUP($G18,'Technician Summary'!$G$8:$BK$372,37,FALSE),"") -> 149 | AI18: =IFERROR(VLOOKUP($G18,'Technician Summary'!$G$8:$BK$372,38,FALSE),"") -> 115 | AJ18: 0.7718 | AK18: =IFERROR(VLOOKUP($G18,'Technician Summary'!$G$8:$BK$372,27,FALSE),"") -> 0 | AL18: =IFERROR(VLOOKUP($G18,'Technician Summary'!$G$8:$BK$372,68,FALSE),"") -> 
B19: Roanoke | F19: Dustin Stover | G19: 24690 | H19: 7.5 | I19: =IFERROR(VLOOKUP($G19,'Technician Summary'!$G$3:$BB$372,2,FALSE),"") -> 1 | J19: =IFERROR(VLOOKUP($G19,'Technician Summary'!$G$8:$BN$372,60,FALSE),"") -> 0 | K19: 1 | L19: =IFERROR(VLOOKUP($G19,'Technician Summary'!$G$8:$BK$372,14,FALSE),"") -> 42 | M19: =IFERROR(VLOOKUP($G19,'Technician Summary'!$G$8:$BK$372,15,FALSE),"") -> 0 | N19: 0 | O19: =IFERROR(VLOOKUP($G19,'Technician Summary'!$G$7:$BK$372,17,FALSE),"") -> 21 | P19: =IFERROR(VLOOKUP($G19,'Technician Summary'!$G$7:$BK$372,18,FALSE),"") -> 0 | Q19: 0 | R19: =IFERROR(VLOOKUP($G19,'Technician Summary'!$G$7:$BK$372,20,FALSE),"") -> 21 | S19: =IFERROR(VLOOKUP($G19,'Technician Summary'!$G$7:$BK$372,21,FALSE),"") -> 0 | T19: 0 | U19: =IF(G19="","",COUNTIFS('StrataSync Data'!$AB:$AB,$G19,'StrataSync Data'!$G:$G,"Closed")) -> 38 | V19: =IF($G19="","",COUNTIFS('StrataSync Data'!$AB:$AB,$G19,'StrataSync Data'!$H:$H,"Yes",'StrataSync Data'!$G:$G,"Closed")) -> 35 | W19: 0.9211 | X19: =IFERROR(IF($G$7="","",COUNTIFS('StrataSync Data'!$AB:$AB,$G19,'StrataSync Data'!$I:$I,"Incomplete",'StrataSync Data'!$H:$H,"Yes",'StrataSync Data'!$G:$G,"Closed"))+IF($G19="","",COUNTIFS('StrataSync Data'!$AB:$AB,$G19,'StrataSync Data'!$I:$I,"Fail",'StrataSync Data'!$H:$H,"Yes",'StrataSync Data'!$G:$G,"Closed")),"") -> 1 | Y19: 0.9714 | AA19: =IFERROR(SUM(Z19/#REF!),"") ->  | AB19: =IFERROR(VLOOKUP($G19,'Technician Summary'!$G$8:$BK$372,7,FALSE),"") -> 18 | AC19: =IFERROR(VLOOKUP($G19,'Technician Summary'!$G$8:$BK$372,8,FALSE),"") -> 0 | AD19: 1 | AE19: =IFERROR(VLOOKUP($G19,'Technician Summary'!$G$8:$BK$372,34,FALSE),"") -> 13 | AF19: =IFERROR(VLOOKUP($G19,'Technician Summary'!$G$8:$BK$372,35,FALSE),"") -> 3 | AG19: 0.7692 | AH19: =IFERROR(VLOOKUP($G19,'Technician Summary'!$G$8:$BK$372,37,FALSE),"") -> 41 | AI19: =IFERROR(VLOOKUP($G19,'Technician Summary'!$G$8:$BK$372,38,FALSE),"") -> 37 | AJ19: 0.9024 | AK19: =IFERROR(VLOOKUP($G19,'Technician Summary'!$G$8:$BK$372,27,FALSE),"") -> 0 | AL19: =IFERROR(VLOOKUP($G19,'Technician Summary'!$G$8:$BK$372,68,FALSE),"") -> 
B20: Gulf Coast | F20: beveriell Delorme | G20: 75156 | H20: 5 | I20: =IFERROR(VLOOKUP($G20,'Technician Summary'!$G$3:$BB$372,2,FALSE),"") -> 5 | J20: =IFERROR(VLOOKUP($G20,'Technician Summary'!$G$8:$BN$372,60,FALSE),"") -> 3 | K20: 0.4 | L20: =IFERROR(VLOOKUP($G20,'Technician Summary'!$G$8:$BK$372,14,FALSE),"") -> 108 | M20: =IFERROR(VLOOKUP($G20,'Technician Summary'!$G$8:$BK$372,15,FALSE),"") -> 2 | N20: 0.0185 | O20: =IFERROR(VLOOKUP($G20,'Technician Summary'!$G$7:$BK$372,17,FALSE),"") -> 55 | P20: =IFERROR(VLOOKUP($G20,'Technician Summary'!$G$7:$BK$372,18,FALSE),"") -> 1 | Q20: 0.0182 | R20: =IFERROR(VLOOKUP($G20,'Technician Summary'!$G$7:$BK$372,20,FALSE),"") -> 53 | S20: =IFERROR(VLOOKUP($G20,'Technician Summary'!$G$7:$BK$372,21,FALSE),"") -> 1 | T20: 0.0189 | U20: =IF(G20="","",COUNTIFS('StrataSync Data'!$AB:$AB,$G20,'StrataSync Data'!$G:$G,"Closed")) -> 90 | V20: =IF($G20="","",COUNTIFS('StrataSync Data'!$AB:$AB,$G20,'StrataSync Data'!$H:$H,"Yes",'StrataSync Data'!$G:$G,"Closed")) -> 90 | W20: 1 | X20: =IFERROR(IF($G$7="","",COUNTIFS('StrataSync Data'!$AB:$AB,$G20,'StrataSync Data'!$I:$I,"Incomplete",'StrataSync Data'!$H:$H,"Yes",'StrataSync Data'!$G:$G,"Closed"))+IF($G20="","",COUNTIFS('StrataSync Data'!$AB:$AB,$G20,'StrataSync Data'!$I:$I,"Fail",'StrataSync Data'!$H:$H,"Yes",'StrataSync Data'!$G:$G,"Closed")),"") -> 20 | Y20: 0.7778 | AA20: =IFERROR(SUM(Z20/#REF!),"") ->  | AB20: =IFERROR(VLOOKUP($G20,'Technician Summary'!$G$8:$BK$372,7,FALSE),"") -> 54 | AC20: =IFERROR(VLOOKUP($G20,'Technician Summary'!$G$8:$BK$372,8,FALSE),"") -> 1 | AD20: 0.9815 | AE20: =IFERROR(VLOOKUP($G20,'Technician Summary'!$G$8:$BK$372,34,FALSE),"") -> 43 | AF20: =IFERROR(VLOOKUP($G20,'Technician Summary'!$G$8:$BK$372,35,FALSE),"") -> 4 | AG20: 0.907 | AH20: =IFERROR(VLOOKUP($G20,'Technician Summary'!$G$8:$BK$372,37,FALSE),"") -> 122 | AI20: =IFERROR(VLOOKUP($G20,'Technician Summary'!$G$8:$BK$372,38,FALSE),"") -> 108 | AJ20: 0.8852 | AK20: =IFERROR(VLOOKUP($G20,'Technician Summary'!$G$8:$BK$372,27,FALSE),"") -> 0 | AL20: =IFERROR(VLOOKUP($G20,'Technician Summary'!$G$8:$BK$372,68,FALSE),"") -> 
B21: Oklahoma City | F21: Deandre McCants | G21: 90429 | H21: 7.5 | I21: =IFERROR(VLOOKUP($G21,'Technician Summary'!$G$3:$BB$372,2,FALSE),"") -> 1 | J21: =IFERROR(VLOOKUP($G21,'Technician Summary'!$G$8:$BN$372,60,FALSE),"") -> 0 | K21: 1 | L21: =IFERROR(VLOOKUP($G21,'Technician Summary'!$G$8:$BK$372,14,FALSE),"") -> 19 | M21: =IFERROR(VLOOKUP($G21,'Technician Summary'!$G$8:$BK$372,15,FALSE),"") -> 0 | N21: 0 | O21: =IFERROR(VLOOKUP($G21,'Technician Summary'!$G$7:$BK$372,17,FALSE),"") -> 18 | P21: =IFERROR(VLOOKUP($G21,'Technician Summary'!$G$7:$BK$372,18,FALSE),"") -> 0 | Q21: 0 | R21: =IFERROR(VLOOKUP($G21,'Technician Summary'!$G$7:$BK$372,20,FALSE),"") -> 1 | S21: =IFERROR(VLOOKUP($G21,'Technician Summary'!$G$7:$BK$372,21,FALSE),"") -> 0 | T21: 0 | U21: =IF(G21="","",COUNTIFS('StrataSync Data'!$AB:$AB,$G21,'StrataSync Data'!$G:$G,"Closed")) -> 6 | V21: =IF($G21="","",COUNTIFS('StrataSync Data'!$AB:$AB,$G21,'StrataSync Data'!$H:$H,"Yes",'StrataSync Data'!$G:$G,"Closed")) -> 6 | W21: 1 | X21: =IFERROR(IF($G$7="","",COUNTIFS('StrataSync Data'!$AB:$AB,$G21,'StrataSync Data'!$I:$I,"Incomplete",'StrataSync Data'!$H:$H,"Yes",'StrataSync Data'!$G:$G,"Closed"))+IF($G21="","",COUNTIFS('StrataSync Data'!$AB:$AB,$G21,'StrataSync Data'!$I:$I,"Fail",'StrataSync Data'!$H:$H,"Yes",'StrataSync Data'!$G:$G,"Closed")),"") -> 0 | Y21: 1 | AA21: =IFERROR(SUM(Z21/#REF!),"") ->  | AB21: =IFERROR(VLOOKUP($G21,'Technician Summary'!$G$8:$BK$372,7,FALSE),"") -> 5 | AC21: =IFERROR(VLOOKUP($G21,'Technician Summary'!$G$8:$BK$372,8,FALSE),"") -> 0 | AD21: 1 | AE21: =IFERROR(VLOOKUP($G21,'Technician Summary'!$G$8:$BK$372,34,FALSE),"") -> 7 | AF21: =IFERROR(VLOOKUP($G21,'Technician Summary'!$G$8:$BK$372,35,FALSE),"") -> 3 | AG21: 0.5714 | AH21: =IFERROR(VLOOKUP($G21,'Technician Summary'!$G$8:$BK$372,37,FALSE),"") -> 30 | AI21: =IFERROR(VLOOKUP($G21,'Technician Summary'!$G$8:$BK$372,38,FALSE),"") -> 19 | AJ21: 0.6333 | AK21: =IFERROR(VLOOKUP($G21,'Technician Summary'!$G$8:$BK$372,27,FALSE),"") -> 0 | AL21: =IFERROR(VLOOKUP($G21,'Technician Summary'!$G$8:$BK$372,68,FALSE),"") -> 
B22: Tech Rankings | F22: Keary Jones | G22: 39168 | I22: =IFERROR(VLOOKUP($G22,'Technician Summary'!$G$3:$BB$372,2,FALSE),"") ->  | J22: =IFERROR(VLOOKUP($G22,'Technician Summary'!$G$8:$BN$372,60,FALSE),"") ->  | L22: =IFERROR(VLOOKUP($G22,'Technician Summary'!$G$8:$BK$372,14,FALSE),"") ->  | M22: =IFERROR(VLOOKUP($G22,'Technician Summary'!$G$8:$BK$372,15,FALSE),"") ->  | O22: =IFERROR(VLOOKUP($G22,'Technician Summary'!$G$7:$BK$372,17,FALSE),"") ->  | P22: =IFERROR(VLOOKUP($G22,'Technician Summary'!$G$7:$BK$372,18,FALSE),"") ->  | R22: =IFERROR(VLOOKUP($G22,'Technician Summary'!$G$7:$BK$372,20,FALSE),"") ->  | S22: =IFERROR(VLOOKUP($G22,'Technician Summary'!$G$7:$BK$372,21,FALSE),"") ->  | U22: =IF(G22="","",COUNTIFS('StrataSync Data'!$AB:$AB,$G22,'StrataSync Data'!$G:$G,"Closed")) -> 0 | V22: =IF($G22="","",COUNTIFS('StrataSync Data'!$AB:$AB,$G22,'StrataSync Data'!$H:$H,"Yes",'StrataSync Data'!$G:$G,"Closed")) -> 0 | X22: =IFERROR(IF($G$7="","",COUNTIFS('StrataSync Data'!$AB:$AB,$G22,'StrataSync Data'!$I:$I,"Incomplete",'StrataSync Data'!$H:$H,"Yes",'StrataSync Data'!$G:$G,"Closed"))+IF($G22="","",COUNTIFS('StrataSync Data'!$AB:$AB,$G22,'StrataSync Data'!$I:$I,"Fail",'StrataSync Data'!$H:$H,"Yes",'StrataSync Data'!$G:$G,"Closed")),"") -> 0 | AA22: =IFERROR(SUM(Z22/#REF!),"") ->  | AB22: =IFERROR(VLOOKUP($G22,'Technician Summary'!$G$8:$BK$372,7,FALSE),"") ->  | AC22: =IFERROR(VLOOKUP($G22,'Technician Summary'!$G$8:$BK$372,8,FALSE),"") ->  | AE22: =IFERROR(VLOOKUP($G22,'Technician Summary'!$G$8:$BK$372,34,FALSE),"") ->  | AF22: =IFERROR(VLOOKUP($G22,'Technician Summary'!$G$8:$BK$372,35,FALSE),"") ->  | AH22: =IFERROR(VLOOKUP($G22,'Technician Summary'!$G$8:$BK$372,37,FALSE),"") ->  | AI22: =IFERROR(VLOOKUP($G22,'Technician Summary'!$G$8:$BK$372,38,FALSE),"") ->  | AK22: =IFERROR(VLOOKUP($G22,'Technician Summary'!$G$8:$BK$372,27,FALSE),"") ->  | AL22: =IFERROR(VLOOKUP($G22,'Technician Summary'!$G$8:$BK$372,68,FALSE),"") -> 
F23: Robert Yerby | G23: 25399 | I23: =IFERROR(VLOOKUP($G23,'Technician Summary'!$G$3:$BB$372,2,FALSE),"") -> 2 | J23: =IFERROR(VLOOKUP($G23,'Technician Summary'!$G$8:$BN$372,60,FALSE),"") -> 1 | K23: 0.5 | L23: =IFERROR(VLOOKUP($G23,'Technician Summary'!$G$8:$BK$372,14,FALSE),"") -> 28 | M23: =IFERROR(VLOOKUP($G23,'Technician Summary'!$G$8:$BK$372,15,FALSE),"") -> 1 | N23: 0.0357 | O23: =IFERROR(VLOOKUP($G23,'Technician Summary'!$G$7:$BK$372,17,FALSE),"") -> 24 | P23: =IFERROR(VLOOKUP($G23,'Technician Summary'!$G$7:$BK$372,18,FALSE),"") -> 0 | Q23: 0 | R23: =IFERROR(VLOOKUP($G23,'Technician Summary'!$G$7:$BK$372,20,FALSE),"") -> 4 | S23: =IFERROR(VLOOKUP($G23,'Technician Summary'!$G$7:$BK$372,21,FALSE),"") -> 1 | T23: 0.25 | U23: =IF(G23="","",COUNTIFS('StrataSync Data'!$AB:$AB,$G23,'StrataSync Data'!$G:$G,"Closed")) -> 0 | V23: =IF($G23="","",COUNTIFS('StrataSync Data'!$AB:$AB,$G23,'StrataSync Data'!$H:$H,"Yes",'StrataSync Data'!$G:$G,"Closed")) -> 0 | X23: =IFERROR(IF($G$7="","",COUNTIFS('StrataSync Data'!$AB:$AB,$G23,'StrataSync Data'!$I:$I,"Incomplete",'StrataSync Data'!$H:$H,"Yes",'StrataSync Data'!$G:$G,"Closed"))+IF($G23="","",COUNTIFS('StrataSync Data'!$AB:$AB,$G23,'StrataSync Data'!$I:$I,"Fail",'StrataSync Data'!$H:$H,"Yes",'StrataSync Data'!$G:$G,"Closed")),"") -> 0 | AA23: =IFERROR(SUM(Z23/#REF!),"") ->  | AB23: =IFERROR(VLOOKUP($G23,'Technician Summary'!$G$8:$BK$372,7,FALSE),"") -> 24 | AC23: =IFERROR(VLOOKUP($G23,'Technician Summary'!$G$8:$BK$372,8,FALSE),"") -> 0 | AD23: 1 | AE23: =IFERROR(VLOOKUP($G23,'Technician Summary'!$G$8:$BK$372,34,FALSE),"") -> 22 | AF23: =IFERROR(VLOOKUP($G23,'Technician Summary'!$G$8:$BK$372,35,FALSE),"") -> 10 | AG23: 0.5455 | AH23: =IFERROR(VLOOKUP($G23,'Technician Summary'!$G$8:$BK$372,37,FALSE),"") -> 33 | AI23: =IFERROR(VLOOKUP($G23,'Technician Summary'!$G$8:$BK$372,38,FALSE),"") -> 28 | AJ23: 0.8485 | AK23: =IFERROR(VLOOKUP($G23,'Technician Summary'!$G$8:$BK$372,27,FALSE),"") -> 0 | AL23: =IFERROR(VLOOKUP($G23,'Technician Summary'!$G$8:$BK$372,68,FALSE),"") -> 
B24: Raw Data | F24: Rakeem Smith | G24: 82818 | I24: =IFERROR(VLOOKUP($G24,'Technician Summary'!$G$3:$BB$372,2,FALSE),"") ->  | J24: =IFERROR(VLOOKUP($G24,'Technician Summary'!$G$8:$BN$372,60,FALSE),"") ->  | L24: =IFERROR(VLOOKUP($G24,'Technician Summary'!$G$8:$BK$372,14,FALSE),"") ->  | M24: =IFERROR(VLOOKUP($G24,'Technician Summary'!$G$8:$BK$372,15,FALSE),"") ->  | O24: =IFERROR(VLOOKUP($G24,'Technician Summary'!$G$7:$BK$372,17,FALSE),"") ->  | P24: =IFERROR(VLOOKUP($G24,'Technician Summary'!$G$7:$BK$372,18,FALSE),"") ->  | R24: =IFERROR(VLOOKUP($G24,'Technician Summary'!$G$7:$BK$372,20,FALSE),"") ->  | S24: =IFERROR(VLOOKUP($G24,'Technician Summary'!$G$7:$BK$372,21,FALSE),"") ->  | U24: =IF(G24="","",COUNTIFS('StrataSync Data'!$AB:$AB,$G24,'StrataSync Data'!$G:$G,"Closed")) -> 0 | V24: =IF($G24="","",COUNTIFS('StrataSync Data'!$AB:$AB,$G24,'StrataSync Data'!$H:$H,"Yes",'StrataSync Data'!$G:$G,"Closed")) -> 0 | X24: =IFERROR(IF($G$7="","",COUNTIFS('StrataSync Data'!$AB:$AB,$G24,'StrataSync Data'!$I:$I,"Incomplete",'StrataSync Data'!$H:$H,"Yes",'StrataSync Data'!$G:$G,"Closed"))+IF($G24="","",COUNTIFS('StrataSync Data'!$AB:$AB,$G24,'StrataSync Data'!$I:$I,"Fail",'StrataSync Data'!$H:$H,"Yes",'StrataSync Data'!$G:$G,"Closed")),"") -> 0 | AA24: =IFERROR(SUM(Z24/#REF!),"") ->  | AB24: =IFERROR(VLOOKUP($G24,'Technician Summary'!$G$8:$BK$372,7,FALSE),"") ->  | AC24: =IFERROR(VLOOKUP($G24,'Technician Summary'!$G$8:$BK$372,8,FALSE),"") ->  | AE24: =IFERROR(VLOOKUP($G24,'Technician Summary'!$G$8:$BK$372,34,FALSE),"") ->  | AF24: =IFERROR(VLOOKUP($G24,'Technician Summary'!$G$8:$BK$372,35,FALSE),"") ->  | AH24: =IFERROR(VLOOKUP($G24,'Technician Summary'!$G$8:$BK$372,37,FALSE),"") ->  | AI24: =IFERROR(VLOOKUP($G24,'Technician Summary'!$G$8:$BK$372,38,FALSE),"") ->  | AK24: =IFERROR(VLOOKUP($G24,'Technician Summary'!$G$8:$BK$372,27,FALSE),"") ->  | AL24: =IFERROR(VLOOKUP($G24,'Technician Summary'!$G$8:$BK$372,68,FALSE),"") -> 
F25: Dvonta Williams | G25: 81517 | I25: =IFERROR(VLOOKUP($G25,'Technician Summary'!$G$3:$BB$372,2,FALSE),"") -> 2 | J25: =IFERROR(VLOOKUP($G25,'Technician Summary'!$G$8:$BN$372,60,FALSE),"") -> 2 | K25: 0 | L25: =IFERROR(VLOOKUP($G25,'Technician Summary'!$G$8:$BK$372,14,FALSE),"") -> 27 | M25: =IFERROR(VLOOKUP($G25,'Technician Summary'!$G$8:$BK$372,15,FALSE),"") -> 2 | N25: 0.0741 | O25: =IFERROR(VLOOKUP($G25,'Technician Summary'!$G$7:$BK$372,17,FALSE),"") -> 10 | P25: =IFERROR(VLOOKUP($G25,'Technician Summary'!$G$7:$BK$372,18,FALSE),"") -> 1 | Q25: 0.1 | R25: =IFERROR(VLOOKUP($G25,'Technician Summary'!$G$7:$BK$372,20,FALSE),"") -> 17 | S25: =IFERROR(VLOOKUP($G25,'Technician Summary'!$G$7:$BK$372,21,FALSE),"") -> 1 | T25: 0.0588 | U25: =IF(G25="","",COUNTIFS('StrataSync Data'!$AB:$AB,$G25,'StrataSync Data'!$G:$G,"Closed")) -> 0 | V25: =IF($G25="","",COUNTIFS('StrataSync Data'!$AB:$AB,$G25,'StrataSync Data'!$H:$H,"Yes",'StrataSync Data'!$G:$G,"Closed")) -> 0 | X25: =IFERROR(IF($G$7="","",COUNTIFS('StrataSync Data'!$AB:$AB,$G25,'StrataSync Data'!$I:$I,"Incomplete",'StrataSync Data'!$H:$H,"Yes",'StrataSync Data'!$G:$G,"Closed"))+IF($G25="","",COUNTIFS('StrataSync Data'!$AB:$AB,$G25,'StrataSync Data'!$I:$I,"Fail",'StrataSync Data'!$H:$H,"Yes",'StrataSync Data'!$G:$G,"Closed")),"") -> 0 | AA25: =IFERROR(SUM(Z25/#REF!),"") ->  | AB25: =IFERROR(VLOOKUP($G25,'Technician Summary'!$G$8:$BK$372,7,FALSE),"") -> 17 | AC25: =IFERROR(VLOOKUP($G25,'Technician Summary'!$G$8:$BK$372,8,FALSE),"") -> 1 | AD25: 0.9412 | AE25: =IFERROR(VLOOKUP($G25,'Technician Summary'!$G$8:$BK$372,34,FALSE),"") -> 9 | AF25: =IFERROR(VLOOKUP($G25,'Technician Summary'!$G$8:$BK$372,35,FALSE),"") -> 0 | AG25: 1 | AH25: =IFERROR(VLOOKUP($G25,'Technician Summary'!$G$8:$BK$372,37,FALSE),"") -> 29 | AI25: =IFERROR(VLOOKUP($G25,'Technician Summary'!$G$8:$BK$372,38,FALSE),"") -> 27 | AJ25: 0.931 | AK25: =IFERROR(VLOOKUP($G25,'Technician Summary'!$G$8:$BK$372,27,FALSE),"") -> 0 | AL25: =IFERROR(VLOOKUP($G25,'Technician Summary'!$G$8:$BK$372,68,FALSE),"") -> 
I26: =IFERROR(VLOOKUP($G26,'Technician Summary'!$G$3:$BB$372,2,FALSE),"") ->  | J26: =IFERROR(VLOOKUP($G26,'Technician Summary'!$G$8:$BN$372,60,FALSE),"") ->  | L26: =IFERROR(VLOOKUP($G26,'Technician Summary'!$G$8:$BK$372,14,FALSE),"") ->  | M26: =IFERROR(VLOOKUP($G26,'Technician Summary'!$G$8:$BK$372,15,FALSE),"") ->  | O26: =IFERROR(VLOOKUP($G26,'Technician Summary'!$G$7:$BK$372,17,FALSE),"") ->  | P26: =IFERROR(VLOOKUP($G26,'Technician Summary'!$G$7:$BK$372,18,FALSE),"") ->  | R26: =IFERROR(VLOOKUP($G26,'Technician Summary'!$G$7:$BK$372,20,FALSE),"") ->  | S26: =IFERROR(VLOOKUP($G26,'Technician Summary'!$G$7:$BK$372,21,FALSE),"") ->  | U26: =IF(G26="","",COUNTIFS('StrataSync Data'!$AB:$AB,$G26,'StrataSync Data'!$G:$G,"Closed")) ->  | V26: =IF($G26="","",COUNTIFS('StrataSync Data'!$AB:$AB,$G26,'StrataSync Data'!$H:$H,"Yes",'StrataSync Data'!$G:$G,"Closed")) ->  | X26: =IFERROR(IF($G$7="","",COUNTIFS('StrataSync Data'!$AB:$AB,$G26,'StrataSync Data'!$I:$I,"Incomplete",'StrataSync Data'!$H:$H,"Yes",'StrataSync Data'!$G:$G,"Closed"))+IF($G26="","",COUNTIFS('StrataSync Data'!$AB:$AB,$G26,'StrataSync Data'!$I:$I,"Fail",'StrataSync Data'!$H:$H,"Yes",'StrataSync Data'!$G:$G,"Closed")),"") ->  | AA26: =IFERROR(SUM(Z26/#REF!),"") ->  | AB26: =IFERROR(VLOOKUP($G26,'Technician Summary'!$G$8:$BK$372,7,FALSE),"") ->  | AC26: =IFERROR(VLOOKUP($G26,'Technician Summary'!$G$8:$BK$372,8,FALSE),"") ->  | AE26: =IFERROR(VLOOKUP($G26,'Technician Summary'!$G$8:$BK$372,34,FALSE),"") ->  | AF26: =IFERROR(VLOOKUP($G26,'Technician Summary'!$G$8:$BK$372,35,FALSE),"") ->  | AH26: =IFERROR(VLOOKUP($G26,'Technician Summary'!$G$8:$BK$372,37,FALSE),"") ->  | AI26: =IFERROR(VLOOKUP($G26,'Technician Summary'!$G$8:$BK$372,38,FALSE),"") ->  | AK26: =IFERROR(VLOOKUP($G26,'Technician Summary'!$G$8:$BK$372,27,FALSE),"") ->  | AL26: =IFERROR(VLOOKUP($G26,'Technician Summary'!$G$8:$BK$372,68,FALSE),"") -> 
I27: =IFERROR(VLOOKUP($G27,'Technician Summary'!$G$3:$BB$372,2,FALSE),"") ->  | J27: =IFERROR(VLOOKUP($G27,'Technician Summary'!$G$8:$BN$372,60,FALSE),"") ->  | L27: =IFERROR(VLOOKUP($G27,'Technician Summary'!$G$8:$BK$372,14,FALSE),"") ->  | M27: =IFERROR(VLOOKUP($G27,'Technician Summary'!$G$8:$BK$372,15,FALSE),"") ->  | O27: =IFERROR(VLOOKUP($G27,'Technician Summary'!$G$7:$BK$372,17,FALSE),"") ->  | P27: =IFERROR(VLOOKUP($G27,'Technician Summary'!$G$7:$BK$372,18,FALSE),"") ->  | R27: =IFERROR(VLOOKUP($G27,'Technician Summary'!$G$7:$BK$372,20,FALSE),"") ->  | S27: =IFERROR(VLOOKUP($G27,'Technician Summary'!$G$7:$BK$372,21,FALSE),"") ->  | U27: =IF(G27="","",COUNTIFS('StrataSync Data'!$AB:$AB,$G27,'StrataSync Data'!$G:$G,"Closed")) ->  | V27: =IF($G27="","",COUNTIFS('StrataSync Data'!$AB:$AB,$G27,'StrataSync Data'!$H:$H,"Yes",'StrataSync Data'!$G:$G,"Closed")) ->  | X27: =IFERROR(IF($G$7="","",COUNTIFS('StrataSync Data'!$AB:$AB,$G27,'StrataSync Data'!$I:$I,"Incomplete",'StrataSync Data'!$H:$H,"Yes",'StrataSync Data'!$G:$G,"Closed"))+IF($G27="","",COUNTIFS('StrataSync Data'!$AB:$AB,$G27,'StrataSync Data'!$I:$I,"Fail",'StrataSync Data'!$H:$H,"Yes",'StrataSync Data'!$G:$G,"Closed")),"") ->  | AA27: =IFERROR(SUM(Z27/#REF!),"") ->  | AB27: =IFERROR(VLOOKUP($G27,'Technician Summary'!$G$8:$BK$372,7,FALSE),"") ->  | AC27: =IFERROR(VLOOKUP($G27,'Technician Summary'!$G$8:$BK$372,8,FALSE),"") ->  | AE27: =IFERROR(VLOOKUP($G27,'Technician Summary'!$G$8:$BK$372,34,FALSE),"") ->  | AF27: =IFERROR(VLOOKUP($G27,'Technician Summary'!$G$8:$BK$372,35,FALSE),"") ->  | AH27: =IFERROR(VLOOKUP($G27,'Technician Summary'!$G$8:$BK$372,37,FALSE),"") ->  | AI27: =IFERROR(VLOOKUP($G27,'Technician Summary'!$G$8:$BK$372,38,FALSE),"") ->  | AK27: =IFERROR(VLOOKUP($G27,'Technician Summary'!$G$8:$BK$372,27,FALSE),"") ->  | AL27: =IFERROR(VLOOKUP($G27,'Technician Summary'!$G$8:$BK$372,68,FALSE),"") -> 
I28: =IFERROR(VLOOKUP($G28,'Technician Summary'!$G$3:$BB$372,2,FALSE),"") ->  | J28: =IFERROR(VLOOKUP($G28,'Technician Summary'!$G$8:$BN$372,60,FALSE),"") ->  | L28: =IFERROR(VLOOKUP($G28,'Technician Summary'!$G$8:$BK$372,14,FALSE),"") ->  | M28: =IFERROR(VLOOKUP($G28,'Technician Summary'!$G$8:$BK$372,15,FALSE),"") ->  | O28: =IFERROR(VLOOKUP($G28,'Technician Summary'!$G$7:$BK$372,17,FALSE),"") ->  | P28: =IFERROR(VLOOKUP($G28,'Technician Summary'!$G$7:$BK$372,18,FALSE),"") ->  | R28: =IFERROR(VLOOKUP($G28,'Technician Summary'!$G$7:$BK$372,20,FALSE),"") ->  | S28: =IFERROR(VLOOKUP($G28,'Technician Summary'!$G$7:$BK$372,21,FALSE),"") ->  | U28: =IF(G28="","",COUNTIFS('StrataSync Data'!$AB:$AB,$G28,'StrataSync Data'!$G:$G,"Closed")) ->  | V28: =IF($G28="","",COUNTIFS('StrataSync Data'!$AB:$AB,$G28,'StrataSync Data'!$H:$H,"Yes",'StrataSync Data'!$G:$G,"Closed")) ->  | X28: =IFERROR(IF($G$7="","",COUNTIFS('StrataSync Data'!$AB:$AB,$G28,'StrataSync Data'!$I:$I,"Incomplete",'StrataSync Data'!$H:$H,"Yes",'StrataSync Data'!$G:$G,"Closed"))+IF($G28="","",COUNTIFS('StrataSync Data'!$AB:$AB,$G28,'StrataSync Data'!$I:$I,"Fail",'StrataSync Data'!$H:$H,"Yes",'StrataSync Data'!$G:$G,"Closed")),"") ->  | AA28: =IFERROR(SUM(Z28/#REF!),"") ->  | AB28: =IFERROR(VLOOKUP($G28,'Technician Summary'!$G$8:$BK$372,7,FALSE),"") ->  | AC28: =IFERROR(VLOOKUP($G28,'Technician Summary'!$G$8:$BK$372,8,FALSE),"") ->  | AE28: =IFERROR(VLOOKUP($G28,'Technician Summary'!$G$8:$BK$372,34,FALSE),"") ->  | AF28: =IFERROR(VLOOKUP($G28,'Technician Summary'!$G$8:$BK$372,35,FALSE),"") ->  | AH28: =IFERROR(VLOOKUP($G28,'Technician Summary'!$G$8:$BK$372,37,FALSE),"") ->  | AI28: =IFERROR(VLOOKUP($G28,'Technician Summary'!$G$8:$BK$372,38,FALSE),"") ->  | AK28: =IFERROR(VLOOKUP($G28,'Technician Summary'!$G$8:$BK$372,27,FALSE),"") ->  | AL28: =IFERROR(VLOOKUP($G28,'Technician Summary'!$G$8:$BK$372,68,FALSE),"") -> 
I29: =IFERROR(VLOOKUP($G29,'Technician Summary'!$G$3:$BB$372,2,FALSE),"") ->  | J29: =IFERROR(VLOOKUP($G29,'Technician Summary'!$G$8:$BN$372,60,FALSE),"") ->  | L29: =IFERROR(VLOOKUP($G29,'Technician Summary'!$G$8:$BK$372,14,FALSE),"") ->  | M29: =IFERROR(VLOOKUP($G29,'Technician Summary'!$G$8:$BK$372,15,FALSE),"") ->  | O29: =IFERROR(VLOOKUP($G29,'Technician Summary'!$G$7:$BK$372,17,FALSE),"") ->  | P29: =IFERROR(VLOOKUP($G29,'Technician Summary'!$G$7:$BK$372,18,FALSE),"") ->  | R29: =IFERROR(VLOOKUP($G29,'Technician Summary'!$G$7:$BK$372,20,FALSE),"") ->  | S29: =IFERROR(VLOOKUP($G29,'Technician Summary'!$G$7:$BK$372,21,FALSE),"") ->  | U29: =IF(G29="","",COUNTIFS('StrataSync Data'!$AB:$AB,$G29,'StrataSync Data'!$G:$G,"Closed")) ->  | V29: =IF($G29="","",COUNTIFS('StrataSync Data'!$AB:$AB,$G29,'StrataSync Data'!$H:$H,"Yes",'StrataSync Data'!$G:$G,"Closed")) ->  | X29: =IFERROR(IF($G$7="","",COUNTIFS('StrataSync Data'!$AB:$AB,$G29,'StrataSync Data'!$I:$I,"Incomplete",'StrataSync Data'!$H:$H,"Yes",'StrataSync Data'!$G:$G,"Closed"))+IF($G29="","",COUNTIFS('StrataSync Data'!$AB:$AB,$G29,'StrataSync Data'!$I:$I,"Fail",'StrataSync Data'!$H:$H,"Yes",'StrataSync Data'!$G:$G,"Closed")),"") ->  | AA29: =IFERROR(SUM(Z29/#REF!),"") ->  | AB29: =IFERROR(VLOOKUP($G29,'Technician Summary'!$G$8:$BK$372,7,FALSE),"") ->  | AC29: =IFERROR(VLOOKUP($G29,'Technician Summary'!$G$8:$BK$372,8,FALSE),"") ->  | AE29: =IFERROR(VLOOKUP($G29,'Technician Summary'!$G$8:$BK$372,34,FALSE),"") ->  | AF29: =IFERROR(VLOOKUP($G29,'Technician Summary'!$G$8:$BK$372,35,FALSE),"") ->  | AH29: =IFERROR(VLOOKUP($G29,'Technician Summary'!$G$8:$BK$372,37,FALSE),"") ->  | AI29: =IFERROR(VLOOKUP($G29,'Technician Summary'!$G$8:$BK$372,38,FALSE),"") ->  | AK29: =IFERROR(VLOOKUP($G29,'Technician Summary'!$G$8:$BK$372,27,FALSE),"") ->  | AL29: =IFERROR(VLOOKUP($G29,'Technician Summary'!$G$8:$BK$372,68,FALSE),"") -> 
I30: =IFERROR(VLOOKUP($G30,'Technician Summary'!$G$3:$BB$372,2,FALSE),"") ->  | J30: =IFERROR(VLOOKUP($G30,'Technician Summary'!$G$8:$BN$372,60,FALSE),"") ->  | L30: =IFERROR(VLOOKUP($G30,'Technician Summary'!$G$8:$BK$372,14,FALSE),"") ->  | M30: =IFERROR(VLOOKUP($G30,'Technician Summary'!$G$8:$BK$372,15,FALSE),"") ->  | O30: =IFERROR(VLOOKUP($G30,'Technician Summary'!$G$7:$BK$372,17,FALSE),"") ->  | P30: =IFERROR(VLOOKUP($G30,'Technician Summary'!$G$7:$BK$372,18,FALSE),"") ->  | R30: =IFERROR(VLOOKUP($G30,'Technician Summary'!$G$7:$BK$372,20,FALSE),"") ->  | S30: =IFERROR(VLOOKUP($G30,'Technician Summary'!$G$7:$BK$372,21,FALSE),"") ->  | U30: =IF(G30="","",COUNTIFS('StrataSync Data'!$AB:$AB,$G30,'StrataSync Data'!$G:$G,"Closed")) ->  | V30: =IF($G30="","",COUNTIFS('StrataSync Data'!$AB:$AB,$G30,'StrataSync Data'!$H:$H,"Yes",'StrataSync Data'!$G:$G,"Closed")) ->  | X30: =IFERROR(IF($G$7="","",COUNTIFS('StrataSync Data'!$AB:$AB,$G30,'StrataSync Data'!$I:$I,"Incomplete",'StrataSync Data'!$H:$H,"Yes",'StrataSync Data'!$G:$G,"Closed"))+IF($G30="","",COUNTIFS('StrataSync Data'!$AB:$AB,$G30,'StrataSync Data'!$I:$I,"Fail",'StrataSync Data'!$H:$H,"Yes",'StrataSync Data'!$G:$G,"Closed")),"") ->  | AA30: =IFERROR(SUM(Z30/#REF!),"") ->  | AB30: =IFERROR(VLOOKUP($G30,'Technician Summary'!$G$8:$BK$372,7,FALSE),"") ->  | AC30: =IFERROR(VLOOKUP($G30,'Technician Summary'!$G$8:$BK$372,8,FALSE),"") ->  | AE30: =IFERROR(VLOOKUP($G30,'Technician Summary'!$G$8:$BK$372,34,FALSE),"") ->  | AF30: =IFERROR(VLOOKUP($G30,'Technician Summary'!$G$8:$BK$372,35,FALSE),"") ->  | AH30: =IFERROR(VLOOKUP($G30,'Technician Summary'!$G$8:$BK$372,37,FALSE),"") ->  | AI30: =IFERROR(VLOOKUP($G30,'Technician Summary'!$G$8:$BK$372,38,FALSE),"") ->  | AK30: =IFERROR(VLOOKUP($G30,'Technician Summary'!$G$8:$BK$372,27,FALSE),"") ->  | AL30: =IFERROR(VLOOKUP($G30,'Technician Summary'!$G$8:$BK$372,68,FALSE),"") -> 
I31: =IFERROR(VLOOKUP($G31,'Technician Summary'!$G$3:$BB$372,2,FALSE),"") ->  | J31: =IFERROR(VLOOKUP($G31,'Technician Summary'!$G$8:$BN$372,60,FALSE),"") ->  | L31: =IFERROR(VLOOKUP($G31,'Technician Summary'!$G$8:$BK$372,14,FALSE),"") ->  | M31: =IFERROR(VLOOKUP($G31,'Technician Summary'!$G$8:$BK$372,15,FALSE),"") ->  | O31: =IFERROR(VLOOKUP($G31,'Technician Summary'!$G$7:$BK$372,17,FALSE),"") ->  | P31: =IFERROR(VLOOKUP($G31,'Technician Summary'!$G$7:$BK$372,18,FALSE),"") ->  | R31: =IFERROR(VLOOKUP($G31,'Technician Summary'!$G$7:$BK$372,20,FALSE),"") ->  | S31: =IFERROR(VLOOKUP($G31,'Technician Summary'!$G$7:$BK$372,21,FALSE),"") ->  | U31: =IF(G31="","",COUNTIFS('StrataSync Data'!$AB:$AB,$G31,'StrataSync Data'!$G:$G,"Closed")) ->  | V31: =IF($G31="","",COUNTIFS('StrataSync Data'!$AB:$AB,$G31,'StrataSync Data'!$H:$H,"Yes",'StrataSync Data'!$G:$G,"Closed")) ->  | X31: =IFERROR(IF($G$7="","",COUNTIFS('StrataSync Data'!$AB:$AB,$G31,'StrataSync Data'!$I:$I,"Incomplete",'StrataSync Data'!$H:$H,"Yes",'StrataSync Data'!$G:$G,"Closed"))+IF($G31="","",COUNTIFS('StrataSync Data'!$AB:$AB,$G31,'StrataSync Data'!$I:$I,"Fail",'StrataSync Data'!$H:$H,"Yes",'StrataSync Data'!$G:$G,"Closed")),"") ->  | AA31: =IFERROR(SUM(Z31/#REF!),"") ->  | AB31: =IFERROR(VLOOKUP($G31,'Technician Summary'!$G$8:$BK$372,7,FALSE),"") ->  | AC31: =IFERROR(VLOOKUP($G31,'Technician Summary'!$G$8:$BK$372,8,FALSE),"") ->  | AE31: =IFERROR(VLOOKUP($G31,'Technician Summary'!$G$8:$BK$372,34,FALSE),"") ->  | AF31: =IFERROR(VLOOKUP($G31,'Technician Summary'!$G$8:$BK$372,35,FALSE),"") ->  | AH31: =IFERROR(VLOOKUP($G31,'Technician Summary'!$G$8:$BK$372,37,FALSE),"") ->  | AI31: =IFERROR(VLOOKUP($G31,'Technician Summary'!$G$8:$BK$372,38,FALSE),"") ->  | AK31: =IFERROR(VLOOKUP($G31,'Technician Summary'!$G$8:$BK$372,27,FALSE),"") ->  | AL31: =IFERROR(VLOOKUP($G31,'Technician Summary'!$G$8:$BK$372,68,FALSE),"") -> 
I32: # NPS WO's | J32: # Failures | K32: NPS | L32: Total Repeatable WO | M32: Total Repeats | N32: Repeats | O32: Total Repeatable WO | P32: Repeat IN | Q32: IN Repeat % | R32: Total Repeatable WO | S32: Repeat TC | T32: Repeat TC % | U32: Jobs | V32: Test Run | W32: SQT Compliance | X32: Test Fail | Y32: SQT Pass | Z32: Test Passed | AA32: Ingress Test Pass | AB32: FCR WO | AC32: FCR Failures | AD32: FCR | AE32: Jobs | AF32: Jobs Late | AG32: OTA | AH32: Jobs | AI32: Completed Jobs | AJ32: Completion % | AK32: Total QC | AL32: QC Failure | AM32: SMS tNPS
I33: =SUMIF(I7:I31,">0") -> 69 | J33: =SUMIF(J7:J31,">0") -> 17.9998
K34: =IFERROR(1-(J33/I33),"") -> 0.7391 | L34: =SUM(L7:L31) -> 1014 | M34: =SUM(M7:M31) -> 35 | N34: =IFERROR(SUM(M34/L34),"") -> 0.0345 | O34: =SUM(O7:O31) -> 586 | P34: =SUM(P7:P31) -> 17 | Q34: =IFERROR(SUM(P34/O34),"") -> 0.029 | R34: =SUM(R7:R31) -> 428 | S34: =SUM(S7:S31) -> 18 | T34: =IFERROR(SUM(S34/R34),"") -> 0.0421 | U34: =SUMIF(U7:U31,">0") -> 629 | V34: =SUMIF(V7:V31,">0") -> 611 | W34: =IFERROR(SUM(V34/U34),"") -> 0.9714 | X34: =SUM(X7:X31) -> 55 | Y34: =IFERROR(SUM(1-X34/V34),"") -> 0.91 | Z34: =SUM(Z7:Z31) -> 0 | AA34: =IFERROR(SUM(Z34/#REF!),"") ->  | AB34: =SUM(AB7:AB31) -> 567 | AC34: =SUM(AC7:AC31) -> 15 | AD34: =IFERROR(1-AC34/AB34,"") -> 0.9735 | AE34: =SUM(AE7:AE31) -> 443 | AF34: =SUM(AF7:AF31) -> 70 | AG34: =IFERROR(1-AF34/AE34,"") -> 0.842 | AH34: =SUM(AH7:AH31) -> 1175 | AI34: =SUM(AI7:AI31) -> 1001 | AJ34: =IFERROR(AI34/AH34,"") -> 0.8519 | AK34: =SUM(AK7:AK31) -> 0 | AL34: =SUM(AL7:AL31) -> 0 | AM34: =IFERROR(1-AL34/AK34,"") -> 

Sheet New Orleans
F3: Josh Baudin
F5: Tech Name | G5: Tech ID | H5: Score | I5: # NPS WO's | J5: # Failures | K5: NPS | L5: Total Repeatable WO | M5: Total Repeats | N5: Repeats | O5: Total Repeatable WO | P5: Repeat IN | Q5: IN Repeat % | R5: Total Repeatable WO | S5: Repeat TC | T5: Repeat TC % | U5: Jobs | V5: Test Run | W5: SQT Compliance | X5: Test Fail | Y5: SQT Pass | Z5: Test Passed | AA5: Ingress Test Pass | AB5: FCR WO | AC5: FCR Failures | AD5: FCR | AE5: Jobs | AF5: Jobs Late | AG5: OTA | AH5: Jobs | AI5: Completed Jobs | AJ5: Completion % | AK5: Total QC | AL5: QC Failure | AM5: SMS tNPS
F7: Kevin Mcelee | G7: 74634 | H7: =IF(W7="","",IFERROR(IF(K7>=70%,2.5,0)+IF(N7<=4%,2.5,0)+IF(W7>=90%,2.5,0)+IF(AG7>=96%,2.5,0),"")) -> 7.5 | I7: =IFERROR(VLOOKUP($G7,'Technician Summary'!$G$7:$BB$372,2,FALSE),"") -> 5 | J7: =IFERROR(VLOOKUP($G7,'Technician Summary'!$G$7:$BN$372,60,FALSE),"") -> 2 | K7: =IFERROR(1-(J7/I7),"") -> 0.6 | L7: =IFERROR(VLOOKUP($G7,'Technician Summary'!$G$7:$BK$372,14,FALSE),"") -> 153 | M7: =IFERROR(VLOOKUP($G7,'Technician Summary'!$G$7:$BK$372,15,FALSE),"") -> 3 | N7: =IFERROR(SUM(M7/L7),"") -> 0.0196 | O7: =IFERROR(VLOOKUP($G7,'Technician Summary'!$G$7:$BK$372,17,FALSE),"") -> 76 | P7: =IFERROR(VLOOKUP($G7,'Technician Summary'!$G$7:$BK$372,18,FALSE),"") -> 1 | Q7: =IFERROR(SUM(P7/O7),"") -> 0.0132 | R7: =IFERROR(VLOOKUP($G7,'Technician Summary'!$G$7:$BK$372,20,FALSE),"") -> 77 | S7: =IFERROR(VLOOKUP($G7,'Technician Summary'!$G$7:$BK$372,21,FALSE),"") -> 2 | T7: =IFERROR(SUM(S7/R7),"") -> 0.026 | U7: =IF(G7="","",COUNTIFS('StrataSync Data'!$AB:$AB,$G7,'StrataSync Data'!$G:$G,"Closed")) -> 131 | V7: =IF($G7="","",COUNTIFS('StrataSync Data'!$AB:$AB,$G7,'StrataSync Data'!$H:$H,"Yes",'StrataSync Data'!$G:$G,"Closed")) -> 131 | W7: =IFERROR(SUM(V7/U7),"") -> 1 | X7: =IFERROR(IF($G$7="","",COUNTIFS('StrataSync Data'!$AB:$AB,$G7,'StrataSync Data'!$I:$I,"Incomplete",'StrataSync Data'!$H:$H,"Yes",'StrataSync Data'!$G:$G,"Closed"))+IF($G7="","",COUNTIFS('StrataSync Data'!$AB:$AB,$G7,'StrataSync Data'!$I:$I,"Fail",'StrataSync Data'!$H:$H,"Yes",'StrataSync Data'!$G:$G,"Closed")),"") -> 35 | Y7: =IFERROR(SUM(1-X7/V7),"") -> 0.7328 | AA7: =IFERROR(SUM(Z7/#REF!),"") ->  | AB7: =IFERROR(VLOOKUP($G7,'Technician Summary'!$G$7:$BK$372,7,FALSE),"") -> 71 | AC7: =IFERROR(VLOOKUP($G7,'Technician Summary'!$G$7:$BK$372,8,FALSE),"") -> 1 | AD7: =IFERROR(1-AC7/AB7,"") -> 0.9859 | AE7: =IFERROR(VLOOKUP($G7,'Technician Summary'!$G$7:$BK$372,34,FALSE),"") -> 57 | AF7: =IFERROR(VLOOKUP($G7,'Technician Summary'!$G$7:$BK$372,35,FALSE),"") -> 1 | AG7: =IFERROR(1-AF7/AE7,"") -> 0.9825 | AH7: =IFERROR(VLOOKUP($G7,'Technician Summary'!$G$7:$BK$372,37,FALSE),"") -> 166 | AI7: =IFERROR(VLOOKUP($G7,'Technician Summary'!$G$7:$BK$372,38,FALSE),"") -> 153 | AJ7: =IFERROR(AI7/AH7,"") -> 0.9217 | AK7: =IFERROR(VLOOKUP($G7,'Technician Summary'!$G$7:$BK$372,27,FALSE),"") -> 0 | AL7: =IFERROR(VLOOKUP($G7,'Technician Summary'!$G$7:$BK$372,68,FALSE),"") ->  | AM7: =IFERROR(1-AL7/AK7,"") -> 
F8: Chris Bonneval | G8: 52274 | H8: =IF(W8="","",IFERROR(IF(K8>=70%,2.5,0)+IF(N8<=4%,2.5,0)+IF(W8>=90%,2.5,0)+IF(AG8>=96%,2.5,0),"")) -> 10 | I8: =IFERROR(VLOOKUP($G8,'Technician Summary'!$G$7:$BB$372,2,FALSE),"") -> 0 | J8: =IFERROR(VLOOKUP($G8,'Technician Summary'!$G$7:$BN$372,60,FALSE),"") ->  | K8: =IFERROR(1-(J8/I8),"") ->  | L8: =IFERROR(VLOOKUP($G8,'Technician Summary'!$G$7:$BK$372,14,FALSE),"") -> 1 | M8: =IFERROR(VLOOKUP($G8,'Technician Summary'!$G$7:$BK$372,15,FALSE),"") -> 0 | N8: =IFERROR(SUM(M8/L8),"") -> 0 | O8: =IFERROR(VLOOKUP($G8,'Technician Summary'!$G$7:$BK$372,17,FALSE),"") -> 0 | P8: =IFERROR(VLOOKUP($G8,'Technician Summary'!$G$7:$BK$372,18,FALSE),"") -> 0 | Q8: =IFERROR(SUM(P8/O8),"") ->  | R8: =IFERROR(VLOOKUP($G8,'Technician Summary'!$G$7:$BK$372,20,FALSE),"") -> 1 | S8: =IFERROR(VLOOKUP($G8,'Technician Summary'!$G$7:$BK$372,21,FALSE),"") -> 0 | T8: =IFERROR(SUM(S8/R8),"") -> 0 | U8: =IF(G8="","",COUNTIFS('StrataSync Data'!$AB:$AB,$G8,'StrataSync Data'!$G:$G,"Closed")) -> 34 | V8: =IF($G8="","",COUNTIFS('StrataSync Data'!$AB:$AB,$G8,'StrataSync Data'!$H:$H,"Yes",'StrataSync Data'!$G:$G,"Closed")) -> 33 | W8: =IFERROR(SUM(V8/U8),"") -> 0.9706 | X8: =IFERROR(IF($G$7="","",COUNTIFS('StrataSync Data'!$AB:$AB,$G8,'StrataSync Data'!$I:$I,"Incomplete",'StrataSync Data'!$H:$H,"Yes",'StrataSync Data'!$G:$G,"Closed"))+IF($G8="","",COUNTIFS('StrataSync Data'!$AB:$AB,$G8,'StrataSync Data'!$I:$I,"Fail",'StrataSync Data'!$H:$H,"Yes",'StrataSync Data'!$G:$G,"Closed")),"") -> 1 | Y8: =IFERROR(SUM(1-X8/V8),"") -> 0.9697 | AA8: =IFERROR(SUM(Z8/#REF!),"") ->  | AB8: =IFERROR(VLOOKUP($G8,'Technician Summary'!$G$7:$BK$372,7,FALSE),"") -> 0 | AC8: =IFERROR(VLOOKUP($G8,'Technician Summary'!$G$7:$BK$372,8,FALSE),"") -> 0 | AD8: =IFERROR(1-AC8/AB8,"") ->  | AE8: =IFERROR(VLOOKUP($G8,'Technician Summary'!$G$7:$BK$372,34,FALSE),"") -> 0 | AF8: =IFERROR(VLOOKUP($G8,'Technician Summary'!$G$7:$BK$372,35,FALSE),"") -> 0 | AG8: =IFERROR(1-AF8/AE8,"") ->  | AH8: =IFERROR(VLOOKUP($G8,'Technician Summary'!$G$7:$BK$372,37,FALSE),"") -> 1 | AI8: =IFERROR(VLOOKUP($G8,'Technician Summary'!$G$7:$BK$372,38,FALSE),"") -> 1 | AJ8: =IFERROR(AI8/AH8,"") -> 1 | AK8: =IFERROR(VLOOKUP($G8,'Technician Summary'!$G$7:$BK$372,27,FALSE),"") -> 0 | AL8: =IFERROR(VLOOKUP($G8,'Technician Summary'!$G$7:$BK$372,68,FALSE),"") ->  | AM8: =IFERROR(1-AL8/AK8,"") -> 
F9: hasheem cook | G9: 42232 | H9: 5 | I9: =IFERROR(VLOOKUP($G9,'Technician Summary'!$G$7:$BB$372,2,FALSE),"") -> 9 | J9: =IFERROR(VLOOKUP($G9,'Technician Summary'!$G$7:$BN$372,60,FALSE),"") -> 1.9998 | K9: 0.7778 | L9: =IFERROR(VLOOKUP($G9,'Technician Summary'!$G$7:$BK$372,14,FALSE),"") -> 128 | M9: =IFERROR(VLOOKUP($G9,'Technician Summary'!$G$7:$BK$372,15,FALSE),"") -> 6 | N9: 0.0469 | O9: =IFERROR(VLOOKUP($G9,'Technician Summary'!$G$7:$BK$372,17,FALSE),"") -> 55 | P9: =IFERROR(VLOOKUP($G9,'Technician Summary'!$G$7:$BK$372,18,FALSE),"") -> 1 | Q9: 0.0182 | R9: =IFERROR(VLOOKUP($G9,'Technician Summary'!$G$7:$BK$372,20,FALSE),"") -> 73 | S9: =IFERROR(VLOOKUP($G9,'Technician Summary'!$G$7:$BK$372,21,FALSE),"") -> 5 | T9: 0.0685 | U9: =IF(G9="","",COUNTIFS('StrataSync Data'!$AB:$AB,$G9,'StrataSync Data'!$G:$G,"Closed")) -> 104 | V9: =IF($G9="","",COUNTIFS('StrataSync Data'!$AB:$AB,$G9,'StrataSync Data'!$H:$H,"Yes",'StrataSync Data'!$G:$G,"Closed")) -> 100 | W9: 0.9615 | X9: =IFERROR(IF($G$7="","",COUNTIFS('StrataSync Data'!$AB:$AB,$G9,'StrataSync Data'!$I:$I,"Incomplete",'StrataSync Data'!$H:$H,"Yes",'StrataSync Data'!$G:$G,"Closed"))+IF($G9="","",COUNTIFS('StrataSync Data'!$AB:$AB,$G9,'StrataSync Data'!$I:$I,"Fail",'StrataSync Data'!$H:$H,"Yes",'StrataSync Data'!$G:$G,"Closed")),"") -> 42 | Y9: 0.58 | AA9: =IFERROR(SUM(Z9/#REF!),"") ->  | AB9: =IFERROR(VLOOKUP($G9,'Technician Summary'!$G$7:$BK$372,7,FALSE),"") -> 57 | AC9: =IFERROR(VLOOKUP($G9,'Technician Summary'!$G$7:$BK$372,8,FALSE),"") -> 2 | AD9: 0.9649 | AE9: =IFERROR(VLOOKUP($G9,'Technician Summary'!$G$7:$BK$372,34,FALSE),"") -> 34 | AF9: =IFERROR(VLOOKUP($G9,'Technician Summary'!$G$7:$BK$372,35,FALSE),"") -> 5 | AG9: 0.8529 | AH9: =IFERROR(VLOOKUP($G9,'Technician Summary'!$G$7:$BK$372,37,FALSE),"") -> 145 | AI9: =IFERROR(VLOOKUP($G9,'Technician Summary'!$G$7:$BK$372,38,FALSE),"") -> 128 | AJ9: 0.8828 | AK9: =IFERROR(VLOOKUP($G9,'Technician Summary'!$G$7:$BK$372,27,FALSE),"") -> 0 | AL9: =IFERROR(VLOOKUP($G9,'Technician Summary'!$G$7:$BK$372,68,FALSE),"") -> 
F10: qaassim razzaq | G10: 56837 | H10: 7.5 | I10: =IFERROR(VLOOKUP($G10,'Technician Summary'!$G$7:$BB$372,2,FALSE),"") -> 4 | J10: =IFERROR(VLOOKUP($G10,'Technician Summary'!$G$7:$BN$372,60,FALSE),"") -> 0 | K10: 1 | L10: =IFERROR(VLOOKUP($G10,'Technician Summary'!$G$7:$BK$372,14,FALSE),"") -> 76 | M10: =IFERROR(VLOOKUP($G10,'Technician Summary'!$G$7:$BK$372,15,FALSE),"") -> 2 | N10: 0.0263 | O10: =IFERROR(VLOOKUP($G10,'Technician Summary'!$G$7:$BK$372,17,FALSE),"") -> 43 | P10: =IFERROR(VLOOKUP($G10,'Technician Summary'!$G$7:$BK$372,18,FALSE),"") -> 1 | Q10: 0.0233 | R10: =IFERROR(VLOOKUP($G10,'Technician Summary'!$G$7:$BK$372,20,FALSE),"") -> 33 | S10: =IFERROR(VLOOKUP($G10,'Technician Summary'!$G$7:$BK$372,21,FALSE),"") -> 1 | T10: 0.0303 | U10: =IF(G10="","",COUNTIFS('StrataSync Data'!$AB:$AB,$G10,'StrataSync Data'!$G:$G,"Closed")) -> 54 | V10: =IF($G10="","",COUNTIFS('StrataSync Data'!$AB:$AB,$G10,'StrataSync Data'!$H:$H,"Yes",'StrataSync Data'!$G:$G,"Closed")) -> 50 | W10: 0.9259 | X10: =IFERROR(IF($G$7="","",COUNTIFS('StrataSync Data'!$AB:$AB,$G10,'StrataSync Data'!$I:$I,"Incomplete",'StrataSync Data'!$H:$H,"Yes",'StrataSync Data'!$G:$G,"Closed"))+IF($G10="","",COUNTIFS('StrataSync Data'!$AB:$AB,$G10,'StrataSync Data'!$I:$I,"Fail",'StrataSync Data'!$H:$H,"Yes",'StrataSync Data'!$G:$G,"Closed")),"") -> 7 | Y10: 0.86 | AA10: =IFERROR(SUM(Z10/#REF!),"") ->  | AB10: =IFERROR(VLOOKUP($G10,'Technician Summary'!$G$7:$BK$372,7,FALSE),"") -> 27 | AC10: =IFERROR(VLOOKUP($G10,'Technician Summary'!$G$7:$BK$372,8,FALSE),"") -> 2 | AD10: 0.9259 | AE10: =IFERROR(VLOOKUP($G10,'Technician Summary'!$G$7:$BK$372,34,FALSE),"") -> 24 | AF10: =IFERROR(VLOOKUP($G10,'Technician Summary'!$G$7:$BK$372,35,FALSE),"") -> 9 | AG10: 0.625 | AH10: =IFERROR(VLOOKUP($G10,'Technician Summary'!$G$7:$BK$372,37,FALSE),"") -> 99 | AI10: =IFERROR(VLOOKUP($G10,'Technician Summary'!$G$7:$BK$372,38,FALSE),"") -> 76 | AJ10: 0.7677 | AK10: =IFERROR(VLOOKUP($G10,'Technician Summary'!$G$7:$BK$372,27,FALSE),"") -> 0 | AL10: =IFERROR(VLOOKUP($G10,'Technician Summary'!$G$7:$BK$372,68,FALSE),"") -> 
B11: Home | F11: Rason Robertson | G11: 26022 | H11: 7.5 | I11: =IFERROR(VLOOKUP($G11,'Technician Summary'!$G$7:$BB$372,2,FALSE),"") -> 4 | J11: =IFERROR(VLOOKUP($G11,'Technician Summary'!$G$7:$BN$372,60,FALSE),"") -> 1 | K11: 0.75 | L11: =IFERROR(VLOOKUP($G11,'Technician Summary'!$G$7:$BK$372,14,FALSE),"") -> 112 | M11: =IFERROR(VLOOKUP($G11,'Technician Summary'!$G$7:$BK$372,15,FALSE),"") -> 2 | N11: 0.0179 | O11: =IFERROR(VLOOKUP($G11,'Technician Summary'!$G$7:$BK$372,17,FALSE),"") -> 72 | P11: =IFERROR(VLOOKUP($G11,'Technician Summary'!$G$7:$BK$372,18,FALSE),"") -> 1 | Q11: 0.0139 | R11: =IFERROR(VLOOKUP($G11,'Technician Summary'!$G$7:$BK$372,20,FALSE),"") -> 40 | S11: =IFERROR(VLOOKUP($G11,'Technician Summary'!$G$7:$BK$372,21,FALSE),"") -> 1 | T11: 0.025 | U11: =IF(G11="","",COUNTIFS('StrataSync Data'!$AB:$AB,$G11,'StrataSync Data'!$G:$G,"Closed")) -> 71 | V11: =IF($G11="","",COUNTIFS('StrataSync Data'!$AB:$AB,$G11,'StrataSync Data'!$H:$H,"Yes",'StrataSync Data'!$G:$G,"Closed")) -> 69 | W11: 0.9718 | X11: =IFERROR(IF($G$7="","",COUNTIFS('StrataSync Data'!$AB:$AB,$G11,'StrataSync Data'!$I:$I,"Incomplete",'StrataSync Data'!$H:$H,"Yes",'StrataSync Data'!$G:$G,"Closed"))+IF($G11="","",COUNTIFS('StrataSync Data'!$AB:$AB,$G11,'StrataSync Data'!$I:$I,"Fail",'StrataSync Data'!$H:$H,"Yes",'StrataSync Data'!$G:$G,"Closed")),"") -> 0 | Y11: 1 | AA11: =IFERROR(SUM(Z11/#REF!),"") ->  | AB11: =IFERROR(VLOOKUP($G11,'Technician Summary'!$G$7:$BK$372,7,FALSE),"") -> 38 | AC11: =IFERROR(VLOOKUP($G11,'Technician Summary'!$G$7:$BK$372,8,FALSE),"") -> 1 | AD11: 0.9737 | AE11: =IFERROR(VLOOKUP($G11,'Technician Summary'!$G$7:$BK$372,34,FALSE),"") -> 31 | AF11: =IFERROR(VLOOKUP($G11,'Technician Summary'!$G$7:$BK$372,35,FALSE),"") -> 12 | AG11: 0.6129 | AH11: =IFERROR(VLOOKUP($G11,'Technician Summary'!$G$7:$BK$372,37,FALSE),"") -> 146 | AI11: =IFERROR(VLOOKUP($G11,'Technician Summary'!$G$7:$BK$372,38,FALSE),"") -> 112 | AJ11: 0.7671 | AK11: =IFERROR(VLOOKUP($G11,'Technician Summary'!$G$7:$BK$372,27,FALSE),"") -> 0 | AL11: =IFERROR(VLOOKUP($G11,'Technician Summary'!$G$7:$BK$372,68,FALSE),"") -> 
F12: Terrance Duncan | G12: 26196 | H12: 2.5 | I12: =IFERROR(VLOOKUP($G12,'Technician Summary'!$G$7:$BB$372,2,FALSE),"") -> 4 | J12: =IFERROR(VLOOKUP($G12,'Technician Summary'!$G$7:$BN$372,60,FALSE),"") -> 3 | K12: 0.25 | L12: =IFERROR(VLOOKUP($G12,'Technician Summary'!$G$7:$BK$372,14,FALSE),"") -> 108 | M12: =IFERROR(VLOOKUP($G12,'Technician Summary'!$G$7:$BK$372,15,FALSE),"") -> 6 | N12: 0.0556 | O12: =IFERROR(VLOOKUP($G12,'Technician Summary'!$G$7:$BK$372,17,FALSE),"") -> 54 | P12: =IFERROR(VLOOKUP($G12,'Technician Summary'!$G$7:$BK$372,18,FALSE),"") -> 4 | Q12: 0.0741 | R12: =IFERROR(VLOOKUP($G12,'Technician Summary'!$G$7:$BK$372,20,FALSE),"") -> 54 | S12: =IFERROR(VLOOKUP($G12,'Technician Summary'!$G$7:$BK$372,21,FALSE),"") -> 2 | T12: 0.037 | U12: =IF(G12="","",COUNTIFS('StrataSync Data'!$AB:$AB,$G12,'StrataSync Data'!$G:$G,"Closed")) -> 81 | V12: =IF($G12="","",COUNTIFS('StrataSync Data'!$AB:$AB,$G12,'StrataSync Data'!$H:$H,"Yes",'StrataSync Data'!$G:$G,"Closed")) -> 76 | W12: 0.9383 | X12: =IFERROR(IF($G$7="","",COUNTIFS('StrataSync Data'!$AB:$AB,$G12,'StrataSync Data'!$I:$I,"Incomplete",'StrataSync Data'!$H:$H,"Yes",'StrataSync Data'!$G:$G,"Closed"))+IF($G12="","",COUNTIFS('StrataSync Data'!$AB:$AB,$G12,'StrataSync Data'!$I:$I,"Fail",'StrataSync Data'!$H:$H,"Yes",'StrataSync Data'!$G:$G,"Closed")),"") -> 5 | Y12: 0.9342 | AA12: =IFERROR(SUM(Z12/#REF!),"") ->  | AB12: =IFERROR(VLOOKUP($G12,'Technician Summary'!$G$7:$BK$372,7,FALSE),"") -> 41 | AC12: =IFERROR(VLOOKUP($G12,'Technician Summary'!$G$7:$BK$372,8,FALSE),"") -> 3 | AD12: 0.9268 | AE12: =IFERROR(VLOOKUP($G12,'Technician Summary'!$G$7:$BK$372,34,FALSE),"") -> 30 | AF12: =IFERROR(VLOOKUP($G12,'Technician Summary'!$G$7:$BK$372,35,FALSE),"") -> 3 | AG12: 0.9 | AH12: =IFERROR(VLOOKUP($G12,'Technician Summary'!$G$7:$BK$372,37,FALSE),"") -> 125 | AI12: =IFERROR(VLOOKUP($G12,'Technician Summary'!$G$7:$BK$372,38,FALSE),"") -> 108 | AJ12: 0.864 | AK12: =IFERROR(VLOOKUP($G12,'Technician Summary'!$G$7:$BK$372,27,FALSE),"") -> 0 | AL12: =IFERROR(VLOOKUP($G12,'Technician Summary'!$G$7:$BK$372,68,FALSE),"") -> 
B13: Performance Metrics | F13: Daniel Alario | G13: 9897 | I13: =IFERROR(VLOOKUP($G13,'Technician Summary'!$G$7:$BB$372,2,FALSE),"") ->  | J13: =IFERROR(VLOOKUP($G13,'Technician Summary'!$G$7:$BN$372,60,FALSE),"") ->  | L13: =IFERROR(VLOOKUP($G13,'Technician Summary'!$G$7:$BK$372,14,FALSE),"") ->  | M13: =IFERROR(VLOOKUP($G13,'Technician Summary'!$G$7:$BK$372,15,FALSE),"") ->  | O13: =IFERROR(VLOOKUP($G13,'Technician Summary'!$G$7:$BK$372,17,FALSE),"") ->  | P13: =IFERROR(VLOOKUP($G13,'Technician Summary'!$G$7:$BK$372,18,FALSE),"") ->  | R13: =IFERROR(VLOOKUP($G13,'Technician Summary'!$G$7:$BK$372,20,FALSE),"") ->  | S13: =IFERROR(VLOOKUP($G13,'Technician Summary'!$G$7:$BK$372,21,FALSE),"") ->  | U13: =IF(G13="","",COUNTIFS('StrataSync Data'!$AB:$AB,$G13,'StrataSync Data'!$G:$G,"Closed")) -> 0 | V13: =IF($G13="","",COUNTIFS('StrataSync Data'!$AB:$AB,$G13,'StrataSync Data'!$H:$H,"Yes",'StrataSync Data'!$G:$G,"Closed")) -> 0 | X13: =IFERROR(IF($G$7="","",COUNTIFS('StrataSync Data'!$AB:$AB,$G13,'StrataSync Data'!$I:$I,"Incomplete",'StrataSync Data'!$H:$H,"Yes",'StrataSync Data'!$G:$G,"Closed"))+IF($G13="","",COUNTIFS('StrataSync Data'!$AB:$AB,$G13,'StrataSync Data'!$I:$I,"Fail",'StrataSync Data'!$H:$H,"Yes",'StrataSync Data'!$G:$G,"Closed")),"") -> 0 | AA13: =IFERROR(SUM(Z13/#REF!),"") ->  | AB13: =IFERROR(VLOOKUP($G13,'Technician Summary'!$G$7:$BK$372,7,FALSE),"") ->  | AC13: =IFERROR(VLOOKUP($G13,'Technician Summary'!$G$7:$BK$372,8,FALSE),"") ->  | AE13: =IFERROR(VLOOKUP($G13,'Technician Summary'!$G$7:$BK$372,34,FALSE),"") ->  | AF13: =IFERROR(VLOOKUP($G13,'Technician Summary'!$G$7:$BK$372,35,FALSE),"") ->  | AH13: =IFERROR(VLOOKUP($G13,'Technician Summary'!$G$7:$BK$372,37,FALSE),"") ->  | AI13: =IFERROR(VLOOKUP($G13,'Technician Summary'!$G$7:$BK$372,38,FALSE),"") ->  | AK13: =IFERROR(VLOOKUP($G13,'Technician Summary'!$G$7:$BK$372,27,FALSE),"") ->  | AL13: =IFERROR(VLOOKUP($G13,'Technician Summary'!$G$7:$BK$372,68,FALSE),"") -> 
B14: Gainesville | I14: =IFERROR(VLOOKUP($G14,'Technician Summary'!$G$7:$BB$372,2,FALSE),"") ->  | J14: =IFERROR(VLOOKUP($G14,'Technician Summary'!$G$7:$BN$372,60,FALSE),"") ->  | L14: =IFERROR(VLOOKUP($G14,'Technician Summary'!$G$7:$BK$372,14,FALSE),"") ->  | M14: =IFERROR(VLOOKUP($G14,'Technician Summary'!$G$7:$BK$372,15,FALSE),"") ->  | O14: =IFERROR(VLOOKUP($G14,'Technician Summary'!$G$7:$BK$372,17,FALSE),"") ->  | P14: =IFERROR(VLOOKUP($G14,'Technician Summary'!$G$7:$BK$372,18,FALSE),"") ->  | R14: =IFERROR(VLOOKUP($G14,'Technician Summary'!$G$7:$BK$372,20,FALSE),"") ->  | S14: =IFERROR(VLOOKUP($G14,'Technician Summary'!$G$7:$BK$372,21,FALSE),"") ->  | U14: =IF(G14="","",COUNTIFS('StrataSync Data'!$AB:$AB,$G14,'StrataSync Data'!$G:$G,"Closed")) ->  | V14: =IF($G14="","",COUNTIFS('StrataSync Data'!$AB:$AB,$G14,'StrataSync Data'!$H:$H,"Yes",'StrataSync Data'!$G:$G,"Closed")) ->  | X14: =IFERROR(IF($G$7="","",COUNTIFS('StrataSync Data'!$AB:$AB,$G14,'StrataSync Data'!$I:$I,"Incomplete",'StrataSync Data'!$H:$H,"Yes",'StrataSync Data'!$G:$G,"Closed"))+IF($G14="","",COUNTIFS('StrataSync Data'!$AB:$AB,$G14,'StrataSync Data'!$I:$I,"Fail",'StrataSync Data'!$H:$H,"Yes",'StrataSync Data'!$G:$G,"Closed")),"") ->  | AA14: =IFERROR(SUM(Z14/#REF!),"") ->  | AB14: =IFERROR(VLOOKUP($G14,'Technician Summary'!$G$7:$BK$372,7,FALSE),"") ->  | AC14: =IFERROR(VLOOKUP($G14,'Technician Summary'!$G$7:$BK$372,8,FALSE),"") ->  | AE14: =IFERROR(VLOOKUP($G14,'Technician Summary'!$G$7:$BK$372,34,FALSE),"") ->  | AF14: =IFERROR(VLOOKUP($G14,'Technician Summary'!$G$7:$BK$372,35,FALSE),"") ->  | AH14: =IFERROR(VLOOKUP($G14,'Technician Summary'!$G$7:$BK$372,37,FALSE),"") ->  | AI14: =IFERROR(VLOOKUP($G14,'Technician Summary'!$G$7:$BK$372,38,FALSE),"") ->  | AK14: =IFERROR(VLOOKUP($G14,'Technician Summary'!$G$7:$BK$372,27,FALSE),"") ->  | AL14: =IFERROR(VLOOKUP($G14,'Technician Summary'!$G$7:$BK$372,68,FALSE),"") -> 
B15: Macon | I15: =IFERROR(VLOOKUP($G15,'Technician Summary'!$G$7:$BB$372,2,FALSE),"") ->  | J15: =IFERROR(VLOOKUP($G15,'Technician Summary'!$G$7:$BN$372,60,FALSE),"") ->  | L15: =IFERROR(VLOOKUP($G15,'Technician Summary'!$G$7:$BK$372,14,FALSE),"") ->  | M15: =IFERROR(VLOOKUP($G15,'Technician Summary'!$G$7:$BK$372,15,FALSE),"") ->  | O15: =IFERROR(VLOOKUP($G15,'Technician Summary'!$G$7:$BK$372,17,FALSE),"") ->  | P15: =IFERROR(VLOOKUP($G15,'Technician Summary'!$G$7:$BK$372,18,FALSE),"") ->  | R15: =IFERROR(VLOOKUP($G15,'Technician Summary'!$G$7:$BK$372,20,FALSE),"") ->  | S15: =IFERROR(VLOOKUP($G15,'Technician Summary'!$G$7:$BK$372,21,FALSE),"") ->  | U15: =IF(G15="","",COUNTIFS('StrataSync Data'!$AB:$AB,$G15,'StrataSync Data'!$G:$G,"Closed")) ->  | V15: =IF($G15="","",COUNTIFS('StrataSync Data'!$AB:$AB,$G15,'StrataSync Data'!$H:$H,"Yes",'StrataSync Data'!$G:$G,"Closed")) ->  | X15: =IFERROR(IF($G$7="","",COUNTIFS('StrataSync Data'!$AB:$AB,$G15,'StrataSync Data'!$I:$I,"Incomplete",'StrataSync Data'!$H:$H,"Yes",'StrataSync Data'!$G:$G,"Closed"))+IF($G15="","",COUNTIFS('StrataSync Data'!$AB:$AB,$G15,'StrataSync Data'!$I:$I,"Fail",'StrataSync Data'!$H:$H,"Yes",'StrataSync Data'!$G:$G,"Closed")),"") ->  | AA15: =IFERROR(SUM(Z15/#REF!),"") ->  | AB15: =IFERROR(VLOOKUP($G15,'Technician Summary'!$G$7:$BK$372,7,FALSE),"") ->  | AC15: =IFERROR(VLOOKUP($G15,'Technician Summary'!$G$7:$BK$372,8,FALSE),"") ->  | AE15: =IFERROR(VLOOKUP($G15,'Technician Summary'!$G$7:$BK$372,34,FALSE),"") ->  | AF15: =IFERROR(VLOOKUP($G15,'Technician Summary'!$G$7:$BK$372,35,FALSE),"") ->  | AH15: =IFERROR(VLOOKUP($G15,'Technician Summary'!$G$7:$BK$372,37,FALSE),"") ->  | AI15: =IFERROR(VLOOKUP($G15,'Technician Summary'!$G$7:$BK$372,38,FALSE),"") ->  | AK15: =IFERROR(VLOOKUP($G15,'Technician Summary'!$G$7:$BK$372,27,FALSE),"") ->  | AL15: =IFERROR(VLOOKUP($G15,'Technician Summary'!$G$7:$BK$372,68,FALSE),"") -> 
B16: New Orleans | I16: =IFERROR(VLOOKUP($G16,'Technician Summary'!$G$7:$BB$372,2,FALSE),"") ->  | J16: =IFERROR(VLOOKUP($G16,'Technician Summary'!$G$7:$BN$372,60,FALSE),"") ->  | L16: =IFERROR(VLOOKUP($G16,'Technician Summary'!$G$7:$BK$372,14,FALSE),"") ->  | M16: =IFERROR(VLOOKUP($G16,'Technician Summary'!$G$7:$BK$372,15,FALSE),"") ->  | O16: =IFERROR(VLOOKUP($G16,'Technician Summary'!$G$7:$BK$372,17,FALSE),"") ->  | P16: =IFERROR(VLOOKUP($G16,'Technician Summary'!$G$7:$BK$372,18,FALSE),"") ->  | R16: =IFERROR(VLOOKUP($G16,'Technician Summary'!$G$7:$BK$372,20,FALSE),"") ->  | S16: =IFERROR(VLOOKUP($G16,'Technician Summary'!$G$7:$BK$372,21,FALSE),"") ->  | U16: =IF(G16="","",COUNTIFS('StrataSync Data'!$AB:$AB,$G16,'StrataSync Data'!$G:$G,"Closed")) ->  | V16: =IF($G16="","",COUNTIFS('StrataSync Data'!$AB:$AB,$G16,'StrataSync Data'!$H:$H,"Yes",'StrataSync Data'!$G:$G,"Closed")) ->  | X16: =IFERROR(IF($G$7="","",COUNTIFS('StrataSync Data'!$AB:$AB,$G16,'StrataSync Data'!$I:$I,"Incomplete",'StrataSync Data'!$H:$H,"Yes",'StrataSync Data'!$G:$G,"Closed"))+IF($G16="","",COUNTIFS('StrataSync Data'!$AB:$AB,$G16,'StrataSync Data'!$I:$I,"Fail",'StrataSync Data'!$H:$H,"Yes",'StrataSync Data'!$G:$G,"Closed")),"") ->  | AA16: =IFERROR(SUM(Z16/#REF!),"") ->  | AB16: =IFERROR(VLOOKUP($G16,'Technician Summary'!$G$7:$BK$372,7,FALSE),"") ->  | AC16: =IFERROR(VLOOKUP($G16,'Technician Summary'!$G$7:$BK$372,8,FALSE),"") ->  | AE16: =IFERROR(VLOOKUP($G16,'Technician Summary'!$G$7:$BK$372,34,FALSE),"") ->  | AF16: =IFERROR(VLOOKUP($G16,'Technician Summary'!$G$7:$BK$372,35,FALSE),"") ->  | AH16: =IFERROR(VLOOKUP($G16,'Technician Summary'!$G$7:$BK$372,37,FALSE),"") ->  | AI16: =IFERROR(VLOOKUP($G16,'Technician Summary'!$G$7:$BK$372,38,FALSE),"") ->  | AK16: =IFERROR(VLOOKUP($G16,'Technician Summary'!$G$7:$BK$372,27,FALSE),"") ->  | AL16: =IFERROR(VLOOKUP($G16,'Technician Summary'!$G$7:$BK$372,68,FALSE),"") -> 
B17: Hampton Roads | I17: =IFERROR(VLOOKUP($G17,'Technician Summary'!$G$7:$BB$372,2,FALSE),"") ->  | J17: =IFERROR(VLOOKUP($G17,'Technician Summary'!$G$7:$BN$372,60,FALSE),"") ->  | L17: =IFERROR(VLOOKUP($G17,'Technician Summary'!$G$7:$BK$372,14,FALSE),"") ->  | M17: =IFERROR(VLOOKUP($G17,'Technician Summary'!$G$7:$BK$372,15,FALSE),"") ->  | O17: =IFERROR(VLOOKUP($G17,'Technician Summary'!$G$7:$BK$372,17,FALSE),"") ->  | P17: =IFERROR(VLOOKUP($G17,'Technician Summary'!$G$7:$BK$372,18,FALSE),"") ->  | R17: =IFERROR(VLOOKUP($G17,'Technician Summary'!$G$7:$BK$372,20,FALSE),"") ->  | S17: =IFERROR(VLOOKUP($G17,'Technician Summary'!$G$7:$BK$372,21,FALSE),"") ->  | U17: =IF(G17="","",COUNTIFS('StrataSync Data'!$AB:$AB,$G17,'StrataSync Data'!$G:$G,"Closed")) ->  | V17: =IF($G17="","",COUNTIFS('StrataSync Data'!$AB:$AB,$G17,'StrataSync Data'!$H:$H,"Yes",'StrataSync Data'!$G:$G,"Closed")) ->  | X17: =IFERROR(IF($G$7="","",COUNTIFS('StrataSync Data'!$AB:$AB,$G17,'StrataSync Data'!$I:$I,"Incomplete",'StrataSync Data'!$H:$H,"Yes",'StrataSync Data'!$G:$G,"Closed"))+IF($G17="","",COUNTIFS('StrataSync Data'!$AB:$AB,$G17,'StrataSync Data'!$I:$I,"Fail",'StrataSync Data'!$H:$H,"Yes",'StrataSync Data'!$G:$G,"Closed")),"") ->  | AA17: =IFERROR(SUM(Z17/#REF!),"") ->  | AB17: =IFERROR(VLOOKUP($G17,'Technician Summary'!$G$7:$BK$372,7,FALSE),"") ->  | AC17: =IFERROR(VLOOKUP($G17,'Technician Summary'!$G$7:$BK$372,8,FALSE),"") ->  | AE17: =IFERROR(VLOOKUP($G17,'Technician Summary'!$G$7:$BK$372,34,FALSE),"") ->  | AF17: =IFERROR(VLOOKUP($G17,'Technician Summary'!$G$7:$BK$372,35,FALSE),"") ->  | AH17: =IFERROR(VLOOKUP($G17,'Technician Summary'!$G$7:$BK$372,37,FALSE),"") ->  | AI17: =IFERROR(VLOOKUP($G17,'Technician Summary'!$G$7:$BK$372,38,FALSE),"") ->  | AK17: =IFERROR(VLOOKUP($G17,'Technician Summary'!$G$7:$BK$372,27,FALSE),"") ->  | AL17: =IFERROR(VLOOKUP($G17,'Technician Summary'!$G$7:$BK$372,68,FALSE),"") -> 
B18: Baton Rouge | I18: =IFERROR(VLOOKUP($G18,'Technician Summary'!$G$7:$BB$372,2,FALSE),"") ->  | J18: =IFERROR(VLOOKUP($G18,'Technician Summary'!$G$7:$BN$372,60,FALSE),"") ->  | L18: =IFERROR(VLOOKUP($G18,'Technician Summary'!$G$7:$BK$372,14,FALSE),"") ->  | M18: =IFERROR(VLOOKUP($G18,'Technician Summary'!$G$7:$BK$372,15,FALSE),"") ->  | O18: =IFERROR(VLOOKUP($G18,'Technician Summary'!$G$7:$BK$372,17,FALSE),"") ->  | P18: =IFERROR(VLOOKUP($G18,'Technician Summary'!$G$7:$BK$372,18,FALSE),"") ->  | R18: =IFERROR(VLOOKUP($G18,'Technician Summary'!$G$7:$BK$372,20,FALSE),"") ->  | S18: =IFERROR(VLOOKUP($G18,'Technician Summary'!$G$7:$BK$372,21,FALSE),"") ->  | U18: =IF(G18="","",COUNTIFS('StrataSync Data'!$AB:$AB,$G18,'StrataSync Data'!$G:$G,"Closed")) ->  | V18: =IF($G18="","",COUNTIFS('StrataSync Data'!$AB:$AB,$G18,'StrataSync Data'!$H:$H,"Yes",'StrataSync Data'!$G:$G,"Closed")) ->  | X18: =IFERROR(IF($G$7="","",COUNTIFS('StrataSync Data'!$AB:$AB,$G18,'StrataSync Data'!$I:$I,"Incomplete",'StrataSync Data'!$H:$H,"Yes",'StrataSync Data'!$G:$G,"Closed"))+IF($G18="","",COUNTIFS('StrataSync Data'!$AB:$AB,$G18,'StrataSync Data'!$I:$I,"Fail",'StrataSync Data'!$H:$H,"Yes",'StrataSync Data'!$G:$G,"Closed")),"") ->  | AA18: =IFERROR(SUM(Z18/#REF!),"") ->  | AB18: =IFERROR(VLOOKUP($G18,'Technician Summary'!$G$7:$BK$372,7,FALSE),"") ->  | AC18: =IFERROR(VLOOKUP($G18,'Technician Summary'!$G$7:$BK$372,8,FALSE),"") ->  | AE18: =IFERROR(VLOOKUP($G18,'Technician Summary'!$G$7:$BK$372,34,FALSE),"") ->  | AF18: =IFERROR(VLOOKUP($G18,'Technician Summary'!$G$7:$BK$372,35,FALSE),"") ->  | AH18: =IFERROR(VLOOKUP($G18,'Technician Summary'!$G$7:$BK$372,37,FALSE),"") ->  | AI18: =IFERROR(VLOOKUP($G18,'Technician Summary'!$G$7:$BK$372,38,FALSE),"") ->  | AK18: =IFERROR(VLOOKUP($G18,'Technician Summary'!$G$7:$BK$372,27,FALSE),"") ->  | AL18: =IFERROR(VLOOKUP($G18,'Technician Summary'!$G$7:$BK$372,68,FALSE),"") -> 
B19: Roanoke | I19: =IFERROR(VLOOKUP($G19,'Technician Summary'!$G$7:$BB$372,2,FALSE),"") ->  | J19: =IFERROR(VLOOKUP($G19,'Technician Summary'!$G$7:$BN$372,60,FALSE),"") ->  | L19: =IFERROR(VLOOKUP($G19,'Technician Summary'!$G$7:$BK$372,14,FALSE),"") ->  | M19: =IFERROR(VLOOKUP($G19,'Technician Summary'!$G$7:$BK$372,15,FALSE),"") ->  | O19: =IFERROR(VLOOKUP($G19,'Technician Summary'!$G$7:$BK$372,17,FALSE),"") ->  | P19: =IFERROR(VLOOKUP($G19,'Technician Summary'!$G$7:$BK$372,18,FALSE),"") ->  | R19: =IFERROR(VLOOKUP($G19,'Technician Summary'!$G$7:$BK$372,20,FALSE),"") ->  | S19: =IFERROR(VLOOKUP($G19,'Technician Summary'!$G$7:$BK$372,21,FALSE),"") ->  | U19: =IF(G19="","",COUNTIFS('StrataSync Data'!$AB:$AB,$G19,'StrataSync Data'!$G:$G,"Closed")) ->  | V19: =IF($G19="","",COUNTIFS('StrataSync Data'!$AB:$AB,$G19,'StrataSync Data'!$H:$H,"Yes",'StrataSync Data'!$G:$G,"Closed")) ->  | X19: =IFERROR(IF($G$7="","",COUNTIFS('StrataSync Data'!$AB:$AB,$G19,'StrataSync Data'!$I:$I,"Incomplete",'StrataSync Data'!$H:$H,"Yes",'StrataSync Data'!$G:$G,"Closed"))+IF($G19="","",COUNTIFS('StrataSync Data'!$AB:$AB,$G19,'StrataSync Data'!$I:$I,"Fail",'StrataSync Data'!$H:$H,"Yes",'StrataSync Data'!$G:$G,"Closed")),"") ->  | AA19: =IFERROR(SUM(Z19/#REF!),"") ->  | AB19: =IFERROR(VLOOKUP($G19,'Technician Summary'!$G$7:$BK$372,7,FALSE),"") ->  | AC19: =IFERROR(VLOOKUP($G19,'Technician Summary'!$G$7:$BK$372,8,FALSE),"") ->  | AE19: =IFERROR(VLOOKUP($G19,'Technician Summary'!$G$7:$BK$372,34,FALSE),"") ->  | AF19: =IFERROR(VLOOKUP($G19,'Technician Summary'!$G$7:$BK$372,35,FALSE),"") ->  | AH19: =IFERROR(VLOOKUP($G19,'Technician Summary'!$G$7:$BK$372,37,FALSE),"") ->  | AI19: =IFERROR(VLOOKUP($G19,'Technician Summary'!$G$7:$BK$372,38,FALSE),"") ->  | AK19: =IFERROR(VLOOKUP($G19,'Technician Summary'!$G$7:$BK$372,27,FALSE),"") ->  | AL19: =IFERROR(VLOOKUP($G19,'Technician Summary'!$G$7:$BK$372,68,FALSE),"") -> 
B20: Gulf Coast | I20: =IFERROR(VLOOKUP($G20,'Technician Summary'!$G$7:$BB$372,2,FALSE),"") ->  | J20: =IFERROR(VLOOKUP($G20,'Technician Summary'!$G$7:$BN$372,60,FALSE),"") ->  | L20: =IFERROR(VLOOKUP($G20,'Technician Summary'!$G$7:$BK$372,14,FALSE),"") ->  | M20: =IFERROR(VLOOKUP($G20,'Technician Summary'!$G$7:$BK$372,15,FALSE),"") ->  | O20: =IFERROR(VLOOKUP($G20,'Technician Summary'!$G$7:$BK$372,17,FALSE),"") ->  | P20: =IFERROR(VLOOKUP($G20,'Technician Summary'!$G$7:$BK$372,18,FALSE),"") ->  | R20: =IFERROR(VLOOKUP($G20,'Technician Summary'!$G$7:$BK$372,20,FALSE),"") ->  | S20: =IFERROR(VLOOKUP($G20,'Technician Summary'!$G$7:$BK$372,21,FALSE),"") ->  | U20: =IF(G20="","",COUNTIFS('StrataSync Data'!$AB:$AB,$G20,'StrataSync Data'!$G:$G,"Closed")) ->  | V20: =IF($G20="","",COUNTIFS('StrataSync Data'!$AB:$AB,$G20,'StrataSync Data'!$H:$H,"Yes",'StrataSync Data'!$G:$G,"Closed")) ->  | X20: =IFERROR(IF($G$7="","",COUNTIFS('StrataSync Data'!$AB:$AB,$G20,'StrataSync Data'!$I:$I,"Incomplete",'StrataSync Data'!$H:$H,"Yes",'StrataSync Data'!$G:$G,"Closed"))+IF($G20="","",COUNTIFS('StrataSync Data'!$AB:$AB,$G20,'StrataSync Data'!$I:$I,"Fail",'StrataSync Data'!$H:$H,"Yes",'StrataSync Data'!$G:$G,"Closed")),"") ->  | AA20: =IFERROR(SUM(Z20/#REF!),"") ->  | AB20: =IFERROR(VLOOKUP($G20,'Technician Summary'!$G$7:$BK$372,7,FALSE),"") ->  | AC20: =IFERROR(VLOOKUP($G20,'Technician Summary'!$G$7:$BK$372,8,FALSE),"") ->  | AE20: =IFERROR(VLOOKUP($G20,'Technician Summary'!$G$7:$BK$372,34,FALSE),"") ->  | AF20: =IFERROR(VLOOKUP($G20,'Technician Summary'!$G$7:$BK$372,35,FALSE),"") ->  | AH20: =IFERROR(VLOOKUP($G20,'Technician Summary'!$G$7:$BK$372,37,FALSE),"") ->  | AI20: =IFERROR(VLOOKUP($G20,'Technician Summary'!$G$7:$BK$372,38,FALSE),"") ->  | AK20: =IFERROR(VLOOKUP($G20,'Technician Summary'!$G$7:$BK$372,27,FALSE),"") ->  | AL20: =IFERROR(VLOOKUP($G20,'Technician Summary'!$G$7:$BK$372,68,FALSE),"") -> 
B21: Oklahoma City | I21: =IFERROR(VLOOKUP($G21,'Technician Summary'!$G$7:$BB$372,2,FALSE),"") ->  | J21: =IFERROR(VLOOKUP($G21,'Technician Summary'!$G$7:$BN$372,60,FALSE),"") ->  | L21: =IFERROR(VLOOKUP($G21,'Technician Summary'!$G$7:$BK$372,14,FALSE),"") ->  | M21: =IFERROR(VLOOKUP($G21,'Technician Summary'!$G$7:$BK$372,15,FALSE),"") ->  | O21: =IFERROR(VLOOKUP($G21,'Technician Summary'!$G$7:$BK$372,17,FALSE),"") ->  | P21: =IFERROR(VLOOKUP($G21,'Technician Summary'!$G$7:$BK$372,18,FALSE),"") ->  | R21: =IFERROR(VLOOKUP($G21,'Technician Summary'!$G$7:$BK$372,20,FALSE),"") ->  | S21: =IFERROR(VLOOKUP($G21,'Technician Summary'!$G$7:$BK$372,21,FALSE),"") ->  | U21: =IF(G21="","",COUNTIFS('StrataSync Data'!$AB:$AB,$G21,'StrataSync Data'!$G:$G,"Closed")) ->  | V21: =IF($G21="","",COUNTIFS('StrataSync Data'!$AB:$AB,$G21,'StrataSync Data'!$H:$H,"Yes",'StrataSync Data'!$G:$G,"Closed")) ->  | X21: =IFERROR(IF($G$7="","",COUNTIFS('StrataSync Data'!$AB:$AB,$G21,'StrataSync Data'!$I:$I,"Incomplete",'StrataSync Data'!$H:$H,"Yes",'StrataSync Data'!$G:$G,"Closed"))+IF($G21="","",COUNTIFS('StrataSync Data'!$AB:$AB,$G21,'StrataSync Data'!$I:$I,"Fail",'StrataSync Data'!$H:$H,"Yes",'StrataSync Data'!$G:$G,"Closed")),"") ->  | AA21: =IFERROR(SUM(Z21/#REF!),"") ->  | AB21: =IFERROR(VLOOKUP($G21,'Technician Summary'!$G$7:$BK$372,7,FALSE),"") ->  | AC21: =IFERROR(VLOOKUP($G21,'Technician Summary'!$G$7:$BK$372,8,FALSE),"") ->  | AE21: =IFERROR(VLOOKUP($G21,'Technician Summary'!$G$7:$BK$372,34,FALSE),"") ->  | AF21: =IFERROR(VLOOKUP($G21,'Technician Summary'!$G$7:$BK$372,35,FALSE),"") ->  | AH21: =IFERROR(VLOOKUP($G21,'Technician Summary'!$G$7:$BK$372,37,FALSE),"") ->  | AI21: =IFERROR(VLOOKUP($G21,'Technician Summary'!$G$7:$BK$372,38,FALSE),"") ->  | AK21: =IFERROR(VLOOKUP($G21,'Technician Summary'!$G$7:$BK$372,27,FALSE),"") ->  | AL21: =IFERROR(VLOOKUP($G21,'Technician Summary'!$G$7:$BK$372,68,FALSE),"") -> 
B22: Tech Rankings | I22: =IFERROR(VLOOKUP($G22,'Technician Summary'!$G$7:$BB$372,2,FALSE),"") ->  | J22: =IFERROR(VLOOKUP($G22,'Technician Summary'!$G$7:$BN$372,60,FALSE),"") ->  | L22: =IFERROR(VLOOKUP($G22,'Technician Summary'!$G$7:$BK$372,14,FALSE),"") ->  | M22: =IFERROR(VLOOKUP($G22,'Technician Summary'!$G$7:$BK$372,15,FALSE),"") ->  | O22: =IFERROR(VLOOKUP($G22,'Technician Summary'!$G$7:$BK$372,17,FALSE),"") ->  | P22: =IFERROR(VLOOKUP($G22,'Technician Summary'!$G$7:$BK$372,18,FALSE),"") ->  | R22: =IFERROR(VLOOKUP($G22,'Technician Summary'!$G$7:$BK$372,20,FALSE),"") ->  | S22: =IFERROR(VLOOKUP($G22,'Technician Summary'!$G$7:$BK$372,21,FALSE),"") ->  | U22: =IF(G22="","",COUNTIFS('StrataSync Data'!$AB:$AB,$G22,'StrataSync Data'!$G:$G,"Closed")) ->  | V22: =IF($G22="","",COUNTIFS('StrataSync Data'!$AB:$AB,$G22,'StrataSync Data'!$H:$H,"Yes",'StrataSync Data'!$G:$G,"Closed")) ->  | X22: =IFERROR(IF($G$7="","",COUNTIFS('StrataSync Data'!$AB:$AB,$G22,'StrataSync Data'!$I:$I,"Incomplete",'StrataSync Data'!$H:$H,"Yes",'StrataSync Data'!$G:$G,"Closed"))+IF($G22="","",COUNTIFS('StrataSync Data'!$AB:$AB,$G22,'StrataSync Data'!$I:$I,"Fail",'StrataSync Data'!$H:$H,"Yes",'StrataSync Data'!$G:$G,"Closed")),"") ->  | AA22: =IFERROR(SUM(Z22/#REF!),"") ->  | AB22: =IFERROR(VLOOKUP($G22,'Technician Summary'!$G$7:$BK$372,7,FALSE),"") ->  | AC22: =IFERROR(VLOOKUP($G22,'Technician Summary'!$G$7:$BK$372,8,FALSE),"") ->  | AE22: =IFERROR(VLOOKUP($G22,'Technician Summary'!$G$7:$BK$372,34,FALSE),"") ->  | AF22: =IFERROR(VLOOKUP($G22,'Technician Summary'!$G$7:$BK$372,35,FALSE),"") ->  | AH22: =IFERROR(VLOOKUP($G22,'Technician Summary'!$G$7:$BK$372,37,FALSE),"") ->  | AI22: =IFERROR(VLOOKUP($G22,'Technician Summary'!$G$7:$BK$372,38,FALSE),"") ->  | AK22: =IFERROR(VLOOKUP($G22,'Technician Summary'!$G$7:$BK$372,27,FALSE),"") ->  | AL22: =IFERROR(VLOOKUP($G22,'Technician Summary'!$G$7:$BK$372,68,FALSE),"") -> 
I23: =IFERROR(VLOOKUP($G23,'Technician Summary'!$G$7:$BB$372,2,FALSE),"") ->  | J23: =IFERROR(VLOOKUP($G23,'Technician Summary'!$G$7:$BN$372,60,FALSE),"") ->  | L23: =IFERROR(VLOOKUP($G23,'Technician Summary'!$G$7:$BK$372,14,FALSE),"") ->  | M23: =IFERROR(VLOOKUP($G23,'Technician Summary'!$G$7:$BK$372,15,FALSE),"") ->  | O23: =IFERROR(VLOOKUP($G23,'Technician Summary'!$G$7:$BK$372,17,FALSE),"") ->  | P23: =IFERROR(VLOOKUP($G23,'Technician Summary'!$G$7:$BK$372,18,FALSE),"") ->  | R23: =IFERROR(VLOOKUP($G23,'Technician Summary'!$G$7:$BK$372,20,FALSE),"") ->  | S23: =IFERROR(VLOOKUP($G23,'Technician Summary'!$G$7:$BK$372,21,FALSE),"") ->  | U23: =IF(G23="","",COUNTIFS('StrataSync Data'!$AB:$AB,$G23,'StrataSync Data'!$G:$G,"Closed")) ->  | V23: =IF($G23="","",COUNTIFS('StrataSync Data'!$AB:$AB,$G23,'StrataSync Data'!$H:$H,"Yes",'StrataSync Data'!$G:$G,"Closed")) ->  | X23: =IFERROR(IF($G$7="","",COUNTIFS('StrataSync Data'!$AB:$AB,$G23,'StrataSync Data'!$I:$I,"Incomplete",'StrataSync Data'!$H:$H,"Yes",'StrataSync Data'!$G:$G,"Closed"))+IF($G23="","",COUNTIFS('StrataSync Data'!$AB:$AB,$G23,'StrataSync Data'!$I:$I,"Fail",'StrataSync Data'!$H:$H,"Yes",'StrataSync Data'!$G:$G,"Closed")),"") ->  | AA23: =IFERROR(SUM(Z23/#REF!),"") ->  | AB23: =IFERROR(VLOOKUP($G23,'Technician Summary'!$G$7:$BK$372,7,FALSE),"") ->  | AC23: =IFERROR(VLOOKUP($G23,'Technician Summary'!$G$7:$BK$372,8,FALSE),"") ->  | AE23: =IFERROR(VLOOKUP($G23,'Technician Summary'!$G$7:$BK$372,34,FALSE),"") ->  | AF23: =IFERROR(VLOOKUP($G23,'Technician Summary'!$G$7:$BK$372,35,FALSE),"") ->  | AH23: =IFERROR(VLOOKUP($G23,'Technician Summary'!$G$7:$BK$372,37,FALSE),"") ->  | AI23: =IFERROR(VLOOKUP($G23,'Technician Summary'!$G$7:$BK$372,38,FALSE),"") ->  | AK23: =IFERROR(VLOOKUP($G23,'Technician Summary'!$G$7:$BK$372,27,FALSE),"") ->  | AL23: =IFERROR(VLOOKUP($G23,'Technician Summary'!$G$7:$BK$372,68,FALSE),"") -> 
B24: Raw Data | I24: =IFERROR(VLOOKUP($G24,'Technician Summary'!$G$7:$BB$372,2,FALSE),"") ->  | J24: =IFERROR(VLOOKUP($G24,'Technician Summary'!$G$7:$BN$372,60,FALSE),"") ->  | L24: =IFERROR(VLOOKUP($G24,'Technician Summary'!$G$7:$BK$372,14,FALSE),"") ->  | M24: =IFERROR(VLOOKUP($G24,'Technician Summary'!$G$7:$BK$372,15,FALSE),"") ->  | O24: =IFERROR(VLOOKUP($G24,'Technician Summary'!$G$7:$BK$372,17,FALSE),"") ->  | P24: =IFERROR(VLOOKUP($G24,'Technician Summary'!$G$7:$BK$372,18,FALSE),"") ->  | R24: =IFERROR(VLOOKUP($G24,'Technician Summary'!$G$7:$BK$372,20,FALSE),"") ->  | S24: =IFERROR(VLOOKUP($G24,'Technician Summary'!$G$7:$BK$372,21,FALSE),"") ->  | U24: =IF(G24="","",COUNTIFS('StrataSync Data'!$AB:$AB,$G24,'StrataSync Data'!$G:$G,"Closed")) ->  | V24: =IF($G24="","",COUNTIFS('StrataSync Data'!$AB:$AB,$G24,'StrataSync Data'!$H:$H,"Yes",'StrataSync Data'!$G:$G,"Closed")) ->  | X24: =IFERROR(IF($G$7="","",COUNTIFS('StrataSync Data'!$AB:$AB,$G24,'StrataSync Data'!$I:$I,"Incomplete",'StrataSync Data'!$H:$H,"Yes",'StrataSync Data'!$G:$G,"Closed"))+IF($G24="","",COUNTIFS('StrataSync Data'!$AB:$AB,$G24,'StrataSync Data'!$I:$I,"Fail",'StrataSync Data'!$H:$H,"Yes",'StrataSync Data'!$G:$G,"Closed")),"") ->  | AA24: =IFERROR(SUM(Z24/#REF!),"") ->  | AB24: =IFERROR(VLOOKUP($G24,'Technician Summary'!$G$7:$BK$372,7,FALSE),"") ->  | AC24: =IFERROR(VLOOKUP($G24,'Technician Summary'!$G$7:$BK$372,8,FALSE),"") ->  | AE24: =IFERROR(VLOOKUP($G24,'Technician Summary'!$G$7:$BK$372,34,FALSE),"") ->  | AF24: =IFERROR(VLOOKUP($G24,'Technician Summary'!$G$7:$BK$372,35,FALSE),"") ->  | AH24: =IFERROR(VLOOKUP($G24,'Technician Summary'!$G$7:$BK$372,37,FALSE),"") ->  | AI24: =IFERROR(VLOOKUP($G24,'Technician Summary'!$G$7:$BK$372,38,FALSE),"") ->  | AK24: =IFERROR(VLOOKUP($G24,'Technician Summary'!$G$7:$BK$372,27,FALSE),"") ->  | AL24: =IFERROR(VLOOKUP($G24,'Technician Summary'!$G$7:$BK$372,68,FALSE),"") -> 
I25: =IFERROR(VLOOKUP($G25,'Technician Summary'!$G$7:$BB$372,2,FALSE),"") ->  | J25: =IFERROR(VLOOKUP($G25,'Technician Summary'!$G$7:$BN$372,60,FALSE),"") ->  | L25: =IFERROR(VLOOKUP($G25,'Technician Summary'!$G$7:$BK$372,14,FALSE),"") ->  | M25: =IFERROR(VLOOKUP($G25,'Technician Summary'!$G$7:$BK$372,15,FALSE),"") ->  | O25: =IFERROR(VLOOKUP($G25,'Technician Summary'!$G$7:$BK$372,17,FALSE),"") ->  | P25: =IFERROR(VLOOKUP($G25,'Technician Summary'!$G$7:$BK$372,18,FALSE),"") ->  | R25: =IFERROR(VLOOKUP($G25,'Technician Summary'!$G$7:$BK$372,20,FALSE),"") ->  | S25: =IFERROR(VLOOKUP($G25,'Technician Summary'!$G$7:$BK$372,21,FALSE),"") ->  | U25: =IF(G25="","",COUNTIFS('StrataSync Data'!$AB:$AB,$G25,'StrataSync Data'!$G:$G,"Closed")) ->  | V25: =IF($G25="","",COUNTIFS('StrataSync Data'!$AB:$AB,$G25,'StrataSync Data'!$H:$H,"Yes",'StrataSync Data'!$G:$G,"Closed")) ->  | X25: =IFERROR(IF($G$7="","",COUNTIFS('StrataSync Data'!$AB:$AB,$G25,'StrataSync Data'!$I:$I,"Incomplete",'StrataSync Data'!$H:$H,"Yes",'StrataSync Data'!$G:$G,"Closed"))+IF($G25="","",COUNTIFS('StrataSync Data'!$AB:$AB,$G25,'StrataSync Data'!$I:$I,"Fail",'StrataSync Data'!$H:$H,"Yes",'StrataSync Data'!$G:$G,"Closed")),"") ->  | AA25: =IFERROR(SUM(Z25/#REF!),"") ->  | AB25: =IFERROR(VLOOKUP($G25,'Technician Summary'!$G$7:$BK$372,7,FALSE),"") ->  | AC25: =IFERROR(VLOOKUP($G25,'Technician Summary'!$G$7:$BK$372,8,FALSE),"") ->  | AE25: =IFERROR(VLOOKUP($G25,'Technician Summary'!$G$7:$BK$372,34,FALSE),"") ->  | AF25: =IFERROR(VLOOKUP($G25,'Technician Summary'!$G$7:$BK$372,35,FALSE),"") ->  | AH25: =IFERROR(VLOOKUP($G25,'Technician Summary'!$G$7:$BK$372,37,FALSE),"") ->  | AI25: =IFERROR(VLOOKUP($G25,'Technician Summary'!$G$7:$BK$372,38,FALSE),"") ->  | AK25: =IFERROR(VLOOKUP($G25,'Technician Summary'!$G$7:$BK$372,27,FALSE),"") ->  | AL25: =IFERROR(VLOOKUP($G25,'Technician Summary'!$G$7:$BK$372,68,FALSE),"") -> 
I26: =IFERROR(VLOOKUP($G26,'Technician Summary'!$G$7:$BB$372,2,FALSE),"") ->  | J26: =IFERROR(VLOOKUP($G26,'Technician Summary'!$G$7:$BN$372,60,FALSE),"") ->  | L26: =IFERROR(VLOOKUP($G26,'Technician Summary'!$G$7:$BK$372,14,FALSE),"") ->  | M26: =IFERROR(VLOOKUP($G26,'Technician Summary'!$G$7:$BK$372,15,FALSE),"") ->  | O26: =IFERROR(VLOOKUP($G26,'Technician Summary'!$G$7:$BK$372,17,FALSE),"") ->  | P26: =IFERROR(VLOOKUP($G26,'Technician Summary'!$G$7:$BK$372,18,FALSE),"") ->  | R26: =IFERROR(VLOOKUP($G26,'Technician Summary'!$G$7:$BK$372,20,FALSE),"") ->  | S26: =IFERROR(VLOOKUP($G26,'Technician Summary'!$G$7:$BK$372,21,FALSE),"") ->  | U26: =IF(G26="","",COUNTIFS('StrataSync Data'!$AB:$AB,$G26,'StrataSync Data'!$G:$G,"Closed")) ->  | V26: =IF($G26="","",COUNTIFS('StrataSync Data'!$AB:$AB,$G26,'StrataSync Data'!$H:$H,"Yes",'StrataSync Data'!$G:$G,"Closed")) ->  | X26: =IFERROR(IF($G$7="","",COUNTIFS('StrataSync Data'!$AB:$AB,$G26,'StrataSync Data'!$I:$I,"Incomplete",'StrataSync Data'!$H:$H,"Yes",'StrataSync Data'!$G:$G,"Closed"))+IF($G26="","",COUNTIFS('StrataSync Data'!$AB:$AB,$G26,'StrataSync Data'!$I:$I,"Fail",'StrataSync Data'!$H:$H,"Yes",'StrataSync Data'!$G:$G,"Closed")),"") ->  | AA26: =IFERROR(SUM(Z26/#REF!),"") ->  | AB26: =IFERROR(VLOOKUP($G26,'Technician Summary'!$G$7:$BK$372,7,FALSE),"") ->  | AC26: =IFERROR(VLOOKUP($G26,'Technician Summary'!$G$7:$BK$372,8,FALSE),"") ->  | AE26: =IFERROR(VLOOKUP($G26,'Technician Summary'!$G$7:$BK$372,34,FALSE),"") ->  | AF26: =IFERROR(VLOOKUP($G26,'Technician Summary'!$G$7:$BK$372,35,FALSE),"") ->  | AH26: =IFERROR(VLOOKUP($G26,'Technician Summary'!$G$7:$BK$372,37,FALSE),"") ->  | AI26: =IFERROR(VLOOKUP($G26,'Technician Summary'!$G$7:$BK$372,38,FALSE),"") ->  | AK26: =IFERROR(VLOOKUP($G26,'Technician Summary'!$G$7:$BK$372,27,FALSE),"") ->  | AL26: =IFERROR(VLOOKUP($G26,'Technician Summary'!$G$7:$BK$372,68,FALSE),"") -> 
I27: =IFERROR(VLOOKUP($G27,'Technician Summary'!$G$7:$BB$372,2,FALSE),"") ->  | J27: =IFERROR(VLOOKUP($G27,'Technician Summary'!$G$7:$BN$372,60,FALSE),"") ->  | L27: =IFERROR(VLOOKUP($G27,'Technician Summary'!$G$7:$BK$372,14,FALSE),"") ->  | M27: =IFERROR(VLOOKUP($G27,'Technician Summary'!$G$7:$BK$372,15,FALSE),"") ->  | O27: =IFERROR(VLOOKUP($G27,'Technician Summary'!$G$7:$BK$372,17,FALSE),"") ->  | P27: =IFERROR(VLOOKUP($G27,'Technician Summary'!$G$7:$BK$372,18,FALSE),"") ->  | R27: =IFERROR(VLOOKUP($G27,'Technician Summary'!$G$7:$BK$372,20,FALSE),"") ->  | S27: =IFERROR(VLOOKUP($G27,'Technician Summary'!$G$7:$BK$372,21,FALSE),"") ->  | U27: =IF(G27="","",COUNTIFS('StrataSync Data'!$AB:$AB,$G27,'StrataSync Data'!$G:$G,"Closed")) ->  | V27: =IF($G27="","",COUNTIFS('StrataSync Data'!$AB:$AB,$G27,'StrataSync Data'!$H:$H,"Yes",'StrataSync Data'!$G:$G,"Closed")) ->  | X27: =IFERROR(IF($G$7="","",COUNTIFS('StrataSync Data'!$AB:$AB,$G27,'StrataSync Data'!$I:$I,"Incomplete",'StrataSync Data'!$H:$H,"Yes",'StrataSync Data'!$G:$G,"Closed"))+IF($G27="","",COUNTIFS('StrataSync Data'!$AB:$AB,$G27,'StrataSync Data'!$I:$I,"Fail",'StrataSync Data'!$H:$H,"Yes",'StrataSync Data'!$G:$G,"Closed")),"") ->  | AA27: =IFERROR(SUM(Z27/#REF!),"") ->  | AB27: =IFERROR(VLOOKUP($G27,'Technician Summary'!$G$7:$BK$372,7,FALSE),"") ->  | AC27: =IFERROR(VLOOKUP($G27,'Technician Summary'!$G$7:$BK$372,8,FALSE),"") ->  | AE27: =IFERROR(VLOOKUP($G27,'Technician Summary'!$G$7:$BK$372,34,FALSE),"") ->  | AF27: =IFERROR(VLOOKUP($G27,'Technician Summary'!$G$7:$BK$372,35,FALSE),"") ->  | AH27: =IFERROR(VLOOKUP($G27,'Technician Summary'!$G$7:$BK$372,37,FALSE),"") ->  | AI27: =IFERROR(VLOOKUP($G27,'Technician Summary'!$G$7:$BK$372,38,FALSE),"") ->  | AK27: =IFERROR(VLOOKUP($G27,'Technician Summary'!$G$7:$BK$372,27,FALSE),"") ->  | AL27: =IFERROR(VLOOKUP($G27,'Technician Summary'!$G$7:$BK$372,68,FALSE),"") -> 
I28: =IFERROR(VLOOKUP($G28,'Technician Summary'!$G$7:$BB$372,2,FALSE),"") ->  | J28: =IFERROR(VLOOKUP($G28,'Technician Summary'!$G$7:$BN$372,60,FALSE),"") ->  | L28: =IFERROR(VLOOKUP($G28,'Technician Summary'!$G$7:$BK$372,14,FALSE),"") ->  | M28: =IFERROR(VLOOKUP($G28,'Technician Summary'!$G$7:$BK$372,15,FALSE),"") ->  | O28: =IFERROR(VLOOKUP($G28,'Technician Summary'!$G$7:$BK$372,17,FALSE),"") ->  | P28: =IFERROR(VLOOKUP($G28,'Technician Summary'!$G$7:$BK$372,18,FALSE),"") ->  | R28: =IFERROR(VLOOKUP($G28,'Technician Summary'!$G$7:$BK$372,20,FALSE),"") ->  | S28: =IFERROR(VLOOKUP($G28,'Technician Summary'!$G$7:$BK$372,21,FALSE),"") ->  | U28: =IF(G28="","",COUNTIFS('StrataSync Data'!$AB:$AB,$G28,'StrataSync Data'!$G:$G,"Closed")) ->  | V28: =IF($G28="","",COUNTIFS('StrataSync Data'!$AB:$AB,$G28,'StrataSync Data'!$H:$H,"Yes",'StrataSync Data'!$G:$G,"Closed")) ->  | X28: =IFERROR(IF($G$7="","",COUNTIFS('StrataSync Data'!$AB:$AB,$G28,'StrataSync Data'!$I:$I,"Incomplete",'StrataSync Data'!$H:$H,"Yes",'StrataSync Data'!$G:$G,"Closed"))+IF($G28="","",COUNTIFS('StrataSync Data'!$AB:$AB,$G28,'StrataSync Data'!$I:$I,"Fail",'StrataSync Data'!$H:$H,"Yes",'StrataSync Data'!$G:$G,"Closed")),"") ->  | AA28: =IFERROR(SUM(Z28/#REF!),"") ->  | AB28: =IFERROR(VLOOKUP($G28,'Technician Summary'!$G$7:$BK$372,7,FALSE),"") ->  | AC28: =IFERROR(VLOOKUP($G28,'Technician Summary'!$G$7:$BK$372,8,FALSE),"") ->  | AE28: =IFERROR(VLOOKUP($G28,'Technician Summary'!$G$7:$BK$372,34,FALSE),"") ->  | AF28: =IFERROR(VLOOKUP($G28,'Technician Summary'!$G$7:$BK$372,35,FALSE),"") ->  | AH28: =IFERROR(VLOOKUP($G28,'Technician Summary'!$G$7:$BK$372,37,FALSE),"") ->  | AI28: =IFERROR(VLOOKUP($G28,'Technician Summary'!$G$7:$BK$372,38,FALSE),"") ->  | AK28: =IFERROR(VLOOKUP($G28,'Technician Summary'!$G$7:$BK$372,27,FALSE),"") ->  | AL28: =IFERROR(VLOOKUP($G28,'Technician Summary'!$G$7:$BK$372,68,FALSE),"") -> 
I29: =IFERROR(VLOOKUP($G29,'Technician Summary'!$G$7:$BB$372,2,FALSE),"") ->  | J29: =IFERROR(VLOOKUP($G29,'Technician Summary'!$G$7:$BN$372,60,FALSE),"") ->  | L29: =IFERROR(VLOOKUP($G29,'Technician Summary'!$G$7:$BK$372,14,FALSE),"") ->  | M29: =IFERROR(VLOOKUP($G29,'Technician Summary'!$G$7:$BK$372,15,FALSE),"") ->  | O29: =IFERROR(VLOOKUP($G29,'Technician Summary'!$G$7:$BK$372,17,FALSE),"") ->  | P29: =IFERROR(VLOOKUP($G29,'Technician Summary'!$G$7:$BK$372,18,FALSE),"") ->  | R29: =IFERROR(VLOOKUP($G29,'Technician Summary'!$G$7:$BK$372,20,FALSE),"") ->  | S29: =IFERROR(VLOOKUP($G29,'Technician Summary'!$G$7:$BK$372,21,FALSE),"") ->  | U29: =IF(G29="","",COUNTIFS('StrataSync Data'!$AB:$AB,$G29,'StrataSync Data'!$G:$G,"Closed")) ->  | V29: =IF($G29="","",COUNTIFS('StrataSync Data'!$AB:$AB,$G29,'StrataSync Data'!$H:$H,"Yes",'StrataSync Data'!$G:$G,"Closed")) ->  | X29: =IFERROR(IF($G$7="","",COUNTIFS('StrataSync Data'!$AB:$AB,$G29,'StrataSync Data'!$I:$I,"Incomplete",'StrataSync Data'!$H:$H,"Yes",'StrataSync Data'!$G:$G,"Closed"))+IF($G29="","",COUNTIFS('StrataSync Data'!$AB:$AB,$G29,'StrataSync Data'!$I:$I,"Fail",'StrataSync Data'!$H:$H,"Yes",'StrataSync Data'!$G:$G,"Closed")),"") ->  | AA29: =IFERROR(SUM(Z29/#REF!),"") ->  | AB29: =IFERROR(VLOOKUP($G29,'Technician Summary'!$G$7:$BK$372,7,FALSE),"") ->  | AC29: =IFERROR(VLOOKUP($G29,'Technician Summary'!$G$7:$BK$372,8,FALSE),"") ->  | AE29: =IFERROR(VLOOKUP($G29,'Technician Summary'!$G$7:$BK$372,34,FALSE),"") ->  | AF29: =IFERROR(VLOOKUP($G29,'Technician Summary'!$G$7:$BK$372,35,FALSE),"") ->  | AH29: =IFERROR(VLOOKUP($G29,'Technician Summary'!$G$7:$BK$372,37,FALSE),"") ->  | AI29: =IFERROR(VLOOKUP($G29,'Technician Summary'!$G$7:$BK$372,38,FALSE),"") ->  | AK29: =IFERROR(VLOOKUP($G29,'Technician Summary'!$G$7:$BK$372,27,FALSE),"") ->  | AL29: =IFERROR(VLOOKUP($G29,'Technician Summary'!$G$7:$BK$372,68,FALSE),"") -> 
I30: =IFERROR(VLOOKUP($G30,'Technician Summary'!$G$7:$BB$372,2,FALSE),"") ->  | J30: =IFERROR(VLOOKUP($G30,'Technician Summary'!$G$7:$BN$372,60,FALSE),"") ->  | L30: =IFERROR(VLOOKUP($G30,'Technician Summary'!$G$7:$BK$372,14,FALSE),"") ->  | M30: =IFERROR(VLOOKUP($G30,'Technician Summary'!$G$7:$BK$372,15,FALSE),"") ->  | O30: =IFERROR(VLOOKUP($G30,'Technician Summary'!$G$7:$BK$372,17,FALSE),"") ->  | P30: =IFERROR(VLOOKUP($G30,'Technician Summary'!$G$7:$BK$372,18,FALSE),"") ->  | R30: =IFERROR(VLOOKUP($G30,'Technician Summary'!$G$7:$BK$372,20,FALSE),"") ->  | S30: =IFERROR(VLOOKUP($G30,'Technician Summary'!$G$7:$BK$372,21,FALSE),"") ->  | U30: =IF(G30="","",COUNTIFS('StrataSync Data'!$AB:$AB,$G30,'StrataSync Data'!$G:$G,"Closed")) ->  | V30: =IF($G30="","",COUNTIFS('StrataSync Data'!$AB:$AB,$G30,'StrataSync Data'!$H:$H,"Yes",'StrataSync Data'!$G:$G,"Closed")) ->  | X30: =IFERROR(IF($G$7="","",COUNTIFS('StrataSync Data'!$AB:$AB,$G30,'StrataSync Data'!$I:$I,"Incomplete",'StrataSync Data'!$H:$H,"Yes",'StrataSync Data'!$G:$G,"Closed"))+IF($G30="","",COUNTIFS('StrataSync Data'!$AB:$AB,$G30,'StrataSync Data'!$I:$I,"Fail",'StrataSync Data'!$H:$H,"Yes",'StrataSync Data'!$G:$G,"Closed")),"") ->  | AA30: =IFERROR(SUM(Z30/#REF!),"") ->  | AB30: =IFERROR(VLOOKUP($G30,'Technician Summary'!$G$7:$BK$372,7,FALSE),"") ->  | AC30: =IFERROR(VLOOKUP($G30,'Technician Summary'!$G$7:$BK$372,8,FALSE),"") ->  | AE30: =IFERROR(VLOOKUP($G30,'Technician Summary'!$G$7:$BK$372,34,FALSE),"") ->  | AF30: =IFERROR(VLOOKUP($G30,'Technician Summary'!$G$7:$BK$372,35,FALSE),"") ->  | AH30: =IFERROR(VLOOKUP($G30,'Technician Summary'!$G$7:$BK$372,37,FALSE),"") ->  | AI30: =IFERROR(VLOOKUP($G30,'Technician Summary'!$G$7:$BK$372,38,FALSE),"") ->  | AK30: =IFERROR(VLOOKUP($G30,'Technician Summary'!$G$7:$BK$372,27,FALSE),"") ->  | AL30: =IFERROR(VLOOKUP($G30,'Technician Summary'!$G$7:$BK$372,68,FALSE),"") -> 
I31: =IFERROR(VLOOKUP($G31,'Technician Summary'!$G$7:$BB$372,2,FALSE),"") ->  | J31: =IFERROR(VLOOKUP($G31,'Technician Summary'!$G$7:$BN$372,60,FALSE),"") ->  | L31: =IFERROR(VLOOKUP($G31,'Technician Summary'!$G$7:$BK$372,14,FALSE),"") ->  | M31: =IFERROR(VLOOKUP($G31,'Technician Summary'!$G$7:$BK$372,15,FALSE),"") ->  | O31: =IFERROR(VLOOKUP($G31,'Technician Summary'!$G$7:$BK$372,17,FALSE),"") ->  | P31: =IFERROR(VLOOKUP($G31,'Technician Summary'!$G$7:$BK$372,18,FALSE),"") ->  | R31: =IFERROR(VLOOKUP($G31,'Technician Summary'!$G$7:$BK$372,20,FALSE),"") ->  | S31: =IFERROR(VLOOKUP($G31,'Technician Summary'!$G$7:$BK$372,21,FALSE),"") ->  | U31: =IF(G31="","",COUNTIFS('StrataSync Data'!$AB:$AB,$G31,'StrataSync Data'!$G:$G,"Closed")) ->  | V31: =IF($G31="","",COUNTIFS('StrataSync Data'!$AB:$AB,$G31,'StrataSync Data'!$H:$H,"Yes",'StrataSync Data'!$G:$G,"Closed")) ->  | X31: =IFERROR(IF($G$7="","",COUNTIFS('StrataSync Data'!$AB:$AB,$G31,'StrataSync Data'!$I:$I,"Incomplete",'StrataSync Data'!$H:$H,"Yes",'StrataSync Data'!$G:$G,"Closed"))+IF($G31="","",COUNTIFS('StrataSync Data'!$AB:$AB,$G31,'StrataSync Data'!$I:$I,"Fail",'StrataSync Data'!$H:$H,"Yes",'StrataSync Data'!$G:$G,"Closed")),"") ->  | AA31: =IFERROR(SUM(Z31/#REF!),"") ->  | AB31: =IFERROR(VLOOKUP($G31,'Technician Summary'!$G$7:$BK$372,7,FALSE),"") ->  | AC31: =IFERROR(VLOOKUP($G31,'Technician Summary'!$G$7:$BK$372,8,FALSE),"") ->  | AE31: =IFERROR(VLOOKUP($G31,'Technician Summary'!$G$7:$BK$372,34,FALSE),"") ->  | AF31: =IFERROR(VLOOKUP($G31,'Technician Summary'!$G$7:$BK$372,35,FALSE),"") ->  | AH31: =IFERROR(VLOOKUP($G31,'Technician Summary'!$G$7:$BK$372,37,FALSE),"") ->  | AI31: =IFERROR(VLOOKUP($G31,'Technician Summary'!$G$7:$BK$372,38,FALSE),"") ->  | AK31: =IFERROR(VLOOKUP($G31,'Technician Summary'!$G$7:$BK$372,27,FALSE),"") ->  | AL31: =IFERROR(VLOOKUP($G31,'Technician Summary'!$G$7:$BK$372,68,FALSE),"") -> 
I32: # NPS WO's | J32: # Failures | K32: NPS | L32: Total Repeatable WO | M32: Total Repeats | N32: Repeats | O32: Total Repeatable WO | P32: Repeat IN | Q32: IN Repeat % | R32: Total Repeatable WO | S32: Repeat TC | T32: Repeat TC % | U32: Jobs | V32: Test Run | W32: SQT Compliance | X32: Test Fail | Y32: SQT Pass | Z32: Test Passed | AA32: Ingress Test Pass | AB32: FCR WO | AC32: FCR Failures | AD32: FCR | AE32: Jobs | AF32: Jobs Late | AG32: OTA | AH32: Jobs | AI32: Completed Jobs | AJ32: Completion % | AK32: Total QC | AL32: QC Failure | AM32: SMS tNPS
I33: =SUMIF(I7:I31,">0") -> 26 | J33: =SUMIF(J7:J31,">0") -> 7.9998
K34: =IFERROR(1-(J33/I33),"") -> 0.6923 | L34: =SUM(L7:L31) -> 578 | M34: =SUM(M7:M31) -> 19 | N34: =IFERROR(SUM(M34/L34),"") -> 0.0329 | O34: =SUM(O7:O31) -> 300 | P34: =SUM(P7:P31) -> 8 | Q34: =IFERROR(SUM(P34/O34),"") -> 0.0267 | R34: =SUM(R7:R31) -> 278 | S34: =SUM(S7:S31) -> 11 | T34: =IFERROR(SUM(S34/R34),"") -> 0.0396 | U34: =SUMIF(U7:U31,">0") -> 475 | V34: =SUMIF(V7:V31,">0") -> 459 | W34: =IFERROR(SUM(V34/U34),"") -> 0.9663 | X34: =SUM(X7:X31) -> 90 | Y34: =IFERROR(SUM(1-X34/V34),"") -> 0.8039 | Z34: =SUM(Z7:Z31) -> 0 | AA34: =IFERROR(SUM(Z34/#REF!),"") ->  | AB34: =SUM(AB7:AB31) -> 234 | AC34: =SUM(AC7:AC31) -> 9 | AD34: =IFERROR(1-AC34/AB34,"") -> 0.9615 | AE34: =SUM(AE7:AE31) -> 176 | AF34: =SUM(AF7:AF31) -> 30 | AG34: =IFERROR(1-AF34/AE34,"") -> 0.8295 | AH34: =SUM(AH7:AH31) -> 682 | AI34: =SUM(AI7:AI31) -> 578 | AJ34: =IFERROR(AI34/AH34,"") -> 0.8475 | AK34: =SUM(AK7:AK31) -> 0 | AL34: =SUM(AL7:AL31) -> 0 | AM34: =IFERROR(1-AL34/AK34,"") -> 

Sheet Baton Rouge
F3: Aisha Alexander
F5: Tech Name | G5: Tech ID | H5: Score | I5: # NPS WO's | J5: # Failures | K5: NPS | L5: Total Repeatable WO | M5: Total Repeats | N5: Repeats | O5: Total Repeatable WO | P5: Repeat IN | Q5: IN Repeat % | R5: Total Repeatable WO | S5: Repeat TC | T5: Repeat TC % | U5: Jobs | V5: Test Run | W5: SQT Compliance | X5: Test Fail | Y5: SQT Pass | Z5: Test Passed | AA5: Ingress Test Pass | AB5: FCR WO | AC5: FCR Failures | AD5: FCR | AE5: Jobs | AF5: Jobs Late | AG5: OTA | AH5: Jobs | AI5: Completed Jobs | AJ5: Completion % | AK5: Total QC | AL5: QC Failure | AM5: SMS tNPS
F7: Lamar Poydras | G7: 42270 | H7: =IF(W7="","",IFERROR(IF(K7>=70%,2.5,0)+IF(N7<=4%,2.5,0)+IF(W7>=90%,2.5,0)+IF(AG7>=96%,2.5,0),"")) -> 0 | I7: =IFERROR(VLOOKUP($G7,'Technician Summary'!$G$7:$BB$372,2,FALSE),"") -> 4 | J7: =IFERROR(VLOOKUP($G7,'Technician Summary'!$G$7:$BN$372,60,FALSE),"") -> 4 | K7: =IFERROR(1-(J7/I7),"") -> 0 | L7: =IFERROR(VLOOKUP($G7,'Technician Summary'!$G$7:$BK$372,14,FALSE),"") -> 101 | M7: =IFERROR(VLOOKUP($G7,'Technician Summary'!$G$7:$BK$372,15,FALSE),"") -> 6 | N7: =IFERROR(SUM(M7/L7),"") -> 0.0594 | O7: =IFERROR(VLOOKUP($G7,'Technician Summary'!$G$7:$BK$372,17,FALSE),"") -> 60 | P7: =IFERROR(VLOOKUP($G7,'Technician Summary'!$G$7:$BK$372,18,FALSE),"") -> 4 | Q7: =IFERROR(SUM(P7/O7),"") -> 0.0667 | R7: =IFERROR(VLOOKUP($G7,'Technician Summary'!$G$7:$BK$372,20,FALSE),"") -> 41 | S7: =IFERROR(VLOOKUP($G7,'Technician Summary'!$G$7:$BK$372,21,FALSE),"") -> 2 | T7: =IFERROR(SUM(S7/R7),"") -> 0.0488 | U7: =IF(G7="","",COUNTIFS('StrataSync Data'!$AB:$AB,$G7,'StrataSync Data'!$G:$G,"Closed")) -> 69 | V7: =IF($G7="","",COUNTIFS('StrataSync Data'!$AB:$AB,$G7,'StrataSync Data'!$H:$H,"Yes",'StrataSync Data'!$G:$G,"Closed")) -> 53 | W7: =IFERROR(SUM(V7/U7),"") -> 0.7681 | X7: =IFERROR(IF($G$7="","",COUNTIFS('StrataSync Data'!$AB:$AB,$G7,'StrataSync Data'!$I:$I,"Incomplete",'StrataSync Data'!$H:$H,"Yes",'StrataSync Data'!$G:$G,"Closed"))+IF($G7="","",COUNTIFS('StrataSync Data'!$AB:$AB,$G7,'StrataSync Data'!$I:$I,"Fail",'StrataSync Data'!$H:$H,"Yes",'StrataSync Data'!$G:$G,"Closed")),"") -> 8 | Y7: =IFERROR(SUM(1-X7/V7),"") -> 0.8491 | AA7: =IFERROR(SUM(Z7/#REF!),"") ->  | AB7: =IFERROR(VLOOKUP($G7,'Technician Summary'!$G$7:$BK$372,7,FALSE),"") -> 42 | AC7: =IFERROR(VLOOKUP($G7,'Technician Summary'!$G$7:$BK$372,8,FALSE),"") -> 3 | AD7: =IFERROR(1-AC7/AB7,"") -> 0.9286 | AE7: =IFERROR(VLOOKUP($G7,'Technician Summary'!$G$7:$BK$372,34,FALSE),"") -> 36 | AF7: =IFERROR(VLOOKUP($G7,'Technician Summary'!$G$7:$BK$372,35,FALSE),"") -> 7 | AG7: =IFERROR(1-AF7/AE7,"") -> 0.8056 | AH7: =IFERROR(VLOOKUP($G7,'Technician Summary'!$G$7:$BK$372,37,FALSE),"") -> 117 | AI7: =IFERROR(VLOOKUP($G7,'Technician Summary'!$G$7:$BK$372,38,FALSE),"") -> 99 | AJ7: =IFERROR(AI7/AH7,"") -> 0.8462 | AK7: =IFERROR(VLOOKUP($G7,'Technician Summary'!$G$7:$BK$372,27,FALSE),"") -> 0 | AL7: =IFERROR(VLOOKUP($G7,'Technician Summary'!$G$7:$BK$372,68,FALSE),"") ->  | AM7: =IFERROR(1-AL7/AK7,"") -> 
F8: Julian William | G8: 68680 | H8: =IF(W8="","",IFERROR(IF(K8>=70%,2.5,0)+IF(N8<=4%,2.5,0)+IF(W8>=90%,2.5,0)+IF(AG8>=96%,2.5,0),"")) ->  | I8: =IFERROR(VLOOKUP($G8,'Technician Summary'!$G$7:$BB$372,2,FALSE),"") ->  | J8: =IFERROR(VLOOKUP($G8,'Technician Summary'!$G$7:$BN$372,60,FALSE),"") ->  | K8: =IFERROR(1-(J8/I8),"") ->  | L8: =IFERROR(VLOOKUP($G8,'Technician Summary'!$G$7:$BK$372,14,FALSE),"") ->  | M8: =IFERROR(VLOOKUP($G8,'Technician Summary'!$G$7:$BK$372,15,FALSE),"") ->  | N8: =IFERROR(SUM(M8/L8),"") ->  | O8: =IFERROR(VLOOKUP($G8,'Technician Summary'!$G$7:$BK$372,17,FALSE),"") ->  | P8: =IFERROR(VLOOKUP($G8,'Technician Summary'!$G$7:$BK$372,18,FALSE),"") ->  | Q8: =IFERROR(SUM(P8/O8),"") ->  | R8: =IFERROR(VLOOKUP($G8,'Technician Summary'!$G$7:$BK$372,20,FALSE),"") ->  | S8: =IFERROR(VLOOKUP($G8,'Technician Summary'!$G$7:$BK$372,21,FALSE),"") ->  | T8: =IFERROR(SUM(S8/R8),"") ->  | U8: =IF(G8="","",COUNTIFS('StrataSync Data'!$AB:$AB,$G8,'StrataSync Data'!$G:$G,"Closed")) -> 0 | V8: =IF($G8="","",COUNTIFS('StrataSync Data'!$AB:$AB,$G8,'StrataSync Data'!$H:$H,"Yes",'StrataSync Data'!$G:$G,"Closed")) -> 0 | W8: =IFERROR(SUM(V8/U8),"") ->  | X8: =IFERROR(IF($G$7="","",COUNTIFS('StrataSync Data'!$AB:$AB,$G8,'StrataSync Data'!$I:$I,"Incomplete",'StrataSync Data'!$H:$H,"Yes",'StrataSync Data'!$G:$G,"Closed"))+IF($G8="","",COUNTIFS('StrataSync Data'!$AB:$AB,$G8,'StrataSync Data'!$I:$I,"Fail",'StrataSync Data'!$H:$H,"Yes",'StrataSync Data'!$G:$G,"Closed")),"") -> 0 | Y8: =IFERROR(SUM(1-X8/V8),"") ->  | AA8: =IFERROR(SUM(Z8/#REF!),"") ->  | AB8: =IFERROR(VLOOKUP($G8,'Technician Summary'!$G$7:$BK$372,7,FALSE),"") ->  | AC8: =IFERROR(VLOOKUP($G8,'Technician Summary'!$G$7:$BK$372,8,FALSE),"") ->  | AD8: =IFERROR(1-AC8/AB8,"") ->  | AE8: =IFERROR(VLOOKUP($G8,'Technician Summary'!$G$7:$BK$372,34,FALSE),"") ->  | AF8: =IFERROR(VLOOKUP($G8,'Technician Summary'!$G$7:$BK$372,35,FALSE),"") ->  | AG8: =IFERROR(1-AF8/AE8,"") ->  | AH8: =IFERROR(VLOOKUP($G8,'Technician Summary'!$G$7:$BK$372,37,FALSE),"") ->  | AI8: =IFERROR(VLOOKUP($G8,'Technician Summary'!$G$7:$BK$372,38,FALSE),"") ->  | AJ8: =IFERROR(AI8/AH8,"") ->  | AK8: =IFERROR(VLOOKUP($G8,'Technician Summary'!$G$7:$BK$372,27,FALSE),"") ->  | AL8: =IFERROR(VLOOKUP($G8,'Technician Summary'!$G$7:$BK$372,68,FALSE),"") ->  | AM8: =IFERROR(1-AL8/AK8,"") -> 
F9: Carlos Tejeda | G9: 42764 | H9: 5 | I9: =IFERROR(VLOOKUP($G9,'Technician Summary'!$G$7:$BB$372,2,FALSE),"") -> 6 | J9: =IFERROR(VLOOKUP($G9,'Technician Summary'!$G$7:$BN$372,60,FALSE),"") -> 1.9998 | K9: 0.6667 | L9: =IFERROR(VLOOKUP($G9,'Technician Summary'!$G$7:$BK$372,14,FALSE),"") -> 140 | M9: =IFERROR(VLOOKUP($G9,'Technician Summary'!$G$7:$BK$372,15,FALSE),"") -> 5 | N9: 0.0357 | O9: =IFERROR(VLOOKUP($G9,'Technician Summary'!$G$7:$BK$372,17,FALSE),"") -> 62 | P9: =IFERROR(VLOOKUP($G9,'Technician Summary'!$G$7:$BK$372,18,FALSE),"") -> 2 | Q9: 0.0323 | R9: =IFERROR(VLOOKUP($G9,'Technician Summary'!$G$7:$BK$372,20,FALSE),"") -> 78 | S9: =IFERROR(VLOOKUP($G9,'Technician Summary'!$G$7:$BK$372,21,FALSE),"") -> 3 | T9: 0.0385 | U9: =IF(G9="","",COUNTIFS('StrataSync Data'!$AB:$AB,$G9,'StrataSync Data'!$G:$G,"Closed")) -> 118 | V9: =IF($G9="","",COUNTIFS('StrataSync Data'!$AB:$AB,$G9,'StrataSync Data'!$H:$H,"Yes",'StrataSync Data'!$G:$G,"Closed")) -> 113 | W9: 0.9576 | X9: =IFERROR(IF($G$7="","",COUNTIFS('StrataSync Data'!$AB:$AB,$G9,'StrataSync Data'!$I:$I,"Incomplete",'StrataSync Data'!$H:$H,"Yes",'StrataSync Data'!$G:$G,"Closed"))+IF($G9="","",COUNTIFS('StrataSync Data'!$AB:$AB,$G9,'StrataSync Data'!$I:$I,"Fail",'StrataSync Data'!$H:$H,"Yes",'StrataSync Data'!$G:$G,"Closed")),"") -> 2 | Y9: 0.9823 | AA9: =IFERROR(SUM(Z9/#REF!),"") ->  | AB9: =IFERROR(VLOOKUP($G9,'Technician Summary'!$G$7:$BK$372,7,FALSE),"") -> 66 | AC9: =IFERROR(VLOOKUP($G9,'Technician Summary'!$G$7:$BK$372,8,FALSE),"") -> 2 | AD9: 0.9697 | AE9: =IFERROR(VLOOKUP($G9,'Technician Summary'!$G$7:$BK$372,34,FALSE),"") -> 42 | AF9: =IFERROR(VLOOKUP($G9,'Technician Summary'!$G$7:$BK$372,35,FALSE),"") -> 5 | AG9: 0.881 | AH9: =IFERROR(VLOOKUP($G9,'Technician Summary'!$G$7:$BK$372,37,FALSE),"") -> 158 | AI9: =IFERROR(VLOOKUP($G9,'Technician Summary'!$G$7:$BK$372,38,FALSE),"") -> 140 | AJ9: 0.8861 | AK9: =IFERROR(VLOOKUP($G9,'Technician Summary'!$G$7:$BK$372,27,FALSE),"") -> 0 | AL9: =IFERROR(VLOOKUP($G9,'Technician Summary'!$G$7:$BK$372,68,FALSE),"") -> 
F10: Yan Carlos Guerrro | G10: 43084 | I10: =IFERROR(VLOOKUP($G10,'Technician Summary'!$G$7:$BB$372,2,FALSE),"") ->  | J10: =IFERROR(VLOOKUP($G10,'Technician Summary'!$G$7:$BN$372,60,FALSE),"") ->  | L10: =IFERROR(VLOOKUP($G10,'Technician Summary'!$G$7:$BK$372,14,FALSE),"") ->  | M10: =IFERROR(VLOOKUP($G10,'Technician Summary'!$G$7:$BK$372,15,FALSE),"") ->  | O10: =IFERROR(VLOOKUP($G10,'Technician Summary'!$G$7:$BK$372,17,FALSE),"") ->  | P10: =IFERROR(VLOOKUP($G10,'Technician Summary'!$G$7:$BK$372,18,FALSE),"") ->  | R10: =IFERROR(VLOOKUP($G10,'Technician Summary'!$G$7:$BK$372,20,FALSE),"") ->  | S10: =IFERROR(VLOOKUP($G10,'Technician Summary'!$G$7:$BK$372,21,FALSE),"") ->  | U10: =IF(G10="","",COUNTIFS('StrataSync Data'!$AB:$AB,$G10,'StrataSync Data'!$G:$G,"Closed")) -> 0 | V10: =IF($G10="","",COUNTIFS('StrataSync Data'!$AB:$AB,$G10,'StrataSync Data'!$H:$H,"Yes",'StrataSync Data'!$G:$G,"Closed")) -> 0 | X10: =IFERROR(IF($G$7="","",COUNTIFS('StrataSync Data'!$AB:$AB,$G10,'StrataSync Data'!$I:$I,"Incomplete",'StrataSync Data'!$H:$H,"Yes",'StrataSync Data'!$G:$G,"Closed"))+IF($G10="","",COUNTIFS('StrataSync Data'!$AB:$AB,$G10,'StrataSync Data'!$I:$I,"Fail",'StrataSync Data'!$H:$H,"Yes",'StrataSync Data'!$G:$G,"Closed")),"") -> 0 | AA10: =IFERROR(SUM(Z10/#REF!),"") ->  | AB10: =IFERROR(VLOOKUP($G10,'Technician Summary'!$G$7:$BK$372,7,FALSE),"") ->  | AC10: =IFERROR(VLOOKUP($G10,'Technician Summary'!$G$7:$BK$372,8,FALSE),"") ->  | AE10: =IFERROR(VLOOKUP($G10,'Technician Summary'!$G$7:$BK$372,34,FALSE),"") ->  | AF10: =IFERROR(VLOOKUP($G10,'Technician Summary'!$G$7:$BK$372,35,FALSE),"") ->  | AH10: =IFERROR(VLOOKUP($G10,'Technician Summary'!$G$7:$BK$372,37,FALSE),"") ->  | AI10: =IFERROR(VLOOKUP($G10,'Technician Summary'!$G$7:$BK$372,38,FALSE),"") ->  | AK10: =IFERROR(VLOOKUP($G10,'Technician Summary'!$G$7:$BK$372,27,FALSE),"") ->  | AL10: =IFERROR(VLOOKUP($G10,'Technician Summary'!$G$7:$BK$372,68,FALSE),"") -> 
B11: Home | F11: Daeshaun Montgomery | G11: 80929 | I11: =IFERROR(VLOOKUP($G11,'Technician Summary'!$G$7:$BB$372,2,FALSE),"") ->  | J11: =IFERROR(VLOOKUP($G11,'Technician Summary'!$G$7:$BN$372,60,FALSE),"") ->  | L11: =IFERROR(VLOOKUP($G11,'Technician Summary'!$G$7:$BK$372,14,FALSE),"") ->  | M11: =IFERROR(VLOOKUP($G11,'Technician Summary'!$G$7:$BK$372,15,FALSE),"") ->  | O11: =IFERROR(VLOOKUP($G11,'Technician Summary'!$G$7:$BK$372,17,FALSE),"") ->  | P11: =IFERROR(VLOOKUP($G11,'Technician Summary'!$G$7:$BK$372,18,FALSE),"") ->  | R11: =IFERROR(VLOOKUP($G11,'Technician Summary'!$G$7:$BK$372,20,FALSE),"") ->  | S11: =IFERROR(VLOOKUP($G11,'Technician Summary'!$G$7:$BK$372,21,FALSE),"") ->  | U11: =IF(G11="","",COUNTIFS('StrataSync Data'!$AB:$AB,$G11,'StrataSync Data'!$G:$G,"Closed")) -> 0 | V11: =IF($G11="","",COUNTIFS('StrataSync Data'!$AB:$AB,$G11,'StrataSync Data'!$H:$H,"Yes",'StrataSync Data'!$G:$G,"Closed")) -> 0 | X11: =IFERROR(IF($G$7="","",COUNTIFS('StrataSync Data'!$AB:$AB,$G11,'StrataSync Data'!$I:$I,"Incomplete",'StrataSync Data'!$H:$H,"Yes",'StrataSync Data'!$G:$G,"Closed"))+IF($G11="","",COUNTIFS('StrataSync Data'!$AB:$AB,$G11,'StrataSync Data'!$I:$I,"Fail",'StrataSync Data'!$H:$H,"Yes",'StrataSync Data'!$G:$G,"Closed")),"") -> 0 | AA11: =IFERROR(SUM(Z11/#REF!),"") ->  | AB11: =IFERROR(VLOOKUP($G11,'Technician Summary'!$G$7:$BK$372,7,FALSE),"") ->  | AC11: =IFERROR(VLOOKUP($G11,'Technician Summary'!$G$7:$BK$372,8,FALSE),"") ->  | AE11: =IFERROR(VLOOKUP($G11,'Technician Summary'!$G$7:$BK$372,34,FALSE),"") ->  | AF11: =IFERROR(VLOOKUP($G11,'Technician Summary'!$G$7:$BK$372,35,FALSE),"") ->  | AH11: =IFERROR(VLOOKUP($G11,'Technician Summary'!$G$7:$BK$372,37,FALSE),"") ->  | AI11: =IFERROR(VLOOKUP($G11,'Technician Summary'!$G$7:$BK$372,38,FALSE),"") ->  | AK11: =IFERROR(VLOOKUP($G11,'Technician Summary'!$G$7:$BK$372,27,FALSE),"") ->  | AL11: =IFERROR(VLOOKUP($G11,'Technician Summary'!$G$7:$BK$372,68,FALSE),"") -> 
F12: Jose Alverez Arguellas | G12: 61277 | I12: =IFERROR(VLOOKUP($G12,'Technician Summary'!$G$7:$BB$372,2,FALSE),"") ->  | J12: =IFERROR(VLOOKUP($G12,'Technician Summary'!$G$7:$BN$372,60,FALSE),"") ->  | L12: =IFERROR(VLOOKUP($G12,'Technician Summary'!$G$7:$BK$372,14,FALSE),"") ->  | M12: =IFERROR(VLOOKUP($G12,'Technician Summary'!$G$7:$BK$372,15,FALSE),"") ->  | O12: =IFERROR(VLOOKUP($G12,'Technician Summary'!$G$7:$BK$372,17,FALSE),"") ->  | P12: =IFERROR(VLOOKUP($G12,'Technician Summary'!$G$7:$BK$372,18,FALSE),"") ->  | R12: =IFERROR(VLOOKUP($G12,'Technician Summary'!$G$7:$BK$372,20,FALSE),"") ->  | S12: =IFERROR(VLOOKUP($G12,'Technician Summary'!$G$7:$BK$372,21,FALSE),"") ->  | U12: =IF(G12="","",COUNTIFS('StrataSync Data'!$AB:$AB,$G12,'StrataSync Data'!$G:$G,"Closed")) -> 0 | V12: =IF($G12="","",COUNTIFS('StrataSync Data'!$AB:$AB,$G12,'StrataSync Data'!$H:$H,"Yes",'StrataSync Data'!$G:$G,"Closed")) -> 0 | X12: =IFERROR(IF($G$7="","",COUNTIFS('StrataSync Data'!$AB:$AB,$G12,'StrataSync Data'!$I:$I,"Incomplete",'StrataSync Data'!$H:$H,"Yes",'StrataSync Data'!$G:$G,"Closed"))+IF($G12="","",COUNTIFS('StrataSync Data'!$AB:$AB,$G12,'StrataSync Data'!$I:$I,"Fail",'StrataSync Data'!$H:$H,"Yes",'StrataSync Data'!$G:$G,"Closed")),"") -> 0 | AA12: =IFERROR(SUM(Z12/#REF!),"") ->  | AB12: =IFERROR(VLOOKUP($G12,'Technician Summary'!$G$7:$BK$372,7,FALSE),"") ->  | AC12: =IFERROR(VLOOKUP($G12,'Technician Summary'!$G$7:$BK$372,8,FALSE),"") ->  | AE12: =IFERROR(VLOOKUP($G12,'Technician Summary'!$G$7:$BK$372,34,FALSE),"") ->  | AF12: =IFERROR(VLOOKUP($G12,'Technician Summary'!$G$7:$BK$372,35,FALSE),"") ->  | AH12: =IFERROR(VLOOKUP($G12,'Technician Summary'!$G$7:$BK$372,37,FALSE),"") ->  | AI12: =IFERROR(VLOOKUP($G12,'Technician Summary'!$G$7:$BK$372,38,FALSE),"") ->  | AK12: =IFERROR(VLOOKUP($G12,'Technician Summary'!$G$7:$BK$372,27,FALSE),"") ->  | AL12: =IFERROR(VLOOKUP($G12,'Technician Summary'!$G$7:$BK$372,68,FALSE),"") -> 
B13: Performance Metrics | F13: Deantwan Page | G13: 6098 | H13: 7.5 | I13: =IFERROR(VLOOKUP($G13,'Technician Summary'!$G$7:$BB$372,2,FALSE),"") -> 3 | J13: =IFERROR(VLOOKUP($G13,'Technician Summary'!$G$7:$BN$372,60,FALSE),"") -> 0 | K13: 1 | L13: =IFERROR(VLOOKUP($G13,'Technician Summary'!$G$7:$BK$372,14,FALSE),"") -> 127 | M13: =IFERROR(VLOOKUP($G13,'Technician Summary'!$G$7:$BK$372,15,FALSE),"") -> 4 | N13: 0.0315 | O13: =IFERROR(VLOOKUP($G13,'Technician Summary'!$G$7:$BK$372,17,FALSE),"") -> 79 | P13: =IFERROR(VLOOKUP($G13,'Technician Summary'!$G$7:$BK$372,18,FALSE),"") -> 4 | Q13: 0.0506 | R13: =IFERROR(VLOOKUP($G13,'Technician Summary'!$G$7:$BK$372,20,FALSE),"") -> 48 | S13: =IFERROR(VLOOKUP($G13,'Technician Summary'!$G$7:$BK$372,21,FALSE),"") -> 0 | T13: 0 | U13: =IF(G13="","",COUNTIFS('StrataSync Data'!$AB:$AB,$G13,'StrataSync Data'!$G:$G,"Closed")) -> 80 | V13: =IF($G13="","",COUNTIFS('StrataSync Data'!$AB:$AB,$G13,'StrataSync Data'!$H:$H,"Yes",'StrataSync Data'!$G:$G,"Closed")) -> 79 | W13: 0.9875 | X13: =IFERROR(IF($G$7="","",COUNTIFS('StrataSync Data'!$AB:$AB,$G13,'StrataSync Data'!$I:$I,"Incomplete",'StrataSync Data'!$H:$H,"Yes",'StrataSync Data'!$G:$G,"Closed"))+IF($G13="","",COUNTIFS('StrataSync Data'!$AB:$AB,$G13,'StrataSync Data'!$I:$I,"Fail",'StrataSync Data'!$H:$H,"Yes",'StrataSync Data'!$G:$G,"Closed")),"") -> 0 | Y13: 1 | AA13: =IFERROR(SUM(Z13/#REF!),"") ->  | AB13: =IFERROR(VLOOKUP($G13,'Technician Summary'!$G$7:$BK$372,7,FALSE),"") -> 55 | AC13: =IFERROR(VLOOKUP($G13,'Technician Summary'!$G$7:$BK$372,8,FALSE),"") -> 1 | AD13: 0.9818 | AE13: =IFERROR(VLOOKUP($G13,'Technician Summary'!$G$7:$BK$372,34,FALSE),"") -> 40 | AF13: =IFERROR(VLOOKUP($G13,'Technician Summary'!$G$7:$BK$372,35,FALSE),"") -> 11 | AG13: 0.725 | AH13: =IFERROR(VLOOKUP($G13,'Technician Summary'!$G$7:$BK$372,37,FALSE),"") -> 164 | AI13: =IFERROR(VLOOKUP($G13,'Technician Summary'!$G$7:$BK$372,38,FALSE),"") -> 126 | AJ13: 0.7683 | AK13: =IFERROR(VLOOKUP($G13,'Technician Summary'!$G$7:$BK$372,27,FALSE),"") -> 0 | AL13: =IFERROR(VLOOKUP($G13,'Technician Summary'!$G$7:$BK$372,68,FALSE),"") -> 
B14: Gainesville | F14: Lucious Jackson | G14: 84884 | I14: =IFERROR(VLOOKUP($G14,'Technician Summary'!$G$7:$BB$372,2,FALSE),"") ->  | J14: =IFERROR(VLOOKUP($G14,'Technician Summary'!$G$7:$BN$372,60,FALSE),"") ->  | L14: =IFERROR(VLOOKUP($G14,'Technician Summary'!$G$7:$BK$372,14,FALSE),"") ->  | M14: =IFERROR(VLOOKUP($G14,'Technician Summary'!$G$7:$BK$372,15,FALSE),"") ->  | O14: =IFERROR(VLOOKUP($G14,'Technician Summary'!$G$7:$BK$372,17,FALSE),"") ->  | P14: =IFERROR(VLOOKUP($G14,'Technician Summary'!$G$7:$BK$372,18,FALSE),"") ->  | R14: =IFERROR(VLOOKUP($G14,'Technician Summary'!$G$7:$BK$372,20,FALSE),"") ->  | S14: =IFERROR(VLOOKUP($G14,'Technician Summary'!$G$7:$BK$372,21,FALSE),"") ->  | U14: =IF(G14="","",COUNTIFS('StrataSync Data'!$AB:$AB,$G14,'StrataSync Data'!$G:$G,"Closed")) -> 0 | V14: =IF($G14="","",COUNTIFS('StrataSync Data'!$AB:$AB,$G14,'StrataSync Data'!$H:$H,"Yes",'StrataSync Data'!$G:$G,"Closed")) -> 0 | X14: =IFERROR(IF($G$7="","",COUNTIFS('StrataSync Data'!$AB:$AB,$G14,'StrataSync Data'!$I:$I,"Incomplete",'StrataSync Data'!$H:$H,"Yes",'StrataSync Data'!$G:$G,"Closed"))+IF($G14="","",COUNTIFS('StrataSync Data'!$AB:$AB,$G14,'StrataSync Data'!$I:$I,"Fail",'StrataSync Data'!$H:$H,"Yes",'StrataSync Data'!$G:$G,"Closed")),"") -> 0 | AA14: =IFERROR(SUM(Z14/#REF!),"") ->  | AB14: =IFERROR(VLOOKUP($G14,'Technician Summary'!$G$7:$BK$372,7,FALSE),"") ->  | AC14: =IFERROR(VLOOKUP($G14,'Technician Summary'!$G$7:$BK$372,8,FALSE),"") ->  | AE14: =IFERROR(VLOOKUP($G14,'Technician Summary'!$G$7:$BK$372,34,FALSE),"") ->  | AF14: =IFERROR(VLOOKUP($G14,'Technician Summary'!$G$7:$BK$372,35,FALSE),"") ->  | AH14: =IFERROR(VLOOKUP($G14,'Technician Summary'!$G$7:$BK$372,37,FALSE),"") ->  | AI14: =IFERROR(VLOOKUP($G14,'Technician Summary'!$G$7:$BK$372,38,FALSE),"") ->  | AK14: =IFERROR(VLOOKUP($G14,'Technician Summary'!$G$7:$BK$372,27,FALSE),"") ->  | AL14: =IFERROR(VLOOKUP($G14,'Technician Summary'!$G$7:$BK$372,68,FALSE),"") -> 
B15: Macon | F15: Kirk Holder | G15: 31441 | H15: 2.5 | I15: =IFERROR(VLOOKUP($G15,'Technician Summary'!$G$7:$BB$372,2,FALSE),"") -> 4 | J15: =IFERROR(VLOOKUP($G15,'Technician Summary'!$G$7:$BN$372,60,FALSE),"") -> 2 | K15: 0.5 | L15: =IFERROR(VLOOKUP($G15,'Technician Summary'!$G$7:$BK$372,14,FALSE),"") -> 128 | M15: =IFERROR(VLOOKUP($G15,'Technician Summary'!$G$7:$BK$372,15,FALSE),"") -> 3 | N15: 0.0234 | O15: =IFERROR(VLOOKUP($G15,'Technician Summary'!$G$7:$BK$372,17,FALSE),"") -> 65 | P15: =IFERROR(VLOOKUP($G15,'Technician Summary'!$G$7:$BK$372,18,FALSE),"") -> 2 | Q15: 0.0308 | R15: =IFERROR(VLOOKUP($G15,'Technician Summary'!$G$7:$BK$372,20,FALSE),"") -> 63 | S15: =IFERROR(VLOOKUP($G15,'Technician Summary'!$G$7:$BK$372,21,FALSE),"") -> 1 | T15: 0.0159 | U15: =IF(G15="","",COUNTIFS('StrataSync Data'!$AB:$AB,$G15,'StrataSync Data'!$G:$G,"Closed")) -> 108 | V15: =IF($G15="","",COUNTIFS('StrataSync Data'!$AB:$AB,$G15,'StrataSync Data'!$H:$H,"Yes",'StrataSync Data'!$G:$G,"Closed")) -> 95 | W15: 0.8796 | X15: =IFERROR(IF($G$7="","",COUNTIFS('StrataSync Data'!$AB:$AB,$G15,'StrataSync Data'!$I:$I,"Incomplete",'StrataSync Data'!$H:$H,"Yes",'StrataSync Data'!$G:$G,"Closed"))+IF($G15="","",COUNTIFS('StrataSync Data'!$AB:$AB,$G15,'StrataSync Data'!$I:$I,"Fail",'StrataSync Data'!$H:$H,"Yes",'StrataSync Data'!$G:$G,"Closed")),"") -> 0 | Y15: 1 | AA15: =IFERROR(SUM(Z15/#REF!),"") ->  | AB15: =IFERROR(VLOOKUP($G15,'Technician Summary'!$G$7:$BK$372,7,FALSE),"") -> 59 | AC15: =IFERROR(VLOOKUP($G15,'Technician Summary'!$G$7:$BK$372,8,FALSE),"") -> 2 | AD15: 0.9661 | AE15: =IFERROR(VLOOKUP($G15,'Technician Summary'!$G$7:$BK$372,34,FALSE),"") -> 46 | AF15: =IFERROR(VLOOKUP($G15,'Technician Summary'!$G$7:$BK$372,35,FALSE),"") -> 12 | AG15: 0.7391 | AH15: =IFERROR(VLOOKUP($G15,'Technician Summary'!$G$7:$BK$372,37,FALSE),"") -> 164 | AI15: =IFERROR(VLOOKUP($G15,'Technician Summary'!$G$7:$BK$372,38,FALSE),"") -> 128 | AJ15: 0.7805 | AK15: =IFERROR(VLOOKUP($G15,'Technician Summary'!$G$7:$BK$372,27,FALSE),"") -> 0 | AL15: =IFERROR(VLOOKUP($G15,'Technician Summary'!$G$7:$BK$372,68,FALSE),"") -> 
B16: New Orleans | F16: Damon Stewart | G16: 99414 | H16: 5 | I16: =IFERROR(VLOOKUP($G16,'Technician Summary'!$G$7:$BB$372,2,FALSE),"") -> 3 | J16: =IFERROR(VLOOKUP($G16,'Technician Summary'!$G$7:$BN$372,60,FALSE),"") -> 0 | K16: 1 | L16: =IFERROR(VLOOKUP($G16,'Technician Summary'!$G$7:$BK$372,14,FALSE),"") -> 93 | M16: =IFERROR(VLOOKUP($G16,'Technician Summary'!$G$7:$BK$372,15,FALSE),"") -> 3 | N16: 0.0323 | O16: =IFERROR(VLOOKUP($G16,'Technician Summary'!$G$7:$BK$372,17,FALSE),"") -> 42 | P16: =IFERROR(VLOOKUP($G16,'Technician Summary'!$G$7:$BK$372,18,FALSE),"") -> 1 | Q16: 0.0238 | R16: =IFERROR(VLOOKUP($G16,'Technician Summary'!$G$7:$BK$372,20,FALSE),"") -> 51 | S16: =IFERROR(VLOOKUP($G16,'Technician Summary'!$G$7:$BK$372,21,FALSE),"") -> 2 | T16: 0.0392 | U16: =IF(G16="","",COUNTIFS('StrataSync Data'!$AB:$AB,$G16,'StrataSync Data'!$G:$G,"Closed")) -> 73 | V16: =IF($G16="","",COUNTIFS('StrataSync Data'!$AB:$AB,$G16,'StrataSync Data'!$H:$H,"Yes",'StrataSync Data'!$G:$G,"Closed")) -> 50 | W16: 0.6849 | X16: =IFERROR(IF($G$7="","",COUNTIFS('StrataSync Data'!$AB:$AB,$G16,'StrataSync Data'!$I:$I,"Incomplete",'StrataSync Data'!$H:$H,"Yes",'StrataSync Data'!$G:$G,"Closed"))+IF($G16="","",COUNTIFS('StrataSync Data'!$AB:$AB,$G16,'StrataSync Data'!$I:$I,"Fail",'StrataSync Data'!$H:$H,"Yes",'StrataSync Data'!$G:$G,"Closed")),"") -> 3 | Y16: 0.94 | AA16: =IFERROR(SUM(Z16/#REF!),"") ->  | AB16: =IFERROR(VLOOKUP($G16,'Technician Summary'!$G$7:$BK$372,7,FALSE),"") -> 44 | AC16: =IFERROR(VLOOKUP($G16,'Technician Summary'!$G$7:$BK$372,8,FALSE),"") -> 2 | AD16: 0.9545 | AE16: =IFERROR(VLOOKUP($G16,'Technician Summary'!$G$7:$BK$372,34,FALSE),"") -> 24 | AF16: =IFERROR(VLOOKUP($G16,'Technician Summary'!$G$7:$BK$372,35,FALSE),"") -> 4 | AG16: 0.8333 | AH16: =IFERROR(VLOOKUP($G16,'Technician Summary'!$G$7:$BK$372,37,FALSE),"") -> 114 | AI16: =IFERROR(VLOOKUP($G16,'Technician Summary'!$G$7:$BK$372,38,FALSE),"") -> 92 | AJ16: 0.807 | AK16: =IFERROR(VLOOKUP($G16,'Technician Summary'!$G$7:$BK$372,27,FALSE),"") -> 0 | AL16: =IFERROR(VLOOKUP($G16,'Technician Summary'!$G$7:$BK$372,68,FALSE),"") -> 
B17: Hampton Roads | F17: Steven sylvester | G17: 97732 | H17: 5 | I17: =IFERROR(VLOOKUP($G17,'Technician Summary'!$G$7:$BB$372,2,FALSE),"") -> 3 | J17: =IFERROR(VLOOKUP($G17,'Technician Summary'!$G$7:$BN$372,60,FALSE),"") -> 0.9999 | K17: 0.6667 | L17: =IFERROR(VLOOKUP($G17,'Technician Summary'!$G$7:$BK$372,14,FALSE),"") -> 96 | M17: =IFERROR(VLOOKUP($G17,'Technician Summary'!$G$7:$BK$372,15,FALSE),"") -> 3 | N17: 0.0313 | O17: =IFERROR(VLOOKUP($G17,'Technician Summary'!$G$7:$BK$372,17,FALSE),"") -> 63 | P17: =IFERROR(VLOOKUP($G17,'Technician Summary'!$G$7:$BK$372,18,FALSE),"") -> 2 | Q17: 0.0317 | R17: =IFERROR(VLOOKUP($G17,'Technician Summary'!$G$7:$BK$372,20,FALSE),"") -> 33 | S17: =IFERROR(VLOOKUP($G17,'Technician Summary'!$G$7:$BK$372,21,FALSE),"") -> 1 | T17: 0.0303 | U17: =IF(G17="","",COUNTIFS('StrataSync Data'!$AB:$AB,$G17,'StrataSync Data'!$G:$G,"Closed")) -> 51 | V17: =IF($G17="","",COUNTIFS('StrataSync Data'!$AB:$AB,$G17,'StrataSync Data'!$H:$H,"Yes",'StrataSync Data'!$G:$G,"Closed")) -> 46 | W17: 0.902 | X17: =IFERROR(IF($G$7="","",COUNTIFS('StrataSync Data'!$AB:$AB,$G17,'StrataSync Data'!$I:$I,"Incomplete",'StrataSync Data'!$H:$H,"Yes",'StrataSync Data'!$G:$G,"Closed"))+IF($G17="","",COUNTIFS('StrataSync Data'!$AB:$AB,$G17,'StrataSync Data'!$I:$I,"Fail",'StrataSync Data'!$H:$H,"Yes",'StrataSync Data'!$G:$G,"Closed")),"") -> 0 | Y17: 1 | AA17: =IFERROR(SUM(Z17/#REF!),"") ->  | AB17: =IFERROR(VLOOKUP($G17,'Technician Summary'!$G$7:$BK$372,7,FALSE),"") -> 33 | AC17: =IFERROR(VLOOKUP($G17,'Technician Summary'!$G$7:$BK$372,8,FALSE),"") -> 1 | AD17: 0.9697 | AE17: =IFERROR(VLOOKUP($G17,'Technician Summary'!$G$7:$BK$372,34,FALSE),"") -> 22 | AF17: =IFERROR(VLOOKUP($G17,'Technician Summary'!$G$7:$BK$372,35,FALSE),"") -> 4 | AG17: 0.8182 | AH17: =IFERROR(VLOOKUP($G17,'Technician Summary'!$G$7:$BK$372,37,FALSE),"") -> 124 | AI17: =IFERROR(VLOOKUP($G17,'Technician Summary'!$G$7:$BK$372,38,FALSE),"") -> 96 | AJ17: 0.7742 | AK17: =IFERROR(VLOOKUP($G17,'Technician Summary'!$G$7:$BK$372,27,FALSE),"") -> 0 | AL17: =IFERROR(VLOOKUP($G17,'Technician Summary'!$G$7:$BK$372,68,FALSE),"") -> 
B18: Baton Rouge | I18: =IFERROR(VLOOKUP($G18,'Technician Summary'!$G$7:$BB$372,2,FALSE),"") ->  | J18: =IFERROR(VLOOKUP($G18,'Technician Summary'!$G$7:$BN$372,60,FALSE),"") ->  | L18: =IFERROR(VLOOKUP($G18,'Technician Summary'!$G$7:$BK$372,14,FALSE),"") ->  | M18: =IFERROR(VLOOKUP($G18,'Technician Summary'!$G$7:$BK$372,15,FALSE),"") ->  | O18: =IFERROR(VLOOKUP($G18,'Technician Summary'!$G$7:$BK$372,17,FALSE),"") ->  | P18: =IFERROR(VLOOKUP($G18,'Technician Summary'!$G$7:$BK$372,18,FALSE),"") ->  | R18: =IFERROR(VLOOKUP($G18,'Technician Summary'!$G$7:$BK$372,20,FALSE),"") ->  | S18: =IFERROR(VLOOKUP($G18,'Technician Summary'!$G$7:$BK$372,21,FALSE),"") ->  | U18: =IF(G18="","",COUNTIFS('StrataSync Data'!$AB:$AB,$G18,'StrataSync Data'!$G:$G,"Closed")) ->  | V18: =IF($G18="","",COUNTIFS('StrataSync Data'!$AB:$AB,$G18,'StrataSync Data'!$H:$H,"Yes",'StrataSync Data'!$G:$G,"Closed")) ->  | X18: =IFERROR(IF($G$7="","",COUNTIFS('StrataSync Data'!$AB:$AB,$G18,'StrataSync Data'!$I:$I,"Incomplete",'StrataSync Data'!$H:$H,"Yes",'StrataSync Data'!$G:$G,"Closed"))+IF($G18="","",COUNTIFS('StrataSync Data'!$AB:$AB,$G18,'StrataSync Data'!$I:$I,"Fail",'StrataSync Data'!$H:$H,"Yes",'StrataSync Data'!$G:$G,"Closed")),"") ->  | AA18: =IFERROR(SUM(Z18/#REF!),"") ->  | AB18: =IFERROR(VLOOKUP($G18,'Technician Summary'!$G$7:$BK$372,7,FALSE),"") ->  | AC18: =IFERROR(VLOOKUP($G18,'Technician Summary'!$G$7:$BK$372,8,FALSE),"") ->  | AE18: =IFERROR(VLOOKUP($G18,'Technician Summary'!$G$7:$BK$372,34,FALSE),"") ->  | AF18: =IFERROR(VLOOKUP($G18,'Technician Summary'!$G$7:$BK$372,35,FALSE),"") ->  | AH18: =IFERROR(VLOOKUP($G18,'Technician Summary'!$G$7:$BK$372,37,FALSE),"") ->  | AI18: =IFERROR(VLOOKUP($G18,'Technician Summary'!$G$7:$BK$372,38,FALSE),"") ->  | AK18: =IFERROR(VLOOKUP($G18,'Technician Summary'!$G$7:$BK$372,27,FALSE),"") ->  | AL18: =IFERROR(VLOOKUP($G18,'Technician Summary'!$G$7:$BK$372,68,FALSE),"") -> 
B19: Roanoke | I19: =IFERROR(VLOOKUP($G19,'Technician Summary'!$G$7:$BB$372,2,FALSE),"") ->  | J19: =IFERROR(VLOOKUP($G19,'Technician Summary'!$G$7:$BN$372,60,FALSE),"") ->  | L19: =IFERROR(VLOOKUP($G19,'Technician Summary'!$G$7:$BK$372,14,FALSE),"") ->  | M19: =IFERROR(VLOOKUP($G19,'Technician Summary'!$G$7:$BK$372,15,FALSE),"") ->  | O19: =IFERROR(VLOOKUP($G19,'Technician Summary'!$G$7:$BK$372,17,FALSE),"") ->  | P19: =IFERROR(VLOOKUP($G19,'Technician Summary'!$G$7:$BK$372,18,FALSE),"") ->  | R19: =IFERROR(VLOOKUP($G19,'Technician Summary'!$G$7:$BK$372,20,FALSE),"") ->  | S19: =IFERROR(VLOOKUP($G19,'Technician Summary'!$G$7:$BK$372,21,FALSE),"") ->  | U19: =IF(G19="","",COUNTIFS('StrataSync Data'!$AB:$AB,$G19,'StrataSync Data'!$G:$G,"Closed")) ->  | V19: =IF($G19="","",COUNTIFS('StrataSync Data'!$AB:$AB,$G19,'StrataSync Data'!$H:$H,"Yes",'StrataSync Data'!$G:$G,"Closed")) ->  | X19: =IFERROR(IF($G$7="","",COUNTIFS('StrataSync Data'!$AB:$AB,$G19,'StrataSync Data'!$I:$I,"Incomplete",'StrataSync Data'!$H:$H,"Yes",'StrataSync Data'!$G:$G,"Closed"))+IF($G19="","",COUNTIFS('StrataSync Data'!$AB:$AB,$G19,'StrataSync Data'!$I:$I,"Fail",'StrataSync Data'!$H:$H,"Yes",'StrataSync Data'!$G:$G,"Closed")),"") ->  | AA19: =IFERROR(SUM(Z19/#REF!),"") ->  | AB19: =IFERROR(VLOOKUP($G19,'Technician Summary'!$G$7:$BK$372,7,FALSE),"") ->  | AC19: =IFERROR(VLOOKUP($G19,'Technician Summary'!$G$7:$BK$372,8,FALSE),"") ->  | AE19: =IFERROR(VLOOKUP($G19,'Technician Summary'!$G$7:$BK$372,34,FALSE),"") ->  | AF19: =IFERROR(VLOOKUP($G19,'Technician Summary'!$G$7:$BK$372,35,FALSE),"") ->  | AH19: =IFERROR(VLOOKUP($G19,'Technician Summary'!$G$7:$BK$372,37,FALSE),"") ->  | AI19: =IFERROR(VLOOKUP($G19,'Technician Summary'!$G$7:$BK$372,38,FALSE),"") ->  | AK19: =IFERROR(VLOOKUP($G19,'Technician Summary'!$G$7:$BK$372,27,FALSE),"") ->  | AL19: =IFERROR(VLOOKUP($G19,'Technician Summary'!$G$7:$BK$372,68,FALSE),"") -> 
B20: Gulf Coast | I20: =IFERROR(VLOOKUP($G20,'Technician Summary'!$G$7:$BB$372,2,FALSE),"") ->  | J20: =IFERROR(VLOOKUP($G20,'Technician Summary'!$G$7:$BN$372,60,FALSE),"") ->  | L20: =IFERROR(VLOOKUP($G20,'Technician Summary'!$G$7:$BK$372,14,FALSE),"") ->  | M20: =IFERROR(VLOOKUP($G20,'Technician Summary'!$G$7:$BK$372,15,FALSE),"") ->  | O20: =IFERROR(VLOOKUP($G20,'Technician Summary'!$G$7:$BK$372,17,FALSE),"") ->  | P20: =IFERROR(VLOOKUP($G20,'Technician Summary'!$G$7:$BK$372,18,FALSE),"") ->  | R20: =IFERROR(VLOOKUP($G20,'Technician Summary'!$G$7:$BK$372,20,FALSE),"") ->  | S20: =IFERROR(VLOOKUP($G20,'Technician Summary'!$G$7:$BK$372,21,FALSE),"") ->  | U20: =IF(G20="","",COUNTIFS('StrataSync Data'!$AB:$AB,$G20,'StrataSync Data'!$G:$G,"Closed")) ->  | V20: =IF($G20="","",COUNTIFS('StrataSync Data'!$AB:$AB,$G20,'StrataSync Data'!$H:$H,"Yes",'StrataSync Data'!$G:$G,"Closed")) ->  | X20: =IFERROR(IF($G$7="","",COUNTIFS('StrataSync Data'!$AB:$AB,$G20,'StrataSync Data'!$I:$I,"Incomplete",'StrataSync Data'!$H:$H,"Yes",'StrataSync Data'!$G:$G,"Closed"))+IF($G20="","",COUNTIFS('StrataSync Data'!$AB:$AB,$G20,'StrataSync Data'!$I:$I,"Fail",'StrataSync Data'!$H:$H,"Yes",'StrataSync Data'!$G:$G,"Closed")),"") ->  | AA20: =IFERROR(SUM(Z20/#REF!),"") ->  | AB20: =IFERROR(VLOOKUP($G20,'Technician Summary'!$G$7:$BK$372,7,FALSE),"") ->  | AC20: =IFERROR(VLOOKUP($G20,'Technician Summary'!$G$7:$BK$372,8,FALSE),"") ->  | AE20: =IFERROR(VLOOKUP($G20,'Technician Summary'!$G$7:$BK$372,34,FALSE),"") ->  | AF20: =IFERROR(VLOOKUP($G20,'Technician Summary'!$G$7:$BK$372,35,FALSE),"") ->  | AH20: =IFERROR(VLOOKUP($G20,'Technician Summary'!$G$7:$BK$372,37,FALSE),"") ->  | AI20: =IFERROR(VLOOKUP($G20,'Technician Summary'!$G$7:$BK$372,38,FALSE),"") ->  | AK20: =IFERROR(VLOOKUP($G20,'Technician Summary'!$G$7:$BK$372,27,FALSE),"") ->  | AL20: =IFERROR(VLOOKUP($G20,'Technician Summary'!$G$7:$BK$372,68,FALSE),"") -> 
B21: Oklahoma City | I21: =IFERROR(VLOOKUP($G21,'Technician Summary'!$G$7:$BB$372,2,FALSE),"") ->  | J21: =IFERROR(VLOOKUP($G21,'Technician Summary'!$G$7:$BN$372,60,FALSE),"") ->  | L21: =IFERROR(VLOOKUP($G21,'Technician Summary'!$G$7:$BK$372,14,FALSE),"") ->  | M21: =IFERROR(VLOOKUP($G21,'Technician Summary'!$G$7:$BK$372,15,FALSE),"") ->  | O21: =IFERROR(VLOOKUP($G21,'Technician Summary'!$G$7:$BK$372,17,FALSE),"") ->  | P21: =IFERROR(VLOOKUP($G21,'Technician Summary'!$G$7:$BK$372,18,FALSE),"") ->  | R21: =IFERROR(VLOOKUP($G21,'Technician Summary'!$G$7:$BK$372,20,FALSE),"") ->  | S21: =IFERROR(VLOOKUP($G21,'Technician Summary'!$G$7:$BK$372,21,FALSE),"") ->  | U21: =IF(G21="","",COUNTIFS('StrataSync Data'!$AB:$AB,$G21,'StrataSync Data'!$G:$G,"Closed")) ->  | V21: =IF($G21="","",COUNTIFS('StrataSync Data'!$AB:$AB,$G21,'StrataSync Data'!$H:$H,"Yes",'StrataSync Data'!$G:$G,"Closed")) ->  | X21: =IFERROR(IF($G$7="","",COUNTIFS('StrataSync Data'!$AB:$AB,$G21,'StrataSync Data'!$I:$I,"Incomplete",'StrataSync Data'!$H:$H,"Yes",'StrataSync Data'!$G:$G,"Closed"))+IF($G21="","",COUNTIFS('StrataSync Data'!$AB:$AB,$G21,'StrataSync Data'!$I:$I,"Fail",'StrataSync Data'!$H:$H,"Yes",'StrataSync Data'!$G:$G,"Closed")),"") ->  | AA21: =IFERROR(SUM(Z21/#REF!),"") ->  | AB21: =IFERROR(VLOOKUP($G21,'Technician Summary'!$G$7:$BK$372,7,FALSE),"") ->  | AC21: =IFERROR(VLOOKUP($G21,'Technician Summary'!$G$7:$BK$372,8,FALSE),"") ->  | AE21: =IFERROR(VLOOKUP($G21,'Technician Summary'!$G$7:$BK$372,34,FALSE),"") ->  | AF21: =IFERROR(VLOOKUP($G21,'Technician Summary'!$G$7:$BK$372,35,FALSE),"") ->  | AH21: =IFERROR(VLOOKUP($G21,'Technician Summary'!$G$7:$BK$372,37,FALSE),"") ->  | AI21: =IFERROR(VLOOKUP($G21,'Technician Summary'!$G$7:$BK$372,38,FALSE),"") ->  | AK21: =IFERROR(VLOOKUP($G21,'Technician Summary'!$G$7:$BK$372,27,FALSE),"") ->  | AL21: =IFERROR(VLOOKUP($G21,'Technician Summary'!$G$7:$BK$372,68,FALSE),"") -> 
B22: Tech Rankings | I22: =IFERROR(VLOOKUP($G22,'Technician Summary'!$G$7:$BB$372,2,FALSE),"") ->  | J22: =IFERROR(VLOOKUP($G22,'Technician Summary'!$G$7:$BN$372,60,FALSE),"") ->  | L22: =IFERROR(VLOOKUP($G22,'Technician Summary'!$G$7:$BK$372,14,FALSE),"") ->  | M22: =IFERROR(VLOOKUP($G22,'Technician Summary'!$G$7:$BK$372,15,FALSE),"") ->  | O22: =IFERROR(VLOOKUP($G22,'Technician Summary'!$G$7:$BK$372,17,FALSE),"") ->  | P22: =IFERROR(VLOOKUP($G22,'Technician Summary'!$G$7:$BK$372,18,FALSE),"") ->  | R22: =IFERROR(VLOOKUP($G22,'Technician Summary'!$G$7:$BK$372,20,FALSE),"") ->  | S22: =IFERROR(VLOOKUP($G22,'Technician Summary'!$G$7:$BK$372,21,FALSE),"") ->  | U22: =IF(G22="","",COUNTIFS('StrataSync Data'!$AB:$AB,$G22,'StrataSync Data'!$G:$G,"Closed")) ->  | V22: =IF($G22="","",COUNTIFS('StrataSync Data'!$AB:$AB,$G22,'StrataSync Data'!$H:$H,"Yes",'StrataSync Data'!$G:$G,"Closed")) ->  | X22: =IFERROR(IF($G$7="","",COUNTIFS('StrataSync Data'!$AB:$AB,$G22,'StrataSync Data'!$I:$I,"Incomplete",'StrataSync Data'!$H:$H,"Yes",'StrataSync Data'!$G:$G,"Closed"))+IF($G22="","",COUNTIFS('StrataSync Data'!$AB:$AB,$G22,'StrataSync Data'!$I:$I,"Fail",'StrataSync Data'!$H:$H,"Yes",'StrataSync Data'!$G:$G,"Closed")),"") ->  | AA22: =IFERROR(SUM(Z22/#REF!),"") ->  | AB22: =IFERROR(VLOOKUP($G22,'Technician Summary'!$G$7:$BK$372,7,FALSE),"") ->  | AC22: =IFERROR(VLOOKUP($G22,'Technician Summary'!$G$7:$BK$372,8,FALSE),"") ->  | AE22: =IFERROR(VLOOKUP($G22,'Technician Summary'!$G$7:$BK$372,34,FALSE),"") ->  | AF22: =IFERROR(VLOOKUP($G22,'Technician Summary'!$G$7:$BK$372,35,FALSE),"") ->  | AH22: =IFERROR(VLOOKUP($G22,'Technician Summary'!$G$7:$BK$372,37,FALSE),"") ->  | AI22: =IFERROR(VLOOKUP($G22,'Technician Summary'!$G$7:$BK$372,38,FALSE),"") ->  | AK22: =IFERROR(VLOOKUP($G22,'Technician Summary'!$G$7:$BK$372,27,FALSE),"") ->  | AL22: =IFERROR(VLOOKUP($G22,'Technician Summary'!$G$7:$BK$372,68,FALSE),"") -> 
I23: =IFERROR(VLOOKUP($G23,'Technician Summary'!$G$7:$BB$372,2,FALSE),"") ->  | J23: =IFERROR(VLOOKUP($G23,'Technician Summary'!$G$7:$BN$372,60,FALSE),"") ->  | L23: =IFERROR(VLOOKUP($G23,'Technician Summary'!$G$7:$BK$372,14,FALSE),"") ->  | M23: =IFERROR(VLOOKUP($G23,'Technician Summary'!$G$7:$BK$372,15,FALSE),"") ->  | O23: =IFERROR(VLOOKUP($G23,'Technician Summary'!$G$7:$BK$372,17,FALSE),"") ->  | P23: =IFERROR(VLOOKUP($G23,'Technician Summary'!$G$7:$BK$372,18,FALSE),"") ->  | R23: =IFERROR(VLOOKUP($G23,'Technician Summary'!$G$7:$BK$372,20,FALSE),"") ->  | S23: =IFERROR(VLOOKUP($G23,'Technician Summary'!$G$7:$BK$372,21,FALSE),"") ->  | U23: =IF(G23="","",COUNTIFS('StrataSync Data'!$AB:$AB,$G23,'StrataSync Data'!$G:$G,"Closed")) ->  | V23: =IF($G23="","",COUNTIFS('StrataSync Data'!$AB:$AB,$G23,'StrataSync Data'!$H:$H,"Yes",'StrataSync Data'!$G:$G,"Closed")) ->  | X23: =IFERROR(IF($G$7="","",COUNTIFS('StrataSync Data'!$AB:$AB,$G23,'StrataSync Data'!$I:$I,"Incomplete",'StrataSync Data'!$H:$H,"Yes",'StrataSync Data'!$G:$G,"Closed"))+IF($G23="","",COUNTIFS('StrataSync Data'!$AB:$AB,$G23,'StrataSync Data'!$I:$I,"Fail",'StrataSync Data'!$H:$H,"Yes",'StrataSync Data'!$G:$G,"Closed")),"") ->  | AA23: =IFERROR(SUM(Z23/#REF!),"") ->  | AB23: =IFERROR(VLOOKUP($G23,'Technician Summary'!$G$7:$BK$372,7,FALSE),"") ->  | AC23: =IFERROR(VLOOKUP($G23,'Technician Summary'!$G$7:$BK$372,8,FALSE),"") ->  | AE23: =IFERROR(VLOOKUP($G23,'Technician Summary'!$G$7:$BK$372,34,FALSE),"") ->  | AF23: =IFERROR(VLOOKUP($G23,'Technician Summary'!$G$7:$BK$372,35,FALSE),"") ->  | AH23: =IFERROR(VLOOKUP($G23,'Technician Summary'!$G$7:$BK$372,37,FALSE),"") ->  | AI23: =IFERROR(VLOOKUP($G23,'Technician Summary'!$G$7:$BK$372,38,FALSE),"") ->  | AK23: =IFERROR(VLOOKUP($G23,'Technician Summary'!$G$7:$BK$372,27,FALSE),"") ->  | AL23: =IFERROR(VLOOKUP($G23,'Technician Summary'!$G$7:$BK$372,68,FALSE),"") -> 
B24: Raw Data | I24: =IFERROR(VLOOKUP($G24,'Technician Summary'!$G$7:$BB$372,2,FALSE),"") ->  | J24: =IFERROR(VLOOKUP($G24,'Technician Summary'!$G$7:$BN$372,60,FALSE),"") ->  | L24: =IFERROR(VLOOKUP($G24,'Technician Summary'!$G$7:$BK$372,14,FALSE),"") ->  | M24: =IFERROR(VLOOKUP($G24,'Technician Summary'!$G$7:$BK$372,15,FALSE),"") ->  | O24: =IFERROR(VLOOKUP($G24,'Technician Summary'!$G$7:$BK$372,17,FALSE),"") ->  | P24: =IFERROR(VLOOKUP($G24,'Technician Summary'!$G$7:$BK$372,18,FALSE),"") ->  | R24: =IFERROR(VLOOKUP($G24,'Technician Summary'!$G$7:$BK$372,20,FALSE),"") ->  | S24: =IFERROR(VLOOKUP($G24,'Technician Summary'!$G$7:$BK$372,21,FALSE),"") ->  | U24: =IF(G24="","",COUNTIFS('StrataSync Data'!$AB:$AB,$G24,'StrataSync Data'!$G:$G,"Closed")) ->  | V24: =IF($G24="","",COUNTIFS('StrataSync Data'!$AB:$AB,$G24,'StrataSync Data'!$H:$H,"Yes",'StrataSync Data'!$G:$G,"Closed")) ->  | X24: =IFERROR(IF($G$7="","",COUNTIFS('StrataSync Data'!$AB:$AB,$G24,'StrataSync Data'!$I:$I,"Incomplete",'StrataSync Data'!$H:$H,"Yes",'StrataSync Data'!$G:$G,"Closed"))+IF($G24="","",COUNTIFS('StrataSync Data'!$AB:$AB,$G24,'StrataSync Data'!$I:$I,"Fail",'StrataSync Data'!$H:$H,"Yes",'StrataSync Data'!$G:$G,"Closed")),"") ->  | AA24: =IFERROR(SUM(Z24/#REF!),"") ->  | AB24: =IFERROR(VLOOKUP($G24,'Technician Summary'!$G$7:$BK$372,7,FALSE),"") ->  | AC24: =IFERROR(VLOOKUP($G24,'Technician Summary'!$G$7:$BK$372,8,FALSE),"") ->  | AE24: =IFERROR(VLOOKUP($G24,'Technician Summary'!$G$7:$BK$372,34,FALSE),"") ->  | AF24: =IFERROR(VLOOKUP($G24,'Technician Summary'!$G$7:$BK$372,35,FALSE),"") ->  | AH24: =IFERROR(VLOOKUP($G24,'Technician Summary'!$G$7:$BK$372,37,FALSE),"") ->  | AI24: =IFERROR(VLOOKUP($G24,'Technician Summary'!$G$7:$BK$372,38,FALSE),"") ->  | AK24: =IFERROR(VLOOKUP($G24,'Technician Summary'!$G$7:$BK$372,27,FALSE),"") ->  | AL24: =IFERROR(VLOOKUP($G24,'Technician Summary'!$G$7:$BK$372,68,FALSE),"") -> 
I25: =IFERROR(VLOOKUP($G25,'Technician Summary'!$G$7:$BB$372,2,FALSE),"") ->  | J25: =IFERROR(VLOOKUP($G25,'Technician Summary'!$G$7:$BN$372,60,FALSE),"") ->  | L25: =IFERROR(VLOOKUP($G25,'Technician Summary'!$G$7:$BK$372,14,FALSE),"") ->  | M25: =IFERROR(VLOOKUP($G25,'Technician Summary'!$G$7:$BK$372,15,FALSE),"") ->  | O25: =IFERROR(VLOOKUP($G25,'Technician Summary'!$G$7:$BK$372,17,FALSE),"") ->  | P25: =IFERROR(VLOOKUP($G25,'Technician Summary'!$G$7:$BK$372,18,FALSE),"") ->  | R25: =IFERROR(VLOOKUP($G25,'Technician Summary'!$G$7:$BK$372,20,FALSE),"") ->  | S25: =IFERROR(VLOOKUP($G25,'Technician Summary'!$G$7:$BK$372,21,FALSE),"") ->  | U25: =IF(G25="","",COUNTIFS('StrataSync Data'!$AB:$AB,$G25,'StrataSync Data'!$G:$G,"Closed")) ->  | V25: =IF($G25="","",COUNTIFS('StrataSync Data'!$AB:$AB,$G25,'StrataSync Data'!$H:$H,"Yes",'StrataSync Data'!$G:$G,"Closed")) ->  | X25: =IFERROR(IF($G$7="","",COUNTIFS('StrataSync Data'!$AB:$AB,$G25,'StrataSync Data'!$I:$I,"Incomplete",'StrataSync Data'!$H:$H,"Yes",'StrataSync Data'!$G:$G,"Closed"))+IF($G25="","",COUNTIFS('StrataSync Data'!$AB:$AB,$G25,'StrataSync Data'!$I:$I,"Fail",'StrataSync Data'!$H:$H,"Yes",'StrataSync Data'!$G:$G,"Closed")),"") ->  | AA25: =IFERROR(SUM(Z25/#REF!),"") ->  | AB25: =IFERROR(VLOOKUP($G25,'Technician Summary'!$G$7:$BK$372,7,FALSE),"") ->  | AC25: =IFERROR(VLOOKUP($G25,'Technician Summary'!$G$7:$BK$372,8,FALSE),"") ->  | AE25: =IFERROR(VLOOKUP($G25,'Technician Summary'!$G$7:$BK$372,34,FALSE),"") ->  | AF25: =IFERROR(VLOOKUP($G25,'Technician Summary'!$G$7:$BK$372,35,FALSE),"") ->  | AH25: =IFERROR(VLOOKUP($G25,'Technician Summary'!$G$7:$BK$372,37,FALSE),"") ->  | AI25: =IFERROR(VLOOKUP($G25,'Technician Summary'!$G$7:$BK$372,38,FALSE),"") ->  | AK25: =IFERROR(VLOOKUP($G25,'Technician Summary'!$G$7:$BK$372,27,FALSE),"") ->  | AL25: =IFERROR(VLOOKUP($G25,'Technician Summary'!$G$7:$BK$372,68,FALSE),"") -> 
I26: =IFERROR(VLOOKUP($G26,'Technician Summary'!$G$7:$BB$372,2,FALSE),"") ->  | J26: =IFERROR(VLOOKUP($G26,'Technician Summary'!$G$7:$BN$372,60,FALSE),"") ->  | L26: =IFERROR(VLOOKUP($G26,'Technician Summary'!$G$7:$BK$372,14,FALSE),"") ->  | M26: =IFERROR(VLOOKUP($G26,'Technician Summary'!$G$7:$BK$372,15,FALSE),"") ->  | O26: =IFERROR(VLOOKUP($G26,'Technician Summary'!$G$7:$BK$372,17,FALSE),"") ->  | P26: =IFERROR(VLOOKUP($G26,'Technician Summary'!$G$7:$BK$372,18,FALSE),"") ->  | R26: =IFERROR(VLOOKUP($G26,'Technician Summary'!$G$7:$BK$372,20,FALSE),"") ->  | S26: =IFERROR(VLOOKUP($G26,'Technician Summary'!$G$7:$BK$372,21,FALSE),"") ->  | U26: =IF(G26="","",COUNTIFS('StrataSync Data'!$AB:$AB,$G26,'StrataSync Data'!$G:$G,"Closed")) ->  | V26: =IF($G26="","",COUNTIFS('StrataSync Data'!$AB:$AB,$G26,'StrataSync Data'!$H:$H,"Yes",'StrataSync Data'!$G:$G,"Closed")) ->  | X26: =IFERROR(IF($G$7="","",COUNTIFS('StrataSync Data'!$AB:$AB,$G26,'StrataSync Data'!$I:$I,"Incomplete",'StrataSync Data'!$H:$H,"Yes",'StrataSync Data'!$G:$G,"Closed"))+IF($G26="","",COUNTIFS('StrataSync Data'!$AB:$AB,$G26,'StrataSync Data'!$I:$I,"Fail",'StrataSync Data'!$H:$H,"Yes",'StrataSync Data'!$G:$G,"Closed")),"") ->  | AA26: =IFERROR(SUM(Z26/#REF!),"") ->  | AB26: =IFERROR(VLOOKUP($G26,'Technician Summary'!$G$7:$BK$372,7,FALSE),"") ->  | AC26: =IFERROR(VLOOKUP($G26,'Technician Summary'!$G$7:$BK$372,8,FALSE),"") ->  | AE26: =IFERROR(VLOOKUP($G26,'Technician Summary'!$G$7:$BK$372,34,FALSE),"") ->  | AF26: =IFERROR(VLOOKUP($G26,'Technician Summary'!$G$7:$BK$372,35,FALSE),"") ->  | AH26: =IFERROR(VLOOKUP($G26,'Technician Summary'!$G$7:$BK$372,37,FALSE),"") ->  | AI26: =IFERROR(VLOOKUP($G26,'Technician Summary'!$G$7:$BK$372,38,FALSE),"") ->  | AK26: =IFERROR(VLOOKUP($G26,'Technician Summary'!$G$7:$BK$372,27,FALSE),"") ->  | AL26: =IFERROR(VLOOKUP($G26,'Technician Summary'!$G$7:$BK$372,68,FALSE),"") -> 
I27: =IFERROR(VLOOKUP($G27,'Technician Summary'!$G$7:$BB$372,2,FALSE),"") ->  | J27: =IFERROR(VLOOKUP($G27,'Technician Summary'!$G$7:$BN$372,60,FALSE),"") ->  | L27: =IFERROR(VLOOKUP($G27,'Technician Summary'!$G$7:$BK$372,14,FALSE),"") ->  | M27: =IFERROR(VLOOKUP($G27,'Technician Summary'!$G$7:$BK$372,15,FALSE),"") ->  | O27: =IFERROR(VLOOKUP($G27,'Technician Summary'!$G$7:$BK$372,17,FALSE),"") ->  | P27: =IFERROR(VLOOKUP($G27,'Technician Summary'!$G$7:$BK$372,18,FALSE),"") ->  | R27: =IFERROR(VLOOKUP($G27,'Technician Summary'!$G$7:$BK$372,20,FALSE),"") ->  | S27: =IFERROR(VLOOKUP($G27,'Technician Summary'!$G$7:$BK$372,21,FALSE),"") ->  | U27: =IF(G27="","",COUNTIFS('StrataSync Data'!$AB:$AB,$G27,'StrataSync Data'!$G:$G,"Closed")) ->  | V27: =IF($G27="","",COUNTIFS('StrataSync Data'!$AB:$AB,$G27,'StrataSync Data'!$H:$H,"Yes",'StrataSync Data'!$G:$G,"Closed")) ->  | X27: =IFERROR(IF($G$7="","",COUNTIFS('StrataSync Data'!$AB:$AB,$G27,'StrataSync Data'!$I:$I,"Incomplete",'StrataSync Data'!$H:$H,"Yes",'StrataSync Data'!$G:$G,"Closed"))+IF($G27="","",COUNTIFS('StrataSync Data'!$AB:$AB,$G27,'StrataSync Data'!$I:$I,"Fail",'StrataSync Data'!$H:$H,"Yes",'StrataSync Data'!$G:$G,"Closed")),"") ->  | AA27: =IFERROR(SUM(Z27/#REF!),"") ->  | AB27: =IFERROR(VLOOKUP($G27,'Technician Summary'!$G$7:$BK$372,7,FALSE),"") ->  | AC27: =IFERROR(VLOOKUP($G27,'Technician Summary'!$G$7:$BK$372,8,FALSE),"") ->  | AE27: =IFERROR(VLOOKUP($G27,'Technician Summary'!$G$7:$BK$372,34,FALSE),"") ->  | AF27: =IFERROR(VLOOKUP($G27,'Technician Summary'!$G$7:$BK$372,35,FALSE),"") ->  | AH27: =IFERROR(VLOOKUP($G27,'Technician Summary'!$G$7:$BK$372,37,FALSE),"") ->  | AI27: =IFERROR(VLOOKUP($G27,'Technician Summary'!$G$7:$BK$372,38,FALSE),"") ->  | AK27: =IFERROR(VLOOKUP($G27,'Technician Summary'!$G$7:$BK$372,27,FALSE),"") ->  | AL27: =IFERROR(VLOOKUP($G27,'Technician Summary'!$G$7:$BK$372,68,FALSE),"") -> 
I28: =IFERROR(VLOOKUP($G28,'Technician Summary'!$G$7:$BB$372,2,FALSE),"") ->  | J28: =IFERROR(VLOOKUP($G28,'Technician Summary'!$G$7:$BN$372,60,FALSE),"") ->  | L28: =IFERROR(VLOOKUP($G28,'Technician Summary'!$G$7:$BK$372,14,FALSE),"") ->  | M28: =IFERROR(VLOOKUP($G28,'Technician Summary'!$G$7:$BK$372,15,FALSE),"") ->  | O28: =IFERROR(VLOOKUP($G28,'Technician Summary'!$G$7:$BK$372,17,FALSE),"") ->  | P28: =IFERROR(VLOOKUP($G28,'Technician Summary'!$G$7:$BK$372,18,FALSE),"") ->  | R28: =IFERROR(VLOOKUP($G28,'Technician Summary'!$G$7:$BK$372,20,FALSE),"") ->  | S28: =IFERROR(VLOOKUP($G28,'Technician Summary'!$G$7:$BK$372,21,FALSE),"") ->  | U28: =IF(G28="","",COUNTIFS('StrataSync Data'!$AB:$AB,$G28,'StrataSync Data'!$G:$G,"Closed")) ->  | V28: =IF($G28="","",COUNTIFS('StrataSync Data'!$AB:$AB,$G28,'StrataSync Data'!$H:$H,"Yes",'StrataSync Data'!$G:$G,"Closed")) ->  | X28: =IFERROR(IF($G$7="","",COUNTIFS('StrataSync Data'!$AB:$AB,$G28,'StrataSync Data'!$I:$I,"Incomplete",'StrataSync Data'!$H:$H,"Yes",'StrataSync Data'!$G:$G,"Closed"))+IF($G28="","",COUNTIFS('StrataSync Data'!$AB:$AB,$G28,'StrataSync Data'!$I:$I,"Fail",'StrataSync Data'!$H:$H,"Yes",'StrataSync Data'!$G:$G,"Closed")),"") ->  | AA28: =IFERROR(SUM(Z28/#REF!),"") ->  | AB28: =IFERROR(VLOOKUP($G28,'Technician Summary'!$G$7:$BK$372,7,FALSE),"") ->  | AC28: =IFERROR(VLOOKUP($G28,'Technician Summary'!$G$7:$BK$372,8,FALSE),"") ->  | AE28: =IFERROR(VLOOKUP($G28,'Technician Summary'!$G$7:$BK$372,34,FALSE),"") ->  | AF28: =IFERROR(VLOOKUP($G28,'Technician Summary'!$G$7:$BK$372,35,FALSE),"") ->  | AH28: =IFERROR(VLOOKUP($G28,'Technician Summary'!$G$7:$BK$372,37,FALSE),"") ->  | AI28: =IFERROR(VLOOKUP($G28,'Technician Summary'!$G$7:$BK$372,38,FALSE),"") ->  | AK28: =IFERROR(VLOOKUP($G28,'Technician Summary'!$G$7:$BK$372,27,FALSE),"") ->  | AL28: =IFERROR(VLOOKUP($G28,'Technician Summary'!$G$7:$BK$372,68,FALSE),"") -> 
I29: =IFERROR(VLOOKUP($G29,'Technician Summary'!$G$7:$BB$372,2,FALSE),"") ->  | J29: =IFERROR(VLOOKUP($G29,'Technician Summary'!$G$7:$BN$372,60,FALSE),"") ->  | L29: =IFERROR(VLOOKUP($G29,'Technician Summary'!$G$7:$BK$372,14,FALSE),"") ->  | M29: =IFERROR(VLOOKUP($G29,'Technician Summary'!$G$7:$BK$372,15,FALSE),"") ->  | O29: =IFERROR(VLOOKUP($G29,'Technician Summary'!$G$7:$BK$372,17,FALSE),"") ->  | P29: =IFERROR(VLOOKUP($G29,'Technician Summary'!$G$7:$BK$372,18,FALSE),"") ->  | R29: =IFERROR(VLOOKUP($G29,'Technician Summary'!$G$7:$BK$372,20,FALSE),"") ->  | S29: =IFERROR(VLOOKUP($G29,'Technician Summary'!$G$7:$BK$372,21,FALSE),"") ->  | U29: =IF(G29="","",COUNTIFS('StrataSync Data'!$AB:$AB,$G29,'StrataSync Data'!$G:$G,"Closed")) ->  | V29: =IF($G29="","",COUNTIFS('StrataSync Data'!$AB:$AB,$G29,'StrataSync Data'!$H:$H,"Yes",'StrataSync Data'!$G:$G,"Closed")) ->  | X29: =IFERROR(IF($G$7="","",COUNTIFS('StrataSync Data'!$AB:$AB,$G29,'StrataSync Data'!$I:$I,"Incomplete",'StrataSync Data'!$H:$H,"Yes",'StrataSync Data'!$G:$G,"Closed"))+IF($G29="","",COUNTIFS('StrataSync Data'!$AB:$AB,$G29,'StrataSync Data'!$I:$I,"Fail",'StrataSync Data'!$H:$H,"Yes",'StrataSync Data'!$G:$G,"Closed")),"") ->  | AA29: =IFERROR(SUM(Z29/#REF!),"") ->  | AB29: =IFERROR(VLOOKUP($G29,'Technician Summary'!$G$7:$BK$372,7,FALSE),"") ->  | AC29: =IFERROR(VLOOKUP($G29,'Technician Summary'!$G$7:$BK$372,8,FALSE),"") ->  | AE29: =IFERROR(VLOOKUP($G29,'Technician Summary'!$G$7:$BK$372,34,FALSE),"") ->  | AF29: =IFERROR(VLOOKUP($G29,'Technician Summary'!$G$7:$BK$372,35,FALSE),"") ->  | AH29: =IFERROR(VLOOKUP($G29,'Technician Summary'!$G$7:$BK$372,37,FALSE),"") ->  | AI29: =IFERROR(VLOOKUP($G29,'Technician Summary'!$G$7:$BK$372,38,FALSE),"") ->  | AK29: =IFERROR(VLOOKUP($G29,'Technician Summary'!$G$7:$BK$372,27,FALSE),"") ->  | AL29: =IFERROR(VLOOKUP($G29,'Technician Summary'!$G$7:$BK$372,68,FALSE),"") -> 
I30: =IFERROR(VLOOKUP($G30,'Technician Summary'!$G$7:$BB$372,2,FALSE),"") ->  | J30: =IFERROR(VLOOKUP($G30,'Technician Summary'!$G$7:$BN$372,60,FALSE),"") ->  | L30: =IFERROR(VLOOKUP($G30,'Technician Summary'!$G$7:$BK$372,14,FALSE),"") ->  | M30: =IFERROR(VLOOKUP($G30,'Technician Summary'!$G$7:$BK$372,15,FALSE),"") ->  | O30: =IFERROR(VLOOKUP($G30,'Technician Summary'!$G$7:$BK$372,17,FALSE),"") ->  | P30: =IFERROR(VLOOKUP($G30,'Technician Summary'!$G$7:$BK$372,18,FALSE),"") ->  | R30: =IFERROR(VLOOKUP($G30,'Technician Summary'!$G$7:$BK$372,20,FALSE),"") ->  | S30: =IFERROR(VLOOKUP($G30,'Technician Summary'!$G$7:$BK$372,21,FALSE),"") ->  | U30: =IF(G30="","",COUNTIFS('StrataSync Data'!$AB:$AB,$G30,'StrataSync Data'!$G:$G,"Closed")) ->  | V30: =IF($G30="","",COUNTIFS('StrataSync Data'!$AB:$AB,$G30,'StrataSync Data'!$H:$H,"Yes",'StrataSync Data'!$G:$G,"Closed")) ->  | X30: =IFERROR(IF($G$7="","",COUNTIFS('StrataSync Data'!$AB:$AB,$G30,'StrataSync Data'!$I:$I,"Incomplete",'StrataSync Data'!$H:$H,"Yes",'StrataSync Data'!$G:$G,"Closed"))+IF($G30="","",COUNTIFS('StrataSync Data'!$AB:$AB,$G30,'StrataSync Data'!$I:$I,"Fail",'StrataSync Data'!$H:$H,"Yes",'StrataSync Data'!$G:$G,"Closed")),"") ->  | AA30: =IFERROR(SUM(Z30/#REF!),"") ->  | AB30: =IFERROR(VLOOKUP($G30,'Technician Summary'!$G$7:$BK$372,7,FALSE),"") ->  | AC30: =IFERROR(VLOOKUP($G30,'Technician Summary'!$G$7:$BK$372,8,FALSE),"") ->  | AE30: =IFERROR(VLOOKUP($G30,'Technician Summary'!$G$7:$BK$372,34,FALSE),"") ->  | AF30: =IFERROR(VLOOKUP($G30,'Technician Summary'!$G$7:$BK$372,35,FALSE),"") ->  | AH30: =IFERROR(VLOOKUP($G30,'Technician Summary'!$G$7:$BK$372,37,FALSE),"") ->  | AI30: =IFERROR(VLOOKUP($G30,'Technician Summary'!$G$7:$BK$372,38,FALSE),"") ->  | AK30: =IFERROR(VLOOKUP($G30,'Technician Summary'!$G$7:$BK$372,27,FALSE),"") ->  | AL30: =IFERROR(VLOOKUP($G30,'Technician Summary'!$G$7:$BK$372,68,FALSE),"") -> 
I31: =IFERROR(VLOOKUP($G31,'Technician Summary'!$G$7:$BB$372,2,FALSE),"") ->  | J31: =IFERROR(VLOOKUP($G31,'Technician Summary'!$G$7:$BN$372,60,FALSE),"") ->  | L31: =IFERROR(VLOOKUP($G31,'Technician Summary'!$G$7:$BK$372,14,FALSE),"") ->  | M31: =IFERROR(VLOOKUP($G31,'Technician Summary'!$G$7:$BK$372,15,FALSE),"") ->  | O31: =IFERROR(VLOOKUP($G31,'Technician Summary'!$G$7:$BK$372,17,FALSE),"") ->  | P31: =IFERROR(VLOOKUP($G31,'Technician Summary'!$G$7:$BK$372,18,FALSE),"") ->  | R31: =IFERROR(VLOOKUP($G31,'Technician Summary'!$G$7:$BK$372,20,FALSE),"") ->  | S31: =IFERROR(VLOOKUP($G31,'Technician Summary'!$G$7:$BK$372,21,FALSE),"") ->  | U31: =IF(G31="","",COUNTIFS('StrataSync Data'!$AB:$AB,$G31,'StrataSync Data'!$G:$G,"Closed")) ->  | V31: =IF($G31="","",COUNTIFS('StrataSync Data'!$AB:$AB,$G31,'StrataSync Data'!$H:$H,"Yes",'StrataSync Data'!$G:$G,"Closed")) ->  | X31: =IFERROR(IF($G$7="","",COUNTIFS('StrataSync Data'!$AB:$AB,$G31,'StrataSync Data'!$I:$I,"Incomplete",'StrataSync Data'!$H:$H,"Yes",'StrataSync Data'!$G:$G,"Closed"))+IF($G31="","",COUNTIFS('StrataSync Data'!$AB:$AB,$G31,'StrataSync Data'!$I:$I,"Fail",'StrataSync Data'!$H:$H,"Yes",'StrataSync Data'!$G:$G,"Closed")),"") ->  | AA31: =IFERROR(SUM(Z31/#REF!),"") ->  | AB31: =IFERROR(VLOOKUP($G31,'Technician Summary'!$G$7:$BK$372,7,FALSE),"") ->  | AC31: =IFERROR(VLOOKUP($G31,'Technician Summary'!$G$7:$BK$372,8,FALSE),"") ->  | AE31: =IFERROR(VLOOKUP($G31,'Technician Summary'!$G$7:$BK$372,34,FALSE),"") ->  | AF31: =IFERROR(VLOOKUP($G31,'Technician Summary'!$G$7:$BK$372,35,FALSE),"") ->  | AH31: =IFERROR(VLOOKUP($G31,'Technician Summary'!$G$7:$BK$372,37,FALSE),"") ->  | AI31: =IFERROR(VLOOKUP($G31,'Technician Summary'!$G$7:$BK$372,38,FALSE),"") ->  | AK31: =IFERROR(VLOOKUP($G31,'Technician Summary'!$G$7:$BK$372,27,FALSE),"") ->  | AL31: =IFERROR(VLOOKUP($G31,'Technician Summary'!$G$7:$BK$372,68,FALSE),"") -> 
I32: # NPS WO's | J32: # Failures | K32: NPS | L32: Total Repeatable WO | M32: Total Repeats | N32: Repeats | O32: Total Repeatable WO | P32: Repeat IN | Q32: IN Repeat % | R32: Total Repeatable WO | S32: Repeat TC | T32: Repeat TC % | U32: Jobs | V32: Test Run | W32: SQT Compliance | X32: Test Fail | Y32: SQT Pass | Z32: Test Passed | AA32: Ingress Test Pass | AB32: FCR WO | AC32: FCR Failures | AD32: FCR | AE32: Jobs | AF32: Jobs Late | AG32: OTA | AH32: Jobs | AI32: Completed Jobs | AJ32: Completion % | AK32: Total QC | AL32: QC Failure | AM32: SMS tNPS
I33: =SUMIF(I7:I31,">0") -> 23 | J33: =SUMIF(J7:J31,">0") -> 8.9997
K34: =IFERROR(1-(J33/I33),"") -> 0.6087 | L34: =SUM(L7:L31) -> 685 | M34: =SUM(M7:M31) -> 24 | N34: =IFERROR(SUM(M34/L34),"") -> 0.035 | O34: =SUM(O7:O31) -> 371 | P34: =SUM(P7:P31) -> 15 | Q34: =IFERROR(SUM(P34/O34),"") -> 0.0404 | R34: =SUM(R7:R31) -> 314 | S34: =SUM(S7:S31) -> 9 | T34: =IFERROR(SUM(S34/R34),"") -> 0.0287 | U34: =SUMIF(U7:U31,">0") -> 499 | V34: =SUMIF(V7:V31,">0") -> 436 | W34: =IFERROR(SUM(V34/U34),"") -> 0.8737 | X34: =SUM(X7:X31) -> 13 | Y34: =IFERROR(SUM(1-X34/V34),"") -> 0.9702 | Z34: =SUM(Z7:Z31) -> 0 | AA34: =IFERROR(SUM(Z34/#REF!),"") ->  | AB34: =SUM(AB7:AB31) -> 299 | AC34: =SUM(AC7:AC31) -> 11 | AD34: =IFERROR(1-AC34/AB34,"") -> 0.9632 | AE34: =SUM(AE7:AE31) -> 210 | AF34: =SUM(AF7:AF31) -> 43 | AG34: =IFERROR(1-AF34/AE34,"") -> 0.7952 | AH34: =SUM(AH7:AH31) -> 841 | AI34: =SUM(AI7:AI31) -> 681 | AJ34: =IFERROR(AI34/AH34,"") -> 0.8098 | AK34: =SUM(AK7:AK31) -> 0 | AL34: =SUM(AL7:AL31) -> 0 | AM34: =IFERROR(1-AL34/AK34,"") -> 

Sheet Hampton Roads
F3: Jervar Gayle
F5: Tech Name | G5: Tech ID | H5: Score | I5: # NPS WO's | J5: # Failures | K5: NPS | L5: Total Repeatable WO | M5: Total Repeats | N5: Repeats | O5: Total Repeatable WO | P5: Repeat IN | Q5: IN Repeat % | R5: Total Repeatable WO | S5: Repeat TC | T5: Repeat TC % | U5: Jobs | V5: Test Run | W5: SQT Compliance | X5: Test Fail | Y5: SQT Pass | Z5: Test Passed | AA5: Ingress Test Pass | AB5: FCR WO | AC5: FCR Failures | AD5: FCR | AE5: Jobs | AF5: Jobs Late | AG5: OTA | AH5: Jobs | AI5: Completed Jobs | AJ5: Completion % | AK5: Total QC | AL5: QC Failure | AM5: SMS tNPS
F7: Eric Gibbs | G7: 16597 | H7: =IF(W7="","",IFERROR(IF(K7>=70%,2.5,0)+IF(N7<=4%,2.5,0)+IF(W7>=90%,2.5,0)+IF(AG7>=96%,2.5,0),"")) -> 5 | I7: =IFERROR(VLOOKUP($G7,'Technician Summary'!$G$7:$BB$372,2,FALSE),"") -> 0 | J7: =IFERROR(VLOOKUP($G7,'Technician Summary'!$G$7:$BN$372,60,FALSE),"") ->  | K7: =IFERROR(1-(J7/I7),"") ->  | L7: =IFERROR(VLOOKUP($G7,'Technician Summary'!$G$7:$BK$372,14,FALSE),"") -> 38 | M7: =IFERROR(VLOOKUP($G7,'Technician Summary'!$G$7:$BK$372,15,FALSE),"") -> 2 | N7: =IFERROR(SUM(M7/L7),"") -> 0.0526 | O7: =IFERROR(VLOOKUP($G7,'Technician Summary'!$G$7:$BK$372,17,FALSE),"") -> 22 | P7: =IFERROR(VLOOKUP($G7,'Technician Summary'!$G$7:$BK$372,18,FALSE),"") -> 1 | Q7: =IFERROR(SUM(P7/O7),"") -> 0.0455 | R7: =IFERROR(VLOOKUP($G7,'Technician Summary'!$G$7:$BK$372,20,FALSE),"") -> 16 | S7: =IFERROR(VLOOKUP($G7,'Technician Summary'!$G$7:$BK$372,21,FALSE),"") -> 1 | T7: =IFERROR(SUM(S7/R7),"") -> 0.0625 | U7: =IF(G7="","",COUNTIFS('StrataSync Data'!$AB:$AB,$G7,'StrataSync Data'!$G:$G,"Closed")) -> 30 | V7: =IF($G7="","",COUNTIFS('StrataSync Data'!$AB:$AB,$G7,'StrataSync Data'!$H:$H,"Yes",'StrataSync Data'!$G:$G,"Closed")) -> 28 | W7: =IFERROR(SUM(V7/U7),"") -> 0.9333 | X7: =IFERROR(IF($G$7="","",COUNTIFS('StrataSync Data'!$AB:$AB,$G7,'StrataSync Data'!$I:$I,"Incomplete",'StrataSync Data'!$H:$H,"Yes",'StrataSync Data'!$G:$G,"Closed"))+IF($G7="","",COUNTIFS('StrataSync Data'!$AB:$AB,$G7,'StrataSync Data'!$I:$I,"Fail",'StrataSync Data'!$H:$H,"Yes",'StrataSync Data'!$G:$G,"Closed")),"") -> 0 | Y7: =IFERROR(SUM(1-X7/V7),"") -> 1 | AA7: =IFERROR(SUM(Z7/#REF!),"") ->  | AB7: =IFERROR(VLOOKUP($G7,'Technician Summary'!$G$7:$BK$372,7,FALSE),"") -> 27 | AC7: =IFERROR(VLOOKUP($G7,'Technician Summary'!$G$7:$BK$372,8,FALSE),"") -> 0 | AD7: =IFERROR(1-AC7/AB7,"") -> 1 | AE7: =IFERROR(VLOOKUP($G7,'Technician Summary'!$G$7:$BK$372,34,FALSE),"") -> 19 | AF7: =IFERROR(VLOOKUP($G7,'Technician Summary'!$G$7:$BK$372,35,FALSE),"") -> 11 | AG7: =IFERROR(1-AF7/AE7,"") -> 0.4211 | AH7: =IFERROR(VLOOKUP($G7,'Technician Summary'!$G$7:$BK$372,37,FALSE),"") -> 41 | AI7: =IFERROR(VLOOKUP($G7,'Technician Summary'!$G$7:$BK$372,38,FALSE),"") -> 37 | AJ7: =IFERROR(AI7/AH7,"") -> 0.9024 | AK7: =IFERROR(VLOOKUP($G7,'Technician Summary'!$G$7:$BK$372,27,FALSE),"") -> 0 | AL7: =IFERROR(VLOOKUP($G7,'Technician Summary'!$G$7:$BK$372,68,FALSE),"") ->  | AM7: =IFERROR(1-AL7/AK7,"") -> 
F8: Reginald Lewis | G8: 26091 | H8: =IF(W8="","",IFERROR(IF(K8>=70%,2.5,0)+IF(N8<=4%,2.5,0)+IF(W8>=90%,2.5,0)+IF(AG8>=96%,2.5,0),"")) -> 2.5 | I8: =IFERROR(VLOOKUP($G8,'Technician Summary'!$G$7:$BB$372,2,FALSE),"") -> 0 | J8: =IFERROR(VLOOKUP($G8,'Technician Summary'!$G$7:$BN$372,60,FALSE),"") ->  | K8: =IFERROR(1-(J8/I8),"") ->  | L8: =IFERROR(VLOOKUP($G8,'Technician Summary'!$G$7:$BK$372,14,FALSE),"") -> 65 | M8: =IFERROR(VLOOKUP($G8,'Technician Summary'!$G$7:$BK$372,15,FALSE),"") -> 3 | N8: =IFERROR(SUM(M8/L8),"") -> 0.0462 | O8: =IFERROR(VLOOKUP($G8,'Technician Summary'!$G$7:$BK$372,17,FALSE),"") -> 40 | P8: =IFERROR(VLOOKUP($G8,'Technician Summary'!$G$7:$BK$372,18,FALSE),"") -> 3 | Q8: =IFERROR(SUM(P8/O8),"") -> 0.075 | R8: =IFERROR(VLOOKUP($G8,'Technician Summary'!$G$7:$BK$372,20,FALSE),"") -> 25 | S8: =IFERROR(VLOOKUP($G8,'Technician Summary'!$G$7:$BK$372,21,FALSE),"") -> 0 | T8: =IFERROR(SUM(S8/R8),"") -> 0 | U8: =IF(G8="","",COUNTIFS('StrataSync Data'!$AB:$AB,$G8,'StrataSync Data'!$G:$G,"Closed")) -> 36 | V8: =IF($G8="","",COUNTIFS('StrataSync Data'!$AB:$AB,$G8,'StrataSync Data'!$H:$H,"Yes",'StrataSync Data'!$G:$G,"Closed")) -> 31 | W8: =IFERROR(SUM(V8/U8),"") -> 0.8611 | X8: =IFERROR(IF($G$7="","",COUNTIFS('StrataSync Data'!$AB:$AB,$G8,'StrataSync Data'!$I:$I,"Incomplete",'StrataSync Data'!$H:$H,"Yes",'StrataSync Data'!$G:$G,"Closed"))+IF($G8="","",COUNTIFS('StrataSync Data'!$AB:$AB,$G8,'StrataSync Data'!$I:$I,"Fail",'StrataSync Data'!$H:$H,"Yes",'StrataSync Data'!$G:$G,"Closed")),"") -> 0 | Y8: =IFERROR(SUM(1-X8/V8),"") -> 1 | AA8: =IFERROR(SUM(Z8/#REF!),"") ->  | AB8: =IFERROR(VLOOKUP($G8,'Technician Summary'!$G$7:$BK$372,7,FALSE),"") -> 37 | AC8: =IFERROR(VLOOKUP($G8,'Technician Summary'!$G$7:$BK$372,8,FALSE),"") -> 1 | AD8: =IFERROR(1-AC8/AB8,"") -> 0.973 | AE8: =IFERROR(VLOOKUP($G8,'Technician Summary'!$G$7:$BK$372,34,FALSE),"") -> 12 | AF8: =IFERROR(VLOOKUP($G8,'Technician Summary'!$G$7:$BK$372,35,FALSE),"") -> 5 | AG8: =IFERROR(1-AF8/AE8,"") -> 0.5833 | AH8: =IFERROR(VLOOKUP($G8,'Technician Summary'!$G$7:$BK$372,37,FALSE),"") -> 64 | AI8: =IFERROR(VLOOKUP($G8,'Technician Summary'!$G$7:$BK$372,38,FALSE),"") -> 64 | AJ8: =IFERROR(AI8/AH8,"") -> 1 | AK8: =IFERROR(VLOOKUP($G8,'Technician Summary'!$G$7:$BK$372,27,FALSE),"") -> 0 | AL8: =IFERROR(VLOOKUP($G8,'Technician Summary'!$G$7:$BK$372,68,FALSE),"") ->  | AM8: =IFERROR(1-AL8/AK8,"") -> 
F9: Brandon Price | G9: 27228 | I9: =IFERROR(VLOOKUP($G9,'Technician Summary'!$G$7:$BB$372,2,FALSE),"") ->  | J9: =IFERROR(VLOOKUP($G9,'Technician Summary'!$G$7:$BN$372,60,FALSE),"") ->  | L9: =IFERROR(VLOOKUP($G9,'Technician Summary'!$G$7:$BK$372,14,FALSE),"") ->  | M9: =IFERROR(VLOOKUP($G9,'Technician Summary'!$G$7:$BK$372,15,FALSE),"") ->  | O9: =IFERROR(VLOOKUP($G9,'Technician Summary'!$G$7:$BK$372,17,FALSE),"") ->  | P9: =IFERROR(VLOOKUP($G9,'Technician Summary'!$G$7:$BK$372,18,FALSE),"") ->  | R9: =IFERROR(VLOOKUP($G9,'Technician Summary'!$G$7:$BK$372,20,FALSE),"") ->  | S9: =IFERROR(VLOOKUP($G9,'Technician Summary'!$G$7:$BK$372,21,FALSE),"") ->  | U9: =IF(G9="","",COUNTIFS('StrataSync Data'!$AB:$AB,$G9,'StrataSync Data'!$G:$G,"Closed")) -> 0 | V9: =IF($G9="","",COUNTIFS('StrataSync Data'!$AB:$AB,$G9,'StrataSync Data'!$H:$H,"Yes",'StrataSync Data'!$G:$G,"Closed")) -> 0 | X9: =IFERROR(IF($G$7="","",COUNTIFS('StrataSync Data'!$AB:$AB,$G9,'StrataSync Data'!$I:$I,"Incomplete",'StrataSync Data'!$H:$H,"Yes",'StrataSync Data'!$G:$G,"Closed"))+IF($G9="","",COUNTIFS('StrataSync Data'!$AB:$AB,$G9,'StrataSync Data'!$I:$I,"Fail",'StrataSync Data'!$H:$H,"Yes",'StrataSync Data'!$G:$G,"Closed")),"") -> 0 | AA9: =IFERROR(SUM(Z9/#REF!),"") ->  | AB9: =IFERROR(VLOOKUP($G9,'Technician Summary'!$G$7:$BK$372,7,FALSE),"") ->  | AC9: =IFERROR(VLOOKUP($G9,'Technician Summary'!$G$7:$BK$372,8,FALSE),"") ->  | AE9: =IFERROR(VLOOKUP($G9,'Technician Summary'!$G$7:$BK$372,34,FALSE),"") ->  | AF9: =IFERROR(VLOOKUP($G9,'Technician Summary'!$G$7:$BK$372,35,FALSE),"") ->  | AH9: =IFERROR(VLOOKUP($G9,'Technician Summary'!$G$7:$BK$372,37,FALSE),"") ->  | AI9: =IFERROR(VLOOKUP($G9,'Technician Summary'!$G$7:$BK$372,38,FALSE),"") ->  | AK9: =IFERROR(VLOOKUP($G9,'Technician Summary'!$G$7:$BK$372,27,FALSE),"") ->  | AL9: =IFERROR(VLOOKUP($G9,'Technician Summary'!$G$7:$BK$372,68,FALSE),"") -> 
F10: Eric Johnson | G10: 39500 | H10: 2.5 | I10: =IFERROR(VLOOKUP($G10,'Technician Summary'!$G$7:$BB$372,2,FALSE),"") -> 0 | J10: =IFERROR(VLOOKUP($G10,'Technician Summary'!$G$7:$BN$372,60,FALSE),"") ->  | L10: =IFERROR(VLOOKUP($G10,'Technician Summary'!$G$7:$BK$372,14,FALSE),"") -> 97 | M10: =IFERROR(VLOOKUP($G10,'Technician Summary'!$G$7:$BK$372,15,FALSE),"") -> 5 | N10: 0.0515 | O10: =IFERROR(VLOOKUP($G10,'Technician Summary'!$G$7:$BK$372,17,FALSE),"") -> 51 | P10: =IFERROR(VLOOKUP($G10,'Technician Summary'!$G$7:$BK$372,18,FALSE),"") -> 1 | Q10: 0.0196 | R10: =IFERROR(VLOOKUP($G10,'Technician Summary'!$G$7:$BK$372,20,FALSE),"") -> 46 | S10: =IFERROR(VLOOKUP($G10,'Technician Summary'!$G$7:$BK$372,21,FALSE),"") -> 4 | T10: 0.087 | U10: =IF(G10="","",COUNTIFS('StrataSync Data'!$AB:$AB,$G10,'StrataSync Data'!$G:$G,"Closed")) -> 74 | V10: =IF($G10="","",COUNTIFS('StrataSync Data'!$AB:$AB,$G10,'StrataSync Data'!$H:$H,"Yes",'StrataSync Data'!$G:$G,"Closed")) -> 63 | W10: 0.8514 | X10: =IFERROR(IF($G$7="","",COUNTIFS('StrataSync Data'!$AB:$AB,$G10,'StrataSync Data'!$I:$I,"Incomplete",'StrataSync Data'!$H:$H,"Yes",'StrataSync Data'!$G:$G,"Closed"))+IF($G10="","",COUNTIFS('StrataSync Data'!$AB:$AB,$G10,'StrataSync Data'!$I:$I,"Fail",'StrataSync Data'!$H:$H,"Yes",'StrataSync Data'!$G:$G,"Closed")),"") -> 8 | Y10: 0.873 | AA10: =IFERROR(SUM(Z10/#REF!),"") ->  | AB10: =IFERROR(VLOOKUP($G10,'Technician Summary'!$G$7:$BK$372,7,FALSE),"") -> 55 | AC10: =IFERROR(VLOOKUP($G10,'Technician Summary'!$G$7:$BK$372,8,FALSE),"") -> 4 | AD10: 0.9273 | AE10: =IFERROR(VLOOKUP($G10,'Technician Summary'!$G$7:$BK$372,34,FALSE),"") -> 30 | AF10: =IFERROR(VLOOKUP($G10,'Technician Summary'!$G$7:$BK$372,35,FALSE),"") -> 4 | AG10: 0.8667 | AH10: =IFERROR(VLOOKUP($G10,'Technician Summary'!$G$7:$BK$372,37,FALSE),"") -> 81 | AI10: =IFERROR(VLOOKUP($G10,'Technician Summary'!$G$7:$BK$372,38,FALSE),"") -> 81 | AJ10: 1 | AK10: =IFERROR(VLOOKUP($G10,'Technician Summary'!$G$7:$BK$372,27,FALSE),"") -> 0 | AL10: =IFERROR(VLOOKUP($G10,'Technician Summary'!$G$7:$BK$372,68,FALSE),"") -> 
B11: Home | F11: Abdul Wali | G11: 53006 | H11: 7.5 | I11: =IFERROR(VLOOKUP($G11,'Technician Summary'!$G$7:$BB$372,2,FALSE),"") -> 0 | J11: =IFERROR(VLOOKUP($G11,'Technician Summary'!$G$7:$BN$372,60,FALSE),"") ->  | L11: =IFERROR(VLOOKUP($G11,'Technician Summary'!$G$7:$BK$372,14,FALSE),"") -> 82 | M11: =IFERROR(VLOOKUP($G11,'Technician Summary'!$G$7:$BK$372,15,FALSE),"") -> 0 | N11: 0 | O11: =IFERROR(VLOOKUP($G11,'Technician Summary'!$G$7:$BK$372,17,FALSE),"") -> 55 | P11: =IFERROR(VLOOKUP($G11,'Technician Summary'!$G$7:$BK$372,18,FALSE),"") -> 0 | Q11: 0 | R11: =IFERROR(VLOOKUP($G11,'Technician Summary'!$G$7:$BK$372,20,FALSE),"") -> 27 | S11: =IFERROR(VLOOKUP($G11,'Technician Summary'!$G$7:$BK$372,21,FALSE),"") -> 0 | T11: 0 | U11: =IF(G11="","",COUNTIFS('StrataSync Data'!$AB:$AB,$G11,'StrataSync Data'!$G:$G,"Closed")) -> 52 | V11: =IF($G11="","",COUNTIFS('StrataSync Data'!$AB:$AB,$G11,'StrataSync Data'!$H:$H,"Yes",'StrataSync Data'!$G:$G,"Closed")) -> 49 | W11: 0.9423 | X11: =IFERROR(IF($G$7="","",COUNTIFS('StrataSync Data'!$AB:$AB,$G11,'StrataSync Data'!$I:$I,"Incomplete",'StrataSync Data'!$H:$H,"Yes",'StrataSync Data'!$G:$G,"Closed"))+IF($G11="","",COUNTIFS('StrataSync Data'!$AB:$AB,$G11,'StrataSync Data'!$I:$I,"Fail",'StrataSync Data'!$H:$H,"Yes",'StrataSync Data'!$G:$G,"Closed")),"") -> 2 | Y11: 0.9592 | AA11: =IFERROR(SUM(Z11/#REF!),"") ->  | AB11: =IFERROR(VLOOKUP($G11,'Technician Summary'!$G$7:$BK$372,7,FALSE),"") -> 56 | AC11: =IFERROR(VLOOKUP($G11,'Technician Summary'!$G$7:$BK$372,8,FALSE),"") -> 0 | AD11: 1 | AE11: =IFERROR(VLOOKUP($G11,'Technician Summary'!$G$7:$BK$372,34,FALSE),"") -> 32 | AF11: =IFERROR(VLOOKUP($G11,'Technician Summary'!$G$7:$BK$372,35,FALSE),"") -> 9 | AG11: 0.7188 | AH11: =IFERROR(VLOOKUP($G11,'Technician Summary'!$G$7:$BK$372,37,FALSE),"") -> 82 | AI11: =IFERROR(VLOOKUP($G11,'Technician Summary'!$G$7:$BK$372,38,FALSE),"") -> 81 | AJ11: 0.9878 | AK11: =IFERROR(VLOOKUP($G11,'Technician Summary'!$G$7:$BK$372,27,FALSE),"") -> 0 | AL11: =IFERROR(VLOOKUP($G11,'Technician Summary'!$G$7:$BK$372,68,FALSE),"") -> 
F12: Gary Wendland | G12: 11622 | H12: 7.5 | I12: =IFERROR(VLOOKUP($G12,'Technician Summary'!$G$7:$BB$372,2,FALSE),"") -> 1 | J12: =IFERROR(VLOOKUP($G12,'Technician Summary'!$G$7:$BN$372,60,FALSE),"") -> 0 | K12: 1 | L12: =IFERROR(VLOOKUP($G12,'Technician Summary'!$G$7:$BK$372,14,FALSE),"") -> 79 | M12: =IFERROR(VLOOKUP($G12,'Technician Summary'!$G$7:$BK$372,15,FALSE),"") -> 2 | N12: 0.0253 | O12: =IFERROR(VLOOKUP($G12,'Technician Summary'!$G$7:$BK$372,17,FALSE),"") -> 47 | P12: =IFERROR(VLOOKUP($G12,'Technician Summary'!$G$7:$BK$372,18,FALSE),"") -> 1 | Q12: 0.0213 | R12: =IFERROR(VLOOKUP($G12,'Technician Summary'!$G$7:$BK$372,20,FALSE),"") -> 32 | S12: =IFERROR(VLOOKUP($G12,'Technician Summary'!$G$7:$BK$372,21,FALSE),"") -> 1 | T12: 0.0313 | U12: =IF(G12="","",COUNTIFS('StrataSync Data'!$AB:$AB,$G12,'StrataSync Data'!$G:$G,"Closed")) -> 66 | V12: =IF($G12="","",COUNTIFS('StrataSync Data'!$AB:$AB,$G12,'StrataSync Data'!$H:$H,"Yes",'StrataSync Data'!$G:$G,"Closed")) -> 62 | W12: 0.9394 | X12: =IFERROR(IF($G$7="","",COUNTIFS('StrataSync Data'!$AB:$AB,$G12,'StrataSync Data'!$I:$I,"Incomplete",'StrataSync Data'!$H:$H,"Yes",'StrataSync Data'!$G:$G,"Closed"))+IF($G12="","",COUNTIFS('StrataSync Data'!$AB:$AB,$G12,'StrataSync Data'!$I:$I,"Fail",'StrataSync Data'!$H:$H,"Yes",'StrataSync Data'!$G:$G,"Closed")),"") -> 0 | Y12: 1 | AA12: =IFERROR(SUM(Z12/#REF!),"") ->  | AB12: =IFERROR(VLOOKUP($G12,'Technician Summary'!$G$7:$BK$372,7,FALSE),"") -> 35 | AC12: =IFERROR(VLOOKUP($G12,'Technician Summary'!$G$7:$BK$372,8,FALSE),"") -> 1 | AD12: 0.9714 | AE12: =IFERROR(VLOOKUP($G12,'Technician Summary'!$G$7:$BK$372,34,FALSE),"") -> 23 | AF12: =IFERROR(VLOOKUP($G12,'Technician Summary'!$G$7:$BK$372,35,FALSE),"") -> 2 | AG12: 0.913 | AH12: =IFERROR(VLOOKUP($G12,'Technician Summary'!$G$7:$BK$372,37,FALSE),"") -> 69 | AI12: =IFERROR(VLOOKUP($G12,'Technician Summary'!$G$7:$BK$372,38,FALSE),"") -> 62 | AJ12: 0.8986 | AK12: =IFERROR(VLOOKUP($G12,'Technician Summary'!$G$7:$BK$372,27,FALSE),"") -> 0 | AL12: =IFERROR(VLOOKUP($G12,'Technician Summary'!$G$7:$BK$372,68,FALSE),"") -> 
B13: Performance Metrics | F13: Ahmed Aktira | G13: 47367 | H13: 5 | I13: =IFERROR(VLOOKUP($G13,'Technician Summary'!$G$7:$BB$372,2,FALSE),"") -> 12 | J13: =IFERROR(VLOOKUP($G13,'Technician Summary'!$G$7:$BN$372,60,FALSE),"") -> 9 | K13: 0.25 | L13: =IFERROR(VLOOKUP($G13,'Technician Summary'!$G$7:$BK$372,14,FALSE),"") -> 106 | M13: =IFERROR(VLOOKUP($G13,'Technician Summary'!$G$7:$BK$372,15,FALSE),"") -> 3 | N13: 0.0283 | O13: =IFERROR(VLOOKUP($G13,'Technician Summary'!$G$7:$BK$372,17,FALSE),"") -> 39 | P13: =IFERROR(VLOOKUP($G13,'Technician Summary'!$G$7:$BK$372,18,FALSE),"") -> 1 | Q13: 0.0256 | R13: =IFERROR(VLOOKUP($G13,'Technician Summary'!$G$7:$BK$372,20,FALSE),"") -> 67 | S13: =IFERROR(VLOOKUP($G13,'Technician Summary'!$G$7:$BK$372,21,FALSE),"") -> 2 | T13: 0.0299 | U13: =IF(G13="","",COUNTIFS('StrataSync Data'!$AB:$AB,$G13,'StrataSync Data'!$G:$G,"Closed")) -> 99 | V13: =IF($G13="","",COUNTIFS('StrataSync Data'!$AB:$AB,$G13,'StrataSync Data'!$H:$H,"Yes",'StrataSync Data'!$G:$G,"Closed")) -> 95 | W13: 0.9596 | X13: =IFERROR(IF($G$7="","",COUNTIFS('StrataSync Data'!$AB:$AB,$G13,'StrataSync Data'!$I:$I,"Incomplete",'StrataSync Data'!$H:$H,"Yes",'StrataSync Data'!$G:$G,"Closed"))+IF($G13="","",COUNTIFS('StrataSync Data'!$AB:$AB,$G13,'StrataSync Data'!$I:$I,"Fail",'StrataSync Data'!$H:$H,"Yes",'StrataSync Data'!$G:$G,"Closed")),"") -> 21 | Y13: 0.7789 | AA13: =IFERROR(SUM(Z13/#REF!),"") ->  | AB13: =IFERROR(VLOOKUP($G13,'Technician Summary'!$G$7:$BK$372,7,FALSE),"") -> 50 | AC13: =IFERROR(VLOOKUP($G13,'Technician Summary'!$G$7:$BK$372,8,FALSE),"") -> 1 | AD13: 0.98 | AE13: =IFERROR(VLOOKUP($G13,'Technician Summary'!$G$7:$BK$372,34,FALSE),"") -> 35 | AF13: =IFERROR(VLOOKUP($G13,'Technician Summary'!$G$7:$BK$372,35,FALSE),"") -> 3 | AG13: 0.9143 | AH13: =IFERROR(VLOOKUP($G13,'Technician Summary'!$G$7:$BK$372,37,FALSE),"") -> 113 | AI13: =IFERROR(VLOOKUP($G13,'Technician Summary'!$G$7:$BK$372,38,FALSE),"") -> 106 | AJ13: 0.9381 | AK13: =IFERROR(VLOOKUP($G13,'Technician Summary'!$G$7:$BK$372,27,FALSE),"") -> 0 | AL13: =IFERROR(VLOOKUP($G13,'Technician Summary'!$G$7:$BK$372,68,FALSE),"") -> 
B14: Gainesville | F14: David Newton | G14: 45614 | H14: 7.5 | I14: =IFERROR(VLOOKUP($G14,'Technician Summary'!$G$7:$BB$372,2,FALSE),"") -> 0 | J14: =IFERROR(VLOOKUP($G14,'Technician Summary'!$G$7:$BN$372,60,FALSE),"") ->  | L14: =IFERROR(VLOOKUP($G14,'Technician Summary'!$G$7:$BK$372,14,FALSE),"") -> 123 | M14: =IFERROR(VLOOKUP($G14,'Technician Summary'!$G$7:$BK$372,15,FALSE),"") -> 0 | N14: 0 | O14: =IFERROR(VLOOKUP($G14,'Technician Summary'!$G$7:$BK$372,17,FALSE),"") -> 123 | P14: =IFERROR(VLOOKUP($G14,'Technician Summary'!$G$7:$BK$372,18,FALSE),"") -> 0 | Q14: 0 | R14: =IFERROR(VLOOKUP($G14,'Technician Summary'!$G$7:$BK$372,20,FALSE),"") -> 0 | S14: =IFERROR(VLOOKUP($G14,'Technician Summary'!$G$7:$BK$372,21,FALSE),"") -> 0 | U14: =IF(G14="","",COUNTIFS('StrataSync Data'!$AB:$AB,$G14,'StrataSync Data'!$G:$G,"Closed")) -> 57 | V14: =IF($G14="","",COUNTIFS('StrataSync Data'!$AB:$AB,$G14,'StrataSync Data'!$H:$H,"Yes",'StrataSync Data'!$G:$G,"Closed")) -> 0 | W14: 0 | X14: =IFERROR(IF($G$7="","",COUNTIFS('StrataSync Data'!$AB:$AB,$G14,'StrataSync Data'!$I:$I,"Incomplete",'StrataSync Data'!$H:$H,"Yes",'StrataSync Data'!$G:$G,"Closed"))+IF($G14="","",COUNTIFS('StrataSync Data'!$AB:$AB,$G14,'StrataSync Data'!$I:$I,"Fail",'StrataSync Data'!$H:$H,"Yes",'StrataSync Data'!$G:$G,"Closed")),"") -> 0 | AA14: =IFERROR(SUM(Z14/#REF!),"") ->  | AB14: =IFERROR(VLOOKUP($G14,'Technician Summary'!$G$7:$BK$372,7,FALSE),"") -> 94 | AC14: =IFERROR(VLOOKUP($G14,'Technician Summary'!$G$7:$BK$372,8,FALSE),"") -> 0 | AD14: 1 | AE14: =IFERROR(VLOOKUP($G14,'Technician Summary'!$G$7:$BK$372,34,FALSE),"") -> 1 | AF14: =IFERROR(VLOOKUP($G14,'Technician Summary'!$G$7:$BK$372,35,FALSE),"") -> 0 | AG14: 1 | AH14: =IFERROR(VLOOKUP($G14,'Technician Summary'!$G$7:$BK$372,37,FALSE),"") -> 5 | AI14: =IFERROR(VLOOKUP($G14,'Technician Summary'!$G$7:$BK$372,38,FALSE),"") -> 5 | AJ14: 1 | AK14: =IFERROR(VLOOKUP($G14,'Technician Summary'!$G$7:$BK$372,27,FALSE),"") -> 0 | AL14: =IFERROR(VLOOKUP($G14,'Technician Summary'!$G$7:$BK$372,68,FALSE),"") -> 
B15: Macon | F15: Adair Young | G15: 48345 | H15: 10 | I15: =IFERROR(VLOOKUP($G15,'Technician Summary'!$G$7:$BB$372,2,FALSE),"") -> 1 | J15: =IFERROR(VLOOKUP($G15,'Technician Summary'!$G$7:$BN$372,60,FALSE),"") -> 0 | K15: 1 | L15: =IFERROR(VLOOKUP($G15,'Technician Summary'!$G$7:$BK$372,14,FALSE),"") -> 21 | M15: =IFERROR(VLOOKUP($G15,'Technician Summary'!$G$7:$BK$372,15,FALSE),"") -> 0 | N15: 0 | O15: =IFERROR(VLOOKUP($G15,'Technician Summary'!$G$7:$BK$372,17,FALSE),"") -> 12 | P15: =IFERROR(VLOOKUP($G15,'Technician Summary'!$G$7:$BK$372,18,FALSE),"") -> 0 | Q15: 0 | R15: =IFERROR(VLOOKUP($G15,'Technician Summary'!$G$7:$BK$372,20,FALSE),"") -> 9 | S15: =IFERROR(VLOOKUP($G15,'Technician Summary'!$G$7:$BK$372,21,FALSE),"") -> 0 | T15: 0 | U15: =IF(G15="","",COUNTIFS('StrataSync Data'!$AB:$AB,$G15,'StrataSync Data'!$G:$G,"Closed")) -> 19 | V15: =IF($G15="","",COUNTIFS('StrataSync Data'!$AB:$AB,$G15,'StrataSync Data'!$H:$H,"Yes",'StrataSync Data'!$G:$G,"Closed")) -> 18 | W15: 0.9474 | X15: =IFERROR(IF($G$7="","",COUNTIFS('StrataSync Data'!$AB:$AB,$G15,'StrataSync Data'!$I:$I,"Incomplete",'StrataSync Data'!$H:$H,"Yes",'StrataSync Data'!$G:$G,"Closed"))+IF($G15="","",COUNTIFS('StrataSync Data'!$AB:$AB,$G15,'StrataSync Data'!$I:$I,"Fail",'StrataSync Data'!$H:$H,"Yes",'StrataSync Data'!$G:$G,"Closed")),"") -> 0 | Y15: 1 | AA15: =IFERROR(SUM(Z15/#REF!),"") ->  | AB15: =IFERROR(VLOOKUP($G15,'Technician Summary'!$G$7:$BK$372,7,FALSE),"") -> 10 | AC15: =IFERROR(VLOOKUP($G15,'Technician Summary'!$G$7:$BK$372,8,FALSE),"") -> 0 | AD15: 1 | AE15: =IFERROR(VLOOKUP($G15,'Technician Summary'!$G$7:$BK$372,34,FALSE),"") -> 2 | AF15: =IFERROR(VLOOKUP($G15,'Technician Summary'!$G$7:$BK$372,35,FALSE),"") -> 0 | AG15: 1 | AH15: =IFERROR(VLOOKUP($G15,'Technician Summary'!$G$7:$BK$372,37,FALSE),"") -> 14 | AI15: =IFERROR(VLOOKUP($G15,'Technician Summary'!$G$7:$BK$372,38,FALSE),"") -> 12 | AJ15: 0.8571 | AK15: =IFERROR(VLOOKUP($G15,'Technician Summary'!$G$7:$BK$372,27,FALSE),"") -> 0 | AL15: =IFERROR(VLOOKUP($G15,'Technician Summary'!$G$7:$BK$372,68,FALSE),"") -> 
B16: New Orleans | F16: Carlos Browley | G16: 56645 | H16: 5 | I16: =IFERROR(VLOOKUP($G16,'Technician Summary'!$G$7:$BB$372,2,FALSE),"") -> 3 | J16: =IFERROR(VLOOKUP($G16,'Technician Summary'!$G$7:$BN$372,60,FALSE),"") -> 2.0001 | K16: 0.3333 | L16: =IFERROR(VLOOKUP($G16,'Technician Summary'!$G$7:$BK$372,14,FALSE),"") -> 82 | M16: =IFERROR(VLOOKUP($G16,'Technician Summary'!$G$7:$BK$372,15,FALSE),"") -> 2 | N16: 0.0244 | O16: =IFERROR(VLOOKUP($G16,'Technician Summary'!$G$7:$BK$372,17,FALSE),"") -> 39 | P16: =IFERROR(VLOOKUP($G16,'Technician Summary'!$G$7:$BK$372,18,FALSE),"") -> 1 | Q16: 0.0256 | R16: =IFERROR(VLOOKUP($G16,'Technician Summary'!$G$7:$BK$372,20,FALSE),"") -> 43 | S16: =IFERROR(VLOOKUP($G16,'Technician Summary'!$G$7:$BK$372,21,FALSE),"") -> 1 | T16: 0.0233 | U16: =IF(G16="","",COUNTIFS('StrataSync Data'!$AB:$AB,$G16,'StrataSync Data'!$G:$G,"Closed")) -> 59 | V16: =IF($G16="","",COUNTIFS('StrataSync Data'!$AB:$AB,$G16,'StrataSync Data'!$H:$H,"Yes",'StrataSync Data'!$G:$G,"Closed")) -> 57 | W16: 0.9661 | X16: =IFERROR(IF($G$7="","",COUNTIFS('StrataSync Data'!$AB:$AB,$G16,'StrataSync Data'!$I:$I,"Incomplete",'StrataSync Data'!$H:$H,"Yes",'StrataSync Data'!$G:$G,"Closed"))+IF($G16="","",COUNTIFS('StrataSync Data'!$AB:$AB,$G16,'StrataSync Data'!$I:$I,"Fail",'StrataSync Data'!$H:$H,"Yes",'StrataSync Data'!$G:$G,"Closed")),"") -> 0 | Y16: 1 | AA16: =IFERROR(SUM(Z16/#REF!),"") ->  | AB16: =IFERROR(VLOOKUP($G16,'Technician Summary'!$G$7:$BK$372,7,FALSE),"") -> 39 | AC16: =IFERROR(VLOOKUP($G16,'Technician Summary'!$G$7:$BK$372,8,FALSE),"") -> 1 | AD16: 0.9744 | AE16: =IFERROR(VLOOKUP($G16,'Technician Summary'!$G$7:$BK$372,34,FALSE),"") -> 30 | AF16: =IFERROR(VLOOKUP($G16,'Technician Summary'!$G$7:$BK$372,35,FALSE),"") -> 6 | AG16: 0.8 | AH16: =IFERROR(VLOOKUP($G16,'Technician Summary'!$G$7:$BK$372,37,FALSE),"") -> 91 | AI16: =IFERROR(VLOOKUP($G16,'Technician Summary'!$G$7:$BK$372,38,FALSE),"") -> 81 | AJ16: 0.8901 | AK16: =IFERROR(VLOOKUP($G16,'Technician Summary'!$G$7:$BK$372,27,FALSE),"") -> 0 | AL16: =IFERROR(VLOOKUP($G16,'Technician Summary'!$G$7:$BK$372,68,FALSE),"") -> 
B17: Hampton Roads | F17: Jervar Gayle | G17: 85224 | I17: =IFERROR(VLOOKUP($G17,'Technician Summary'!$G$7:$BB$372,2,FALSE),"") ->  | J17: =IFERROR(VLOOKUP($G17,'Technician Summary'!$G$7:$BN$372,60,FALSE),"") ->  | L17: =IFERROR(VLOOKUP($G17,'Technician Summary'!$G$7:$BK$372,14,FALSE),"") ->  | M17: =IFERROR(VLOOKUP($G17,'Technician Summary'!$G$7:$BK$372,15,FALSE),"") ->  | O17: =IFERROR(VLOOKUP($G17,'Technician Summary'!$G$7:$BK$372,17,FALSE),"") ->  | P17: =IFERROR(VLOOKUP($G17,'Technician Summary'!$G$7:$BK$372,18,FALSE),"") ->  | R17: =IFERROR(VLOOKUP($G17,'Technician Summary'!$G$7:$BK$372,20,FALSE),"") ->  | S17: =IFERROR(VLOOKUP($G17,'Technician Summary'!$G$7:$BK$372,21,FALSE),"") ->  | U17: =IF(G17="","",COUNTIFS('StrataSync Data'!$AB:$AB,$G17,'StrataSync Data'!$G:$G,"Closed")) -> 0 | V17: =IF($G17="","",COUNTIFS('StrataSync Data'!$AB:$AB,$G17,'StrataSync Data'!$H:$H,"Yes",'StrataSync Data'!$G:$G,"Closed")) -> 0 | X17: =IFERROR(IF($G$7="","",COUNTIFS('StrataSync Data'!$AB:$AB,$G17,'StrataSync Data'!$I:$I,"Incomplete",'StrataSync Data'!$H:$H,"Yes",'StrataSync Data'!$G:$G,"Closed"))+IF($G17="","",COUNTIFS('StrataSync Data'!$AB:$AB,$G17,'StrataSync Data'!$I:$I,"Fail",'StrataSync Data'!$H:$H,"Yes",'StrataSync Data'!$G:$G,"Closed")),"") -> 0 | AA17: =IFERROR(SUM(Z17/#REF!),"") ->  | AB17: =IFERROR(VLOOKUP($G17,'Technician Summary'!$G$7:$BK$372,7,FALSE),"") ->  | AC17: =IFERROR(VLOOKUP($G17,'Technician Summary'!$G$7:$BK$372,8,FALSE),"") ->  | AE17: =IFERROR(VLOOKUP($G17,'Technician Summary'!$G$7:$BK$372,34,FALSE),"") ->  | AF17: =IFERROR(VLOOKUP($G17,'Technician Summary'!$G$7:$BK$372,35,FALSE),"") ->  | AH17: =IFERROR(VLOOKUP($G17,'Technician Summary'!$G$7:$BK$372,37,FALSE),"") ->  | AI17: =IFERROR(VLOOKUP($G17,'Technician Summary'!$G$7:$BK$372,38,FALSE),"") ->  | AK17: =IFERROR(VLOOKUP($G17,'Technician Summary'!$G$7:$BK$372,27,FALSE),"") ->  | AL17: =IFERROR(VLOOKUP($G17,'Technician Summary'!$G$7:$BK$372,68,FALSE),"") -> 
B18: Baton Rouge | F18: Thaer Mahases | G18: 52873 | H18: 5 | I18: =IFERROR(VLOOKUP($G18,'Technician Summary'!$G$7:$BB$372,2,FALSE),"") -> 10 | J18: =IFERROR(VLOOKUP($G18,'Technician Summary'!$G$7:$BN$372,60,FALSE),"") -> 5 | K18: 0.5 | L18: =IFERROR(VLOOKUP($G18,'Technician Summary'!$G$7:$BK$372,14,FALSE),"") -> 172 | M18: =IFERROR(VLOOKUP($G18,'Technician Summary'!$G$7:$BK$372,15,FALSE),"") -> 9 | N18: 0.0523 | O18: =IFERROR(VLOOKUP($G18,'Technician Summary'!$G$7:$BK$372,17,FALSE),"") -> 72 | P18: =IFERROR(VLOOKUP($G18,'Technician Summary'!$G$7:$BK$372,18,FALSE),"") -> 5 | Q18: 0.0694 | R18: =IFERROR(VLOOKUP($G18,'Technician Summary'!$G$7:$BK$372,20,FALSE),"") -> 100 | S18: =IFERROR(VLOOKUP($G18,'Technician Summary'!$G$7:$BK$372,21,FALSE),"") -> 4 | T18: 0.04 | U18: =IF(G18="","",COUNTIFS('StrataSync Data'!$AB:$AB,$G18,'StrataSync Data'!$G:$G,"Closed")) -> 163 | V18: =IF($G18="","",COUNTIFS('StrataSync Data'!$AB:$AB,$G18,'StrataSync Data'!$H:$H,"Yes",'StrataSync Data'!$G:$G,"Closed")) -> 159 | W18: 0.9755 | X18: =IFERROR(IF($G$7="","",COUNTIFS('StrataSync Data'!$AB:$AB,$G18,'StrataSync Data'!$I:$I,"Incomplete",'StrataSync Data'!$H:$H,"Yes",'StrataSync Data'!$G:$G,"Closed"))+IF($G18="","",COUNTIFS('StrataSync Data'!$AB:$AB,$G18,'StrataSync Data'!$I:$I,"Fail",'StrataSync Data'!$H:$H,"Yes",'StrataSync Data'!$G:$G,"Closed")),"") -> 5 | Y18: 0.9686 | AA18: =IFERROR(SUM(Z18/#REF!),"") ->  | AB18: =IFERROR(VLOOKUP($G18,'Technician Summary'!$G$7:$BK$372,7,FALSE),"") -> 99 | AC18: =IFERROR(VLOOKUP($G18,'Technician Summary'!$G$7:$BK$372,8,FALSE),"") -> 7 | AD18: 0.9293 | AE18: =IFERROR(VLOOKUP($G18,'Technician Summary'!$G$7:$BK$372,34,FALSE),"") -> 66 | AF18: =IFERROR(VLOOKUP($G18,'Technician Summary'!$G$7:$BK$372,35,FALSE),"") -> 1 | AG18: 0.9848 | AH18: =IFERROR(VLOOKUP($G18,'Technician Summary'!$G$7:$BK$372,37,FALSE),"") -> 181 | AI18: =IFERROR(VLOOKUP($G18,'Technician Summary'!$G$7:$BK$372,38,FALSE),"") -> 172 | AJ18: 0.9503 | AK18: =IFERROR(VLOOKUP($G18,'Technician Summary'!$G$7:$BK$372,27,FALSE),"") -> 0 | AL18: =IFERROR(VLOOKUP($G18,'Technician Summary'!$G$7:$BK$372,68,FALSE),"") -> 
B19: Roanoke | F19: Derrick taylor | G19: 41285 | I19: =IFERROR(VLOOKUP($G19,'Technician Summary'!$G$7:$BB$372,2,FALSE),"") ->  | J19: =IFERROR(VLOOKUP($G19,'Technician Summary'!$G$7:$BN$372,60,FALSE),"") ->  | L19: =IFERROR(VLOOKUP($G19,'Technician Summary'!$G$7:$BK$372,14,FALSE),"") ->  | M19: =IFERROR(VLOOKUP($G19,'Technician Summary'!$G$7:$BK$372,15,FALSE),"") ->  | O19: =IFERROR(VLOOKUP($G19,'Technician Summary'!$G$7:$BK$372,17,FALSE),"") ->  | P19: =IFERROR(VLOOKUP($G19,'Technician Summary'!$G$7:$BK$372,18,FALSE),"") ->  | R19: =IFERROR(VLOOKUP($G19,'Technician Summary'!$G$7:$BK$372,20,FALSE),"") ->  | S19: =IFERROR(VLOOKUP($G19,'Technician Summary'!$G$7:$BK$372,21,FALSE),"") ->  | U19: =IF(G19="","",COUNTIFS('StrataSync Data'!$AB:$AB,$G19,'StrataSync Data'!$G:$G,"Closed")) -> 0 | V19: =IF($G19="","",COUNTIFS('StrataSync Data'!$AB:$AB,$G19,'StrataSync Data'!$H:$H,"Yes",'StrataSync Data'!$G:$G,"Closed")) -> 0 | X19: =IFERROR(IF($G$7="","",COUNTIFS('StrataSync Data'!$AB:$AB,$G19,'StrataSync Data'!$I:$I,"Incomplete",'StrataSync Data'!$H:$H,"Yes",'StrataSync Data'!$G:$G,"Closed"))+IF($G19="","",COUNTIFS('StrataSync Data'!$AB:$AB,$G19,'StrataSync Data'!$I:$I,"Fail",'StrataSync Data'!$H:$H,"Yes",'StrataSync Data'!$G:$G,"Closed")),"") -> 0 | AA19: =IFERROR(SUM(Z19/#REF!),"") ->  | AB19: =IFERROR(VLOOKUP($G19,'Technician Summary'!$G$7:$BK$372,7,FALSE),"") ->  | AC19: =IFERROR(VLOOKUP($G19,'Technician Summary'!$G$7:$BK$372,8,FALSE),"") ->  | AE19: =IFERROR(VLOOKUP($G19,'Technician Summary'!$G$7:$BK$372,34,FALSE),"") ->  | AF19: =IFERROR(VLOOKUP($G19,'Technician Summary'!$G$7:$BK$372,35,FALSE),"") ->  | AH19: =IFERROR(VLOOKUP($G19,'Technician Summary'!$G$7:$BK$372,37,FALSE),"") ->  | AI19: =IFERROR(VLOOKUP($G19,'Technician Summary'!$G$7:$BK$372,38,FALSE),"") ->  | AK19: =IFERROR(VLOOKUP($G19,'Technician Summary'!$G$7:$BK$372,27,FALSE),"") ->  | AL19: =IFERROR(VLOOKUP($G19,'Technician Summary'!$G$7:$BK$372,68,FALSE),"") -> 
B20: Gulf Coast | F20: Shane Russell | G20: 9698 | I20: =IFERROR(VLOOKUP($G20,'Technician Summary'!$G$7:$BB$372,2,FALSE),"") ->  | J20: =IFERROR(VLOOKUP($G20,'Technician Summary'!$G$7:$BN$372,60,FALSE),"") ->  | L20: =IFERROR(VLOOKUP($G20,'Technician Summary'!$G$7:$BK$372,14,FALSE),"") ->  | M20: =IFERROR(VLOOKUP($G20,'Technician Summary'!$G$7:$BK$372,15,FALSE),"") ->  | O20: =IFERROR(VLOOKUP($G20,'Technician Summary'!$G$7:$BK$372,17,FALSE),"") ->  | P20: =IFERROR(VLOOKUP($G20,'Technician Summary'!$G$7:$BK$372,18,FALSE),"") ->  | R20: =IFERROR(VLOOKUP($G20,'Technician Summary'!$G$7:$BK$372,20,FALSE),"") ->  | S20: =IFERROR(VLOOKUP($G20,'Technician Summary'!$G$7:$BK$372,21,FALSE),"") ->  | U20: =IF(G20="","",COUNTIFS('StrataSync Data'!$AB:$AB,$G20,'StrataSync Data'!$G:$G,"Closed")) -> 0 | V20: =IF($G20="","",COUNTIFS('StrataSync Data'!$AB:$AB,$G20,'StrataSync Data'!$H:$H,"Yes",'StrataSync Data'!$G:$G,"Closed")) -> 0 | X20: =IFERROR(IF($G$7="","",COUNTIFS('StrataSync Data'!$AB:$AB,$G20,'StrataSync Data'!$I:$I,"Incomplete",'StrataSync Data'!$H:$H,"Yes",'StrataSync Data'!$G:$G,"Closed"))+IF($G20="","",COUNTIFS('StrataSync Data'!$AB:$AB,$G20,'StrataSync Data'!$I:$I,"Fail",'StrataSync Data'!$H:$H,"Yes",'StrataSync Data'!$G:$G,"Closed")),"") -> 0 | AA20: =IFERROR(SUM(Z20/#REF!),"") ->  | AB20: =IFERROR(VLOOKUP($G20,'Technician Summary'!$G$7:$BK$372,7,FALSE),"") ->  | AC20: =IFERROR(VLOOKUP($G20,'Technician Summary'!$G$7:$BK$372,8,FALSE),"") ->  | AE20: =IFERROR(VLOOKUP($G20,'Technician Summary'!$G$7:$BK$372,34,FALSE),"") ->  | AF20: =IFERROR(VLOOKUP($G20,'Technician Summary'!$G$7:$BK$372,35,FALSE),"") ->  | AH20: =IFERROR(VLOOKUP($G20,'Technician Summary'!$G$7:$BK$372,37,FALSE),"") ->  | AI20: =IFERROR(VLOOKUP($G20,'Technician Summary'!$G$7:$BK$372,38,FALSE),"") ->  | AK20: =IFERROR(VLOOKUP($G20,'Technician Summary'!$G$7:$BK$372,27,FALSE),"") ->  | AL20: =IFERROR(VLOOKUP($G20,'Technician Summary'!$G$7:$BK$372,68,FALSE),"") -> 
B21: Oklahoma City | F21: Jimmy Hollis | G21: 52991 | H21: 5 | I21: =IFERROR(VLOOKUP($G21,'Technician Summary'!$G$7:$BB$372,2,FALSE),"") -> 3 | J21: =IFERROR(VLOOKUP($G21,'Technician Summary'!$G$7:$BN$372,60,FALSE),"") -> 0 | K21: 1 | L21: =IFERROR(VLOOKUP($G21,'Technician Summary'!$G$7:$BK$372,14,FALSE),"") -> 49 | M21: =IFERROR(VLOOKUP($G21,'Technician Summary'!$G$7:$BK$372,15,FALSE),"") -> 1 | N21: 0.0204 | O21: =IFERROR(VLOOKUP($G21,'Technician Summary'!$G$7:$BK$372,17,FALSE),"") -> 26 | P21: =IFERROR(VLOOKUP($G21,'Technician Summary'!$G$7:$BK$372,18,FALSE),"") -> 1 | Q21: 0.0385 | R21: =IFERROR(VLOOKUP($G21,'Technician Summary'!$G$7:$BK$372,20,FALSE),"") -> 23 | S21: =IFERROR(VLOOKUP($G21,'Technician Summary'!$G$7:$BK$372,21,FALSE),"") -> 0 | T21: 0 | U21: =IF(G21="","",COUNTIFS('StrataSync Data'!$AB:$AB,$G21,'StrataSync Data'!$G:$G,"Closed")) -> 46 | V21: =IF($G21="","",COUNTIFS('StrataSync Data'!$AB:$AB,$G21,'StrataSync Data'!$H:$H,"Yes",'StrataSync Data'!$G:$G,"Closed")) -> 34 | W21: 0.7391 | X21: =IFERROR(IF($G$7="","",COUNTIFS('StrataSync Data'!$AB:$AB,$G21,'StrataSync Data'!$I:$I,"Incomplete",'StrataSync Data'!$H:$H,"Yes",'StrataSync Data'!$G:$G,"Closed"))+IF($G21="","",COUNTIFS('StrataSync Data'!$AB:$AB,$G21,'StrataSync Data'!$I:$I,"Fail",'StrataSync Data'!$H:$H,"Yes",'StrataSync Data'!$G:$G,"Closed")),"") -> 12 | Y21: 0.6471 | AA21: =IFERROR(SUM(Z21/#REF!),"") ->  | AB21: =IFERROR(VLOOKUP($G21,'Technician Summary'!$G$7:$BK$372,7,FALSE),"") -> 29 | AC21: =IFERROR(VLOOKUP($G21,'Technician Summary'!$G$7:$BK$372,8,FALSE),"") -> 1 | AD21: 0.9655 | AE21: =IFERROR(VLOOKUP($G21,'Technician Summary'!$G$7:$BK$372,34,FALSE),"") -> 23 | AF21: =IFERROR(VLOOKUP($G21,'Technician Summary'!$G$7:$BK$372,35,FALSE),"") -> 4 | AG21: 0.8261 | AH21: =IFERROR(VLOOKUP($G21,'Technician Summary'!$G$7:$BK$372,37,FALSE),"") -> 53 | AI21: =IFERROR(VLOOKUP($G21,'Technician Summary'!$G$7:$BK$372,38,FALSE),"") -> 48 | AJ21: 0.9057 | AK21: =IFERROR(VLOOKUP($G21,'Technician Summary'!$G$7:$BK$372,27,FALSE),"") -> 0 | AL21: =IFERROR(VLOOKUP($G21,'Technician Summary'!$G$7:$BK$372,68,FALSE),"") -> 
B22: Tech Rankings | F22: Clarence Boyd | G22: 47493 | H22: 7.5 | I22: =IFERROR(VLOOKUP($G22,'Technician Summary'!$G$7:$BB$372,2,FALSE),"") -> 2 | J22: =IFERROR(VLOOKUP($G22,'Technician Summary'!$G$7:$BN$372,60,FALSE),"") -> 0 | K22: 1 | L22: =IFERROR(VLOOKUP($G22,'Technician Summary'!$G$7:$BK$372,14,FALSE),"") -> 24 | M22: =IFERROR(VLOOKUP($G22,'Technician Summary'!$G$7:$BK$372,15,FALSE),"") -> 0 | N22: 0 | O22: =IFERROR(VLOOKUP($G22,'Technician Summary'!$G$7:$BK$372,17,FALSE),"") -> 10 | P22: =IFERROR(VLOOKUP($G22,'Technician Summary'!$G$7:$BK$372,18,FALSE),"") -> 0 | Q22: 0 | R22: =IFERROR(VLOOKUP($G22,'Technician Summary'!$G$7:$BK$372,20,FALSE),"") -> 14 | S22: =IFERROR(VLOOKUP($G22,'Technician Summary'!$G$7:$BK$372,21,FALSE),"") -> 0 | T22: 0 | U22: =IF(G22="","",COUNTIFS('StrataSync Data'!$AB:$AB,$G22,'StrataSync Data'!$G:$G,"Closed")) -> 20 | V22: =IF($G22="","",COUNTIFS('StrataSync Data'!$AB:$AB,$G22,'StrataSync Data'!$H:$H,"Yes",'StrataSync Data'!$G:$G,"Closed")) -> 20 | W22: 1 | X22: =IFERROR(IF($G$7="","",COUNTIFS('StrataSync Data'!$AB:$AB,$G22,'StrataSync Data'!$I:$I,"Incomplete",'StrataSync Data'!$H:$H,"Yes",'StrataSync Data'!$G:$G,"Closed"))+IF($G22="","",COUNTIFS('StrataSync Data'!$AB:$AB,$G22,'StrataSync Data'!$I:$I,"Fail",'StrataSync Data'!$H:$H,"Yes",'StrataSync Data'!$G:$G,"Closed")),"") -> 9 | Y22: 0.55 | AA22: =IFERROR(SUM(Z22/#REF!),"") ->  | AB22: =IFERROR(VLOOKUP($G22,'Technician Summary'!$G$7:$BK$372,7,FALSE),"") -> 16 | AC22: =IFERROR(VLOOKUP($G22,'Technician Summary'!$G$7:$BK$372,8,FALSE),"") -> 0 | AD22: 1 | AE22: =IFERROR(VLOOKUP($G22,'Technician Summary'!$G$7:$BK$372,34,FALSE),"") -> 9 | AF22: =IFERROR(VLOOKUP($G22,'Technician Summary'!$G$7:$BK$372,35,FALSE),"") -> 1 | AG22: 0.8889 | AH22: =IFERROR(VLOOKUP($G22,'Technician Summary'!$G$7:$BK$372,37,FALSE),"") -> 26 | AI22: =IFERROR(VLOOKUP($G22,'Technician Summary'!$G$7:$BK$372,38,FALSE),"") -> 24 | AJ22: 0.9231 | AK22: =IFERROR(VLOOKUP($G22,'Technician Summary'!$G$7:$BK$372,27,FALSE),"") -> 0 | AL22: =IFERROR(VLOOKUP($G22,'Technician Summary'!$G$7:$BK$372,68,FALSE),"") -> 
F23: Travis Harris | G23: 66546 | H23: 2.5 | I23: =IFERROR(VLOOKUP($G23,'Technician Summary'!$G$7:$BB$372,2,FALSE),"") -> 6 | J23: =IFERROR(VLOOKUP($G23,'Technician Summary'!$G$7:$BN$372,60,FALSE),"") -> 1.9998 | K23: 0.6667 | L23: =IFERROR(VLOOKUP($G23,'Technician Summary'!$G$7:$BK$372,14,FALSE),"") -> 69 | M23: =IFERROR(VLOOKUP($G23,'Technician Summary'!$G$7:$BK$372,15,FALSE),"") -> 2 | N23: 0.029 | O23: =IFERROR(VLOOKUP($G23,'Technician Summary'!$G$7:$BK$372,17,FALSE),"") -> 31 | P23: =IFERROR(VLOOKUP($G23,'Technician Summary'!$G$7:$BK$372,18,FALSE),"") -> 2 | Q23: 0.0645 | R23: =IFERROR(VLOOKUP($G23,'Technician Summary'!$G$7:$BK$372,20,FALSE),"") -> 38 | S23: =IFERROR(VLOOKUP($G23,'Technician Summary'!$G$7:$BK$372,21,FALSE),"") -> 0 | T23: 0 | U23: =IF(G23="","",COUNTIFS('StrataSync Data'!$AB:$AB,$G23,'StrataSync Data'!$G:$G,"Closed")) -> 61 | V23: =IF($G23="","",COUNTIFS('StrataSync Data'!$AB:$AB,$G23,'StrataSync Data'!$H:$H,"Yes",'StrataSync Data'!$G:$G,"Closed")) -> 47 | W23: 0.7705 | X23: =IFERROR(IF($G$7="","",COUNTIFS('StrataSync Data'!$AB:$AB,$G23,'StrataSync Data'!$I:$I,"Incomplete",'StrataSync Data'!$H:$H,"Yes",'StrataSync Data'!$G:$G,"Closed"))+IF($G23="","",COUNTIFS('StrataSync Data'!$AB:$AB,$G23,'StrataSync Data'!$I:$I,"Fail",'StrataSync Data'!$H:$H,"Yes",'StrataSync Data'!$G:$G,"Closed")),"") -> 14 | Y23: 0.7021 | AA23: =IFERROR(SUM(Z23/#REF!),"") ->  | AB23: =IFERROR(VLOOKUP($G23,'Technician Summary'!$G$7:$BK$372,7,FALSE),"") -> 35 | AC23: =IFERROR(VLOOKUP($G23,'Technician Summary'!$G$7:$BK$372,8,FALSE),"") -> 2 | AD23: 0.9429 | AE23: =IFERROR(VLOOKUP($G23,'Technician Summary'!$G$7:$BK$372,34,FALSE),"") -> 26 | AF23: =IFERROR(VLOOKUP($G23,'Technician Summary'!$G$7:$BK$372,35,FALSE),"") -> 2 | AG23: 0.9231 | AH23: =IFERROR(VLOOKUP($G23,'Technician Summary'!$G$7:$BK$372,37,FALSE),"") -> 72 | AI23: =IFERROR(VLOOKUP($G23,'Technician Summary'!$G$7:$BK$372,38,FALSE),"") -> 69 | AJ23: 0.9583 | AK23: =IFERROR(VLOOKUP($G23,'Technician Summary'!$G$7:$BK$372,27,FALSE),"") -> 0 | AL23: =IFERROR(VLOOKUP($G23,'Technician Summary'!$G$7:$BK$372,68,FALSE),"") -> 
B24: Raw Data | F24: William Harper | G24: 87452 | H24: 5 | I24: =IFERROR(VLOOKUP($G24,'Technician Summary'!$G$7:$BB$372,2,FALSE),"") -> 1 | J24: =IFERROR(VLOOKUP($G24,'Technician Summary'!$G$7:$BN$372,60,FALSE),"") -> 1 | K24: 0 | L24: =IFERROR(VLOOKUP($G24,'Technician Summary'!$G$7:$BK$372,14,FALSE),"") -> 17 | M24: =IFERROR(VLOOKUP($G24,'Technician Summary'!$G$7:$BK$372,15,FALSE),"") -> 0 | N24: 0 | O24: =IFERROR(VLOOKUP($G24,'Technician Summary'!$G$7:$BK$372,17,FALSE),"") -> 13 | P24: =IFERROR(VLOOKUP($G24,'Technician Summary'!$G$7:$BK$372,18,FALSE),"") -> 0 | Q24: 0 | R24: =IFERROR(VLOOKUP($G24,'Technician Summary'!$G$7:$BK$372,20,FALSE),"") -> 4 | S24: =IFERROR(VLOOKUP($G24,'Technician Summary'!$G$7:$BK$372,21,FALSE),"") -> 0 | T24: 0 | U24: =IF(G24="","",COUNTIFS('StrataSync Data'!$AB:$AB,$G24,'StrataSync Data'!$G:$G,"Closed")) -> 12 | V24: =IF($G24="","",COUNTIFS('StrataSync Data'!$AB:$AB,$G24,'StrataSync Data'!$H:$H,"Yes",'StrataSync Data'!$G:$G,"Closed")) -> 7 | W24: 0.5833 | X24: =IFERROR(IF($G$7="","",COUNTIFS('StrataSync Data'!$AB:$AB,$G24,'StrataSync Data'!$I:$I,"Incomplete",'StrataSync Data'!$H:$H,"Yes",'StrataSync Data'!$G:$G,"Closed"))+IF($G24="","",COUNTIFS('StrataSync Data'!$AB:$AB,$G24,'StrataSync Data'!$I:$I,"Fail",'StrataSync Data'!$H:$H,"Yes",'StrataSync Data'!$G:$G,"Closed")),"") -> 0 | Y24: 1 | AA24: =IFERROR(SUM(Z24/#REF!),"") ->  | AB24: =IFERROR(VLOOKUP($G24,'Technician Summary'!$G$7:$BK$372,7,FALSE),"") -> 11 | AC24: =IFERROR(VLOOKUP($G24,'Technician Summary'!$G$7:$BK$372,8,FALSE),"") -> 0 | AD24: 1 | AE24: =IFERROR(VLOOKUP($G24,'Technician Summary'!$G$7:$BK$372,34,FALSE),"") -> 10 | AF24: =IFERROR(VLOOKUP($G24,'Technician Summary'!$G$7:$BK$372,35,FALSE),"") -> 0 | AG24: 1 | AH24: =IFERROR(VLOOKUP($G24,'Technician Summary'!$G$7:$BK$372,37,FALSE),"") -> 17 | AI24: =IFERROR(VLOOKUP($G24,'Technician Summary'!$G$7:$BK$372,38,FALSE),"") -> 17 | AJ24: 1 | AK24: =IFERROR(VLOOKUP($G24,'Technician Summary'!$G$7:$BK$372,27,FALSE),"") -> 0 | AL24: =IFERROR(VLOOKUP($G24,'Technician Summary'!$G$7:$BK$372,68,FALSE),"") -> 
F25: Ryan Vanterpool | G25: 93993 | H25: 0 | I25: =IFERROR(VLOOKUP($G25,'Technician Summary'!$G$7:$BB$372,2,FALSE),"") -> 2 | J25: =IFERROR(VLOOKUP($G25,'Technician Summary'!$G$7:$BN$372,60,FALSE),"") -> 2 | K25: 0 | L25: =IFERROR(VLOOKUP($G25,'Technician Summary'!$G$7:$BK$372,14,FALSE),"") -> 44 | M25: =IFERROR(VLOOKUP($G25,'Technician Summary'!$G$7:$BK$372,15,FALSE),"") -> 7 | N25: 0.1591 | O25: =IFERROR(VLOOKUP($G25,'Technician Summary'!$G$7:$BK$372,17,FALSE),"") -> 18 | P25: =IFERROR(VLOOKUP($G25,'Technician Summary'!$G$7:$BK$372,18,FALSE),"") -> 1 | Q25: 0.0556 | R25: =IFERROR(VLOOKUP($G25,'Technician Summary'!$G$7:$BK$372,20,FALSE),"") -> 26 | S25: =IFERROR(VLOOKUP($G25,'Technician Summary'!$G$7:$BK$372,21,FALSE),"") -> 6 | T25: 0.2308 | U25: =IF(G25="","",COUNTIFS('StrataSync Data'!$AB:$AB,$G25,'StrataSync Data'!$G:$G,"Closed")) -> 44 | V25: =IF($G25="","",COUNTIFS('StrataSync Data'!$AB:$AB,$G25,'StrataSync Data'!$H:$H,"Yes",'StrataSync Data'!$G:$G,"Closed")) -> 39 | W25: 0.8864 | X25: =IFERROR(IF($G$7="","",COUNTIFS('StrataSync Data'!$AB:$AB,$G25,'StrataSync Data'!$I:$I,"Incomplete",'StrataSync Data'!$H:$H,"Yes",'StrataSync Data'!$G:$G,"Closed"))+IF($G25="","",COUNTIFS('StrataSync Data'!$AB:$AB,$G25,'StrataSync Data'!$I:$I,"Fail",'StrataSync Data'!$H:$H,"Yes",'StrataSync Data'!$G:$G,"Closed")),"") -> 20 | Y25: 0.4872 | AA25: =IFERROR(SUM(Z25/#REF!),"") ->  | AB25: =IFERROR(VLOOKUP($G25,'Technician Summary'!$G$7:$BK$372,7,FALSE),"") -> 27 | AC25: =IFERROR(VLOOKUP($G25,'Technician Summary'!$G$7:$BK$372,8,FALSE),"") -> 3 | AD25: 0.8889 | AE25: =IFERROR(VLOOKUP($G25,'Technician Summary'!$G$7:$BK$372,34,FALSE),"") -> 18 | AF25: =IFERROR(VLOOKUP($G25,'Technician Summary'!$G$7:$BK$372,35,FALSE),"") -> 5 | AG25: 0.7222 | AH25: =IFERROR(VLOOKUP($G25,'Technician Summary'!$G$7:$BK$372,37,FALSE),"") -> 48 | AI25: =IFERROR(VLOOKUP($G25,'Technician Summary'!$G$7:$BK$372,38,FALSE),"") -> 44 | AJ25: 0.9167 | AK25: =IFERROR(VLOOKUP($G25,'Technician Summary'!$G$7:$BK$372,27,FALSE),"") -> 0 | AL25: =IFERROR(VLOOKUP($G25,'Technician Summary'!$G$7:$BK$372,68,FALSE),"") -> 
F26: Joel Ulysse | G26: 1384 | H26: 0 | I26: =IFERROR(VLOOKUP($G26,'Technician Summary'!$G$7:$BB$372,2,FALSE),"") -> 5 | J26: =IFERROR(VLOOKUP($G26,'Technician Summary'!$G$7:$BN$372,60,FALSE),"") -> 2 | K26: 0.6 | L26: =IFERROR(VLOOKUP($G26,'Technician Summary'!$G$7:$BK$372,14,FALSE),"") -> 64 | M26: =IFERROR(VLOOKUP($G26,'Technician Summary'!$G$7:$BK$372,15,FALSE),"") -> 3 | N26: 0.0469 | O26: =IFERROR(VLOOKUP($G26,'Technician Summary'!$G$7:$BK$372,17,FALSE),"") -> 25 | P26: =IFERROR(VLOOKUP($G26,'Technician Summary'!$G$7:$BK$372,18,FALSE),"") -> 2 | Q26: 0.08 | R26: =IFERROR(VLOOKUP($G26,'Technician Summary'!$G$7:$BK$372,20,FALSE),"") -> 39 | S26: =IFERROR(VLOOKUP($G26,'Technician Summary'!$G$7:$BK$372,21,FALSE),"") -> 1 | T26: 0.0256 | U26: =IF(G26="","",COUNTIFS('StrataSync Data'!$AB:$AB,$G26,'StrataSync Data'!$G:$G,"Closed")) -> 60 | V26: =IF($G26="","",COUNTIFS('StrataSync Data'!$AB:$AB,$G26,'StrataSync Data'!$H:$H,"Yes",'StrataSync Data'!$G:$G,"Closed")) -> 47 | W26: 0.7833 | X26: =IFERROR(IF($G$7="","",COUNTIFS('StrataSync Data'!$AB:$AB,$G26,'StrataSync Data'!$I:$I,"Incomplete",'StrataSync Data'!$H:$H,"Yes",'StrataSync Data'!$G:$G,"Closed"))+IF($G26="","",COUNTIFS('StrataSync Data'!$AB:$AB,$G26,'StrataSync Data'!$I:$I,"Fail",'StrataSync Data'!$H:$H,"Yes",'StrataSync Data'!$G:$G,"Closed")),"") -> 24 | Y26: 0.4894 | AA26: =IFERROR(SUM(Z26/#REF!),"") ->  | AB26: =IFERROR(VLOOKUP($G26,'Technician Summary'!$G$7:$BK$372,7,FALSE),"") -> 29 | AC26: =IFERROR(VLOOKUP($G26,'Technician Summary'!$G$7:$BK$372,8,FALSE),"") -> 2 | AD26: 0.931 | AE26: =IFERROR(VLOOKUP($G26,'Technician Summary'!$G$7:$BK$372,34,FALSE),"") -> 20 | AF26: =IFERROR(VLOOKUP($G26,'Technician Summary'!$G$7:$BK$372,35,FALSE),"") -> 2 | AG26: 0.9 | AH26: =IFERROR(VLOOKUP($G26,'Technician Summary'!$G$7:$BK$372,37,FALSE),"") -> 68 | AI26: =IFERROR(VLOOKUP($G26,'Technician Summary'!$G$7:$BK$372,38,FALSE),"") -> 64 | AJ26: 0.9412 | AK26: =IFERROR(VLOOKUP($G26,'Technician Summary'!$G$7:$BK$372,27,FALSE),"") -> 0 | AL26: =IFERROR(VLOOKUP($G26,'Technician Summary'!$G$7:$BK$372,68,FALSE),"") -> 
I27: =IFERROR(VLOOKUP($G27,'Technician Summary'!$G$7:$BB$372,2,FALSE),"") ->  | J27: =IFERROR(VLOOKUP($G27,'Technician Summary'!$G$7:$BN$372,60,FALSE),"") ->  | L27: =IFERROR(VLOOKUP($G27,'Technician Summary'!$G$7:$BK$372,14,FALSE),"") ->  | M27: =IFERROR(VLOOKUP($G27,'Technician Summary'!$G$7:$BK$372,15,FALSE),"") ->  | O27: =IFERROR(VLOOKUP($G27,'Technician Summary'!$G$7:$BK$372,17,FALSE),"") ->  | P27: =IFERROR(VLOOKUP($G27,'Technician Summary'!$G$7:$BK$372,18,FALSE),"") ->  | R27: =IFERROR(VLOOKUP($G27,'Technician Summary'!$G$7:$BK$372,20,FALSE),"") ->  | S27: =IFERROR(VLOOKUP($G27,'Technician Summary'!$G$7:$BK$372,21,FALSE),"") ->  | U27: =IF(G27="","",COUNTIFS('StrataSync Data'!$AB:$AB,$G27,'StrataSync Data'!$G:$G,"Closed")) ->  | V27: =IF($G27="","",COUNTIFS('StrataSync Data'!$AB:$AB,$G27,'StrataSync Data'!$H:$H,"Yes",'StrataSync Data'!$G:$G,"Closed")) ->  | X27: =IFERROR(IF($G$7="","",COUNTIFS('StrataSync Data'!$AB:$AB,$G27,'StrataSync Data'!$I:$I,"Incomplete",'StrataSync Data'!$H:$H,"Yes",'StrataSync Data'!$G:$G,"Closed"))+IF($G27="","",COUNTIFS('StrataSync Data'!$AB:$AB,$G27,'StrataSync Data'!$I:$I,"Fail",'StrataSync Data'!$H:$H,"Yes",'StrataSync Data'!$G:$G,"Closed")),"") ->  | AA27: =IFERROR(SUM(Z27/#REF!),"") ->  | AB27: =IFERROR(VLOOKUP($G27,'Technician Summary'!$G$7:$BK$372,7,FALSE),"") ->  | AC27: =IFERROR(VLOOKUP($G27,'Technician Summary'!$G$7:$BK$372,8,FALSE),"") ->  | AE27: =IFERROR(VLOOKUP($G27,'Technician Summary'!$G$7:$BK$372,34,FALSE),"") ->  | AF27: =IFERROR(VLOOKUP($G27,'Technician Summary'!$G$7:$BK$372,35,FALSE),"") ->  | AH27: =IFERROR(VLOOKUP($G27,'Technician Summary'!$G$7:$BK$372,37,FALSE),"") ->  | AI27: =IFERROR(VLOOKUP($G27,'Technician Summary'!$G$7:$BK$372,38,FALSE),"") ->  | AK27: =IFERROR(VLOOKUP($G27,'Technician Summary'!$G$7:$BK$372,27,FALSE),"") ->  | AL27: =IFERROR(VLOOKUP($G27,'Technician Summary'!$G$7:$BK$372,68,FALSE),"") -> 
I28: =IFERROR(VLOOKUP($G28,'Technician Summary'!$G$7:$BB$372,2,FALSE),"") ->  | J28: =IFERROR(VLOOKUP($G28,'Technician Summary'!$G$7:$BN$372,60,FALSE),"") ->  | L28: =IFERROR(VLOOKUP($G28,'Technician Summary'!$G$7:$BK$372,14,FALSE),"") ->  | M28: =IFERROR(VLOOKUP($G28,'Technician Summary'!$G$7:$BK$372,15,FALSE),"") ->  | O28: =IFERROR(VLOOKUP($G28,'Technician Summary'!$G$7:$BK$372,17,FALSE),"") ->  | P28: =IFERROR(VLOOKUP($G28,'Technician Summary'!$G$7:$BK$372,18,FALSE),"") ->  | R28: =IFERROR(VLOOKUP($G28,'Technician Summary'!$G$7:$BK$372,20,FALSE),"") ->  | S28: =IFERROR(VLOOKUP($G28,'Technician Summary'!$G$7:$BK$372,21,FALSE),"") ->  | U28: =IF(G28="","",COUNTIFS('StrataSync Data'!$AB:$AB,$G28,'StrataSync Data'!$G:$G,"Closed")) ->  | V28: =IF($G28="","",COUNTIFS('StrataSync Data'!$AB:$AB,$G28,'StrataSync Data'!$H:$H,"Yes",'StrataSync Data'!$G:$G,"Closed")) ->  | X28: =IFERROR(IF($G$7="","",COUNTIFS('StrataSync Data'!$AB:$AB,$G28,'StrataSync Data'!$I:$I,"Incomplete",'StrataSync Data'!$H:$H,"Yes",'StrataSync Data'!$G:$G,"Closed"))+IF($G28="","",COUNTIFS('StrataSync Data'!$AB:$AB,$G28,'StrataSync Data'!$I:$I,"Fail",'StrataSync Data'!$H:$H,"Yes",'StrataSync Data'!$G:$G,"Closed")),"") ->  | AA28: =IFERROR(SUM(Z28/#REF!),"") ->  | AB28: =IFERROR(VLOOKUP($G28,'Technician Summary'!$G$7:$BK$372,7,FALSE),"") ->  | AC28: =IFERROR(VLOOKUP($G28,'Technician Summary'!$G$7:$BK$372,8,FALSE),"") ->  | AE28: =IFERROR(VLOOKUP($G28,'Technician Summary'!$G$7:$BK$372,34,FALSE),"") ->  | AF28: =IFERROR(VLOOKUP($G28,'Technician Summary'!$G$7:$BK$372,35,FALSE),"") ->  | AH28: =IFERROR(VLOOKUP($G28,'Technician Summary'!$G$7:$BK$372,37,FALSE),"") ->  | AI28: =IFERROR(VLOOKUP($G28,'Technician Summary'!$G$7:$BK$372,38,FALSE),"") ->  | AK28: =IFERROR(VLOOKUP($G28,'Technician Summary'!$G$7:$BK$372,27,FALSE),"") ->  | AL28: =IFERROR(VLOOKUP($G28,'Technician Summary'!$G$7:$BK$372,68,FALSE),"") -> 
I29: =IFERROR(VLOOKUP($G29,'Technician Summary'!$G$7:$BB$372,2,FALSE),"") ->  | J29: =IFERROR(VLOOKUP($G29,'Technician Summary'!$G$7:$BN$372,60,FALSE),"") ->  | L29: =IFERROR(VLOOKUP($G29,'Technician Summary'!$G$7:$BK$372,14,FALSE),"") ->  | M29: =IFERROR(VLOOKUP($G29,'Technician Summary'!$G$7:$BK$372,15,FALSE),"") ->  | O29: =IFERROR(VLOOKUP($G29,'Technician Summary'!$G$7:$BK$372,17,FALSE),"") ->  | P29: =IFERROR(VLOOKUP($G29,'Technician Summary'!$G$7:$BK$372,18,FALSE),"") ->  | Q29: =IFERROR(SUM(P29/O29),"") ->  | R29: =IFERROR(VLOOKUP($G29,'Technician Summary'!$G$7:$BK$372,20,FALSE),"") ->  | S29: =IFERROR(VLOOKUP($G29,'Technician Summary'!$G$7:$BK$372,21,FALSE),"") ->  | T29: =IFERROR(SUM(S29/R29),"") ->  | U29: =IF(G29="","",COUNTIFS('StrataSync Data'!$AB:$AB,$G29,'StrataSync Data'!$G:$G,"Closed")) ->  | V29: =IF($G29="","",COUNTIFS('StrataSync Data'!$AB:$AB,$G29,'StrataSync Data'!$H:$H,"Yes",'StrataSync Data'!$G:$G,"Closed")) ->  | X29: =IFERROR(IF($G$7="","",COUNTIFS('StrataSync Data'!$AB:$AB,$G29,'StrataSync Data'!$I:$I,"Incomplete",'StrataSync Data'!$H:$H,"Yes",'StrataSync Data'!$G:$G,"Closed"))+IF($G29="","",COUNTIFS('StrataSync Data'!$AB:$AB,$G29,'StrataSync Data'!$I:$I,"Fail",'StrataSync Data'!$H:$H,"Yes",'StrataSync Data'!$G:$G,"Closed")),"") ->  | AA29: =IFERROR(SUM(Z29/#REF!),"") ->  | AB29: =IFERROR(VLOOKUP($G29,'Technician Summary'!$G$7:$BK$372,7,FALSE),"") ->  | AC29: =IFERROR(VLOOKUP($G29,'Technician Summary'!$G$7:$BK$372,8,FALSE),"") ->  | AE29: =IFERROR(VLOOKUP($G29,'Technician Summary'!$G$7:$BK$372,34,FALSE),"") ->  | AF29: =IFERROR(VLOOKUP($G29,'Technician Summary'!$G$7:$BK$372,35,FALSE),"") ->  | AH29: =IFERROR(VLOOKUP($G29,'Technician Summary'!$G$7:$BK$372,37,FALSE),"") ->  | AI29: =IFERROR(VLOOKUP($G29,'Technician Summary'!$G$7:$BK$372,38,FALSE),"") ->  | AK29: =IFERROR(VLOOKUP($G29,'Technician Summary'!$G$7:$BK$372,27,FALSE),"") ->  | AL29: =IFERROR(VLOOKUP($G29,'Technician Summary'!$G$7:$BK$372,68,FALSE),"") -> 
I30: =IFERROR(VLOOKUP($G30,'Technician Summary'!$G$7:$BB$372,2,FALSE),"") ->  | J30: =IFERROR(VLOOKUP($G30,'Technician Summary'!$G$7:$BN$372,60,FALSE),"") ->  | L30: =IFERROR(VLOOKUP($G30,'Technician Summary'!$G$7:$BK$372,14,FALSE),"") ->  | M30: =IFERROR(VLOOKUP($G30,'Technician Summary'!$G$7:$BK$372,15,FALSE),"") ->  | O30: =IFERROR(VLOOKUP($G30,'Technician Summary'!$G$7:$BK$372,17,FALSE),"") ->  | P30: =IFERROR(VLOOKUP($G30,'Technician Summary'!$G$7:$BK$372,18,FALSE),"") ->  | Q30: =IFERROR(SUM(P30/O30),"") ->  | R30: =IFERROR(VLOOKUP($G30,'Technician Summary'!$G$7:$BK$372,20,FALSE),"") ->  | S30: =IFERROR(VLOOKUP($G30,'Technician Summary'!$G$7:$BK$372,21,FALSE),"") ->  | T30: =IFERROR(SUM(S30/R30),"") ->  | U30: =IF(G30="","",COUNTIFS('StrataSync Data'!$AB:$AB,$G30,'StrataSync Data'!$G:$G,"Closed")) ->  | V30: =IF($G30="","",COUNTIFS('StrataSync Data'!$AB:$AB,$G30,'StrataSync Data'!$H:$H,"Yes",'StrataSync Data'!$G:$G,"Closed")) ->  | X30: =IFERROR(IF($G$7="","",COUNTIFS('StrataSync Data'!$AB:$AB,$G30,'StrataSync Data'!$I:$I,"Incomplete",'StrataSync Data'!$H:$H,"Yes",'StrataSync Data'!$G:$G,"Closed"))+IF($G30="","",COUNTIFS('StrataSync Data'!$AB:$AB,$G30,'StrataSync Data'!$I:$I,"Fail",'StrataSync Data'!$H:$H,"Yes",'StrataSync Data'!$G:$G,"Closed")),"") ->  | AA30: =IFERROR(SUM(Z30/#REF!),"") ->  | AB30: =IFERROR(VLOOKUP($G30,'Technician Summary'!$G$7:$BK$372,7,FALSE),"") ->  | AC30: =IFERROR(VLOOKUP($G30,'Technician Summary'!$G$7:$BK$372,8,FALSE),"") ->  | AE30: =IFERROR(VLOOKUP($G30,'Technician Summary'!$G$7:$BK$372,34,FALSE),"") ->  | AF30: =IFERROR(VLOOKUP($G30,'Technician Summary'!$G$7:$BK$372,35,FALSE),"") ->  | AH30: =IFERROR(VLOOKUP($G30,'Technician Summary'!$G$7:$BK$372,37,FALSE),"") ->  | AI30: =IFERROR(VLOOKUP($G30,'Technician Summary'!$G$7:$BK$372,38,FALSE),"") ->  | AK30: =IFERROR(VLOOKUP($G30,'Technician Summary'!$G$7:$BK$372,27,FALSE),"") ->  | AL30: =IFERROR(VLOOKUP($G30,'Technician Summary'!$G$7:$BK$372,68,FALSE),"") -> 
F31: Ahmed Aktira - Old # | G31: 5700 | H31: 7.5 | I31: =IFERROR(VLOOKUP($G31,'Technician Summary'!$G$7:$BB$372,2,FALSE),"") -> 0 | J31: =IFERROR(VLOOKUP($G31,'Technician Summary'!$G$7:$BN$372,60,FALSE),"") ->  | L31: =IFERROR(VLOOKUP($G31,'Technician Summary'!$G$7:$BK$372,14,FALSE),"") -> 23 | M31: =IFERROR(VLOOKUP($G31,'Technician Summary'!$G$7:$BK$372,15,FALSE),"") -> 1 | N31: 0.0435 | O31: =IFERROR(VLOOKUP($G31,'Technician Summary'!$G$7:$BK$372,17,FALSE),"") -> 7 | P31: =IFERROR(VLOOKUP($G31,'Technician Summary'!$G$7:$BK$372,18,FALSE),"") -> 0 | Q31: 0 | R31: =IFERROR(VLOOKUP($G31,'Technician Summary'!$G$7:$BK$372,20,FALSE),"") -> 16 | S31: =IFERROR(VLOOKUP($G31,'Technician Summary'!$G$7:$BK$372,21,FALSE),"") -> 1 | T31: 0.0625 | U31: =IF(G31="","",COUNTIFS('StrataSync Data'!$AB:$AB,$G31,'StrataSync Data'!$G:$G,"Closed")) -> 21 | V31: =IF($G31="","",COUNTIFS('StrataSync Data'!$AB:$AB,$G31,'StrataSync Data'!$H:$H,"Yes",'StrataSync Data'!$G:$G,"Closed")) -> 21 | W31: 1 | X31: =IFERROR(IF($G$7="","",COUNTIFS('StrataSync Data'!$AB:$AB,$G31,'StrataSync Data'!$I:$I,"Incomplete",'StrataSync Data'!$H:$H,"Yes",'StrataSync Data'!$G:$G,"Closed"))+IF($G31="","",COUNTIFS('StrataSync Data'!$AB:$AB,$G31,'StrataSync Data'!$I:$I,"Fail",'StrataSync Data'!$H:$H,"Yes",'StrataSync Data'!$G:$G,"Closed")),"") -> 5 | Y31: 0.7619 | AA31: =IFERROR(SUM(Z31/#REF!),"") ->  | AB31: =IFERROR(VLOOKUP($G31,'Technician Summary'!$G$7:$BK$372,7,FALSE),"") -> 11 | AC31: =IFERROR(VLOOKUP($G31,'Technician Summary'!$G$7:$BK$372,8,FALSE),"") -> 0 | AD31: 1 | AE31: =IFERROR(VLOOKUP($G31,'Technician Summary'!$G$7:$BK$372,34,FALSE),"") -> 6 | AF31: =IFERROR(VLOOKUP($G31,'Technician Summary'!$G$7:$BK$372,35,FALSE),"") -> 0 | AG31: 1 | AH31: =IFERROR(VLOOKUP($G31,'Technician Summary'!$G$7:$BK$372,37,FALSE),"") -> 27 | AI31: =IFERROR(VLOOKUP($G31,'Technician Summary'!$G$7:$BK$372,38,FALSE),"") -> 23 | AJ31: 0.8519 | AK31: =IFERROR(VLOOKUP($G31,'Technician Summary'!$G$7:$BK$372,27,FALSE),"") -> 0 | AL31: =IFERROR(VLOOKUP($G31,'Technician Summary'!$G$7:$BK$372,68,FALSE),"") -> 
I32: # NPS WO's | J32: # Failures | K32: NPS | L32: Total Repeatable WO | M32: Total Repeats | N32: Repeats | O32: Total Repeatable WO | P32: Repeat IN | Q32: IN Repeat % | R32: Total Repeatable WO | S32: Repeat TC | T32: Repeat TC % | U32: Jobs | V32: Test Run | W32: SQT Compliance | X32: Test Fail | Y32: SQT Pass | Z32: Test Passed | AA32: Ingress Test Pass | AB32: FCR WO | AC32: FCR Failures | AD32: FCR | AE32: Jobs | AF32: Jobs Late | AG32: OTA | AH32: Jobs | AI32: Completed Jobs | AJ32: Completion % | AK32: Total QC | AL32: QC Failure | AM32: SMS tNPS
I33: =SUMIF(I7:I31,">0") -> 46 | J33: =SUMIF(J7:J31,">0") -> 22.9999
K34: =IFERROR(1-(J33/I33),"") -> 0.5 | L34: =SUM(L7:L31) -> 1155 | M34: =SUM(M7:M31) -> 40 | N34: =IFERROR(SUM(M34/L34),"") -> 0.0346 | O34: =SUM(O7:O31) -> 630 | P34: =SUM(P7:P31) -> 19 | Q34: =IFERROR(SUM(P34/O34),"") -> 0.0302 | R34: =SUM(R7:R31) -> 525 | S34: =SUM(S7:S31) -> 21 | T34: =IFERROR(SUM(S34/R34),"") -> 0.04 | U34: =SUMIF(U7:U31,">0") -> 919 | V34: =SUMIF(V7:V31,">0") -> 777 | W34: =IFERROR(SUM(V34/U34),"") -> 0.8455 | X34: =SUM(X7:X31) -> 120 | Y34: =IFERROR(SUM(1-X34/V34),"") -> 0.8456 | Z34: =SUM(Z7:Z31) -> 0 | AA34: =IFERROR(SUM(Z34/#REF!),"") ->  | AB34: =SUM(AB7:AB31) -> 660 | AC34: =SUM(AC7:AC31) -> 23 | AD34: =IFERROR(1-AC34/AB34,"") -> 0.9652 | AE34: =SUM(AE7:AE31) -> 362 | AF34: =SUM(AF7:AF31) -> 55 | AG34: =IFERROR(1-AF34/AE34,"") -> 0.8481 | AH34: =SUM(AH7:AH31) -> 1052 | AI34: =SUM(AI7:AI31) -> 990 | AJ34: =IFERROR(AI34/AH34,"") -> 0.9411 | AK34: =SUM(AK7:AK31) -> 0 | AL34: =SUM(AL7:AL31) -> 0 | AM34: =IFERROR(1-AL34/AK34,"") -> 

Sheet Roanoke
F3: Donnie Evans
F5: Tech Name | G5: Tech ID | H5: Score | I5: # NPS WO's | J5: # Failures | K5: NPS | L5: Total Repeatable WO | M5: Total Repeats | N5: Repeats | O5: Total Repeatable WO | P5: Repeat IN | Q5: IN Repeat % | R5: Total Repeatable WO | S5: Repeat TC | T5: Repeat TC % | U5: Jobs | V5: Test Run | W5: SQT Compliance | X5: Test Fail | Y5: SQT Pass | Z5: Test Passed | AA5: Ingress Test Pass | AB5: FCR WO | AC5: FCR Failures | AD5: FCR | AE5: Jobs | AF5: Jobs Late | AG5: OTA | AH5: Jobs | AI5: Completed Jobs | AJ5: Completion % | AK5: Total QC | AL5: QC Failure | AM5: SMS tNPS
F7: Donnie Evans | G7: 94710 | H7: =IF(W7="","",IFERROR(IF(K7>=70%,2.5,0)+IF(N7<=4%,2.5,0)+IF(W7>=90%,2.5,0)+IF(AG7>=96%,2.5,0),"")) ->  | I7: =IFERROR(VLOOKUP($G7,'Technician Summary'!$G$7:$BB$372,2,FALSE),"") ->  | J7: =IFERROR(VLOOKUP($G7,'Technician Summary'!$G$7:$BN$372,60,FALSE),"") ->  | K7: =IFERROR(1-(J7/I7),"") ->  | L7: =IFERROR(VLOOKUP($G7,'Technician Summary'!$G$7:$BK$372,14,FALSE),"") ->  | M7: =IFERROR(VLOOKUP($G7,'Technician Summary'!$G$7:$BK$372,15,FALSE),"") ->  | N7: =IFERROR(SUM(M7/L7),"") ->  | O7: =IFERROR(VLOOKUP($G7,'Technician Summary'!$G$7:$BK$372,17,FALSE),"") ->  | P7: =IFERROR(VLOOKUP($G7,'Technician Summary'!$G$7:$BK$372,18,FALSE),"") ->  | Q7: =IFERROR(SUM(P7/O7),"") ->  | R7: =IFERROR(VLOOKUP($G7,'Technician Summary'!$G$7:$BK$372,20,FALSE),"") ->  | S7: =IFERROR(VLOOKUP($G7,'Technician Summary'!$G$7:$BK$372,21,FALSE),"") ->  | T7: =IFERROR(SUM(S7/R7),"") ->  | U7: =IF(G7="","",COUNTIFS('StrataSync Data'!$AB:$AB,$G7,'StrataSync Data'!$G:$G,"Closed")) -> 0 | V7: =IF($G7="","",COUNTIFS('StrataSync Data'!$AB:$AB,$G7,'StrataSync Data'!$H:$H,"Yes",'StrataSync Data'!$G:$G,"Closed")) -> 0 | W7: =IFERROR(SUM(V7/U7),"") ->  | X7: =IFERROR(IF($G$7="","",COUNTIFS('StrataSync Data'!$AB:$AB,$G7,'StrataSync Data'!$I:$I,"Incomplete",'StrataSync Data'!$H:$H,"Yes",'StrataSync Data'!$G:$G,"Closed"))+IF($G7="","",COUNTIFS('StrataSync Data'!$AB:$AB,$G7,'StrataSync Data'!$I:$I,"Fail",'StrataSync Data'!$H:$H,"Yes",'StrataSync Data'!$G:$G,"Closed")),"") -> 0 | Y7: =IFERROR(SUM(1-X7/V7),"") ->  | AA7: =IFERROR(SUM(Z7/#REF!),"") ->  | AB7: =IFERROR(VLOOKUP($G7,'Technician Summary'!$G$7:$BK$372,7,FALSE),"") ->  | AC7: =IFERROR(VLOOKUP($G7,'Technician Summary'!$G$7:$BK$372,8,FALSE),"") ->  | AD7: =IFERROR(1-AC7/AB7,"") ->  | AE7: =IFERROR(VLOOKUP($G7,'Technician Summary'!$G$7:$BK$372,34,FALSE),"") ->  | AF7: =IFERROR(VLOOKUP($G7,'Technician Summary'!$G$7:$BK$372,35,FALSE),"") ->  | AG7: =IFERROR(1-AF7/AE7,"") ->  | AH7: =IFERROR(VLOOKUP($G7,'Technician Summary'!$G$7:$BK$372,37,FALSE),"") ->  | AI7: =IFERROR(VLOOKUP($G7,'Technician Summary'!$G$7:$BK$372,38,FALSE),"") ->  | AJ7: =IFERROR(AI7/AH7,"") ->  | AK7: =IFERROR(VLOOKUP($G7,'Technician Summary'!$G$7:$BK$372,27,FALSE),"") ->  | AL7: =IFERROR(VLOOKUP($G7,'Technician Summary'!$G$7:$BK$372,68,FALSE),"") ->  | AM7: =IFERROR(1-AL7/AK7,"") -> 
F8: Donnie Evans | G8: 43145 | H8: =IF(W8="","",IFERROR(IF(K8>=70%,2.5,0)+IF(N8<=4%,2.5,0)+IF(W8>=90%,2.5,0)+IF(AG8>=96%,2.5,0),"")) ->  | I8: =IFERROR(VLOOKUP($G8,'Technician Summary'!$G$7:$BB$372,2,FALSE),"") -> 0 | J8: =IFERROR(VLOOKUP($G8,'Technician Summary'!$G$7:$BN$372,60,FALSE),"") ->  | K8: =IFERROR(1-(J8/I8),"") ->  | L8: =IFERROR(VLOOKUP($G8,'Technician Summary'!$G$7:$BK$372,14,FALSE),"") -> 0 | M8: =IFERROR(VLOOKUP($G8,'Technician Summary'!$G$7:$BK$372,15,FALSE),"") -> 0 | N8: =IFERROR(SUM(M8/L8),"") ->  | O8: =IFERROR(VLOOKUP($G8,'Technician Summary'!$G$7:$BK$372,17,FALSE),"") -> 0 | P8: =IFERROR(VLOOKUP($G8,'Technician Summary'!$G$7:$BK$372,18,FALSE),"") -> 0 | Q8: =IFERROR(SUM(P8/O8),"") ->  | R8: =IFERROR(VLOOKUP($G8,'Technician Summary'!$G$7:$BK$372,20,FALSE),"") -> 0 | S8: =IFERROR(VLOOKUP($G8,'Technician Summary'!$G$7:$BK$372,21,FALSE),"") -> 0 | T8: =IFERROR(SUM(S8/R8),"") ->  | U8: =IF(G8="","",COUNTIFS('StrataSync Data'!$AB:$AB,$G8,'StrataSync Data'!$G:$G,"Closed")) -> 0 | V8: =IF($G8="","",COUNTIFS('StrataSync Data'!$AB:$AB,$G8,'StrataSync Data'!$H:$H,"Yes",'StrataSync Data'!$G:$G,"Closed")) -> 0 | W8: =IFERROR(SUM(V8/U8),"") ->  | X8: =IFERROR(IF($G$7="","",COUNTIFS('StrataSync Data'!$AB:$AB,$G8,'StrataSync Data'!$I:$I,"Incomplete",'StrataSync Data'!$H:$H,"Yes",'StrataSync Data'!$G:$G,"Closed"))+IF($G8="","",COUNTIFS('StrataSync Data'!$AB:$AB,$G8,'StrataSync Data'!$I:$I,"Fail",'StrataSync Data'!$H:$H,"Yes",'StrataSync Data'!$G:$G,"Closed")),"") -> 0 | Y8: =IFERROR(SUM(1-X8/V8),"") ->  | AA8: =IFERROR(SUM(Z8/#REF!),"") ->  | AB8: =IFERROR(VLOOKUP($G8,'Technician Summary'!$G$7:$BK$372,7,FALSE),"") -> 0 | AC8: =IFERROR(VLOOKUP($G8,'Technician Summary'!$G$7:$BK$372,8,FALSE),"") -> 0 | AD8: =IFERROR(1-AC8/AB8,"") ->  | AE8: =IFERROR(VLOOKUP($G8,'Technician Summary'!$G$7:$BK$372,34,FALSE),"") -> 0 | AF8: =IFERROR(VLOOKUP($G8,'Technician Summary'!$G$7:$BK$372,35,FALSE),"") -> 0 | AG8: =IFERROR(1-AF8/AE8,"") ->  | AH8: =IFERROR(VLOOKUP($G8,'Technician Summary'!$G$7:$BK$372,37,FALSE),"") -> 0 | AI8: =IFERROR(VLOOKUP($G8,'Technician Summary'!$G$7:$BK$372,38,FALSE),"") -> 0 | AJ8: =IFERROR(AI8/AH8,"") ->  | AK8: =IFERROR(VLOOKUP($G8,'Technician Summary'!$G$7:$BK$372,27,FALSE),"") -> 0 | AL8: =IFERROR(VLOOKUP($G8,'Technician Summary'!$G$7:$BK$372,68,FALSE),"") ->  | AM8: =IFERROR(1-AL8/AK8,"") -> 
F9: Hunter Collins | G9: 16407 | H9: 7.5 | I9: =IFERROR(VLOOKUP($G9,'Technician Summary'!$G$7:$BB$372,2,FALSE),"") -> 9 | J9: =IFERROR(VLOOKUP($G9,'Technician Summary'!$G$7:$BN$372,60,FALSE),"") -> 0 | K9: 1 | L9: =IFERROR(VLOOKUP($G9,'Technician Summary'!$G$7:$BK$372,14,FALSE),"") -> 104 | M9: =IFERROR(VLOOKUP($G9,'Technician Summary'!$G$7:$BK$372,15,FALSE),"") -> 4 | N9: 0.0385 | O9: =IFERROR(VLOOKUP($G9,'Technician Summary'!$G$7:$BK$372,17,FALSE),"") -> 50 | P9: =IFERROR(VLOOKUP($G9,'Technician Summary'!$G$7:$BK$372,18,FALSE),"") -> 3 | Q9: 0.06 | R9: =IFERROR(VLOOKUP($G9,'Technician Summary'!$G$7:$BK$372,20,FALSE),"") -> 54 | S9: =IFERROR(VLOOKUP($G9,'Technician Summary'!$G$7:$BK$372,21,FALSE),"") -> 1 | T9: 0.0185 | U9: =IF(G9="","",COUNTIFS('StrataSync Data'!$AB:$AB,$G9,'StrataSync Data'!$G:$G,"Closed")) -> 87 | V9: =IF($G9="","",COUNTIFS('StrataSync Data'!$AB:$AB,$G9,'StrataSync Data'!$H:$H,"Yes",'StrataSync Data'!$G:$G,"Closed")) -> 81 | W9: 0.931 | X9: =IFERROR(IF($G$7="","",COUNTIFS('StrataSync Data'!$AB:$AB,$G9,'StrataSync Data'!$I:$I,"Incomplete",'StrataSync Data'!$H:$H,"Yes",'StrataSync Data'!$G:$G,"Closed"))+IF($G9="","",COUNTIFS('StrataSync Data'!$AB:$AB,$G9,'StrataSync Data'!$I:$I,"Fail",'StrataSync Data'!$H:$H,"Yes",'StrataSync Data'!$G:$G,"Closed")),"") -> 0 | Y9: 1 | AA9: =IFERROR(SUM(Z9/#REF!),"") ->  | AB9: =IFERROR(VLOOKUP($G9,'Technician Summary'!$G$7:$BK$372,7,FALSE),"") -> 60 | AC9: =IFERROR(VLOOKUP($G9,'Technician Summary'!$G$7:$BK$372,8,FALSE),"") -> 3 | AD9: 0.95 | AE9: =IFERROR(VLOOKUP($G9,'Technician Summary'!$G$7:$BK$372,34,FALSE),"") -> 48 | AF9: =IFERROR(VLOOKUP($G9,'Technician Summary'!$G$7:$BK$372,35,FALSE),"") -> 11 | AG9: 0.7708 | AH9: =IFERROR(VLOOKUP($G9,'Technician Summary'!$G$7:$BK$372,37,FALSE),"") -> 110 | AI9: =IFERROR(VLOOKUP($G9,'Technician Summary'!$G$7:$BK$372,38,FALSE),"") -> 104 | AJ9: 0.9455 | AK9: =IFERROR(VLOOKUP($G9,'Technician Summary'!$G$7:$BK$372,27,FALSE),"") -> 0 | AL9: =IFERROR(VLOOKUP($G9,'Technician Summary'!$G$7:$BK$372,68,FALSE),"") -> 
F10: Justin Burch | G10: 69318 | H10: 2.5 | I10: =IFERROR(VLOOKUP($G10,'Technician Summary'!$G$7:$BB$372,2,FALSE),"") -> 10 | J10: =IFERROR(VLOOKUP($G10,'Technician Summary'!$G$7:$BN$372,60,FALSE),"") -> 0 | K10: 1 | L10: =IFERROR(VLOOKUP($G10,'Technician Summary'!$G$7:$BK$372,14,FALSE),"") -> 116 | M10: =IFERROR(VLOOKUP($G10,'Technician Summary'!$G$7:$BK$372,15,FALSE),"") -> 7 | N10: 0.0603 | O10: =IFERROR(VLOOKUP($G10,'Technician Summary'!$G$7:$BK$372,17,FALSE),"") -> 47 | P10: =IFERROR(VLOOKUP($G10,'Technician Summary'!$G$7:$BK$372,18,FALSE),"") -> 4 | Q10: 0.0851 | R10: =IFERROR(VLOOKUP($G10,'Technician Summary'!$G$7:$BK$372,20,FALSE),"") -> 69 | S10: =IFERROR(VLOOKUP($G10,'Technician Summary'!$G$7:$BK$372,21,FALSE),"") -> 3 | T10: 0.0435 | U10: =IF(G10="","",COUNTIFS('StrataSync Data'!$AB:$AB,$G10,'StrataSync Data'!$G:$G,"Closed")) -> 102 | V10: =IF($G10="","",COUNTIFS('StrataSync Data'!$AB:$AB,$G10,'StrataSync Data'!$H:$H,"Yes",'StrataSync Data'!$G:$G,"Closed")) -> 74 | W10: 0.7255 | X10: =IFERROR(IF($G$7="","",COUNTIFS('StrataSync Data'!$AB:$AB,$G10,'StrataSync Data'!$I:$I,"Incomplete",'StrataSync Data'!$H:$H,"Yes",'StrataSync Data'!$G:$G,"Closed"))+IF($G10="","",COUNTIFS('StrataSync Data'!$AB:$AB,$G10,'StrataSync Data'!$I:$I,"Fail",'StrataSync Data'!$H:$H,"Yes",'StrataSync Data'!$G:$G,"Closed")),"") -> 5 | Y10: 0.9324 | AA10: =IFERROR(SUM(Z10/#REF!),"") ->  | AB10: =IFERROR(VLOOKUP($G10,'Technician Summary'!$G$7:$BK$372,7,FALSE),"") -> 62 | AC10: =IFERROR(VLOOKUP($G10,'Technician Summary'!$G$7:$BK$372,8,FALSE),"") -> 5 | AD10: 0.9194 | AE10: =IFERROR(VLOOKUP($G10,'Technician Summary'!$G$7:$BK$372,34,FALSE),"") -> 44 | AF10: =IFERROR(VLOOKUP($G10,'Technician Summary'!$G$7:$BK$372,35,FALSE),"") -> 7 | AG10: 0.8409 | AH10: =IFERROR(VLOOKUP($G10,'Technician Summary'!$G$7:$BK$372,37,FALSE),"") -> 125 | AI10: =IFERROR(VLOOKUP($G10,'Technician Summary'!$G$7:$BK$372,38,FALSE),"") -> 115 | AJ10: 0.92 | AK10: =IFERROR(VLOOKUP($G10,'Technician Summary'!$G$7:$BK$372,27,FALSE),"") -> 0 | AL10: =IFERROR(VLOOKUP($G10,'Technician Summary'!$G$7:$BK$372,68,FALSE),"") -> 
B11: Home | I11: =IFERROR(VLOOKUP($G11,'Technician Summary'!$G$7:$BB$372,2,FALSE),"") ->  | J11: =IFERROR(VLOOKUP($G11,'Technician Summary'!$G$7:$BN$372,60,FALSE),"") ->  | L11: =IFERROR(VLOOKUP($G11,'Technician Summary'!$G$7:$BK$372,14,FALSE),"") ->  | M11: =IFERROR(VLOOKUP($G11,'Technician Summary'!$G$7:$BK$372,15,FALSE),"") ->  | O11: =IFERROR(VLOOKUP($G11,'Technician Summary'!$G$7:$BK$372,17,FALSE),"") ->  | P11: =IFERROR(VLOOKUP($G11,'Technician Summary'!$G$7:$BK$372,18,FALSE),"") ->  | R11: =IFERROR(VLOOKUP($G11,'Technician Summary'!$G$7:$BK$372,20,FALSE),"") ->  | S11: =IFERROR(VLOOKUP($G11,'Technician Summary'!$G$7:$BK$372,21,FALSE),"") ->  | U11: =IF(G11="","",COUNTIFS('StrataSync Data'!$AB:$AB,$G11,'StrataSync Data'!$G:$G,"Closed")) ->  | V11: =IF($G11="","",COUNTIFS('StrataSync Data'!$AB:$AB,$G11,'StrataSync Data'!$H:$H,"Yes",'StrataSync Data'!$G:$G,"Closed")) ->  | X11: =IFERROR(IF($G$7="","",COUNTIFS('StrataSync Data'!$AB:$AB,$G11,'StrataSync Data'!$I:$I,"Incomplete",'StrataSync Data'!$H:$H,"Yes",'StrataSync Data'!$G:$G,"Closed"))+IF($G11="","",COUNTIFS('StrataSync Data'!$AB:$AB,$G11,'StrataSync Data'!$I:$I,"Fail",'StrataSync Data'!$H:$H,"Yes",'StrataSync Data'!$G:$G,"Closed")),"") ->  | AA11: =IFERROR(SUM(Z11/#REF!),"") ->  | AB11: =IFERROR(VLOOKUP($G11,'Technician Summary'!$G$7:$BK$372,7,FALSE),"") ->  | AC11: =IFERROR(VLOOKUP($G11,'Technician Summary'!$G$7:$BK$372,8,FALSE),"") ->  | AE11: =IFERROR(VLOOKUP($G11,'Technician Summary'!$G$7:$BK$372,34,FALSE),"") ->  | AF11: =IFERROR(VLOOKUP($G11,'Technician Summary'!$G$7:$BK$372,35,FALSE),"") ->  | AH11: =IFERROR(VLOOKUP($G11,'Technician Summary'!$G$7:$BK$372,37,FALSE),"") ->  | AI11: =IFERROR(VLOOKUP($G11,'Technician Summary'!$G$7:$BK$372,38,FALSE),"") ->  | AK11: =IFERROR(VLOOKUP($G11,'Technician Summary'!$G$7:$BK$372,27,FALSE),"") ->  | AL11: =IFERROR(VLOOKUP($G11,'Technician Summary'!$G$7:$BK$372,68,FALSE),"") -> 
I12: =IFERROR(VLOOKUP($G12,'Technician Summary'!$G$7:$BB$372,2,FALSE),"") ->  | J12: =IFERROR(VLOOKUP($G12,'Technician Summary'!$G$7:$BN$372,60,FALSE),"") ->  | L12: =IFERROR(VLOOKUP($G12,'Technician Summary'!$G$7:$BK$372,14,FALSE),"") ->  | M12: =IFERROR(VLOOKUP($G12,'Technician Summary'!$G$7:$BK$372,15,FALSE),"") ->  | O12: =IFERROR(VLOOKUP($G12,'Technician Summary'!$G$7:$BK$372,17,FALSE),"") ->  | P12: =IFERROR(VLOOKUP($G12,'Technician Summary'!$G$7:$BK$372,18,FALSE),"") ->  | R12: =IFERROR(VLOOKUP($G12,'Technician Summary'!$G$7:$BK$372,20,FALSE),"") ->  | S12: =IFERROR(VLOOKUP($G12,'Technician Summary'!$G$7:$BK$372,21,FALSE),"") ->  | U12: =IF(G12="","",COUNTIFS('StrataSync Data'!$AB:$AB,$G12,'StrataSync Data'!$G:$G,"Closed")) ->  | V12: =IF($G12="","",COUNTIFS('StrataSync Data'!$AB:$AB,$G12,'StrataSync Data'!$H:$H,"Yes",'StrataSync Data'!$G:$G,"Closed")) ->  | X12: =IFERROR(IF($G$7="","",COUNTIFS('StrataSync Data'!$AB:$AB,$G12,'StrataSync Data'!$I:$I,"Incomplete",'StrataSync Data'!$H:$H,"Yes",'StrataSync Data'!$G:$G,"Closed"))+IF($G12="","",COUNTIFS('StrataSync Data'!$AB:$AB,$G12,'StrataSync Data'!$I:$I,"Fail",'StrataSync Data'!$H:$H,"Yes",'StrataSync Data'!$G:$G,"Closed")),"") ->  | AA12: =IFERROR(SUM(Z12/#REF!),"") ->  | AB12: =IFERROR(VLOOKUP($G12,'Technician Summary'!$G$7:$BK$372,7,FALSE),"") ->  | AC12: =IFERROR(VLOOKUP($G12,'Technician Summary'!$G$7:$BK$372,8,FALSE),"") ->  | AE12: =IFERROR(VLOOKUP($G12,'Technician Summary'!$G$7:$BK$372,34,FALSE),"") ->  | AF12: =IFERROR(VLOOKUP($G12,'Technician Summary'!$G$7:$BK$372,35,FALSE),"") ->  | AH12: =IFERROR(VLOOKUP($G12,'Technician Summary'!$G$7:$BK$372,37,FALSE),"") ->  | AI12: =IFERROR(VLOOKUP($G12,'Technician Summary'!$G$7:$BK$372,38,FALSE),"") ->  | AK12: =IFERROR(VLOOKUP($G12,'Technician Summary'!$G$7:$BK$372,27,FALSE),"") ->  | AL12: =IFERROR(VLOOKUP($G12,'Technician Summary'!$G$7:$BK$372,68,FALSE),"") -> 
B13: Performance Metrics | I13: =IFERROR(VLOOKUP($G13,'Technician Summary'!$G$7:$BB$372,2,FALSE),"") ->  | J13: =IFERROR(VLOOKUP($G13,'Technician Summary'!$G$7:$BN$372,60,FALSE),"") ->  | L13: =IFERROR(VLOOKUP($G13,'Technician Summary'!$G$7:$BK$372,14,FALSE),"") ->  | M13: =IFERROR(VLOOKUP($G13,'Technician Summary'!$G$7:$BK$372,15,FALSE),"") ->  | O13: =IFERROR(VLOOKUP($G13,'Technician Summary'!$G$7:$BK$372,17,FALSE),"") ->  | P13: =IFERROR(VLOOKUP($G13,'Technician Summary'!$G$7:$BK$372,18,FALSE),"") ->  | R13: =IFERROR(VLOOKUP($G13,'Technician Summary'!$G$7:$BK$372,20,FALSE),"") ->  | S13: =IFERROR(VLOOKUP($G13,'Technician Summary'!$G$7:$BK$372,21,FALSE),"") ->  | U13: =IF(G13="","",COUNTIFS('StrataSync Data'!$AB:$AB,$G13,'StrataSync Data'!$G:$G,"Closed")) ->  | V13: =IF($G13="","",COUNTIFS('StrataSync Data'!$AB:$AB,$G13,'StrataSync Data'!$H:$H,"Yes",'StrataSync Data'!$G:$G,"Closed")) ->  | X13: =IFERROR(IF($G$7="","",COUNTIFS('StrataSync Data'!$AB:$AB,$G13,'StrataSync Data'!$I:$I,"Incomplete",'StrataSync Data'!$H:$H,"Yes",'StrataSync Data'!$G:$G,"Closed"))+IF($G13="","",COUNTIFS('StrataSync Data'!$AB:$AB,$G13,'StrataSync Data'!$I:$I,"Fail",'StrataSync Data'!$H:$H,"Yes",'StrataSync Data'!$G:$G,"Closed")),"") ->  | AA13: =IFERROR(SUM(Z13/#REF!),"") ->  | AB13: =IFERROR(VLOOKUP($G13,'Technician Summary'!$G$7:$BK$372,7,FALSE),"") ->  | AC13: =IFERROR(VLOOKUP($G13,'Technician Summary'!$G$7:$BK$372,8,FALSE),"") ->  | AE13: =IFERROR(VLOOKUP($G13,'Technician Summary'!$G$7:$BK$372,34,FALSE),"") ->  | AF13: =IFERROR(VLOOKUP($G13,'Technician Summary'!$G$7:$BK$372,35,FALSE),"") ->  | AH13: =IFERROR(VLOOKUP($G13,'Technician Summary'!$G$7:$BK$372,37,FALSE),"") ->  | AI13: =IFERROR(VLOOKUP($G13,'Technician Summary'!$G$7:$BK$372,38,FALSE),"") ->  | AK13: =IFERROR(VLOOKUP($G13,'Technician Summary'!$G$7:$BK$372,27,FALSE),"") ->  | AL13: =IFERROR(VLOOKUP($G13,'Technician Summary'!$G$7:$BK$372,68,FALSE),"") -> 
B14: Gainesville | I14: =IFERROR(VLOOKUP($G14,'Technician Summary'!$G$7:$BB$372,2,FALSE),"") ->  | J14: =IFERROR(VLOOKUP($G14,'Technician Summary'!$G$7:$BN$372,60,FALSE),"") ->  | L14: =IFERROR(VLOOKUP($G14,'Technician Summary'!$G$7:$BK$372,14,FALSE),"") ->  | M14: =IFERROR(VLOOKUP($G14,'Technician Summary'!$G$7:$BK$372,15,FALSE),"") ->  | O14: =IFERROR(VLOOKUP($G14,'Technician Summary'!$G$7:$BK$372,17,FALSE),"") ->  | P14: =IFERROR(VLOOKUP($G14,'Technician Summary'!$G$7:$BK$372,18,FALSE),"") ->  | R14: =IFERROR(VLOOKUP($G14,'Technician Summary'!$G$7:$BK$372,20,FALSE),"") ->  | S14: =IFERROR(VLOOKUP($G14,'Technician Summary'!$G$7:$BK$372,21,FALSE),"") ->  | U14: =IF(G14="","",COUNTIFS('StrataSync Data'!$AB:$AB,$G14,'StrataSync Data'!$G:$G,"Closed")) ->  | V14: =IF($G14="","",COUNTIFS('StrataSync Data'!$AB:$AB,$G14,'StrataSync Data'!$H:$H,"Yes",'StrataSync Data'!$G:$G,"Closed")) ->  | X14: =IFERROR(IF($G$7="","",COUNTIFS('StrataSync Data'!$AB:$AB,$G14,'StrataSync Data'!$I:$I,"Incomplete",'StrataSync Data'!$H:$H,"Yes",'StrataSync Data'!$G:$G,"Closed"))+IF($G14="","",COUNTIFS('StrataSync Data'!$AB:$AB,$G14,'StrataSync Data'!$I:$I,"Fail",'StrataSync Data'!$H:$H,"Yes",'StrataSync Data'!$G:$G,"Closed")),"") ->  | AA14: =IFERROR(SUM(Z14/#REF!),"") ->  | AB14: =IFERROR(VLOOKUP($G14,'Technician Summary'!$G$7:$BK$372,7,FALSE),"") ->  | AC14: =IFERROR(VLOOKUP($G14,'Technician Summary'!$G$7:$BK$372,8,FALSE),"") ->  | AE14: =IFERROR(VLOOKUP($G14,'Technician Summary'!$G$7:$BK$372,34,FALSE),"") ->  | AF14: =IFERROR(VLOOKUP($G14,'Technician Summary'!$G$7:$BK$372,35,FALSE),"") ->  | AH14: =IFERROR(VLOOKUP($G14,'Technician Summary'!$G$7:$BK$372,37,FALSE),"") ->  | AI14: =IFERROR(VLOOKUP($G14,'Technician Summary'!$G$7:$BK$372,38,FALSE),"") ->  | AK14: =IFERROR(VLOOKUP($G14,'Technician Summary'!$G$7:$BK$372,27,FALSE),"") ->  | AL14: =IFERROR(VLOOKUP($G14,'Technician Summary'!$G$7:$BK$372,68,FALSE),"") -> 
B15: Macon | I15: =IFERROR(VLOOKUP($G15,'Technician Summary'!$G$7:$BB$372,2,FALSE),"") ->  | J15: =IFERROR(VLOOKUP($G15,'Technician Summary'!$G$7:$BN$372,60,FALSE),"") ->  | L15: =IFERROR(VLOOKUP($G15,'Technician Summary'!$G$7:$BK$372,14,FALSE),"") ->  | M15: =IFERROR(VLOOKUP($G15,'Technician Summary'!$G$7:$BK$372,15,FALSE),"") ->  | O15: =IFERROR(VLOOKUP($G15,'Technician Summary'!$G$7:$BK$372,17,FALSE),"") ->  | P15: =IFERROR(VLOOKUP($G15,'Technician Summary'!$G$7:$BK$372,18,FALSE),"") ->  | R15: =IFERROR(VLOOKUP($G15,'Technician Summary'!$G$7:$BK$372,20,FALSE),"") ->  | S15: =IFERROR(VLOOKUP($G15,'Technician Summary'!$G$7:$BK$372,21,FALSE),"") ->  | U15: =IF(G15="","",COUNTIFS('StrataSync Data'!$AB:$AB,$G15,'StrataSync Data'!$G:$G,"Closed")) ->  | V15: =IF($G15="","",COUNTIFS('StrataSync Data'!$AB:$AB,$G15,'StrataSync Data'!$H:$H,"Yes",'StrataSync Data'!$G:$G,"Closed")) ->  | X15: =IFERROR(IF($G$7="","",COUNTIFS('StrataSync Data'!$AB:$AB,$G15,'StrataSync Data'!$I:$I,"Incomplete",'StrataSync Data'!$H:$H,"Yes",'StrataSync Data'!$G:$G,"Closed"))+IF($G15="","",COUNTIFS('StrataSync Data'!$AB:$AB,$G15,'StrataSync Data'!$I:$I,"Fail",'StrataSync Data'!$H:$H,"Yes",'StrataSync Data'!$G:$G,"Closed")),"") ->  | AA15: =IFERROR(SUM(Z15/#REF!),"") ->  | AB15: =IFERROR(VLOOKUP($G15,'Technician Summary'!$G$7:$BK$372,7,FALSE),"") ->  | AC15: =IFERROR(VLOOKUP($G15,'Technician Summary'!$G$7:$BK$372,8,FALSE),"") ->  | AE15: =IFERROR(VLOOKUP($G15,'Technician Summary'!$G$7:$BK$372,34,FALSE),"") ->  | AF15: =IFERROR(VLOOKUP($G15,'Technician Summary'!$G$7:$BK$372,35,FALSE),"") ->  | AH15: =IFERROR(VLOOKUP($G15,'Technician Summary'!$G$7:$BK$372,37,FALSE),"") ->  | AI15: =IFERROR(VLOOKUP($G15,'Technician Summary'!$G$7:$BK$372,38,FALSE),"") ->  | AK15: =IFERROR(VLOOKUP($G15,'Technician Summary'!$G$7:$BK$372,27,FALSE),"") ->  | AL15: =IFERROR(VLOOKUP($G15,'Technician Summary'!$G$7:$BK$372,68,FALSE),"") -> 
